Workbook

Sheet Form (hidden)
G3: =IF(J18=0,"ACTIVATION FORM",IF(J18=2,"EMERGENCY ACCESS FORM","RE-ACTIVATION FORM")) -> ACTIVATION FORM
G4: Enter your prefer Name (This will be displayed in the file interface)
G6: Paste the Activation Code below to proceed:
J18: 0

Sheet HOME
K2: Forex Trading Journal
K3: Professional Journaling Solution | S3: V.1.0
S4: ="Registered to "&Nameko -> Registered to Rocketsheets
X10: 1
D12: ='Bank Transfers'!W10 -> Welcome!
K13: ='Bank Transfers'!W11 -> Successfully Registered to Rocketsheets.
D15: If sheets did'nt appear, macro is disabled. Follow steps below. | N15: System Requirements: MS Excel
N16: Recommended: At least Excel 2010
D17: How to Enable Macro: | H17: Scroll Down for Tutorial | N17: Excel 365 autosave should be turned-off
N18: Its recommended to save the file in folder that are not linked to Onedrive.
D20: Click Enable Content.
D21: if Security Warning above doesn't appear, follow tutorial below.
N22: How to view the Developer Tab:
D23: Step 1a: | E23: Go to Developer Tab and Click Macro Security (image#1)
E24: (if Developer Tab doesn't apper go to Step 1b.) | N24: Step 1b: | O24: Press ALT and type FTC (for MS 2016) or go to File tab
D25: image#1 | O25: go to Options>Customize Ribbon
N26: Step 2b: | O26: Check the Developer and the Click OK button
N28: image#3
D32: Step 2a: | E32: Select 3rd or 4th option (Enable all macros) and click OK (image#2) | N32: Step 3b: | O32: Follow Step1a , Step2a and Step 3a. (image#3)
D33: image#2
N35: Contact Us at:
N36: info@rocketsheets.com
N37: aaespreadsheets@gmail.com
N39: Website:
D40: Step 3a: | E40: Save changes and Re- OPEN this worksheet. | N40: rocketsheets.com

Sheet Bank Transfers (hidden)
A1: 1 | W1: b1sm1ll4h | X1: b1sm1ll4h | Y1: R4ALEEARUDAB4AARMN4LH008ER | Z1: =CLEAN(Y1) -> R4ALEEARUDAB4AARMN4LH008ER
W2: rocketsheets.com | Z2: =IFERROR(IF(Z1="",W3-2,IF(AE6="HR",AO7,W3-2)),W3-2) -> 2023-03-13 | AO2: excel date format verification
W3: 2023-03-15 | Z3: =IF(AA3="","Rocketsheets",AA3) -> 0 | AA3: =PROPER(TRIM(CONCATENATE(AJ15,AJ16,AJ17,AJ18,AJ19,AJ20,AJ21,AJ22,AJ23,AJ24,AJ25,AJ26,AJ27,AJ28,AJ29,AJ30,AJ31,AJ32,AJ33,AJ34,AJ35,AJ36,AJ37,AJ38,AJ39,AJ40,AJ41,AJ42,AJ43,AJ44,AJ45,AJ46,AJ47,AJ48,AJ49,AJ50,AJ51,AJ52,AJ53,AJ54))) -> 0 | AD3: name | AE3: =AB7 -> RI | AF3: =LEN(AE3) -> 2 | AO3: 0
H4: TOTAL DEPOSITS | I4: TOTAL WITHDRAWALS | L4: BUY | W4: 2023-03-13 | AO4: =VALUE($AN$15&$AN$16&"/"&$AN$17&$AN$18&"/"&$AN$19&$AN$20) -> 45241 | AP4: MDY
H5: =SUMIF(E15:E1048576,"Deposit",$H$15:$H$514) -> 50000 | I5: =SUMIF(E15:E1048576,"Withdraw",$H$15:$H$514) -> 0 | J5: =I5+H5 -> 50000 | L5: SELL | AD5: date | AE5: =aCode -> 0 | AO5: =VALUE($AN$17&$AN$18&"/"&$AN$15&$AN$16&"/"&$AN$19&$AN$20) -> 45241 | AP5: DMY
W6: 1 | Y6: Inputs | AD6: ID | AE6: =AG9&AH9 -> 00 | AO6: =VALUE(AN19&AN20&"/"&AN15&AN16&"/"&AN17&AN18) ->  | AP6: YMD
H7: Capital + Profit | I7: Withdrawal | J7: Net Total | L7: Deposit | W7: 2 | Y7: Name | Z7: =Form!G5 -> 0 | AA7: =LEN(Z7) -> 1 | AB7: =TRIM(Z16&Z17&Z18&Z19&Z20&Z21&Z22&Z23&Z24&Z25&Z26&Z27&Z28&Z29&Z30&Z31&Z32&Z33&Z34&Z35&Z36&Z37&Z38&Z39&Z40&Z41&Z42&Z43&Z44&Z45&Z46&Z47&Z48&Z49&Z50&Z51&Z52&Z53&Z54&Z55) -> RI | AO7: =IF(AO3=0,AO4,IF(AO3=1,AO5,AO6)) -> 45241
F8: Capital: | H8: =H5 -> 50000 | I8: =IF(-I5>H8,H8,-I5) -> 0 | J8: =H8-I8 -> 50000 | L8: Withdraw | W8: BSMLH-0107
F9: Total Profit/Loss: | H9: ='TRADE STATISTICS'!AO9+'MONTHLY REPORT'!M14 -> 4271.42 | I9: =-(IF(-I5>H8,(I5+H8),0)) -> 0 | J9: =H9-I9 -> 4271.42 | Y9: =AB7&AE5 -> RI0 | AB9: =RIGHT(LEFT(AE5,2),1) -> 0 | AC9: =RIGHT(LEFT(AE5,5),1) -> 0 | AD9: =INDEX($AF$15:$AF$54,MATCH($AB$9,$AC$15:$AC$54,0)) -> 1 | AE9: =INDEX($AF$15:$AF$54,MATCH($AC$9,$AC$15:$AC$54,0)) -> 1 | AG9: =LEFT(AE5,1) -> 0 | AH9: =RIGHT(AE5,1) -> 0
F10: End Capital: | H10: =H8+H9 -> 54271.42 | I10: =I9+I8 -> 0 | J10: =J9+J8 -> 54271.42 | W10: =IF(W6="","Please Enable Macro",IF(W6=1,IF(AND(W6=1,OR(W7="",W7=1)),"Registration Error!","Welcome!"),"Welcome!")) -> Welcome! | AA10: =YEAR(TODAY()) -> 2023 | AB10: =RIGHT(LEFT(AE5,4),1) -> 0 | AC10: =RIGHT(LEFT(AE5,3),1) -> 0 | AD10: =INDEX($AF$15:$AF$54,MATCH($AB$10,$AC$15:$AC$54,0)) -> 1 | AE10: =INDEX($AF$15:$AF$54,MATCH($AC$10,$AC$15:$AC$54,0)) -> 1 | AG10: =INDEX($AF$15:$AF$54,MATCH($AG$9,$AC$15:$AC$54,0)) -> 1 | AH10: =INDEX($AF$15:$AF$54,MATCH($AH$9,$AC$15:$AC$54,0)) -> 1
W11: =IF(W10="registration error!","Registered to "&Nameko&". Please contact AAES if you received this error.",IF(W10="Please Enable Macro","All sheet calculations are based on macro, scroll down for tutorial.","Successfully "&HOME!S4&".")) -> Successfully Registered to Rocketsheets. | X11: . | AA11: =RIGHT(AA10,2) -> 23 | AB11: =LEFT(AA11,1) -> 2 | AC11: =RIGHT(AA11,1) -> 3 | AD11: =AB11 -> 2 | AE11: =AC11 -> 3
D13: ▼ BROKER ACCOUNT DEPOSITS/WITHDRAWALS
C14: No. | D14: Date | E14: Action | F14: Gross Amount | H14: Net Amount | I14: Notes | O14: =COUNTIF('TRADE LOG'!$C$14:$C$733,">"&'Bank Transfers'!D15) -> 56 | AC14: CODE2 | AF14: text | AG14: code name | AI14: reader | AN14: date
C15: 1 | D15: =IFERROR(INDEX(Datelog,SMALL('TRADE LOG'!$AD$15:$AD$9733,C15)),"") -> 43977.24189 | E15: =IF(F15="","",IF(F15>0,"Deposit","Withdraw")) -> Deposit | F15: =IFERROR(INDEX('TRADE LOG'!$T$15:$T$733,SMALL('TRADE LOG'!$AD$15:$AD$733,C15)),"") -> 50000 | H15: =F15 -> 50000 | I15: Beginning Balance | L15: =IFERROR(DATE(YEAR(D15),MONTH(D15),DAY(1)),"") -> 43952 | M15: =SETTINGS!AH2 -> 45002 | O15: =COUNTIFS('TRADE LOG'!$C$14:$C$733,"<"&'Bank Transfers'!D15,'TRADE LOG'!$C$14:$C$733,">="&'Bank Transfers'!D14) -> 0 | P15: =O15 -> 0 | Y15: Name | Z15: namecode | AC15: 1 | AD15: AR | AF15: A | AG15: =AD15 -> AR | AH15: 2 | AI15: =IF(AH15>$AF$3,"",RIGHT(LEFT($AE$3,AH15),2)) -> RI | AJ15: =IFERROR(INDEX($AF$15:$AF$56,MATCH(AI15,$AG$15:$AG$56,0)),"") -> 0 | AN15: =AD9 -> 1
C16: =C15+1 -> 2 | D16: =IF(J16=0,"",J16) ->  | F16: =IF(J16=0,"",IFERROR(INDEX('TRADE LOG'!$T$15:$T$733,SMALL('TRADE LOG'!$AD$15:$AD$733,C16)),"")) ->  | H16: =F16 ->  | J16: =IFERROR(INDEX(Datelog,SMALL('TRADE LOG'!$AD$15:$AD$9733,C16)),"") ->  | L16: =DATE(YEAR(D16),MONTH(D16),DAY(1)) ->  | M16: =DATE(YEAR(M15),MONTH(M15),DAY(1)) -> 44986 | O16: =COUNTIFS('TRADE LOG'!$C$14:$C$733,"<"&'Bank Transfers'!D16,'TRADE LOG'!$C$14:$C$733,">="&'Bank Transfers'!D15) -> 0 | P16: =O16 -> 0 | X16: 1 | Y16: =IF(X16>$AA$7,"",RIGHT(LEFT($Z$7,X16),1)) -> 0 | Z16: =IFERROR(INDEX($AG$15:$AG$56,MATCH(Y16,$AF$15:$AF$56,)),"") -> RI | AC16: F | AD16: R4 | AF16: B | AG16: R4 | AH16: 4 | AI16: =IF(AH16>$AF$3,"",RIGHT(LEFT($AE$3,AH16),2)) ->  | AJ16: =IFERROR(INDEX($AF$15:$AF$56,MATCH(AI16,$AG$15:$AG$56,0)),"") ->  | AN16: =AE9 -> 1
C17: =C16+1 -> 3 | D17: =IFERROR(INDEX(Datelog,SMALL('TRADE LOG'!$AD$15:$AD$9733,C17)),"") ->  | F17: =IFERROR(INDEX('TRADE LOG'!$T$15:$T$733,SMALL('TRADE LOG'!$AD$15:$AD$733,C17)),"") ->  | L17: =DATE(YEAR(D17),MONTH(D17),DAY(1)) ->  | M17: =SUMIFS(H15:H514,L15:L514,M16,E15:E514,"deposit") -> 0 | N17: =IF(COUNT('MONTHLY REPORT'!$X$15)=0,IF(M16=SETTINGS!#REF!,SETTINGS!S86+'Bank Transfers'!M17,'Bank Transfers'!M17)) -> FALSE | O17: =COUNTIFS('TRADE LOG'!$C$14:$C$733,"<"&'Bank Transfers'!D17,'TRADE LOG'!$C$14:$C$733,">="&'Bank Transfers'!D16) -> 0 | P17: =O17+P16 -> 0 | X17: 2 | Y17: =IF(X17>$AA$7,"",RIGHT(LEFT($Z$7,X17),1)) ->  | AC17: 3 | AD17: HM | AF17: C | AG17: HM | AH17: 6 | AN17: =AD10 -> 1
C18: 4 | D18: =IFERROR(INDEX(Datelog,SMALL('TRADE LOG'!$AD$15:$AD$9733,C18)),"") ->  | F18: =IFERROR(INDEX('TRADE LOG'!$T$15:$T$733,SMALL('TRADE LOG'!$AD$15:$AD$733,C18)),"") ->  | M18: =SUMIFS(H15:H514,L15:L514,M16,E15:E514,"withdraw") -> 0 | N18: =IF(COUNT('MONTHLY REPORT'!$X$15)=0,IF(M16=SETTINGS!#REF!,SETTINGS!S87+'Bank Transfers'!M18,'Bank Transfers'!M18)) -> FALSE | O18: =COUNTIFS('TRADE LOG'!$C$14:$C$733,"<"&'Bank Transfers'!D18,'TRADE LOG'!$C$14:$C$733,">="&'Bank Transfers'!D17) -> 0 | P18: =O18+P17 -> 0 | X18: 3 | AC18: G | AD18: 4A | AF18: D | AG18: 4A | AH18: 8 | AN18: =AE10 -> 1
C19: 5 | D19: =IFERROR(INDEX(Datelog,SMALL('TRADE LOG'!$AD$15:$AD$9733,C19)),"") ->  | F19: =IFERROR(INDEX('TRADE LOG'!$T$15:$T$733,SMALL('TRADE LOG'!$AD$15:$AD$733,C19)),"") ->  | O19: =COUNTIFS('TRADE LOG'!$C$14:$C$733,"<"&'Bank Transfers'!D19,'TRADE LOG'!$C$14:$C$733,">="&'Bank Transfers'!D18) -> 0 | P19: =O19+P18 -> 0 | X19: 4 | AC19: 5 | AD19: N4 | AF19: E | AG19: N4 | AH19: 10 | AN19: =AD11 -> 2
C20: 6 | D20: =IFERROR(INDEX(Datelog,SMALL('TRADE LOG'!$AD$15:$AD$9733,C20)),"") ->  | F20: =IFERROR(INDEX('TRADE LOG'!$T$15:$T$733,SMALL('TRADE LOG'!$AD$15:$AD$733,C20)),"") ->  | O20: =COUNTIFS('TRADE LOG'!$C$14:$C$733,"<"&'Bank Transfers'!D20,'TRADE LOG'!$C$14:$C$733,">="&'Bank Transfers'!D19) -> 0 | P20: =O20+P19 -> 0 | X20: 5 | AC20: H | AD20: RR | AF20: F | AG20: RR | AH20: 12 | AN20: =AE11 -> 3
C21: 7 | D21: =IFERROR(INDEX(Datelog,SMALL('TRADE LOG'!$AD$15:$AD$9733,C21)),"") ->  | F21: =IFERROR(INDEX('TRADE LOG'!$T$15:$T$733,SMALL('TRADE LOG'!$AD$15:$AD$733,C21)),"") ->  | O21: =COUNTIFS('TRADE LOG'!$C$14:$C$733,"<"&'Bank Transfers'!D21,'TRADE LOG'!$C$14:$C$733,">="&'Bank Transfers'!D20) -> 0 | P21: 0 | X21: 6 | AC21: 7 | AD21: H3 | AF21: G | AG21: H3 | AH21: 14
C22: 8 | D22: =IFERROR(INDEX(Datelog,SMALL('TRADE LOG'!$AD$15:$AD$9733,C22)),"") ->  | F22: =IFERROR(INDEX('TRADE LOG'!$T$15:$T$733,SMALL('TRADE LOG'!$AD$15:$AD$733,C22)),"") ->  | O22: =COUNTIFS('TRADE LOG'!$C$14:$C$733,"<"&'Bank Transfers'!D22,'TRADE LOG'!$C$14:$C$733,">="&'Bank Transfers'!D21) -> 0 | P22: 0 | X22: 7 | AC22: I | AD22: 3M | AF22: H | AG22: 3M | AH22: 16
C23: 9 | D23: =IFERROR(INDEX(Datelog,SMALL('TRADE LOG'!$AD$15:$AD$9733,C23)),"") ->  | F23: =IFERROR(INDEX('TRADE LOG'!$T$15:$T$733,SMALL('TRADE LOG'!$AD$15:$AD$733,C23)),"") ->  | O23: =COUNTIFS('TRADE LOG'!$C$14:$C$733,"<"&'Bank Transfers'!D23,'TRADE LOG'!$C$14:$C$733,">="&'Bank Transfers'!D22) -> 0 | P23: 0 | X23: 8 | AC23: 9 | AD23: 4L | AF23: I | AG23: 4L | AH23: 18
C24: 10 | D24: =IFERROR(INDEX(Datelog,SMALL('TRADE LOG'!$AD$15:$AD$9733,C24)),"") ->  | F24: =IFERROR(INDEX('TRADE LOG'!$T$15:$T$733,SMALL('TRADE LOG'!$AD$15:$AD$733,C24)),"") ->  | O24: =COUNTIFS('TRADE LOG'!$C$14:$C$733,"<"&'Bank Transfers'!D24,'TRADE LOG'!$C$14:$C$733,">="&'Bank Transfers'!D23) -> 0 | P24: 0 | X24: 9 | AC24: O | AD24: M4 | AF24: J | AG24: M4 | AH24: 20
C25: 11 | D25: =IFERROR(INDEX(Datelog,SMALL('TRADE LOG'!$AD$15:$AD$9733,C25)),"") ->  | F25: =IFERROR(INDEX('TRADE LOG'!$T$15:$T$733,SMALL('TRADE LOG'!$AD$15:$AD$733,C25)),"") ->  | O25: =COUNTIFS('TRADE LOG'!$C$14:$C$733,"<"&'Bank Transfers'!D25,'TRADE LOG'!$C$14:$C$733,">="&'Bank Transfers'!D24) -> 0 | P25: 0 | X25: 10 | AC25: J | AD25: L1 | AF25: K | AG25: L1 | AH25: 22
C26: 12 | D26: =IFERROR(INDEX(Datelog,SMALL('TRADE LOG'!$AD$15:$AD$9733,C26)),"") ->  | F26: =IFERROR(INDEX('TRADE LOG'!$T$15:$T$733,SMALL('TRADE LOG'!$AD$15:$AD$733,C26)),"") ->  | O26: =COUNTIFS('TRADE LOG'!$C$14:$C$733,"<"&'Bank Transfers'!D26,'TRADE LOG'!$C$14:$C$733,">="&'Bank Transfers'!D25) -> 0 | P26: 0 | X26: 11 | AC26: N | AD26: K4 | AF26: L | AG26: K4 | AH26: 24
C27: 13 | D27: =IFERROR(INDEX(Datelog,SMALL('TRADE LOG'!$AD$15:$AD$9733,C27)),"") ->  | F27: =IFERROR(INDEX('TRADE LOG'!$T$15:$T$733,SMALL('TRADE LOG'!$AD$15:$AD$733,C27)),"") ->  | O27: =COUNTIFS('TRADE LOG'!$C$14:$C$733,"<"&'Bank Transfers'!D27,'TRADE LOG'!$C$14:$C$733,">="&'Bank Transfers'!D26) -> 0 | P27: 0 | X27: 12 | AC27: K | AD27: LQ | AF27: M | AG27: LQ | AH27: 26
C28: 14 | D28: =IFERROR(INDEX(Datelog,SMALL('TRADE LOG'!$AD$15:$AD$9733,C28)),"") ->  | F28: =IFERROR(INDEX('TRADE LOG'!$T$15:$T$733,SMALL('TRADE LOG'!$AD$15:$AD$733,C28)),"") ->  | O28: =COUNTIFS('TRADE LOG'!$C$14:$C$733,"<"&'Bank Transfers'!D28,'TRADE LOG'!$C$14:$C$733,">="&'Bank Transfers'!D27) -> 0 | P28: 0 | X28: 13 | AC28: M | AD28: UD | AF28: N | AG28: UD | AH28: 28
C29: 15 | D29: =IFERROR(INDEX(Datelog,SMALL('TRADE LOG'!$AD$15:$AD$9733,C29)),"") ->  | F29: =IFERROR(INDEX('TRADE LOG'!$T$15:$T$733,SMALL('TRADE LOG'!$AD$15:$AD$733,C29)),"") ->  | O29: =COUNTIFS('TRADE LOG'!$C$14:$C$733,"<"&'Bank Transfers'!D29,'TRADE LOG'!$C$14:$C$733,">="&'Bank Transfers'!D28) -> 0 | P29: 0 | X29: 14 | AC29: L | AD29: DU | AF29: O | AG29: DU | AH29: 30
C30: 16 | D30: =IFERROR(INDEX(Datelog,SMALL('TRADE LOG'!$AD$15:$AD$9733,C30)),"") ->  | F30: =IFERROR(INDEX('TRADE LOG'!$T$15:$T$733,SMALL('TRADE LOG'!$AD$15:$AD$733,C30)),"") ->  | O30: =COUNTIFS('TRADE LOG'!$C$14:$C$733,"<"&'Bank Transfers'!D30,'TRADE LOG'!$C$14:$C$733,">="&'Bank Transfers'!D29) -> 0 | P30: 0 | X30: 15 | AC30: T | AD30: SA | AF30: P | AG30: SA | AH30: 32
C31: 17 | D31: =IFERROR(INDEX(Datelog,SMALL('TRADE LOG'!$AD$15:$AD$9733,C31)),"") ->  | F31: =IFERROR(INDEX('TRADE LOG'!$T$15:$T$733,SMALL('TRADE LOG'!$AD$15:$AD$733,C31)),"") ->  | O31: =COUNTIFS('TRADE LOG'!$C$14:$C$733,"<"&'Bank Transfers'!D31,'TRADE LOG'!$C$14:$C$733,">="&'Bank Transfers'!D30) -> 0 | P31: 0 | X31: 16 | AC31: U | AD31: SS | AF31: Q | AG31: SS | AH31: 34
C32: 18 | D32: =IFERROR(INDEX(Datelog,SMALL('TRADE LOG'!$AD$15:$AD$9733,C32)),"") ->  | F32: =IFERROR(INDEX('TRADE LOG'!$T$15:$T$733,SMALL('TRADE LOG'!$AD$15:$AD$733,C32)),"") ->  | O32: =COUNTIFS('TRADE LOG'!$C$14:$C$733,"<"&'Bank Transfers'!D32,'TRADE LOG'!$C$14:$C$733,">="&'Bank Transfers'!D31) -> 0 | P32: 0 | X32: 17 | AC32: V | AD32: AL | AF32: R | AG32: AL | AH32: 36
C33: 19 | D33: =IFERROR(INDEX(Datelog,SMALL('TRADE LOG'!$AD$15:$AD$9733,C33)),"") ->  | F33: =IFERROR(INDEX('TRADE LOG'!$T$15:$T$733,SMALL('TRADE LOG'!$AD$15:$AD$733,C33)),"") ->  | O33: =COUNTIFS('TRADE LOG'!$C$14:$C$733,"<"&'Bank Transfers'!D33,'TRADE LOG'!$C$14:$C$733,">="&'Bank Transfers'!D32) -> 0 | P33: 0 | X33: 18 | AC33: Q | AD33: MU | AF33: S | AG33: MU | AH33: 38
C34: 20 | D34: =IFERROR(INDEX(Datelog,SMALL('TRADE LOG'!$AD$15:$AD$9733,C34)),"") ->  | F34: =IFERROR(INDEX('TRADE LOG'!$T$15:$T$733,SMALL('TRADE LOG'!$AD$15:$AD$733,C34)),"") ->  | O34: =COUNTIFS('TRADE LOG'!$C$14:$C$733,"<"&'Bank Transfers'!D34,'TRADE LOG'!$C$14:$C$733,">="&'Bank Transfers'!D33) -> 0 | P34: 0 | X34: 19 | AC34: R | AD34: MI | AF34: T | AG34: MI | AH34: 40
C35: 21 | D35: =IFERROR(INDEX(Datelog,SMALL('TRADE LOG'!$AD$15:$AD$9733,C35)),"") ->  | F35: =IFERROR(INDEX('TRADE LOG'!$T$15:$T$733,SMALL('TRADE LOG'!$AD$15:$AD$733,C35)),"") ->  | O35: =COUNTIFS('TRADE LOG'!$C$14:$C$733,"<"&'Bank Transfers'!D35,'TRADE LOG'!$C$14:$C$733,">="&'Bank Transfers'!D34) -> 0 | P35: 0 | X35: 20 | AC35: Z | AD35: MH | AF35: U | AG35: MH | AH35: 42
C36: 22 | D36: =IFERROR(INDEX(Datelog,SMALL('TRADE LOG'!$AD$15:$AD$9733,C36)),"") ->  | F36: =IFERROR(INDEX('TRADE LOG'!$T$15:$T$733,SMALL('TRADE LOG'!$AD$15:$AD$733,C36)),"") ->  | O36: =COUNTIFS('TRADE LOG'!$C$14:$C$733,"<"&'Bank Transfers'!D36,'TRADE LOG'!$C$14:$C$733,">="&'Bank Transfers'!D35) -> 0 | P36: 0 | X36: 21 | AC36: P | AD36: AY | AF36: V | AG36: AY | AH36: 44
C37: 23 | D37: =IFERROR(INDEX(Datelog,SMALL('TRADE LOG'!$AD$15:$AD$9733,C37)),"") ->  | F37: =IFERROR(INDEX('TRADE LOG'!$T$15:$T$733,SMALL('TRADE LOG'!$AD$15:$AD$733,C37)),"") ->  | O37: =COUNTIFS('TRADE LOG'!$C$14:$C$733,"<"&'Bank Transfers'!D37,'TRADE LOG'!$C$14:$C$733,">="&'Bank Transfers'!D36) -> 0 | P37: 0 | X37: 22 | AC37: X | AD37: MN | AF37: W | AG37: MN | AH37: 46
C38: 24 | D38: =IFERROR(INDEX(Datelog,SMALL('TRADE LOG'!$AD$15:$AD$9733,C38)),"") ->  | F38: =IFERROR(INDEX('TRADE LOG'!$T$15:$T$733,SMALL('TRADE LOG'!$AD$15:$AD$733,C38)),"") ->  | O38: =COUNTIFS('TRADE LOG'!$C$14:$C$733,"<"&'Bank Transfers'!D38,'TRADE LOG'!$C$14:$C$733,">="&'Bank Transfers'!D37) -> 0 | P38: 0 | X38: 23 | AC38: W | AD38: AZ | AF38: X | AG38: AZ | AH38: 48
C39: 25 | D39: =IFERROR(INDEX(Datelog,SMALL('TRADE LOG'!$AD$15:$AD$9733,C39)),"") ->  | F39: =IFERROR(INDEX('TRADE LOG'!$T$15:$T$733,SMALL('TRADE LOG'!$AD$15:$AD$733,C39)),"") ->  | O39: =COUNTIFS('TRADE LOG'!$C$14:$C$733,"<"&'Bank Transfers'!D39,'TRADE LOG'!$C$14:$C$733,">="&'Bank Transfers'!D38) -> 0 | P39: 0 | X39: 24 | AC39: S | AD39: EE | AF39: Y | AG39: EE | AH39: 50
C40: 26 | D40: =IFERROR(INDEX(Datelog,SMALL('TRADE LOG'!$AD$15:$AD$9733,C40)),"") ->  | F40: =IFERROR(INDEX('TRADE LOG'!$T$15:$T$733,SMALL('TRADE LOG'!$AD$15:$AD$733,C40)),"") ->  | O40: =COUNTIFS('TRADE LOG'!$C$14:$C$733,"<"&'Bank Transfers'!D40,'TRADE LOG'!$C$14:$C$733,">="&'Bank Transfers'!D39) -> 0 | P40: 0 | X40: 25 | AC40: Y | AD40: Z4 | AF40: Z | AG40: Z4 | AH40: 52
C41: 27 | D41: =IFERROR(INDEX(Datelog,SMALL('TRADE LOG'!$AD$15:$AD$9733,C41)),"") ->  | F41: =IFERROR(INDEX('TRADE LOG'!$T$15:$T$733,SMALL('TRADE LOG'!$AD$15:$AD$733,C41)),"") ->  | O41: =COUNTIFS('TRADE LOG'!$C$14:$C$733,"<"&'Bank Transfers'!D41,'TRADE LOG'!$C$14:$C$733,">="&'Bank Transfers'!D40) -> 0 | P41: 0 | X41: 26 | AD41: LJ | AF41: - | AG41: LJ | AH41: 54
C42: 28 | D42: =IFERROR(INDEX(Datelog,SMALL('TRADE LOG'!$AD$15:$AD$9733,C42)),"") ->  | F42: =IFERROR(INDEX('TRADE LOG'!$T$15:$T$733,SMALL('TRADE LOG'!$AD$15:$AD$733,C42)),"") ->  | O42: =COUNTIFS('TRADE LOG'!$C$14:$C$733,"<"&'Bank Transfers'!D42,'TRADE LOG'!$C$14:$C$733,">="&'Bank Transfers'!D41) -> 0 | P42: 0 | X42: 27 | AD42: AB | AG42: AB | AH42: 56
C43: 29 | D43: =IFERROR(INDEX(Datelog,SMALL('TRADE LOG'!$AD$15:$AD$9733,C43)),"") ->  | F43: =IFERROR(INDEX('TRADE LOG'!$T$15:$T$733,SMALL('TRADE LOG'!$AD$15:$AD$733,C43)),"") ->  | O43: =COUNTIFS('TRADE LOG'!$C$14:$C$733,"<"&'Bank Transfers'!D43,'TRADE LOG'!$C$14:$C$733,">="&'Bank Transfers'!D42) -> 0 | P43: 0 | X43: 28 | AD43: BA | AF43: @ | AG43: BA | AH43: 58
C44: 30 | D44: =IFERROR(INDEX(Datelog,SMALL('TRADE LOG'!$AD$15:$AD$9733,C44)),"") ->  | F44: =IFERROR(INDEX('TRADE LOG'!$T$15:$T$733,SMALL('TRADE LOG'!$AD$15:$AD$733,C44)),"") ->  | O44: =COUNTIFS('TRADE LOG'!$C$14:$C$733,"<"&'Bank Transfers'!D44,'TRADE LOG'!$C$14:$C$733,">="&'Bank Transfers'!D43) -> 0 | P44: 0 | X44: 29 | AD44: RM | AF44: . | AG44: RM | AH44: 60
C45: 31 | D45: =IFERROR(INDEX(Datelog,SMALL('TRADE LOG'!$AD$15:$AD$9733,C45)),"") ->  | F45: =IFERROR(INDEX('TRADE LOG'!$T$15:$T$733,SMALL('TRADE LOG'!$AD$15:$AD$733,C45)),"") ->  | O45: =COUNTIFS('TRADE LOG'!$C$14:$C$733,"<"&'Bank Transfers'!D45,'TRADE LOG'!$C$14:$C$733,">="&'Bank Transfers'!D44) -> 0 | P45: 0 | X45: 30 | AC45: 0 | AD45: UT | AF45: 1 | AG45: UT | AH45: 62
C46: 32 | D46: =IFERROR(INDEX(Datelog,SMALL('TRADE LOG'!$AD$15:$AD$9733,C46)),"") ->  | F46: =IFERROR(INDEX('TRADE LOG'!$T$15:$T$733,SMALL('TRADE LOG'!$AD$15:$AD$733,C46)),"") ->  | O46: =COUNTIFS('TRADE LOG'!$C$14:$C$733,"<"&'Bank Transfers'!D46,'TRADE LOG'!$C$14:$C$733,">="&'Bank Transfers'!D45) -> 0 | P46: 0 | X46: 31 | AC46: E | AD46: KB | AF46: 2 | AG46: KB | AH46: 64
C47: 33 | D47: =IFERROR(INDEX(Datelog,SMALL('TRADE LOG'!$AD$15:$AD$9733,C47)),"") ->  | F47: =IFERROR(INDEX('TRADE LOG'!$T$15:$T$733,SMALL('TRADE LOG'!$AD$15:$AD$733,C47)),"") ->  | O47: =COUNTIFS('TRADE LOG'!$C$14:$C$733,"<"&'Bank Transfers'!D47,'TRADE LOG'!$C$14:$C$733,">="&'Bank Transfers'!D46) -> 0 | P47: 0 | X47: 32 | AC47: 8 | AD47: BI | AF47: 3 | AG47: BI | AH47: 66
C48: 34 | D48: =IFERROR(INDEX(Datelog,SMALL('TRADE LOG'!$AD$15:$AD$9733,C48)),"") ->  | F48: =IFERROR(INDEX('TRADE LOG'!$T$15:$T$733,SMALL('TRADE LOG'!$AD$15:$AD$733,C48)),"") ->  | O48: =COUNTIFS('TRADE LOG'!$C$14:$C$733,"<"&'Bank Transfers'!D48,'TRADE LOG'!$C$14:$C$733,">="&'Bank Transfers'!D47) -> 0 | P48: 0 | X48: 33 | AC48: D | AD48: RL | AF48: 4 | AG48: RL | AH48: 68
C49: 35 | D49: =IFERROR(INDEX(Datelog,SMALL('TRADE LOG'!$AD$15:$AD$9733,C49)),"") ->  | F49: =IFERROR(INDEX('TRADE LOG'!$T$15:$T$733,SMALL('TRADE LOG'!$AD$15:$AD$733,C49)),"") ->  | O49: =COUNTIFS('TRADE LOG'!$C$14:$C$733,"<"&'Bank Transfers'!D49,'TRADE LOG'!$C$14:$C$733,">="&'Bank Transfers'!D48) -> 0 | P49: 0 | X49: 34 | AC49: 6 | AD49: KH | AF49: 5 | AG49: KH | AH49: 70
C50: 36 | D50: =IFERROR(INDEX(Datelog,SMALL('TRADE LOG'!$AD$15:$AD$9733,C50)),"") ->  | F50: =IFERROR(INDEX('TRADE LOG'!$T$15:$T$733,SMALL('TRADE LOG'!$AD$15:$AD$733,C50)),"") ->  | O50: =COUNTIFS('TRADE LOG'!$C$14:$C$733,"<"&'Bank Transfers'!D50,'TRADE LOG'!$C$14:$C$733,">="&'Bank Transfers'!D49) -> 0 | P50: 0 | X50: 35 | AC50: C | AD50: LL | AF50: 6 | AG50: LL | AH50: 72
C51: 37 | D51: =IFERROR(INDEX(Datelog,SMALL('TRADE LOG'!$AD$15:$AD$9733,C51)),"") ->  | F51: =IFERROR(INDEX('TRADE LOG'!$T$15:$T$733,SMALL('TRADE LOG'!$AD$15:$AD$733,C51)),"") ->  | O51: =COUNTIFS('TRADE LOG'!$C$14:$C$733,"<"&'Bank Transfers'!D51,'TRADE LOG'!$C$14:$C$733,">="&'Bank Transfers'!D50) -> 0 | P51: 0 | X51: 36 | AC51: 4 | AD51: IQ | AF51: 7 | AG51: IQ | AH51: 74
C52: 38 | D52: =IFERROR(INDEX(Datelog,SMALL('TRADE LOG'!$AD$15:$AD$9733,C52)),"") ->  | F52: =IFERROR(INDEX('TRADE LOG'!$T$15:$T$733,SMALL('TRADE LOG'!$AD$15:$AD$733,C52)),"") ->  | O52: =COUNTIFS('TRADE LOG'!$C$14:$C$733,"<"&'Bank Transfers'!D52,'TRADE LOG'!$C$14:$C$733,">="&'Bank Transfers'!D51) -> 0 | P52: 0 | X52: 37 | AC52: B | AD52: B4 | AF52: 8 | AG52: B4 | AH52: 76
C53: 39 | D53: =IFERROR(INDEX(Datelog,SMALL('TRADE LOG'!$AD$15:$AD$9733,C53)),"") ->  | F53: =IFERROR(INDEX('TRADE LOG'!$T$15:$T$733,SMALL('TRADE LOG'!$AD$15:$AD$733,C53)),"") ->  | O53: =COUNTIFS('TRADE LOG'!$C$14:$C$733,"<"&'Bank Transfers'!D53,'TRADE LOG'!$C$14:$C$733,">="&'Bank Transfers'!D52) -> 0 | P53: 0 | X53: 38 | AC53: 2 | AD53: 4R | AF53: 9 | AG53: 4R | AH53: 78
C54: 40 | D54: =IFERROR(INDEX(Datelog,SMALL('TRADE LOG'!$AD$15:$AD$9733,C54)),"") ->  | F54: =IFERROR(INDEX('TRADE LOG'!$T$15:$T$733,SMALL('TRADE LOG'!$AD$15:$AD$733,C54)),"") ->  | O54: =COUNTIFS('TRADE LOG'!$C$14:$C$733,"<"&'Bank Transfers'!D54,'TRADE LOG'!$C$14:$C$733,">="&'Bank Transfers'!D53) -> 0 | P54: 0 | X54: 39 | AC54: A | AD54: RI | AF54: 0 | AG54: RI | AH54: 80
C55: 41 | D55: =IFERROR(INDEX(Datelog,SMALL('TRADE LOG'!$AD$15:$AD$9733,C55)),"") ->  | F55: =IFERROR(INDEX('TRADE LOG'!$T$15:$T$733,SMALL('TRADE LOG'!$AD$15:$AD$733,C55)),"") ->  | O55: =COUNTIFS('TRADE LOG'!$C$14:$C$733,"<"&'Bank Transfers'!D55,'TRADE LOG'!$C$14:$C$733,">="&'Bank Transfers'!D54) -> 0 | P55: 0 | X55: 40 | AD55: IL | AF55: _ | AG55: IL
C56: 42 | D56: =IFERROR(INDEX(Datelog,SMALL('TRADE LOG'!$AD$15:$AD$9733,C56)),"") ->  | F56: =IFERROR(INDEX('TRADE LOG'!$T$15:$T$733,SMALL('TRADE LOG'!$AD$15:$AD$733,C56)),"") ->  | O56: =COUNTIFS('TRADE LOG'!$C$14:$C$733,"<"&'Bank Transfers'!D56,'TRADE LOG'!$C$14:$C$733,">="&'Bank Transfers'!D55) -> 0 | P56: 0 | AD56: YL | AF56: ñ | AG56: YL
C57: 43 | D57: =IFERROR(INDEX(Datelog,SMALL('TRADE LOG'!$AD$15:$AD$9733,C57)),"") ->  | F57: =IFERROR(INDEX('TRADE LOG'!$T$15:$T$733,SMALL('TRADE LOG'!$AD$15:$AD$733,C57)),"") ->  | O57: =COUNTIFS('TRADE LOG'!$C$14:$C$733,"<"&'Bank Transfers'!D57,'TRADE LOG'!$C$14:$C$733,">="&'Bank Transfers'!D56) -> 0 | P57: 0
C58: 44 | D58: =IFERROR(INDEX(Datelog,SMALL('TRADE LOG'!$AD$15:$AD$9733,C58)),"") ->  | F58: =IFERROR(INDEX('TRADE LOG'!$T$15:$T$733,SMALL('TRADE LOG'!$AD$15:$AD$733,C58)),"") ->  | O58: =COUNTIFS('TRADE LOG'!$C$14:$C$733,"<"&'Bank Transfers'!D58,'TRADE LOG'!$C$14:$C$733,">="&'Bank Transfers'!D57) -> 0 | P58: 0
C59: 45 | D59: =IFERROR(INDEX(Datelog,SMALL('TRADE LOG'!$AD$15:$AD$9733,C59)),"") ->  | F59: =IFERROR(INDEX('TRADE LOG'!$T$15:$T$733,SMALL('TRADE LOG'!$AD$15:$AD$733,C59)),"") ->  | O59: =COUNTIFS('TRADE LOG'!$C$14:$C$733,"<"&'Bank Transfers'!D59,'TRADE LOG'!$C$14:$C$733,">="&'Bank Transfers'!D58) -> 0 | P59: 0
C60: 46 | D60: =IFERROR(INDEX(Datelog,SMALL('TRADE LOG'!$AD$15:$AD$9733,C60)),"") ->  | F60: =IFERROR(INDEX('TRADE LOG'!$T$15:$T$733,SMALL('TRADE LOG'!$AD$15:$AD$733,C60)),"") ->  | O60: =COUNTIFS('TRADE LOG'!$C$14:$C$733,"<"&'Bank Transfers'!D60,'TRADE LOG'!$C$14:$C$733,">="&'Bank Transfers'!D59) -> 0 | P60: 0
C61: 47 | D61: =IFERROR(INDEX(Datelog,SMALL('TRADE LOG'!$AD$15:$AD$9733,C61)),"") ->  | F61: =IFERROR(INDEX('TRADE LOG'!$T$15:$T$733,SMALL('TRADE LOG'!$AD$15:$AD$733,C61)),"") ->  | O61: =COUNTIFS('TRADE LOG'!$C$14:$C$733,"<"&'Bank Transfers'!D61,'TRADE LOG'!$C$14:$C$733,">="&'Bank Transfers'!D60) -> 0 | P61: 0
C62: 48 | D62: =IFERROR(INDEX(Datelog,SMALL('TRADE LOG'!$AD$15:$AD$9733,C62)),"") ->  | F62: =IFERROR(INDEX('TRADE LOG'!$T$15:$T$733,SMALL('TRADE LOG'!$AD$15:$AD$733,C62)),"") ->  | O62: =COUNTIFS('TRADE LOG'!$C$14:$C$733,"<"&'Bank Transfers'!D62,'TRADE LOG'!$C$14:$C$733,">="&'Bank Transfers'!D61) -> 0 | P62: 0
C63: 49 | D63: =IFERROR(INDEX(Datelog,SMALL('TRADE LOG'!$AD$15:$AD$9733,C63)),"") ->  | F63: =IFERROR(INDEX('TRADE LOG'!$T$15:$T$733,SMALL('TRADE LOG'!$AD$15:$AD$733,C63)),"") ->  | O63: =COUNTIFS('TRADE LOG'!$C$14:$C$733,"<"&'Bank Transfers'!D63,'TRADE LOG'!$C$14:$C$733,">="&'Bank Transfers'!D62) -> 0 | P63: 0
C64: 50 | D64: =IFERROR(INDEX(Datelog,SMALL('TRADE LOG'!$AD$15:$AD$9733,C64)),"") ->  | F64: =IFERROR(INDEX('TRADE LOG'!$T$15:$T$733,SMALL('TRADE LOG'!$AD$15:$AD$733,C64)),"") ->  | O64: =COUNTIFS('TRADE LOG'!$C$14:$C$733,"<"&'Bank Transfers'!D64,'TRADE LOG'!$C$14:$C$733,">="&'Bank Transfers'!D63) -> 0 | P64: 0
C65: 51 | D65: =IFERROR(INDEX(Datelog,SMALL('TRADE LOG'!$AD$15:$AD$9733,C65)),"") ->  | F65: =IFERROR(INDEX('TRADE LOG'!$T$15:$T$733,SMALL('TRADE LOG'!$AD$15:$AD$733,C65)),"") ->  | O65: =COUNTIFS('TRADE LOG'!$C$14:$C$733,"<"&'Bank Transfers'!D65,'TRADE LOG'!$C$14:$C$733,">="&'Bank Transfers'!D64) -> 0 | P65: 0
C66: 52 | D66: =IFERROR(INDEX(Datelog,SMALL('TRADE LOG'!$AD$15:$AD$9733,C66)),"") ->  | F66: =IFERROR(INDEX('TRADE LOG'!$T$15:$T$733,SMALL('TRADE LOG'!$AD$15:$AD$733,C66)),"") ->  | O66: =COUNTIFS('TRADE LOG'!$C$14:$C$733,"<"&'Bank Transfers'!D66,'TRADE LOG'!$C$14:$C$733,">="&'Bank Transfers'!D65) -> 0 | P66: 0
C67: 53 | D67: =IFERROR(INDEX(Datelog,SMALL('TRADE LOG'!$AD$15:$AD$9733,C67)),"") ->  | F67: =IFERROR(INDEX('TRADE LOG'!$T$15:$T$733,SMALL('TRADE LOG'!$AD$15:$AD$733,C67)),"") ->  | O67: =COUNTIFS('TRADE LOG'!$C$14:$C$733,"<"&'Bank Transfers'!D67,'TRADE LOG'!$C$14:$C$733,">="&'Bank Transfers'!D66) -> 0 | P67: 0
C68: 54 | D68: =IFERROR(INDEX(Datelog,SMALL('TRADE LOG'!$AD$15:$AD$9733,C68)),"") ->  | F68: =IFERROR(INDEX('TRADE LOG'!$T$15:$T$733,SMALL('TRADE LOG'!$AD$15:$AD$733,C68)),"") ->  | O68: =COUNTIFS('TRADE LOG'!$C$14:$C$733,"<"&'Bank Transfers'!D68,'TRADE LOG'!$C$14:$C$733,">="&'Bank Transfers'!D67) -> 0 | P68: 0
C69: 55 | D69: =IFERROR(INDEX(Datelog,SMALL('TRADE LOG'!$AD$15:$AD$9733,C69)),"") ->  | F69: =IFERROR(INDEX('TRADE LOG'!$T$15:$T$733,SMALL('TRADE LOG'!$AD$15:$AD$733,C69)),"") ->  | O69: =COUNTIFS('TRADE LOG'!$C$14:$C$733,"<"&'Bank Transfers'!D69,'TRADE LOG'!$C$14:$C$733,">="&'Bank Transfers'!D68) -> 0 | P69: 0
C70: 56 | D70: =IFERROR(INDEX(Datelog,SMALL('TRADE LOG'!$AD$15:$AD$9733,C70)),"") ->  | F70: =IFERROR(INDEX('TRADE LOG'!$T$15:$T$733,SMALL('TRADE LOG'!$AD$15:$AD$733,C70)),"") ->  | O70: =COUNTIFS('TRADE LOG'!$C$14:$C$733,"<"&'Bank Transfers'!D70,'TRADE LOG'!$C$14:$C$733,">="&'Bank Transfers'!D69) -> 0 | P70: 0
C71: 57 | D71: =IFERROR(INDEX(Datelog,SMALL('TRADE LOG'!$AD$15:$AD$9733,C71)),"") ->  | F71: =IFERROR(INDEX('TRADE LOG'!$T$15:$T$733,SMALL('TRADE LOG'!$AD$15:$AD$733,C71)),"") ->  | O71: =COUNTIFS('TRADE LOG'!$C$14:$C$733,"<"&'Bank Transfers'!D71,'TRADE LOG'!$C$14:$C$733,">="&'Bank Transfers'!D70) -> 0 | P71: 0
C72: 58 | D72: =IFERROR(INDEX(Datelog,SMALL('TRADE LOG'!$AD$15:$AD$9733,C72)),"") ->  | F72: =IFERROR(INDEX('TRADE LOG'!$T$15:$T$733,SMALL('TRADE LOG'!$AD$15:$AD$733,C72)),"") ->  | O72: =COUNTIFS('TRADE LOG'!$C$14:$C$733,"<"&'Bank Transfers'!D72,'TRADE LOG'!$C$14:$C$733,">="&'Bank Transfers'!D71) -> 0 | P72: 0
C73: 59 | D73: =IFERROR(INDEX(Datelog,SMALL('TRADE LOG'!$AD$15:$AD$9733,C73)),"") ->  | F73: =IFERROR(INDEX('TRADE LOG'!$T$15:$T$733,SMALL('TRADE LOG'!$AD$15:$AD$733,C73)),"") ->  | O73: =COUNTIFS('TRADE LOG'!$C$14:$C$733,"<"&'Bank Transfers'!D73,'TRADE LOG'!$C$14:$C$733,">="&'Bank Transfers'!D72) -> 0 | P73: 0
C74: 60 | D74: =IFERROR(INDEX(Datelog,SMALL('TRADE LOG'!$AD$15:$AD$9733,C74)),"") ->  | F74: =IFERROR(INDEX('TRADE LOG'!$T$15:$T$733,SMALL('TRADE LOG'!$AD$15:$AD$733,C74)),"") ->  | O74: =COUNTIFS('TRADE LOG'!$C$14:$C$733,"<"&'Bank Transfers'!D74,'TRADE LOG'!$C$14:$C$733,">="&'Bank Transfers'!D73) -> 0 | P74: 0
C75: 61 | D75: =IFERROR(INDEX(Datelog,SMALL('TRADE LOG'!$AD$15:$AD$9733,C75)),"") ->  | F75: =IFERROR(INDEX('TRADE LOG'!$T$15:$T$733,SMALL('TRADE LOG'!$AD$15:$AD$733,C75)),"") ->  | O75: =COUNTIFS('TRADE LOG'!$C$14:$C$733,"<"&'Bank Transfers'!D75,'TRADE LOG'!$C$14:$C$733,">="&'Bank Transfers'!D74) -> 0 | P75: 0
C76: 62 | D76: =IFERROR(INDEX(Datelog,SMALL('TRADE LOG'!$AD$15:$AD$9733,C76)),"") ->  | F76: =IFERROR(INDEX('TRADE LOG'!$T$15:$T$733,SMALL('TRADE LOG'!$AD$15:$AD$733,C76)),"") ->  | O76: =COUNTIFS('TRADE LOG'!$C$14:$C$733,"<"&'Bank Transfers'!D76,'TRADE LOG'!$C$14:$C$733,">="&'Bank Transfers'!D75) -> 0 | P76: 0
C77: 63 | D77: =IFERROR(INDEX(Datelog,SMALL('TRADE LOG'!$AD$15:$AD$9733,C77)),"") ->  | F77: =IFERROR(INDEX('TRADE LOG'!$T$15:$T$733,SMALL('TRADE LOG'!$AD$15:$AD$733,C77)),"") ->  | O77: =COUNTIFS('TRADE LOG'!$C$14:$C$733,"<"&'Bank Transfers'!D77,'TRADE LOG'!$C$14:$C$733,">="&'Bank Transfers'!D76) -> 0 | P77: 0
C78: 64 | D78: =IFERROR(INDEX(Datelog,SMALL('TRADE LOG'!$AD$15:$AD$9733,C78)),"") ->  | F78: =IFERROR(INDEX('TRADE LOG'!$T$15:$T$733,SMALL('TRADE LOG'!$AD$15:$AD$733,C78)),"") ->  | O78: =COUNTIFS('TRADE LOG'!$C$14:$C$733,"<"&'Bank Transfers'!D78,'TRADE LOG'!$C$14:$C$733,">="&'Bank Transfers'!D77) -> 0 | P78: 0
C79: 65 | D79: =IFERROR(INDEX(Datelog,SMALL('TRADE LOG'!$AD$15:$AD$9733,C79)),"") ->  | E79: =IF(F79="","",IF(F79>0,"Deposit","Withdraw")) ->  | F79: =IFERROR(INDEX('TRADE LOG'!$T$15:$T$733,SMALL('TRADE LOG'!$AD$15:$AD$733,C79)),"") ->  | O79: =COUNTIFS('TRADE LOG'!$C$14:$C$733,"<"&'Bank Transfers'!D79,'TRADE LOG'!$C$14:$C$733,">="&'Bank Transfers'!D78) -> 0 | P79: 0
C80: 66 | D80: =IFERROR(INDEX(Datelog,SMALL('TRADE LOG'!$AD$15:$AD$9733,C80)),"") ->  | F80: =IFERROR(INDEX('TRADE LOG'!$T$15:$T$733,SMALL('TRADE LOG'!$AD$15:$AD$733,C80)),"") ->  | H80: =F80 ->  | O80: =COUNTIFS('TRADE LOG'!$C$14:$C$733,"<"&'Bank Transfers'!D80,'TRADE LOG'!$C$14:$C$733,">="&'Bank Transfers'!D79) -> 0 | P80: 0
C81: =C80+1 -> 67 | D81: =IFERROR(INDEX(Datelog,SMALL('TRADE LOG'!$AD$15:$AD$9733,C81)),"") ->  | F81: =IFERROR(INDEX('TRADE LOG'!$T$15:$T$733,SMALL('TRADE LOG'!$AD$15:$AD$733,C81)),"") ->  | L81: =DATE(YEAR(D81),MONTH(D81),DAY(1)) ->  | O81: =COUNTIFS('TRADE LOG'!$C$14:$C$733,"<"&'Bank Transfers'!D81,'TRADE LOG'!$C$14:$C$733,">="&'Bank Transfers'!D80) -> 0 | P81: 0
C82: 68 | D82: =IFERROR(INDEX(Datelog,SMALL('TRADE LOG'!$AD$15:$AD$9733,C82)),"") ->  | F82: =IFERROR(INDEX('TRADE LOG'!$T$15:$T$733,SMALL('TRADE LOG'!$AD$15:$AD$733,C82)),"") ->  | O82: =COUNTIFS('TRADE LOG'!$C$14:$C$733,"<"&'Bank Transfers'!D82,'TRADE LOG'!$C$14:$C$733,">="&'Bank Transfers'!D81) -> 0 | P82: 0
C83: 69 | D83: =IFERROR(INDEX(Datelog,SMALL('TRADE LOG'!$AD$15:$AD$9733,C83)),"") ->  | F83: =IFERROR(INDEX('TRADE LOG'!$T$15:$T$733,SMALL('TRADE LOG'!$AD$15:$AD$733,C83)),"") ->  | O83: =COUNTIFS('TRADE LOG'!$C$14:$C$733,"<"&'Bank Transfers'!D83,'TRADE LOG'!$C$14:$C$733,">="&'Bank Transfers'!D82) -> 0 | P83: 0
C84: 70 | D84: =IFERROR(INDEX(Datelog,SMALL('TRADE LOG'!$AD$15:$AD$9733,C84)),"") ->  | F84: =IFERROR(INDEX('TRADE LOG'!$T$15:$T$733,SMALL('TRADE LOG'!$AD$15:$AD$733,C84)),"") ->  | O84: =COUNTIFS('TRADE LOG'!$C$14:$C$733,"<"&'Bank Transfers'!D84,'TRADE LOG'!$C$14:$C$733,">="&'Bank Transfers'!D83) -> 0 | P84: =O84+P83 -> 0
C85: 71 | D85: =IFERROR(INDEX(Datelog,SMALL('TRADE LOG'!$AD$15:$AD$9733,C85)),"") ->  | F85: =IFERROR(INDEX('TRADE LOG'!$T$15:$T$733,SMALL('TRADE LOG'!$AD$15:$AD$733,C85)),"") ->  | O85: =COUNTIFS('TRADE LOG'!$C$14:$C$733,"<"&'Bank Transfers'!D85,'TRADE LOG'!$C$14:$C$733,">="&'Bank Transfers'!D84) -> 0 | P85: 0
C86: 72 | D86: =IFERROR(INDEX(Datelog,SMALL('TRADE LOG'!$AD$15:$AD$9733,C86)),"") ->  | F86: =IFERROR(INDEX('TRADE LOG'!$T$15:$T$733,SMALL('TRADE LOG'!$AD$15:$AD$733,C86)),"") ->  | O86: =COUNTIFS('TRADE LOG'!$C$14:$C$733,"<"&'Bank Transfers'!D86,'TRADE LOG'!$C$14:$C$733,">="&'Bank Transfers'!D85) -> 0 | P86: 0
C87: 73 | D87: =IFERROR(INDEX(Datelog,SMALL('TRADE LOG'!$AD$15:$AD$9733,C87)),"") ->  | F87: =IFERROR(INDEX('TRADE LOG'!$T$15:$T$733,SMALL('TRADE LOG'!$AD$15:$AD$733,C87)),"") ->  | O87: =COUNTIFS('TRADE LOG'!$C$14:$C$733,"<"&'Bank Transfers'!D87,'TRADE LOG'!$C$14:$C$733,">="&'Bank Transfers'!D86) -> 0 | P87: 0
C88: 74 | D88: =IFERROR(INDEX(Datelog,SMALL('TRADE LOG'!$AD$15:$AD$9733,C88)),"") ->  | F88: =IFERROR(INDEX('TRADE LOG'!$T$15:$T$733,SMALL('TRADE LOG'!$AD$15:$AD$733,C88)),"") ->  | O88: =COUNTIFS('TRADE LOG'!$C$14:$C$733,"<"&'Bank Transfers'!D88,'TRADE LOG'!$C$14:$C$733,">="&'Bank Transfers'!D87) -> 0 | P88: 0
C89: 75 | D89: =IFERROR(INDEX(Datelog,SMALL('TRADE LOG'!$AD$15:$AD$9733,C89)),"") ->  | F89: =IFERROR(INDEX('TRADE LOG'!$T$15:$T$733,SMALL('TRADE LOG'!$AD$15:$AD$733,C89)),"") ->  | O89: =COUNTIFS('TRADE LOG'!$C$14:$C$733,"<"&'Bank Transfers'!D89,'TRADE LOG'!$C$14:$C$733,">="&'Bank Transfers'!D88) -> 0 | P89: 0
C90: 76 | D90: =IFERROR(INDEX(Datelog,SMALL('TRADE LOG'!$AD$15:$AD$9733,C90)),"") ->  | F90: =IFERROR(INDEX('TRADE LOG'!$T$15:$T$733,SMALL('TRADE LOG'!$AD$15:$AD$733,C90)),"") ->  | O90: =COUNTIFS('TRADE LOG'!$C$14:$C$733,"<"&'Bank Transfers'!D90,'TRADE LOG'!$C$14:$C$733,">="&'Bank Transfers'!D89) -> 0 | P90: 0
C91: 77 | D91: =IFERROR(INDEX(Datelog,SMALL('TRADE LOG'!$AD$15:$AD$9733,C91)),"") ->  | F91: =IFERROR(INDEX('TRADE LOG'!$T$15:$T$733,SMALL('TRADE LOG'!$AD$15:$AD$733,C91)),"") ->  | O91: =COUNTIFS('TRADE LOG'!$C$14:$C$733,"<"&'Bank Transfers'!D91,'TRADE LOG'!$C$14:$C$733,">="&'Bank Transfers'!D90) -> 0 | P91: 0
C92: 78 | D92: =IFERROR(INDEX(Datelog,SMALL('TRADE LOG'!$AD$15:$AD$9733,C92)),"") ->  | F92: =IFERROR(INDEX('TRADE LOG'!$T$15:$T$733,SMALL('TRADE LOG'!$AD$15:$AD$733,C92)),"") ->  | O92: =COUNTIFS('TRADE LOG'!$C$14:$C$733,"<"&'Bank Transfers'!D92,'TRADE LOG'!$C$14:$C$733,">="&'Bank Transfers'!D91) -> 0 | P92: 0
C93: 79 | D93: =IFERROR(INDEX(Datelog,SMALL('TRADE LOG'!$AD$15:$AD$9733,C93)),"") ->  | F93: =IFERROR(INDEX('TRADE LOG'!$T$15:$T$733,SMALL('TRADE LOG'!$AD$15:$AD$733,C93)),"") ->  | O93: =COUNTIFS('TRADE LOG'!$C$14:$C$733,"<"&'Bank Transfers'!D93,'TRADE LOG'!$C$14:$C$733,">="&'Bank Transfers'!D92) -> 0 | P93: 0
C94: 80 | D94: =IFERROR(INDEX(Datelog,SMALL('TRADE LOG'!$AD$15:$AD$9733,C94)),"") ->  | F94: =IFERROR(INDEX('TRADE LOG'!$T$15:$T$733,SMALL('TRADE LOG'!$AD$15:$AD$733,C94)),"") ->  | O94: =COUNTIFS('TRADE LOG'!$C$14:$C$733,"<"&'Bank Transfers'!D94,'TRADE LOG'!$C$14:$C$733,">="&'Bank Transfers'!D93) -> 0 | P94: 0
C95: 81 | D95: =IFERROR(INDEX(Datelog,SMALL('TRADE LOG'!$AD$15:$AD$9733,C95)),"") ->  | F95: =IFERROR(INDEX('TRADE LOG'!$T$15:$T$733,SMALL('TRADE LOG'!$AD$15:$AD$733,C95)),"") ->  | O95: =COUNTIFS('TRADE LOG'!$C$14:$C$733,"<"&'Bank Transfers'!D95,'TRADE LOG'!$C$14:$C$733,">="&'Bank Transfers'!D94) -> 0 | P95: 0
C96: 82 | D96: =IFERROR(INDEX(Datelog,SMALL('TRADE LOG'!$AD$15:$AD$9733,C96)),"") ->  | F96: =IFERROR(INDEX('TRADE LOG'!$T$15:$T$733,SMALL('TRADE LOG'!$AD$15:$AD$733,C96)),"") ->  | O96: =COUNTIFS('TRADE LOG'!$C$14:$C$733,"<"&'Bank Transfers'!D96,'TRADE LOG'!$C$14:$C$733,">="&'Bank Transfers'!D95) -> 0 | P96: 0
C97: 83 | D97: =IFERROR(INDEX(Datelog,SMALL('TRADE LOG'!$AD$15:$AD$9733,C97)),"") ->  | F97: =IFERROR(INDEX('TRADE LOG'!$T$15:$T$733,SMALL('TRADE LOG'!$AD$15:$AD$733,C97)),"") ->  | O97: =COUNTIFS('TRADE LOG'!$C$14:$C$733,"<"&'Bank Transfers'!D97,'TRADE LOG'!$C$14:$C$733,">="&'Bank Transfers'!D96) -> 0 | P97: 0
C98: 84 | D98: =IFERROR(INDEX(Datelog,SMALL('TRADE LOG'!$AD$15:$AD$9733,C98)),"") ->  | F98: =IFERROR(INDEX('TRADE LOG'!$T$15:$T$733,SMALL('TRADE LOG'!$AD$15:$AD$733,C98)),"") ->  | O98: =COUNTIFS('TRADE LOG'!$C$14:$C$733,"<"&'Bank Transfers'!D98,'TRADE LOG'!$C$14:$C$733,">="&'Bank Transfers'!D97) -> 0 | P98: 0
C99: 85 | D99: =IFERROR(INDEX(Datelog,SMALL('TRADE LOG'!$AD$15:$AD$9733,C99)),"") ->  | F99: =IFERROR(INDEX('TRADE LOG'!$T$15:$T$733,SMALL('TRADE LOG'!$AD$15:$AD$733,C99)),"") ->  | O99: =COUNTIFS('TRADE LOG'!$C$14:$C$733,"<"&'Bank Transfers'!D99,'TRADE LOG'!$C$14:$C$733,">="&'Bank Transfers'!D98) -> 0 | P99: 0
C100: 86 | D100: =IFERROR(INDEX(Datelog,SMALL('TRADE LOG'!$AD$15:$AD$9733,C100)),"") ->  | F100: =IFERROR(INDEX('TRADE LOG'!$T$15:$T$733,SMALL('TRADE LOG'!$AD$15:$AD$733,C100)),"") ->  | O100: =COUNTIFS('TRADE LOG'!$C$14:$C$733,"<"&'Bank Transfers'!D100,'TRADE LOG'!$C$14:$C$733,">="&'Bank Transfers'!D99) -> 0 | P100: 0
C101: 87 | D101: =IFERROR(INDEX(Datelog,SMALL('TRADE LOG'!$AD$15:$AD$9733,C101)),"") ->  | F101: =IFERROR(INDEX('TRADE LOG'!$T$15:$T$733,SMALL('TRADE LOG'!$AD$15:$AD$733,C101)),"") ->  | O101: =COUNTIFS('TRADE LOG'!$C$14:$C$733,"<"&'Bank Transfers'!D101,'TRADE LOG'!$C$14:$C$733,">="&'Bank Transfers'!D100) -> 0 | P101: 0
C102: 88 | D102: =IFERROR(INDEX(Datelog,SMALL('TRADE LOG'!$AD$15:$AD$9733,C102)),"") ->  | F102: =IFERROR(INDEX('TRADE LOG'!$T$15:$T$733,SMALL('TRADE LOG'!$AD$15:$AD$733,C102)),"") ->  | O102: =COUNTIFS('TRADE LOG'!$C$14:$C$733,"<"&'Bank Transfers'!D102,'TRADE LOG'!$C$14:$C$733,">="&'Bank Transfers'!D101) -> 0 | P102: 0
C103: 89 | D103: =IFERROR(INDEX(Datelog,SMALL('TRADE LOG'!$AD$15:$AD$9733,C103)),"") ->  | F103: =IFERROR(INDEX('TRADE LOG'!$T$15:$T$733,SMALL('TRADE LOG'!$AD$15:$AD$733,C103)),"") ->  | O103: =COUNTIFS('TRADE LOG'!$C$14:$C$733,"<"&'Bank Transfers'!D103,'TRADE LOG'!$C$14:$C$733,">="&'Bank Transfers'!D102) -> 0 | P103: 0
C104: 90 | D104: =IFERROR(INDEX(Datelog,SMALL('TRADE LOG'!$AD$15:$AD$9733,C104)),"") ->  | F104: =IFERROR(INDEX('TRADE LOG'!$T$15:$T$733,SMALL('TRADE LOG'!$AD$15:$AD$733,C104)),"") ->  | O104: =COUNTIFS('TRADE LOG'!$C$14:$C$733,"<"&'Bank Transfers'!D104,'TRADE LOG'!$C$14:$C$733,">="&'Bank Transfers'!D103) -> 0 | P104: 0
C105: 91 | D105: =IFERROR(INDEX(Datelog,SMALL('TRADE LOG'!$AD$15:$AD$9733,C105)),"") ->  | F105: =IFERROR(INDEX('TRADE LOG'!$T$15:$T$733,SMALL('TRADE LOG'!$AD$15:$AD$733,C105)),"") ->  | O105: =COUNTIFS('TRADE LOG'!$C$14:$C$733,"<"&'Bank Transfers'!D105,'TRADE LOG'!$C$14:$C$733,">="&'Bank Transfers'!D104) -> 0 | P105: 0
C106: 92 | D106: =IFERROR(INDEX(Datelog,SMALL('TRADE LOG'!$AD$15:$AD$9733,C106)),"") ->  | F106: =IFERROR(INDEX('TRADE LOG'!$T$15:$T$733,SMALL('TRADE LOG'!$AD$15:$AD$733,C106)),"") ->  | O106: =COUNTIFS('TRADE LOG'!$C$14:$C$733,"<"&'Bank Transfers'!D106,'TRADE LOG'!$C$14:$C$733,">="&'Bank Transfers'!D105) -> 0 | P106: 0
C107: 93 | D107: =IFERROR(INDEX(Datelog,SMALL('TRADE LOG'!$AD$15:$AD$9733,C107)),"") ->  | F107: =IFERROR(INDEX('TRADE LOG'!$T$15:$T$733,SMALL('TRADE LOG'!$AD$15:$AD$733,C107)),"") ->  | O107: =COUNTIFS('TRADE LOG'!$C$14:$C$733,"<"&'Bank Transfers'!D107,'TRADE LOG'!$C$14:$C$733,">="&'Bank Transfers'!D106) -> 0 | P107: 0
C108: 94 | D108: =IFERROR(INDEX(Datelog,SMALL('TRADE LOG'!$AD$15:$AD$9733,C108)),"") ->  | F108: =IFERROR(INDEX('TRADE LOG'!$T$15:$T$733,SMALL('TRADE LOG'!$AD$15:$AD$733,C108)),"") ->  | O108: =COUNTIFS('TRADE LOG'!$C$14:$C$733,"<"&'Bank Transfers'!D108,'TRADE LOG'!$C$14:$C$733,">="&'Bank Transfers'!D107) -> 0 | P108: 0
C109: 95 | D109: =IFERROR(INDEX(Datelog,SMALL('TRADE LOG'!$AD$15:$AD$9733,C109)),"") ->  | F109: =IFERROR(INDEX('TRADE LOG'!$T$15:$T$733,SMALL('TRADE LOG'!$AD$15:$AD$733,C109)),"") ->  | O109: =COUNTIFS('TRADE LOG'!$C$14:$C$733,"<"&'Bank Transfers'!D109,'TRADE LOG'!$C$14:$C$733,">="&'Bank Transfers'!D108) -> 0 | P109: 0
C110: 96 | D110: =IFERROR(INDEX(Datelog,SMALL('TRADE LOG'!$AD$15:$AD$9733,C110)),"") ->  | F110: =IFERROR(INDEX('TRADE LOG'!$T$15:$T$733,SMALL('TRADE LOG'!$AD$15:$AD$733,C110)),"") ->  | O110: =COUNTIFS('TRADE LOG'!$C$14:$C$733,"<"&'Bank Transfers'!D110,'TRADE LOG'!$C$14:$C$733,">="&'Bank Transfers'!D109) -> 0 | P110: 0
C111: 97 | D111: =IFERROR(INDEX(Datelog,SMALL('TRADE LOG'!$AD$15:$AD$9733,C111)),"") ->  | F111: =IFERROR(INDEX('TRADE LOG'!$T$15:$T$733,SMALL('TRADE LOG'!$AD$15:$AD$733,C111)),"") ->  | O111: =COUNTIFS('TRADE LOG'!$C$14:$C$733,"<"&'Bank Transfers'!D111,'TRADE LOG'!$C$14:$C$733,">="&'Bank Transfers'!D110) -> 0 | P111: 0
C112: 98 | D112: =IFERROR(INDEX(Datelog,SMALL('TRADE LOG'!$AD$15:$AD$9733,C112)),"") ->  | F112: =IFERROR(INDEX('TRADE LOG'!$T$15:$T$733,SMALL('TRADE LOG'!$AD$15:$AD$733,C112)),"") ->  | O112: =COUNTIFS('TRADE LOG'!$C$14:$C$733,"<"&'Bank Transfers'!D112,'TRADE LOG'!$C$14:$C$733,">="&'Bank Transfers'!D111) -> 0 | P112: 0
C113: 99 | D113: =IFERROR(INDEX(Datelog,SMALL('TRADE LOG'!$AD$15:$AD$9733,C113)),"") ->  | F113: =IFERROR(INDEX('TRADE LOG'!$T$15:$T$733,SMALL('TRADE LOG'!$AD$15:$AD$733,C113)),"") ->  | O113: =COUNTIFS('TRADE LOG'!$C$14:$C$733,"<"&'Bank Transfers'!D113,'TRADE LOG'!$C$14:$C$733,">="&'Bank Transfers'!D112) -> 0 | P113: 0
C114: 100 | D114: =IFERROR(INDEX(Datelog,SMALL('TRADE LOG'!$AD$15:$AD$9733,C114)),"") ->  | F114: =IFERROR(INDEX('TRADE LOG'!$T$15:$T$733,SMALL('TRADE LOG'!$AD$15:$AD$733,C114)),"") ->  | O114: =COUNTIFS('TRADE LOG'!$C$14:$C$733,"<"&'Bank Transfers'!D114,'TRADE LOG'!$C$14:$C$733,">="&'Bank Transfers'!D113) -> 0 | P114: 0

Sheet DASHBOARD (hidden)
AA1: bar chart
C2: =IF('TRADE LOG'!D4="invalid user","Invalid User",Nameko) -> Rocketsheets | G2: ='Bank Transfers'!H5 -> $ 50,000.0 | I2: ='MONTHLY REPORT'!K14 -> $ 4,271.4 | K2: ='Bank Transfers'!I5 -> 0 | M2: ='Bank Transfers'!J10 -> $ 54,271.4 | W2: =SETTINGS!O3 -> USD | AA2: ='MONTHLY REPORT'!AD6 -> 13,805 | AM2: Distribution of gains and losses chart | AR2: =IF(AS2="Wins & Losses",0,1) -> 0 | AS2: =SETTINGS!AD186 -> Wins & Losses | AT2: =IF(AR2=1,"AVE. PROFIT & LOSS","NUMBER OF TRADES") -> NUMBER OF TRADES
C3: TRADING JOURNAL | G3: CAPITAL | I3: NET PROFIT/LOSS | K3: WITHDRAWALS | M3: END BALANCE | S3: =HOME!S3 -> V.1.0 | AA3: =-'MONTHLY REPORT'!AE6 -> 9,534 | AE3: from | AF3: to | AG3: end | AH3: loss | AI3: gain | AM3: range from | AN3: AUG | AO3: Label | AP3: negative chart | AQ3: positive | AR3: Ave.Profit/Loss | AS3: Positive | AT3: Negative
G4: O V E R A L L S U M M A R Y | AE4: =AE5+7 -> 2023-03-18 | AM4: 0.2 | AO4: 20% above | AQ4: =COUNTIFS(PercentPandL,">="&AM4,'TRADE LOG'!$BK$15:$BK$9733,1) -> 0 | AR4: =IFERROR(SUMIFS(ProfitLoss,PercentPandL,">="&AM4)/AQ4,0) -> 0 | AS4: =IF($AR$2=1,AR4,AQ4) -> 0
B5: OVERALL PERFORMANCE | G5: DISTRIBUTION OF GAINS AND LOSSES | P5: OVERALL TRADE STATISTICS | AE5: =X8-7 -> 2023-03-11 | AF5: =(AE5+7)-1 -> 2023-03-17 | AG5: ='MONTHLY REPORT'!J14 -> 54,271 | AH5: =SUMIFS(ProfitLoss,'TRADE LOG'!$AT$15:$AT$9733,">"&AE5,'TRADE LOG'!$AT$15:$AT$9733,"<="&AE4,'TRADE LOG'!$BK$15:$BK$9733,-1) -> 0 | AI5: =SUMIFS(ProfitLoss,'TRADE LOG'!$AT$15:$AT$9733,">"&AE5,'TRADE LOG'!$AT$15:$AT$9733,"<="&AE4,'TRADE LOG'!$BK$15:$BK$9733,1) -> 0 | AM5: 0.18 | AN5: 0.2 | AO5: 18% to 20% | AQ5: =COUNTIFS(PercentPandL,">="&AM5,PercentPandL,"<"&AN5,'TRADE LOG'!$BK$15:$BK$9733,1) -> 0 | AR5: =IFERROR(SUMIFS(ProfitLoss,PercentPandL,">="&AM5,PercentPandL,"<"&AN5)/AQ5,0) -> 0 | AS5: =IF($AR$2=1,AR5,AQ5) -> 0
B6: ='TRADE STATISTICS'!AO6 -> Long Net P&L | C6: ='TRADE STATISTICS'!AO5 -> $4,364.4 | E6: ='TRADE STATISTICS'!AQ5 -> ▲ 8.7% | AE6: =AE5-7 -> 2023-03-04 | AF6: 2023-03-10 | AG6: =AG5-(AH5+AI5) -> 54,271 | AH6: =SUMIFS(ProfitLoss,'TRADE LOG'!$AT$15:$AT$9733,">"&AE6,'TRADE LOG'!$AT$15:$AT$9733,"<="&AE5,'TRADE LOG'!$BK$15:$BK$9733,-1) -> 0 | AI6: =SUMIFS(ProfitLoss,'TRADE LOG'!$AT$15:$AT$9733,">"&AE6,'TRADE LOG'!$AT$15:$AT$9733,"<="&AE5,'TRADE LOG'!$BK$15:$BK$9733,1) -> 0 | AM6: 0.16 | AN6: 0.18 | AO6: 16% to 18% | AQ6: =COUNTIFS(PercentPandL,">="&AM6,PercentPandL,"<"&AN6,'TRADE LOG'!$BK$15:$BK$9733,1) -> 0 | AR6: 0 | AS6: 0
B7: ='TRADE STATISTICS'!AO8 -> Short Net P&L | C7: ='TRADE STATISTICS'!AO7 -> $-93.0 | E7: ='TRADE STATISTICS'!AQ7 -> ▼ -0.2% | W7: to date | X7: ='MONTHLY REPORT'!X3 -> 2023-03-17 | AB7: %P&L | AC7: p&l | AE7: 2023-02-25 | AF7: 2023-03-03 | AG7: 54,271 | AH7: =SUMIFS(ProfitLoss,'TRADE LOG'!$AT$15:$AT$9733,">"&AE7,'TRADE LOG'!$AT$15:$AT$9733,"<="&AE6,'TRADE LOG'!$BK$15:$BK$9733,-1) -> 0 | AI7: =SUMIFS(ProfitLoss,'TRADE LOG'!$AT$15:$AT$9733,">"&AE7,'TRADE LOG'!$AT$15:$AT$9733,"<="&AE6,'TRADE LOG'!$BK$15:$BK$9733,1) -> 0 | AM7: 0.14 | AN7: 0.16 | AO7: 14% to 16% | AQ7: =COUNTIFS(PercentPandL,">="&AM7,PercentPandL,"<"&AN7,'TRADE LOG'!$BK$15:$BK$9733,1) -> 2 | AR7: 748.53 | AS7: 2
B8: ='TRADE STATISTICS'!AO10 -> Total Net P&L | C8: =C6+C7 -> $4,271.4 | E8: ='TRADE STATISTICS'!AQ9 -> ▲ 8.5% | X8: =IF(WEEKDAY(X7)=7,X7+7,X7+(7-WEEKDAY(X7))) -> 2023-03-18 | Y8: =AG5 -> 54,271 | AA8: this week | AB8: =IFERROR((AC8)/Y8,0) -> 0.00% | AC8: =AH5+AI5 -> 0 | AE8: 2023-02-18 | AF8: 2023-02-24 | AG8: 54,271 | AH8: =SUMIFS(ProfitLoss,'TRADE LOG'!$AT$15:$AT$9733,">"&AE8,'TRADE LOG'!$AT$15:$AT$9733,"<="&AE7,'TRADE LOG'!$BK$15:$BK$9733,-1) -> 0 | AI8: =SUMIFS(ProfitLoss,'TRADE LOG'!$AT$15:$AT$9733,">"&AE8,'TRADE LOG'!$AT$15:$AT$9733,"<="&AE7,'TRADE LOG'!$BK$15:$BK$9733,1) -> 0 | AM8: 0.12 | AN8: 0.14 | AO8: 12% to 14% | AQ8: =COUNTIFS(PercentPandL,">="&AM8,PercentPandL,"<"&AN8,'TRADE LOG'!$BK$15:$BK$9733,1) -> 2 | AR8: 532.35 | AS8: 2
X9: ='MONTHLY REPORT'!X3-X6 -> 2023-03-17 | Y9: =AG6 -> 54,271 | AA9: pre week | AB9: =IFERROR((AC9)/Y9,"") -> 0.00% | AC9: =AH6+AI6 -> 0 | AE9: 2023-02-11 | AF9: 2023-02-17 | AG9: 54,271 | AH9: =SUMIFS(ProfitLoss,'TRADE LOG'!$AT$15:$AT$9733,">"&AE9,'TRADE LOG'!$AT$15:$AT$9733,"<="&AE8,'TRADE LOG'!$BK$15:$BK$9733,-1) -> 0 | AI9: =SUMIFS(ProfitLoss,'TRADE LOG'!$AT$15:$AT$9733,">"&AE9,'TRADE LOG'!$AT$15:$AT$9733,"<="&AE8,'TRADE LOG'!$BK$15:$BK$9733,1) -> 0 | AM9: 0.1 | AN9: 0.12 | AO9: 10% to 12% | AQ9: =COUNTIFS(PercentPandL,">="&AM9,PercentPandL,"<"&AN9,'TRADE LOG'!$BK$15:$BK$9733,1) -> 3 | AR9: 581.84 | AS9: 3
AE10: 2023-02-04 | AF10: 2023-02-10 | AG10: 54,271 | AH10: =SUMIFS(ProfitLoss,'TRADE LOG'!$AT$15:$AT$9733,">"&AE10,'TRADE LOG'!$AT$15:$AT$9733,"<="&AE9,'TRADE LOG'!$BK$15:$BK$9733,-1) -> 0 | AI10: =SUMIFS(ProfitLoss,'TRADE LOG'!$AT$15:$AT$9733,">"&AE10,'TRADE LOG'!$AT$15:$AT$9733,"<="&AE9,'TRADE LOG'!$BK$15:$BK$9733,1) -> 0 | AM10: 0.08 | AN10: 0.1 | AO10: 8% to 10% | AQ10: =COUNTIFS(PercentPandL,">="&AM10,PercentPandL,"<"&AN10,'TRADE LOG'!$BK$15:$BK$9733,1) -> 2 | AR10: 431.03 | AS10: 2
B11: TOP/BOTTOM CUMULATIVE TRADES | E11: More Details | W11: Profit Rate | X11: ='TRADE STATISTICS'!BK6 -> 63.5% | AE11: 2023-01-28 | AF11: 2023-02-03 | AG11: 54,271 | AH11: =SUMIFS(ProfitLoss,'TRADE LOG'!$AT$15:$AT$9733,">"&AE11,'TRADE LOG'!$AT$15:$AT$9733,"<="&AE10,'TRADE LOG'!$BK$15:$BK$9733,-1) -> 0 | AI11: =SUMIFS(ProfitLoss,'TRADE LOG'!$AT$15:$AT$9733,">"&AE11,'TRADE LOG'!$AT$15:$AT$9733,"<="&AE10,'TRADE LOG'!$BK$15:$BK$9733,1) -> 0 | AM11: 0.06 | AN11: 0.08 | AO11: 6% to 8% | AQ11: =COUNTIFS(PercentPandL,">="&AM11,PercentPandL,"<"&AN11,'TRADE LOG'!$BK$15:$BK$9733,1) -> 5 | AR11: 714.05 | AS11: 5
B12: =IFERROR('TRADE LOG'!CC3,"") -> AUDUSD | C12: =IFERROR('TRADE LOG'!CA3,0) -> $4,767.9 | E12: =IFERROR('TRADE LOG'!CD3,0) -> ▲ 4.6% | W12: Loss Rate | X12: ='TRADE STATISTICS'!BL6 -> 0.3652779701 | AE12: 2023-01-21 | AF12: 2023-01-27 | AG12: 54,271 | AH12: =SUMIFS(ProfitLoss,'TRADE LOG'!$AT$15:$AT$9733,">"&AE12,'TRADE LOG'!$AT$15:$AT$9733,"<="&AE11,'TRADE LOG'!$BK$15:$BK$9733,-1) -> 0 | AI12: =SUMIFS(ProfitLoss,'TRADE LOG'!$AT$15:$AT$9733,">"&AE12,'TRADE LOG'!$AT$15:$AT$9733,"<="&AE11,'TRADE LOG'!$BK$15:$BK$9733,1) -> 0 | AM12: 0.04 | AN12: 0.06 | AO12: 4% to 6% | AQ12: =COUNTIFS(PercentPandL,">="&AM12,PercentPandL,"<"&AN12,'TRADE LOG'!$BK$15:$BK$9733,1) -> 3 | AR12: 389.52 | AS12: 3
B13: =IFERROR('TRADE LOG'!CC4,"") -> GBPUSD | C13: =IFERROR('TRADE LOG'!CA4,0) -> $527.3 | E13: =IFERROR('TRADE LOG'!CD4,0) -> ▲ 0.5% | P13: ='TRADE STATISTICS'!BI4 -> 25 | Q13: ='TRADE STATISTICS'!BJ4 -> 30 | R13: ='TRADE STATISTICS'!BK4 -> 552 | S13: ='TRADE STATISTICS'!BL4 -> 318 | AE13: 2023-01-14 | AF13: 2023-01-20 | AG13: 54,271 | AH13: =SUMIFS(ProfitLoss,'TRADE LOG'!$AT$15:$AT$9733,">"&AE13,'TRADE LOG'!$AT$15:$AT$9733,"<="&AE12,'TRADE LOG'!$BK$15:$BK$9733,-1) -> 0 | AI13: =SUMIFS(ProfitLoss,'TRADE LOG'!$AT$15:$AT$9733,">"&AE13,'TRADE LOG'!$AT$15:$AT$9733,"<="&AE12,'TRADE LOG'!$BK$15:$BK$9733,1) -> 0 | AM13: 0.02 | AN13: 0.04 | AO13: 2% to 4% | AQ13: =COUNTIFS(PercentPandL,">="&AM13,PercentPandL,"<"&AN13,'TRADE LOG'!$BK$15:$BK$9733,1) -> 5 | AR13: 554.09 | AS13: 5
B14: =IFERROR('TRADE LOG'!CC5,"") ->  | C14: =IFERROR('TRADE LOG'!CA5,0) ->  | E14: =IFERROR('TRADE LOG'!CD5,0) ->  | P14: Win Trades | Q14: Loss Trades | R14: Ave. Profit | S14: Ave. Loss | AE14: 2023-01-07 | AF14: 2023-01-13 | AG14: 54,271 | AH14: =SUMIFS(ProfitLoss,'TRADE LOG'!$AT$15:$AT$9733,">"&AE14,'TRADE LOG'!$AT$15:$AT$9733,"<="&AE13,'TRADE LOG'!$BK$15:$BK$9733,-1) -> 0 | AI14: =SUMIFS(ProfitLoss,'TRADE LOG'!$AT$15:$AT$9733,">"&AE14,'TRADE LOG'!$AT$15:$AT$9733,"<="&AE13,'TRADE LOG'!$BK$15:$BK$9733,1) -> 0 | AM14: 0 | AN14: 0.02 | AO14: 0% to 2% | AQ14: =COUNTIFS(PercentPandL,">="&AM14,PercentPandL,"<"&AN14,'TRADE LOG'!$BK$15:$BK$9733,1) -> 3 | AR14: 375.51 | AS14: 3
B15: =IFERROR('TRADE LOG'!CC7,"") -> EURUSD | C15: =IFERROR('TRADE LOG'!CA7,0) -> $-419.1 | E15: =IFERROR('TRADE LOG'!CD7,0) -> ▼ -0.2% | P15: =I37 -> 6.8% | Q15: =I38 -> -4.5% | R15: =IFERROR(P13/Q13,"") -> 0.8 : 1 | S15: =IFERROR(R13/S13,"") -> 1.7 : 1 | W15: profitxwin | X15: =I32*R13 -> 251.002 | AE15: 2022-12-31 | AF15: 2023-01-06 | AG15: 54,271 | AH15: =SUMIFS(ProfitLoss,'TRADE LOG'!$AT$15:$AT$9733,">"&AE15,'TRADE LOG'!$AT$15:$AT$9733,"<="&AE14,'TRADE LOG'!$BK$15:$BK$9733,-1) -> 0 | AI15: =SUMIFS(ProfitLoss,'TRADE LOG'!$AT$15:$AT$9733,">"&AE15,'TRADE LOG'!$AT$15:$AT$9733,"<="&AE14,'TRADE LOG'!$BK$15:$BK$9733,1) -> 0 | AM15: -0.02 | AN15: 0 | AO15: 0% to -2% | AP15: =COUNTIFS(PercentPandL,">="&AM15,PercentPandL,"<"&AN15,'TRADE LOG'!$BK$15:$BK$9733,-1) -> 13 | AR15: =IFERROR(SUMIFS(ProfitLoss,PercentPandL,">="&AM15,PercentPandL,"<"&AN15)/AP15,0) -> (308.55) | AT15: =ABS(IF($AR$2=1,AR15,AP15)) -> 13
B16: =IFERROR('TRADE LOG'!CC8,"") -> XAUUSD | C16: =IFERROR('TRADE LOG'!CA8,0) -> $-410.0 | E16: =IFERROR('TRADE LOG'!CD8,0) -> ▼ -0.0% | P16: Ave. Win % | Q16: Ave.Loss% | R16: W/L Ratio | S16: P/L Ratio | W16: lossxloss% | X16: =(1-I32)*S13 -> 173.3398182 | AE16: 2022-12-24 | AF16: 2022-12-30 | AG16: 54,271 | AH16: =SUMIFS(ProfitLoss,'TRADE LOG'!$AT$15:$AT$9733,">"&AE16,'TRADE LOG'!$AT$15:$AT$9733,"<="&AE15,'TRADE LOG'!$BK$15:$BK$9733,-1) -> 0 | AI16: =SUMIFS(ProfitLoss,'TRADE LOG'!$AT$15:$AT$9733,">"&AE16,'TRADE LOG'!$AT$15:$AT$9733,"<="&AE15,'TRADE LOG'!$BK$15:$BK$9733,1) -> 0 | AM16: -0.04 | AN16: -0.02 | AO16: -2% to -4% | AP16: =COUNTIFS(PercentPandL,">="&AM16,PercentPandL,"<"&AN16,'TRADE LOG'!$BK$15:$BK$9733,-1) -> 5 | AR16: (343.13) | AT16: =ABS(IF($AR$2=1,AR16,AP16)) -> 5
B17: =IFERROR('TRADE LOG'!CC9,"") -> USDCAD | C17: =IFERROR('TRADE LOG'!CA9,0) -> $-128.9 | E17: =IFERROR('TRADE LOG'!CD9,0) -> ▼ -0.1% | P17: Profit Factor: | Q17: =IFERROR(X15/X16,0) -> 1.45 | R17: Expectancy: | S17: =X15-X16 -> $77.7 | AE17: 2022-12-17 | AF17: 2022-12-23 | AG17: 54,271 | AH17: =SUMIFS(ProfitLoss,'TRADE LOG'!$AT$15:$AT$9733,">"&AE17,'TRADE LOG'!$AT$15:$AT$9733,"<="&AE16,'TRADE LOG'!$BK$15:$BK$9733,-1) -> 0 | AI17: =SUMIFS(ProfitLoss,'TRADE LOG'!$AT$15:$AT$9733,">"&AE17,'TRADE LOG'!$AT$15:$AT$9733,"<="&AE16,'TRADE LOG'!$BK$15:$BK$9733,1) -> 0 | AM17: -0.06 | AN17: -0.04 | AO17: -4% to -6% | AP17: =COUNTIFS(PercentPandL,">="&AM17,PercentPandL,"<"&AN17,'TRADE LOG'!$BK$15:$BK$9733,-1) -> 5 | AR17: (266.18) | AT17: =ABS(IF($AR$2=1,AR17,AP17)) -> 5
AL18: =AI18+AH18 -> 0 | AM18: -0.08 | AN18: -0.06 | AO18: -6% to -8% | AP18: =COUNTIFS(PercentPandL,">="&AM18,PercentPandL,"<"&AN18,'TRADE LOG'!$BK$15:$BK$9733,-1) -> 2 | AR18: (526.48) | AT18: 2
G19: P E R F O R M A N C E | AM19: -0.1 | AN19: -0.08 | AO19: -8% to -10% | AP19: =COUNTIFS(PercentPandL,">="&AM19,PercentPandL,"<"&AN19,'TRADE LOG'!$BK$15:$BK$9733,-1) -> 1 | AR19: (297.65) | AT19: 1
B20: PERFORMANCE PER PERIOD | E20: Review Monthly Report ► | G20: PERFORMANCE CURVE | J20: Last Number of Trades | P20: WEEKLY PERFORMANCE CURVE | AE20: periodic report | AG20: Period | AH20: from | AI20: to | AJ20: Gain/loss | AK20: Beg. Capital | AL20: %change | AM20: -0.12 | AN20: -0.1 | AO20: -10% to -12% | AP20: =COUNTIFS(PercentPandL,">="&AM20,PercentPandL,"<"&AN20,'TRADE LOG'!$BK$15:$BK$9733,-1) -> 2 | AR20: (357.65) | AT20: 2
P21: This Week: | Q21: =DASHBOARD!AC8 -> 0 | S21: =AB8 -> 0 | AM21: -0.14 | AN21: -0.12 | AO21: -12% to -14% | AP21: =COUNTIFS(PercentPandL,">="&AM21,PercentPandL,"<"&AN21,'TRADE LOG'!$BK$15:$BK$9733,-1) -> 0 | AR21: 0 | AT21: 0
B22: This Month: | C22: =DASHBOARD!AJ23 -> 0 | E22: =DASHBOARD!AL23 -> 0 | P22: Prev. Week: | Q22: =DASHBOARD!AC9 -> 0 | S22: =AB9 -> 0 | AF22: previous | AG22: =DATE(YEAR(AG23),MONTH(AG23)-1,DAY(1)) -> 2023-02-01 | AH22: =DATE(YEAR(AG22),MONTH(AG22),DAY(1)) -> 2023-02-01 | AI22: =DATE(YEAR(AG22),MONTH(AG22)+1,DAY(1)-1) -> 2023-02-28 | AM22: -0.16 | AN22: -0.14 | AO22: -14% to -16% | AP22: =COUNTIFS(PercentPandL,">="&AM22,PercentPandL,"<"&AN22,'TRADE LOG'!$BK$15:$BK$9733,-1) -> 0 | AR22: 0 | AT22: 0
B23: 1st Quarter: | C23: =DASHBOARD!AJ24 -> 0 | E23: =DASHBOARD!AL24 -> 0 | AF23: current | AG23: ='MONTHLY REPORT'!X3 -> 2023-03-17 | AH23: =DATE(YEAR(AG23),MONTH(AG23),DAY(1)) -> 2023-03-01 | AI23: =DATE(YEAR(AG23),MONTH(AG23)+1,DAY(1)-1) -> 2023-03-31 | AJ23: =SUMIFS('TRADE LOG'!$BD$15:$BD$9733,'TRADE LOG'!$AT$15:$AT$9733,">="&AH23,'TRADE LOG'!$AT$15:$AT$9733,"<="&AI23) -> 0 | AK23: =IFERROR(INDEX('MONTHLY REPORT'!$E$15:$E$89,MATCH(AH23,'MONTHLY REPORT'!$Z$15:$Z$89,0)),0) -> 54271.42 | AL23: =IFERROR(AJ23/AK23,0) -> 0 | AM23: -0.18 | AN23: -0.16 | AO23: -16% to -18% | AP23: =COUNTIFS(PercentPandL,">="&AM23,PercentPandL,"<"&AN23,'TRADE LOG'!$BK$15:$BK$9733,-1) -> 1 | AR23: (196.53) | AT23: 1
B24: 2nd Quarter: | C24: =DASHBOARD!AJ25 -> 0 | E24: =DASHBOARD!AL25 -> 0 | AG24: Q1 | AH24: =DATE(YEAR(AG23),MONTH(1),DAY(1)) -> 2023-01-01 | AI24: =DATE(YEAR(AH24),MONTH(AH24)+3,DAY(1)-1) -> 2023-03-31 | AJ24: =SUMIFS('TRADE LOG'!$BD$15:$BD$9733,'TRADE LOG'!$AT$15:$AT$9733,">="&AH24,'TRADE LOG'!$AT$15:$AT$9733,"<="&AI24) -> 0 | AK24: =IFERROR(INDEX('MONTHLY REPORT'!$E$15:$E$89,MATCH(AH24,'MONTHLY REPORT'!$Z$15:$Z$89,0)),'Bank Transfers'!$H$15) -> 54271.42 | AL24: 0 | AM24: -0.2 | AN24: -0.18 | AO24: -18% to -20% | AP24: =COUNTIFS(PercentPandL,">="&AM24,PercentPandL,"<"&AN24,'TRADE LOG'!$BK$15:$BK$9733,-1) -> 1 | AR24: (213.53) | AT24: 1
B25: 3rd Quarter: | C25: =DASHBOARD!AJ26 -> 0 | E25: =DASHBOARD!AL26 -> 0 | AG25: Q2 | AH25: =DATE(YEAR(AI24),MONTH(AI24)+1,DAY(1)) -> 2023-04-01 | AI25: =DATE(YEAR(AH25),MONTH(AH25)+3,DAY(1)-1) -> 2023-06-30 | AJ25: =SUMIFS('TRADE LOG'!$BD$15:$BD$9733,'TRADE LOG'!$AT$15:$AT$9733,">="&AH25,'TRADE LOG'!$AT$15:$AT$9733,"<="&AI25) -> 0 | AK25: =IFERROR(INDEX('MONTHLY REPORT'!$E$15:$E$89,MATCH(AH25,'MONTHLY REPORT'!$Z$15:$Z$89,0)),'Bank Transfers'!$H$15) -> 50000 | AL25: 0 | AM25: -0.2 | AO25: -20% below | AP25: =COUNTIFS(PercentPandL,"<"&AM25,'TRADE LOG'!$BK$15:$BK$9733,-1) -> 0 | AR25: =IFERROR(SUMIFS(ProfitLoss,PercentPandL,"<"&AM25)/AP25,0) -> 0 | AT25: 0
B26: 4th Quarter: | C26: =DASHBOARD!AJ27 -> 0 | E26: =DASHBOARD!AL27 -> 0 | X26: 2999 | AG26: Q3 | AH26: =DATE(YEAR(AI25),MONTH(AI25)+1,DAY(1)) -> 2023-07-01 | AI26: =DATE(YEAR(AH26),MONTH(AH26)+3,DAY(1)-1) -> 2023-09-30 | AJ26: =SUMIFS('TRADE LOG'!$BD$15:$BD$9733,'TRADE LOG'!$AT$15:$AT$9733,">="&AH26,'TRADE LOG'!$AT$15:$AT$9733,"<="&AI26) -> 0 | AK26: =IFERROR(INDEX('MONTHLY REPORT'!$E$15:$E$89,MATCH(AH26,'MONTHLY REPORT'!$Z$15:$Z$89,0)),'Bank Transfers'!$H$15) -> 50000 | AL26: 0
B27: Year To Date: | C27: =DASHBOARD!AJ28 -> 0 | E27: =DASHBOARD!AL28 -> 0 | V27: chart y max | W27: ='TRADE LOG'!BH4 -> 54,280.00 | X27: ='TRADE LOG'!BI4 -> 56 | AC27: max | AD27: =IFERROR(MAX(AG5:AG17)*1.03,1) -> 55899.5626 | AG27: Q4 | AH27: =DATE(YEAR(AI26),MONTH(AI26)+1,DAY(1)) -> 2023-10-01 | AI27: =DATE(YEAR(AH27),MONTH(AH27)+3,DAY(1)-1) -> 2023-12-31 | AJ27: =SUMIFS('TRADE LOG'!$BD$15:$BD$9733,'TRADE LOG'!$AT$15:$AT$9733,">="&AH27,'TRADE LOG'!$AT$15:$AT$9733,"<="&AI27) -> 0 | AK27: =IFERROR(INDEX('MONTHLY REPORT'!$E$15:$E$89,MATCH(AH27,'MONTHLY REPORT'!$Z$15:$Z$89,0)),'Bank Transfers'!$H$15) -> 50000 | AL27: 0
B28: Previous YTD: | C28: =DASHBOARD!AJ29 -> 0 | E28: =DASHBOARD!AL29 -> 0 | V28: chart y min | W28: ='TRADE LOG'!BH5 -> 48980 | X28: ='TRADE LOG'!BI5 -> 6 | AC28: min | AD28: =IFERROR(MIN(AG5:AG17)*0.97,0) -> 52643.2774 | AG28: YTD | AH28: =AH24 -> 2023-01-01 | AI28: =AG23 -> 2023-03-17 | AJ28: =SUM(AJ24:AJ27) -> 0 | AK28: =IFERROR(INDEX('MONTHLY REPORT'!$E$15:$E$89,MATCH(AH28,'MONTHLY REPORT'!$Z$15:$Z$89,0)),'Bank Transfers'!$H$15) -> 54271.42 | AL28: 0
D29: ="As of "&TEXT(SETTINGS!AH2,"mmmm-dd,yyy") -> As of March-17,2023 | AF29: =MAX($AF$30,AH29) -> 44562 | AG29: PYTD | AH29: =DATE(YEAR(AG23)-1,MONTH(1),DAY(1)) -> 2022-01-01 | AI29: =DATE(YEAR(AH29)+1,MONTH(1),DAY(1)-1) -> 2022-12-31 | AJ29: =SUMIFS('TRADE LOG'!$BD$15:$BD$9733,'TRADE LOG'!$AT$15:$AT$9733,">="&AH29,'TRADE LOG'!$AT$15:$AT$9733,"<="&AI29) -> 0 | AK29: =IFERROR(INDEX('MONTHLY REPORT'!$E$15:$E$89,MATCH(AH29,'MONTHLY REPORT'!$Z$15:$Z$89,0)),'Bank Transfers'!$H$15) -> 54271.42 | AL29: 0
W30: =SETTINGS!AA13 -> REWARD-RISK RATIO | X30: =" SETUP WIN% VS. "&W30 -> SETUP WIN% VS. REWARD-RISK RATIO | AE30: =DATE(YEAR(AG23),MONTH(1),DAY(1)) -> 44927 | AF30: =MIN('MONTHLY REPORT'!$Z$15:$Z$89,AE30) -> 43952 | AG30: Period
B31: DRAWDOWN & WIN STREAK | G31: STATISTICS | I31: ALL TRADES | K31: LAST 20 TRADES | M31: REMARKS | P31: =X30 -> SETUP WIN% VS. REWARD-RISK RATIO | V31: last 20 trades
B32: Max Drawdown: | C32: ='TRADE LOG'!BM5 -> $-2,179.9 | E32: ='TRADE LOG'!BL5 -> ▼ -4.1% | G32: Win rate%: | I32: ='TRADE STATISTICS'!BI6 -> 45.5% | L32: =IFERROR(V32,"") -> 30.0% | M32: =IFERROR(((L32-I32)/ABS(I32)),"") -> -0.34 | V32: =V34/(V34+V35) -> 0.3 | W32: =MAX(AI43:AI92) -> 37 | X32: =W32+14 -> 51 | AD32: ='TRADE LOG'!AE1 -> 55 | AE32: =SETTINGS!S4 -> 2 | AF32: =SETTINGS!S5 -> 10% | AG32: RISK-MULTIPLE EVALUATION | AI32: POSSIBLE CAUSE
B33: Consecutive Wins: | C33: ='TRADE LOG'!BM7 -> $1,391.8 | E33: ='TRADE LOG'!$BL$7 -> 5 Trades | G33: Largest Profit: | I33: =MAX(ProfitLoss) -> $2,273.5 | K33: =IFERROR(MAX(INDIRECT("'Trade Log'!bd"&X32):INDIRECT("'Trade Log'!bd"&X33)),0) -> $2,273.5 | M33: =IFERROR(((K33-I33)/ABS(I33)),"") -> 0 | V33: =1-V32 -> 0.7 | W33: =AK43 -> 56 | X33: =W33+14 -> 70 | AB33: =COUNTIF('TRADE LOG'!$W$15:$W$9733,"<-"&1+AF32) -> 5 | AD33: < -1R | AE33: =AL33/(AH33+AH34+AH35) -> 79% | AF33: of loss trades may due to late exit, over allocate or hope | AG33: Loss trades > -1R risk: | AH33: =AB33/$AD$32 -> 9% | AI33: of loss trades may due to late exit, over allocate or hope | AK33: Over allocate, Hope | AL33: =LARGE(AH33:AH35,1) -> 0.4181818182 | AN33: =INDEX(AI33:AI35,MATCH(AL33,AH33:AH35,0)) -> of loss trades may due to early exit, under allocate or fear
B34: Consecutive Losses: | C34: ='TRADE LOG'!BM6 -> $-1,015.4 | E34: ='TRADE LOG'!$BL$6 -> 5 Trades | G34: Largest Loss: | I34: =MIN(ProfitLoss) -> $-835.3 | K34: =IFERROR(MIN(INDIRECT("'Trade Log'!bd"&X32):INDIRECT("'Trade Log'!bd"&X33)),0) -> $-738.2 | M34: =IFERROR(((K34-I34)/ABS(I34)),"") -> 0.116209745 | V34: =COUNTIF(INDIRECT("'Trade Log'!bk"&X32):INDIRECT("'Trade Log'!bk"&X33),1) -> 6 | AB34: =COUNTIFS('TRADE LOG'!$W$15:$W$9733,">-"&1+AF32,'TRADE LOG'!$W$15:$W$9733,"<=-"&1-AF32) -> 1 | AD34: -1R | AF34: Loss trades within 1R: | AG34: Loss trades within 1R: | AH34: 2% | AI34: of loss trades is as planned or properly position sized | AK34: Position sized, as planned
B35: Max Consecutive Profit: | C35: ='TRADE LOG'!BL9 -> $2,572.9 | E35: =IFERROR('TRADE LOG'!BM9,0) -> 4 Trades | G35: Largest Win %: | I35: =IF(COUNT('MONTHLY REPORT'!X15)=0,MAX(MAX(PercentPandL),SETTINGS!S71),MAX(PercentPandL)) -> 15.10% | L35: =IFERROR(MAX(INDIRECT("'Trade Log'!be"&X32):INDIRECT("'Trade Log'!be"&X33)),0) -> 15.10% | M35: =IFERROR(((L35-I35)/ABS(I35)),"") -> 0 | V35: =COUNTIF(INDIRECT("'Trade Log'!bk"&X32):INDIRECT("'Trade Log'!bk"&X33),-1) -> 14 | AB35: =COUNTIFS('TRADE LOG'!$W$15:$W$9733,"<=-"&AF32,'TRADE LOG'!$W$15:$W$9733,">-"&1-AF32) -> 23 | AD35: 0R to -1R | AF35: Loss trades < -1R risk: | AG35: Loss trades < -1R risk: | AH35: 42% | AI35: of loss trades may due to early exit, under allocate or fear | AK35: Under allocate , fear
B36: Max Consecutive Loss: | C36: ='TRADE LOG'!BL8 -> $-1,745.7 | E36: =IFERROR('TRADE LOG'!BM8,0) -> 3 Trades | G36: Largest Loss %: | I36: =IF(COUNT('MONTHLY REPORT'!X15)=0,MIN(MIN(PercentPandL),SETTINGS!S72),MIN(PercentPandL)) -> -19.36% | L36: =IFERROR(MIN(INDIRECT("'Trade Log'!be"&X32):INDIRECT("'Trade Log'!be"&X33)),0) -> -2.38% | M36: =IFERROR(((L36-I36)/ABS(I36)),"") -> 0.8770965461 | V36: =SUMIFS('TRADE LOG'!$AF$15:$AF$9733,'TRADE LOG'!$U$15:$U$9733,">0",Datelog,">0") -> 0.31 | AB36: =COUNTIFS('TRADE LOG'!$W$15:$W$9733,">-"&AF32,'TRADE LOG'!$W$15:$W$9733,"<"&AF32) -> 2 | AD36: 0R | AF36: Fair trades within 0R: | AG36: Fair trades within 0R: | AH36: 4% | AI36: No plan, Bored | AK36: No plan, Bored
G37: Ave. Win% per trade: | I37: =IFERROR(SUMIFS(PercentPandL,PercentPandL,">0",'TRADE LOG'!$Q$15:$Q$9733,">0")/$P$13,0) -> 6.82% | L37: =IFERROR(SUMIF(INDIRECT("'Trade Log'!bk"&X32):INDIRECT("'Trade Log'!bk"&X33),1,INDIRECT("'Trade Log'!be"&X32):INDIRECT("'Trade Log'!be"&X33))/V34,0) -> 6.46% | M37: =IFERROR(((L37-I37)/ABS(I37)),"") -> -0.05215072253 | V37: =SUMIFS('TRADE LOG'!AF15:AF9733,'TRADE LOG'!$U$15:$U$9733,"<=0",Datelog,">0") -> 0.37 | AB37: =COUNTIFS('TRADE LOG'!$W$15:$W$9733,"<"&AE32-AF32,'TRADE LOG'!$W$15:$W$9733,">"&AF32) -> 20 | AD37: ="0R to "&AE32&"R" -> 0R to 2R | AE37: =AL37/(AH37+AH38+AH39) -> 83% | AF37: of win trades may due to early exit, under allocate or fear | AG37: Win trades < 2R target: | AH37: 36% | AI37: of win trades may due to early exit, under allocate or fear | AK37: Under allocate , fear | AL37: =LARGE(AH37:AH39,1) -> 0.3636363636 | AN37: =INDEX(AI37:AI39,MATCH(AL37,AH37:AH39,0)) -> of win trades may due to early exit, under allocate or fear
B38: DURATION | C38: WIN | D38: LOSS | E38: ALL TRADES | G38: Ave. Loss% per trade: | I38: =IFERROR(SUMIFS(PercentPandL,PercentPandL,"<=0",'TRADE LOG'!$Q$15:$Q$9733,">0")/$Q$13,0) -> -4.45% | L38: =IFERROR(SUMIF(INDIRECT("'Trade Log'!bk"&X32):INDIRECT("'Trade Log'!bk"&X33),-1,INDIRECT("'Trade Log'!be"&X32):INDIRECT("'Trade Log'!be"&X33))/V35,0) -> -1.56% | M38: =IFERROR(((L38-I38)/ABS(I38)),"") -> 0.6494416974 | V38: =V36+V37 -> 0.68 | Y38: EXP | AB38: =COUNTIFS('TRADE LOG'!$W$15:$W$9733,">="&AE32-AF32,'TRADE LOG'!$W$15:$W$9733,"<="&AE32+AF32) -> 1 | AD38: =AE32&"R" -> 2R | AF38: Win trades within 2R : | AG38: Win trades within 2R : | AH38: 2% | AI38: of win trades is as planned or properly position sized | AK38: Position sized, as planned | BC38: max | BD38: =ROUNDUP(MAX(AK46:BD46)*1.1,0) -> 14
B39: Average Duration | C39: =IFERROR(V36/$P$13,0) -> 0.01 d | D39: =IFERROR(V37/$Q$13,0) -> 0.01 d | E39: =IFERROR(V38/($Q$13+P13),0) -> 0.01 d | G39: Reward-to-Risk Ratio: | I39: =IFERROR((I37)/-(I38),0) -> 1.53 : 1 | K39: =IFERROR((L37)/-(L38),0) -> 4.14 : 1 | M39: =IFERROR(((K39-I39)/ABS(I39)),"") -> 1.703827781 | V39: =SUMIFS('TRADE LOG'!$BI$15:$BI$9733,'TRADE LOG'!$BK$15:$BK$9733,1)/V42 -> 38% | W39: win allocation | Y39: PF | AB39: =COUNTIF('TRADE LOG'!$W$15:$W$9733,">"&AE32+AF32) -> 3 | AD39: =">"&AE32&"R" -> >2R | AF39: Win trades > 2R target: | AG39: Win trades > 2R target: | AH39: 5% | AI39: of win trades may due to over allocate or greed | AK39: Over allocate, Greed | AN39: =CONCATENATE(TEXT(AE37,"0%")," ",AN37) -> 83% of win trades may due to early exit, under allocate or fear | BC39: min | BD39: =ROUNDDOWN(MIN(AK46:BD46)*0.9,0) -> 7
B40: Average Allocation | C40: =IFERROR(V39/$P$13,0) -> 1.5% | D40: =IFERROR(V40/$Q$13,0) -> 2.4% | E40: =IFERROR(V41/($Q$13+$P$13),0) -> 2.0% | G40: Ave. Profit per trade: | I40: =R13 -> $552.2 | K40: =IFERROR(SUMIF(INDIRECT("'Trade Log'!bk"&X32):INDIRECT("'Trade Log'!bk"&X33),1,INDIRECT("'Trade Log'!bd"&X32):INDIRECT("'Trade Log'!bd"&X33))/V34,0) -> $891.3 | M40: 0.6139917272 | V40: =SUMIFS('TRADE LOG'!$BI$15:$BI$9733,'TRADE LOG'!$BK$15:$BK$9733,-1)/V42 -> 73% | W40: loss allocation | AN40: =CONCATENATE(TEXT(AE33,"0%")," ",AN33) -> 79% of loss trades may due to early exit, under allocate or fear
G41: Ave. Loss per trade: | I41: =-S13 -> $-317.8 | K41: =IFERROR(SUMIF(INDIRECT("'Trade Log'!bk"&X32):INDIRECT("'Trade Log'!bk"&X33),-1,INDIRECT("'Trade Log'!bd"&X32):INDIRECT("'Trade Log'!bd"&X33))/V35,0) -> $-348.2 | M41: -0.09579441808 | V41: =SUMIFS('TRADE LOG'!$BI$15:$BI$9733,'TRADE LOG'!$BK$15:$BK$9733,"<>0")/V42 -> 112% | W41: total allocation
B42: MONEY MANAGEMENT | G42: Profit:Loss (Edge) Ratio: | I42: =IFERROR(I40/-I41,0) -> 1.74 : 1 | K42: =IFERROR(K40/-K41,0) -> 2.56 : 1 | M42: 0.4728964672 | V42: =SETTINGS!O4 -> 100 | AG42: row
B43: Kelly Criterion %: | E43: =IF(W43<0,0,W43) -> 14.00% | G43: Profit Factor: | I43: =IFERROR(X15/X16,0) -> 1.45 | K43: =IFERROR((K40*L32)/(-K41*(1-L32)),"") -> 1.10 | M43: -0.2425103883 | V43: kelly | W43: =IFERROR(ROUND(I32-((1-I32)/(R13/S13)),2),0) -> 0.1400 | AG43: =AK43 -> 56 | AH43: =IF((INDEX('TRADE LOG'!$E$15:$E$9733,AG43)>=0),1,0) -> 1 | AI43: =IFERROR(IF(AH43=20,AG43,0),0) -> 0 | AJ43: total row | AK43: ='TRADE LOG'!AX8 -> 56
B44: Position Size To Bet: | D44: =IFERROR(M2*E43,0) -> $7,598.0 | G44: Expectancy per trade: | I44: =S17 -> $77.7 | K44: =IFERROR((K40*L32)+(K41*(1-L32)),"") -> $23.6 | M44: -0.6959459618 | AG44: =AG43-1 -> 55 | AH44: =IF(OR(INDEX(ActionLog,AG44)="sell",INDEX(ActionLog,AG44)="buy"),1,0)+AH43 -> 2 | AI44: =IFERROR(IF(AH44=20,AG44,0),0) -> 0 | AJ44: base | AK44: 0 | AL44: 0 | AM44: 0 | AN44: 0 | AO44: 0 | AP44: 0 | AQ44: 0 | AR44: 0 | AS44: 0 | AT44: 0 | AU44: 0 | AV44: 0 | AW44: 0 | AX44: 0 | AY44: 0 | AZ44: 0 | BA44: 0 | BB44: 0 | BC44: 0 | BD44: 0
AG45: =AG44-1 -> 54 | AH45: 3 | AI45: 0 | AJ45: row | AK45: =AL45-1 -> 37 | AL45: 38 | AM45: 39 | AN45: 40 | AO45: 41 | AP45: 42 | AQ45: 43 | AR45: 44 | AS45: 45 | AT45: 46 | AU45: 47 | AV45: 48 | AW45: 49 | AX45: 50 | AY45: 51 | AZ45: 52 | BA45: 53 | BB45: 54 | BC45: =BD45-1 -> 55 | BD45: =AK43 -> 56
B46: RISK-MULTIPLE | G46: TRADE EVALUATION CURVE | P46: TRADE EVALUATION | R46: Total Cum. Score: | S46: =SUM(Q48:S55) -> 10 | X46: evaluated total trades | AG46: 53 | AH46: 4 | AI46: 0 | AJ46: cum | AK46: =AK47 -> 12 | AL46: =AK46+AL47 -> 12 | AM46: =AL46+AM47 -> 12 | AN46: 12 | AO46: 10 | AP46: 8 | AQ46: 8 | AR46: 8 | AS46: 8 | AT46: 8 | AU46: 8 | AV46: 8 | AW46: 8 | AX46: 8 | AY46: 8 | AZ46: 8 | BA46: 8 | BB46: 10 | BC46: =BB46+BC47 -> 10 | BD46: =BC46+BD47 -> 12
B47: Ave. Win (R): | C47: =IFERROR(SUMIF('TRADE LOG'!U15:U9733,">0",'TRADE LOG'!W15:W9733)/P13,0) -> 1.08 R | D47: R.Mul Ratio: | E47: =IFERROR(C47/C48,0) -> 1.75 : 1 | P47: =SETTINGS!M10 -> ENTRY/EXIT | Q47: SCORE | R47: =SETTINGS!O10 -> EMOTION | S47: SCORE | V47: score | W47: score | X47: =SUM(X48:X55) -> 21 | Y47: =SUM(Y48:Y55) -> 19 | AG47: 52 | AH47: 5 | AI47: 0 | AJ47: sum | AK47: =SUM(AK48:AK63) -> 12 | AL47: =SUM(AL48:AL63) -> 0 | AM47: =SUM(AM48:AM63) -> 0 | AN47: 0 | AO47: -2 | AP47: -2 | AQ47: 0 | AR47: =SUM(AR48:AR63) -> 0 | AS47: =SUM(AS48:AS63) -> 0 | AT47: =SUM(AT48:AT63) -> 0 | AU47: =SUM(AU48:AU63) -> 0 | AV47: =SUM(AV48:AV63) -> 0 | AW47: =SUM(AW48:AW63) -> 0 | AX47: =SUM(AX48:AX63) -> 0 | AY47: =SUM(AY48:AY63) -> 0 | AZ47: =SUM(AZ48:AZ63) -> 0 | BA47: =SUM(BA48:BA63) -> 0 | BB47: =SUM(BB48:BB63) -> 2 | BC47: =SUM(BC48:BC63) -> 0 | BD47: =SUM(BD48:BD63) -> 2
B48: Ave. Loss (R): | C48: =IFERROR(-SUMIF('TRADE LOG'!U15:U9733,"<=0",'TRADE LOG'!W15:W9733)/Q13,0) -> 0.61 R | D48: Expectancy: | E48: =(C47*I32)-(C48*(1-I32)) -> 0.15 R | P48: =IF(SETTINGS!M12="","",SETTINGS!M12) -> TOO EARLY | Q48: =IFERROR(COUNTIFS('TRADE LOG'!$Y$15:$Y$9733,DASHBOARD!P48)*V48,"") -> -2 | R48: =IF(SETTINGS!O12="","",SETTINGS!O12) -> FEAR | S48: =IFERROR(COUNTIFS('TRADE LOG'!$Z$15:$Z$9733,DASHBOARD!R48)*W48,"") -> 0 | V48: =SETTINGS!N12 -> -1 | W48: =SETTINGS!P12 -> -1 | X48: =IFERROR(ABS(Q48/V48),0) -> 2 | Y48: =IFERROR(ABS(S48/W48),0) -> 0 | AG48: 51 | AH48: 6 | AI48: 0 | AJ48: =P48 -> TOO EARLY | AK48: =IFERROR(V48*IF(P48="",0,COUNTIFS(ReviewRow,">="&1,ReviewRow,"<="&$AK$45,EntryExit,P48)),"") -> -2 | AL48: =IFERROR($V48*IF($P48="",0,COUNTIFS(ReviewRow,AL$45,EntryExit,$P48)),"") -> 0 | AM48: 0 | AN48: 0 | AO48: 0 | AP48: 0 | AQ48: 0 | AR48: 0 | AS48: 0 | AT48: 0 | AU48: 0 | AV48: =IFERROR($V48*IF($P48="",0,COUNTIFS(ReviewRow,AV$45,EntryExit,$P48)),"") -> 0 | AW48: 0 | AX48: 0 | AY48: 0 | AZ48: 0 | BA48: 0 | BB48: 0 | BC48: 0 | BD48: =IFERROR($V48*IF($P48="",0,COUNTIFS(ReviewRow,BD$45,EntryExit,$P48)),"") -> 0
P49: =IF(SETTINGS!M13="","",SETTINGS!M13) -> TOO LATE | Q49: =IFERROR(COUNTIFS('TRADE LOG'!$Y$15:$Y$9733,DASHBOARD!P49)*V49,"") -> -6 | R49: =IF(SETTINGS!O13="","",SETTINGS!O13) -> HOPE | S49: =IFERROR(COUNTIFS('TRADE LOG'!$Z$15:$Z$9733,DASHBOARD!R49)*W49,"") -> -5 | V49: =SETTINGS!N13 -> -1 | W49: =SETTINGS!P13 -> -1 | X49: 6 | Y49: 5 | AG49: 50 | AH49: 7 | AI49: 0 | AJ49: =P49 -> TOO LATE | AK49: -3 | AL49: 0 | AM49: 0 | AN49: 0 | AO49: -1 | AP49: -1 | AQ49: 0 | AR49: 0 | AS49: 0 | AT49: 0 | AU49: 0 | AV49: 0 | AW49: 0 | AX49: 0 | AY49: 0 | AZ49: 0 | BA49: 0 | BB49: 0 | BC49: 0 | BD49: 0
B50: RISK-MULTIPLE EVALUATION | P50: =IF(SETTINGS!M14="","",SETTINGS!M14) -> NOT IN PLAN | Q50: =IFERROR(COUNTIFS('TRADE LOG'!$Y$15:$Y$9733,DASHBOARD!P50)*V50,"") -> 0 | R50: =IF(SETTINGS!O14="","",SETTINGS!O14) -> GREED | S50: =IFERROR(COUNTIFS('TRADE LOG'!$Z$15:$Z$9733,DASHBOARD!R50)*W50,"") -> 0 | V50: =SETTINGS!N14 -> -1 | W50: =SETTINGS!P14 -> -1 | X50: 0 | Y50: 0 | AG50: 49 | AH50: 8 | AI50: 0 | AJ50: NOT IN PLAN | AK50: 0 | AL50: 0 | AM50: 0 | AN50: 0 | AO50: 0 | AP50: 0 | AQ50: 0 | AR50: 0 | AS50: 0 | AT50: 0 | AU50: 0 | AV50: 0 | AW50: 0 | AX50: 0 | AY50: 0 | AZ50: 0 | BA50: 0 | BB50: 0 | BC50: 0 | BD50: 0
P51: =IF(SETTINGS!M15="","",SETTINGS!M15) -> AS PLANNED | Q51: =IFERROR(COUNTIFS('TRADE LOG'!$Y$15:$Y$9733,DASHBOARD!P51)*V51,"") -> 11 | R51: =IF(SETTINGS!O15="","",SETTINGS!O15) -> BORED | S51: =IFERROR(COUNTIFS('TRADE LOG'!$Z$15:$Z$9733,DASHBOARD!R51)*W51,"") -> 0 | V51: =SETTINGS!N15 -> 1 | W51: =SETTINGS!P15 -> -1 | X51: 11 | Y51: 0 | AG51: 48 | AH51: 9 | AI51: 0 | AJ51: AS PLANNED | AK51: 9 | AL51: 0 | AM51: =IFERROR($V51*IF($P51="",0,COUNTIFS(ReviewRow,AM$45,EntryExit,$P51)),"") -> 0 | AN51: 0 | AO51: 0 | AP51: 0 | AQ51: 0 | AR51: 0 | AS51: 0 | AT51: 0 | AU51: 0 | AV51: 0 | AW51: 0 | AX51: 0 | AY51: 0 | AZ51: 0 | BA51: 0 | BB51: 1 | BC51: 0 | BD51: 1
P52: =IF(SETTINGS!M16="","",SETTINGS!M16) -> BROKE RULES | Q52: =IFERROR(COUNTIFS('TRADE LOG'!$Y$15:$Y$9733,DASHBOARD!P52)*V52,"") -> -2 | R52: =IF(SETTINGS!O16="","",SETTINGS!O16) -> IMPULSE | S52: =IFERROR(COUNTIFS('TRADE LOG'!$Z$15:$Z$9733,DASHBOARD!R52)*W52,"") -> 0 | V52: =SETTINGS!N16 -> -1 | W52: =SETTINGS!P16 -> -2 | X52: 2 | Y52: 0 | AG52: 47 | AH52: 10 | AI52: 0 | AJ52: BROKE RULES | AK52: -1 | AL52: 0 | AM52: 0 | AN52: 0 | AO52: 0 | AP52: 0 | AQ52: -1 | AR52: 0 | AS52: 0 | AT52: 0 | AU52: 0 | AV52: 0 | AW52: 0 | AX52: 0 | AY52: 0 | AZ52: 0 | BA52: 0 | BB52: 0 | BC52: 0 | BD52: 0
P53: =IF(SETTINGS!M17="","",SETTINGS!M17) ->  | Q53: =IFERROR(COUNTIFS('TRADE LOG'!$Y$15:$Y$9733,DASHBOARD!P53)*V53,"") -> 0 | R53: =IF(SETTINGS!O17="","",SETTINGS!O17) -> FOMO | S53: =IFERROR(COUNTIFS('TRADE LOG'!$Z$15:$Z$9733,DASHBOARD!R53)*W53,"") -> 0 | V53: =SETTINGS!N17 -> 0 | W53: =SETTINGS!P17 -> -1 | X53: 0 | Y53: 0 | AG53: 46 | AH53: 11 | AI53: 0 | AK53: 0 | AL53: 0 | AM53: 0 | AN53: 0 | AO53: 0 | AP53: 0 | AQ53: 0 | AR53: 0 | AS53: 0 | AT53: 0 | AU53: 0 | AV53: 0 | AW53: 0 | AX53: 0 | AY53: 0 | AZ53: 0 | BA53: 0 | BB53: 0 | BC53: 0 | BD53: 0
P54: =IF(SETTINGS!M18="","",SETTINGS!M18) ->  | Q54: =IFERROR(COUNTIFS('TRADE LOG'!$Y$15:$Y$9733,DASHBOARD!P54)*V54,"") -> 0 | R54: =IF(SETTINGS!O18="","",SETTINGS!O18) -> CONFIDENT | S54: =IFERROR(COUNTIFS('TRADE LOG'!$Z$15:$Z$9733,DASHBOARD!R54)*W54,"") -> 14 | V54: =SETTINGS!N18 -> 0 | W54: =SETTINGS!P18 -> 1 | X54: 0 | Y54: 14 | AG54: 45 | AH54: 12 | AI54: 0 | AK54: 0 | AL54: 0 | AM54: 0 | AN54: 0 | AO54: 0 | AP54: 0 | AQ54: 0 | AR54: 0 | AS54: 0 | AT54: 0 | AU54: 0 | AV54: 0 | AW54: 0 | AX54: 0 | AY54: 0 | AZ54: 0 | BA54: 0 | BB54: 0 | BC54: 0 | BD54: 0
B55: =IFERROR(AN39,"") -> 83% of win trades may due to early exit, under allocate or fear | P55: =IF(SETTINGS!M19="","",SETTINGS!M19) ->  | Q55: =IFERROR(COUNTIFS('TRADE LOG'!$Y$15:$Y$9733,DASHBOARD!P55)*V55,"") -> 0 | R55: =IF(SETTINGS!O19="","",SETTINGS!O19) -> HYPED | S55: =IFERROR(COUNTIFS('TRADE LOG'!$Z$15:$Z$9733,DASHBOARD!R55)*W55,"") -> 0 | V55: =SETTINGS!N19 -> 0 | W55: =SETTINGS!P19 -> -1 | X55: 0 | Y55: 0 | AG55: 44 | AH55: 13 | AI55: 0 | AK55: =IFERROR(V55*IF(P55="",0,COUNTIFS(ReviewRow,">="&1,ReviewRow,"<="&$AK$45,EntryExit,P55)),"") -> 0 | AL55: 0 | AM55: 0 | AN55: 0 | AO55: 0 | AP55: 0 | AQ55: 0 | AR55: 0 | AS55: 0 | AT55: 0 | AU55: 0 | AV55: 0 | AW55: 0 | AX55: 0 | AY55: 0 | AZ55: 0 | BA55: 0 | BB55: 0 | BC55: 0 | BD55: 0
B56: =IFERROR(AN40,"") -> 79% of loss trades may due to early exit, under allocate or fear | P56: =IFERROR("Evaluated "&TEXT((X47/AK43),"0%")&" of total trades","") -> Evaluated 38% of total trades | R56: =IFERROR("Evaluated "&TEXT((Y47/AK43),"0%")&" of total trades","") -> Evaluated 34% of total trades | X56: =IFERROR(ABS(#REF!/V56),0) -> 0 | Y56: =IFERROR(ABS(S56/W56),0) -> 0 | AG56: 43 | AH56: 14 | AI56: 0 | AJ56: =R48 -> FEAR | AK56: =IFERROR(W48*COUNTIFS(ReviewRow,">="&1,ReviewRow,"<="&AK$45,Emotion,$R48),"") -> 0 | AL56: =IFERROR($W48*COUNTIFS(ReviewRow,AL$45,Emotion,$R48),"") -> 0 | AM56: 0 | AN56: 0 | AO56: 0 | AP56: 0 | AQ56: 0 | AR56: 0 | AS56: 0 | AT56: 0 | AU56: 0 | AV56: 0 | AW56: 0 | AX56: 0 | AY56: 0 | AZ56: 0 | BA56: 0 | BB56: 0 | BC56: 0 | BD56: 0
AC57: ChartSet | AD57: 50 | AG57: 42 | AH57: 15 | AI57: 0 | AJ57: =R49 -> HOPE | AK57: -2 | AL57: =IFERROR($W49*COUNTIFS(ReviewRow,AL$45,Emotion,$R49),"") -> 0 | AM57: 0 | AN57: 0 | AO57: -1 | AP57: -1 | AQ57: 0 | AR57: 0 | AS57: 0 | AT57: 0 | AU57: 0 | AV57: 0 | AW57: 0 | AX57: 0 | AY57: 0 | AZ57: 0 | BA57: 0 | BB57: 0 | BC57: 0 | BD57: 0
AG58: 41 | AH58: 16 | AI58: 0 | AJ58: GREED | AK58: 0 | AL58: =IFERROR($W50*COUNTIFS(ReviewRow,AL$45,Emotion,$R50),"") -> 0 | AM58: 0 | AN58: 0 | AO58: 0 | AP58: 0 | AQ58: 0 | AR58: 0 | AS58: 0 | AT58: 0 | AU58: 0 | AV58: 0 | AW58: 0 | AX58: 0 | AY58: 0 | AZ58: 0 | BA58: 0 | BB58: 0 | BC58: 0 | BD58: 0
B59: Forex Trading Journal Copyright © 2020, rocketsheets.com. All Rights Reserved. | AB59: ChartSet | AG59: 40 | AH59: 17 | AI59: 0 | AJ59: BORED | AK59: 0 | AL59: =IFERROR($W51*COUNTIFS(ReviewRow,AL$45,Emotion,$R51),"") -> 0 | AM59: 0 | AN59: 0 | AO59: 0 | AP59: 0 | AQ59: 0 | AR59: 0 | AS59: 0 | AT59: 0 | AU59: 0 | AV59: 0 | AW59: 0 | AX59: 0 | AY59: 0 | AZ59: 0 | BA59: 0 | BB59: 0 | BC59: 0 | BD59: 0
AB60: ALL | AG60: 39 | AH60: 18 | AI60: 0 | AJ60: IMPULSE | AK60: 0 | AL60: =IFERROR($W52*COUNTIFS(ReviewRow,AL$45,Emotion,$R52),"") -> 0 | AM60: 0 | AN60: 0 | AO60: 0 | AP60: 0 | AQ60: 0 | AR60: 0 | AS60: 0 | AT60: 0 | AU60: 0 | AV60: 0 | AW60: 0 | AX60: 0 | AY60: 0 | AZ60: 0 | BA60: 0 | BB60: 0 | BC60: 0 | BD60: 0
AB61: 20 | AG61: 38 | AH61: 19 | AI61: 0 | AJ61: FOMO | AK61: 0 | AL61: =IFERROR($W53*COUNTIFS(ReviewRow,AL$45,Emotion,$R53),"") -> 0 | AM61: 0 | AN61: 0 | AO61: 0 | AP61: 0 | AQ61: 0 | AR61: 0 | AS61: 0 | AT61: 0 | AU61: 0 | AV61: 0 | AW61: 0 | AX61: 0 | AY61: 0 | AZ61: 0 | BA61: 0 | BB61: 0 | BC61: 0 | BD61: 0
AB62: 50 | AG62: 37 | AH62: 20 | AI62: 37 | AJ62: CONFIDENT | AK62: 11 | AL62: =IFERROR($W54*COUNTIFS(ReviewRow,AL$45,Emotion,$R54),"") -> 0 | AM62: 0 | AN62: 0 | AO62: 0 | AP62: 0 | AQ62: 1 | AR62: 0 | AS62: 0 | AT62: 0 | AU62: 0 | AV62: 0 | AW62: 0 | AX62: 0 | AY62: 0 | AZ62: 0 | BA62: 0 | BB62: 1 | BC62: 0 | BD62: 1
AB63: 100 | AG63: 36 | AH63: 21 | AI63: 0 | AJ63: HYPED | AK63: 0 | AL63: =IFERROR($W55*COUNTIFS(ReviewRow,AL$45,Emotion,$R55),"") -> 0 | AM63: 0 | AN63: 0 | AO63: 0 | AP63: 0 | AQ63: 0 | AR63: 0 | AS63: 0 | AT63: 0 | AU63: 0 | AV63: 0 | AW63: 0 | AX63: 0 | AY63: 0 | AZ63: 0 | BA63: 0 | BB63: 0 | BC63: 0 | BD63: 0
AB64: 200 | AG64: 35 | AH64: 22 | AI64: 0
AB65: 500 | AG65: 34 | AH65: 23 | AI65: 0
AG66: 33 | AH66: 24 | AI66: 0
AG67: 32 | AH67: 25 | AI67: 0
AG68: 31 | AH68: 26 | AI68: 0
AG69: =AG68-1 -> 30 | AH69: 27 | AI69: 0
AG70: 29 | AH70: 28 | AI70: 0
AG71: 28 | AH71: 29 | AI71: 0
AG72: 27 | AH72: 30 | AI72: 0
AG73: 26 | AH73: 31 | AI73: 0
AG74: 25 | AH74: 32 | AI74: 0
AG75: 24 | AH75: 33 | AI75: 0
AG76: 23 | AH76: =IF(OR(INDEX(ActionLog,AG76)="sell",INDEX(ActionLog,AG76)="buy"),1,0)+AH75 -> 34 | AI76: 0
AG77: 22 | AH77: 35 | AI77: 0
AG78: 21 | AH78: 36 | AI78: 0
AG79: 20 | AH79: 37 | AI79: 0
AG80: 19 | AH80: 38 | AI80: 0
AG81: 18 | AH81: 39 | AI81: 0
AG82: 17 | AH82: 40 | AI82: 0
AG83: 16 | AH83: 41 | AI83: 0
AG84: 15 | AH84: 42 | AI84: 0
AG85: 14 | AH85: 43 | AI85: 0
AG86: 13 | AH86: 44 | AI86: 0
AG87: 12 | AH87: 45 | AI87: 0
AG88: 11 | AH88: 46 | AI88: 0
AG89: 10 | AH89: 47 | AI89: 0
AG90: 9 | AH90: 48 | AI90: 0
AG91: 8 | AH91: 49 | AI91: 0
AG92: 7 | AH92: 50 | AI92: 0

Sheet TRADE LOG (hidden)
B1: TRADE LOG | AD1: trades | AE1: =AE2+AE3 -> 55 | AF1: pie chart | AH1: =AH4+SETTINGS!W3 -> 119.00 | AJ1: =COUNT(J15:J13418)+12 -> 68.00 | AM1: =VLOOKUP(L4,BU1:BV12,2,0) -> 6 | AO1: filter | AY1: Close Trade Stats | BG1: 100% | BH1: 100% | BI1: =DASHBOARD!AD57 -> 50 | BK1: drawdown stats | BU1: JAN | BV1: 1 | BW1: year | BX1: =MIN($AO$15:$AO$9733) -> 2020 | CF1: setup validation | CG1: ENTRY/EXIT | CH1: emotion | DO1: Setup stats | DR1: Trades | DS1: Win | DT1: Loss | DU1: Win Rate | DV1: ave.win | DW1: ave.loss | DX1: RRR | DY1: breakeven | DZ1: 100% | EA1: profit | EB1: Loss | EC1: ave.profit | ED1: ave.loss | EE1: edge p&l ratio | EF1: edge breakven | EG1: RRR breakeven | EH1: NET PROFIT | EI1: EXP | EJ1: profit | EK1: match | EL1: setup | EM1: exp | EN1: winrate | EO1: trades
C2: 1 | D2: 1.00 | E2: Rocketsheets | G2: Trade | I2: Evaluation | K2: Date | AD2: Long | AE2: ='TRADE STATISTICS'!$AY$4+'TRADE STATISTICS'!$AZ$4 -> 52 | AF2: =IFERROR(AE2/$AE$1,0) -> 95% | AH2: =AH6+1 -> 75.00 | AI2: next to last | AJ2: =COUNT(J15:J13418)+14 -> 70.00 | AM2: =VLOOKUP(L5,BW2:BX4,2,0) -> 1 | AO2: =IF(J4="","",J4) -> Momentum | AP2: SETUP | AZ2: day | BA2: trades | BB2: win | BC2: loss | BD2: Win% | BL2: chart axis | BM2: chart border | BU2: FEB | BV2: 2 | BW2: =MAX($AO$15:$AO$9733) -> 2020 | BX2: 1 | BZ2: profit | CD2: yield | CF2: =IF(SETTINGS!R12="",NA(),1) -> 1 | CG2: =IF(SETTINGS!M12="",NA(),1) -> 1 | CH2: =IF(SETTINGS!O12="",NA(),1) -> 1 | DO2: =SETTINGS!R11 -> NO SETUP | DP2: 1e-05 | DQ2: 1 | DR2: =SETTINGS!AG24-SUM(DR3:DR12) -> 30 | DS2: =SETTINGS!AH24-SUM(DS3:DS12) -> 13 | DT2: =SETTINGS!AI24-SUM(DT3:DT12) -> 17 | DU2: =DS2/DR2 -> 43% | DV2: =IFERROR(SUMIFS(PNLPercent,PNLPercent,">0",SetupLog,"")/DS2,0) -> 6.30% | DW2: =IFERROR(-SUMIFS(PNLPercent,PNLPercent,"<=0",SetupLog,"")/DT2,0) -> 2.63% | DX2: =IFERROR(DV2/DW2,0) -> 2.39 | DY2: =IF(DT2=0,0,IF(SETTINGS!$AN$6=SETTINGS!$AI$3,EF2,EG2)) -> 0.2947810567 | DZ2: =IF(DU2="",0,100%) -> 1 | EA2: =SETTINGS!AP24-SUM(EA3:EA12) -> 7733.41 | EB2: =SETTINGS!AQ24-SUM(EB3:EB12) -> -5996.15 | EC2: =EA2/DS2 -> 594.8776923 | ED2: =IFERROR(EB2/DT2,0) -> -352.7147059 | EE2: =IFERROR(EC2/(-ED2),0) -> 1.68656901 | EF2: =IF(DR2=0,"",1/(1+(EE2/1))) -> 37% | EG2: =IF(DR2=0,"",1/(1+(DX2/1))) -> 29% | EH2: =IF(DR2=0,"",EA2+EB2+DP2) -> 1737.26001 | EI2: =IFERROR((DU2*EC2)-((1-DU2)*-ED2),0) -> 57.90866667 | EJ2: =LARGE($EH$2:$EH$12,DQ2) -> 3057.60002 | EK2: =MATCH(EJ2,$EH$2:$EH$12,0) -> 2 | EL2: =INDEX(SETTINGS!$R$11:$R$21,EK2) -> Momentum | EM2: =INDEX($EI$2:$EI$12,EK2) -> 509.6 | EN2: =INDEX($DU$2:$DU$12,EK2) -> 66.7% | EO2: =INDEX($DR$2:$DR$12,EK2) -> 6.00
C3: Trading Journal | AD3: Short | AE3: ='TRADE STATISTICS'!$BD$4+'TRADE STATISTICS'!$BE$4 -> 3 | AF3: =IFERROR(AE3/$AE$1,0) -> 5% | AH3: =IF(AH5<AJ1,AH5,AJ1) -> 44.00 | AM3: =INDEX(BU1:BU12,AM1) -> JUN | AO3: =IF(J5="","",J5) ->  | AP3: EXECUTION | AY3: Mon | AZ3: 2 | BA3: =COUNTIFS('TRADE LOG'!$AP$15:$AP$9733,AZ3,$BK$15:$BK$9733,"<>0") -> 13 | BB3: =COUNTIFS('TRADE LOG'!$AP$15:$AP$9733,AZ3,'TRADE LOG'!$BK$15:$BK$9733,"1") -> 4 | BC3: =BA3-BB3 -> 9 | BD3: =IFERROR(BB3/BA3,0) -> 31% | BH3: y | BI3: x | BK3: =AX8+3 -> 59 | BL3: =MAX(BG15:BG9733)*(1+BM3) -> 55356.8484 | BM3: 2% | BN3: =MAX(BH15:BH9733)*(1+BM3) -> 55356.8484 | BU3: MAR | BV3: 3 | BW3: =IFERROR(IF((BW2-1)<$BX$1,"",(BW2-1)),"") ->  | BX3: 2 | BY3: 1 | BZ3: =LARGE('TRADE STATISTICS'!$BE$16:$BE$66,BY3) -> 4767.85001 | CA3: =IF(BZ3<0,"",BZ3) -> 4767.85001 | CB3: =MATCH(CA3,'TRADE STATISTICS'!$BE$16:$BE$66,0) -> 1 | CC3: =INDEX('TRADE STATISTICS'!$AJ$16:$AJ$66,CB3) -> AUDUSD | CD3: =IF(CC3="","",INDEX('TRADE STATISTICS'!$BK$16:$BK$66,CB3)) -> 4.6% | CF3: =IF(SETTINGS!R13="",NA(),1) -> 1 | CG3: =IF(SETTINGS!M13="",NA(),1) -> 1 | CH3: =IF(SETTINGS!O13="",NA(),1) -> 1 | DO3: =SETTINGS!R12 -> Momentum | DP3: 2e-05 | DQ3: 2 | DR3: =COUNTIFS(SetupLog,DO3) -> 6 | DS3: =COUNTIFS(SetupLog,DO3,WL,"w") -> 4 | DT3: =DR3-DS3 -> 2 | DU3: =IFERROR(DS3/DR3,"") -> 67% | DV3: =IFERROR(SUMIFS(PNLPercent,PNLPercent,">0",SetupLog,DO3)/DS3,0) -> 5.5128% | DW3: =IFERROR(-SUMIFS(PNLPercent,PNLPercent,"<=0",SetupLog,SETTINGS!R12)/DT3,0) -> 0.74% | DX3: =IFERROR(DV3/DW3,0) -> 7.41 | DY3: =IF(DT3=0,0,IF(SETTINGS!$AN$6=SETTINGS!$AI$3,EF3,EG3)) -> 0.1188559222 | DZ3: 1 | EA3: =SUMIFS(PNLwFees,PNLwFees,">0",SetupLog,DO3) -> 3242.9 | EB3: =SUMIFS(PNLwFees,PNLwFees,"<=0",SetupLog,DO3) -> -185.3 | EC3: 810.725 | ED3: -92.65 | EE3: 8.750404749 | EF3: 10% | EG3: 12% | EH3: 3057.60002 | EI3: 509.6 | EJ3: 1737.26001 | EK3: 1 | EL3: =INDEX(SETTINGS!$R$11:$R$21,EK3) -> NO SETUP | EM3: 57.90866667 | EN3: 43.3% | EO3: 30.00
C4: THIS MONTH | D4: =IFERROR(IF(SheetlU14="xxx","Invalid User",SheetIAA6),"") -> 0 | G4: Symbol | H4: usdchf | I4: Setup | J4: Momentum | K4: Month | L4: JUN | AH4: =COUNTA(F15:F25752)+14 -> 69.00 | AM4: =IFERROR(INDEX(BW2:BW4,AM2),"") -> 2020 | AP4: EMOTION | AX4: =SUMIFS('TRADE LOG'!$BD$15:$BD$9733,PercentPandL,">="&DASHBOARD!AM5,PercentPandL,"<"&DASHBOARD!AN5,'TRADE LOG'!$BK$15:$BK$9733,"1") -> 0 | AY4: Tue | AZ4: 3 | BA4: =COUNTIFS('TRADE LOG'!$AP$15:$AP$9733,AZ4,$BK$15:$BK$9733,"<>0") -> 0 | BB4: =COUNTIFS('TRADE LOG'!$AP$15:$AP$9733,AZ4,'TRADE LOG'!$BK$15:$BK$9733,"1") -> 0 | BC4: =BA4-BB4 -> 0 | BD4: =IFERROR(BB4/BA4,0) -> 0% | BF4: =IFERROR(ROUND(MAX(INDIRECT("$Bg$"&$BJ$5&":$Bg$"&$BJ$4))*1.03,-1),1) -> 55900 | BG4: max axis | BH4: =IFERROR(ROUNDUP(MAX(INDIRECT("$Bg$"&$BJ$5&":$BK$"&$BJ$4))*BH1,-1),1) -> 54,280.00 | BI4: =COUNT($AU$15:$AU$10591) -> 56 | BJ4: =BI4+14 -> 70 | BK4: 0 | BL4: =MIN(BG15:BG9733)*(1-BM4) -> 48,004.95 | BM4: 2% | BN4: =MIN(BH15:BH9733)*(1-BM4) -> 48004.9472 | BU4: APR | BV4: 4 | BW4: =IFERROR(IF((BW3-1)<$BX$1,"",(BW3-1)),"") ->  | BX4: 3 | BY4: 2 | BZ4: =LARGE('TRADE STATISTICS'!$BE$16:$BE$66,BY4) -> 527.30004 | CA4: =IF(BZ4<0,"",BZ4) -> 527.30004 | CB4: =MATCH(CA4,'TRADE STATISTICS'!$BE$16:$BE$66,0) -> 4 | CC4: =INDEX('TRADE STATISTICS'!$AJ$16:$AJ$66,CB4) -> GBPUSD | CD4: =IF(CC4="","",INDEX('TRADE STATISTICS'!$BK$16:$BK$66,CB4)) -> 0.5% | CF4: =IF(SETTINGS!R14="",NA(),1) -> 1 | CG4: =IF(SETTINGS!M14="",NA(),1) -> 1 | CH4: =IF(SETTINGS!O14="",NA(),1) -> 1 | DO4: =SETTINGS!R13 -> Bounce | DP4: 3e-05 | DQ4: 3 | DR4: 12 | DS4: 5 | DT4: =DR4-DS4 -> 7 | DU4: 42% | DV4: 8.7133% | DW4: =IFERROR(-SUMIFS(PNLPercent,PNLPercent,"<=0",SetupLog,SETTINGS!R13)/DT4,0) -> 6.56% | DX4: =IFERROR(DV4/DW4,0) -> 1.33 | DY4: =IF(DT4=0,0,IF(SETTINGS!$AN$6=SETTINGS!$AI$3,EF4,EG4)) -> 0.4295941081 | DZ4: 1 | EA4: 1561.75 | EB4: -2504.53 | EC4: 312.35 | ED4: =IFERROR(EB4/DT4,0) -> -357.79 | EE4: 0.8729981274 | EF4: 53% | EG4: 43% | EH4: -942.77997 | EI4: -78.565 | EJ4: 419.34005 | EK4: 5 | EL4: =INDEX(SETTINGS!$R$11:$R$21,EK4) -> Swing Trade | EM4: 59.90571429 | EN4: 42.9% | EO4: 7.00
B5: ="e"&COUNTA(F15:F832)+15 -> e70 | C5: THIS MONTH % | D5: ='MONTHLY REPORT'!L15 -> 0 | G5: Type | H5: SELL | I5: Execution | K5: Year | L5: 2020 | AE5: last log code= | AF5: ="F"&COUNT(C15:C832)+15 -> F71 | AH5: =IF(AH4>64,AH4-25,20) -> 44.00 | AO5: =IF(H4="","",H4) -> usdchf | AP5: SYMBOL | AY5: Wed | AZ5: 4 | BA5: =COUNTIFS('TRADE LOG'!$AP$15:$AP$9733,AZ5,$BK$15:$BK$9733,"<>0") -> 2 | BB5: =COUNTIFS('TRADE LOG'!$AP$15:$AP$9733,AZ5,'TRADE LOG'!$BK$15:$BK$9733,"1") -> 0 | BC5: =BA5-BB5 -> 2 | BD5: 0% | BF5: =IFERROR(ROUND(MIN(INDIRECT("$Bg$"&$BJ$5&":$Bg$"&$BJ$4))*1.03,-1),1) -> 50450 | BG5: min axis | BH5: =IFERROR(ROUNDDOWN(MIN(INDIRECT("$Bg$"&$BJ$5&":$Bg$"&$BJ$4))*BG1,-1),1) -> 48980 | BI5: =IF(BI1="ALL",0,IF(BI1>=BI4,0,BI4-BI1)) -> 6 | BJ5: =BI5+14 -> 20 | BK5: max drawdown | BL5: =MIN(BS15:BS9733) -> -4.05% | BM5: =IFERROR(INDEX(BR15:BR9733,MATCH(BL5,BS15:BS9733,0))*BL5,0) -> -2179.88 | BU5: MAY | BV5: 5 | BX5: 4 | BY5: 3 | BZ5: =LARGE('TRADE STATISTICS'!$BE$16:$BE$66,BY5) -> -65.68995 | CB5: =MATCH(CA5,'TRADE STATISTICS'!$BE$16:$BE$66,0) -> 7 | CC5: =INDEX('TRADE STATISTICS'!$AJ$16:$AJ$66,CB5) ->  | CD5: =IF(CC5="","",INDEX('TRADE STATISTICS'!$BK$16:$BK$66,CB5)) ->  | CF5: =IF(SETTINGS!R15="",NA(),1) -> 1 | CG5: =IF(SETTINGS!M15="",NA(),1) -> 1 | CH5: =IF(SETTINGS!O15="",NA(),1) -> 1 | DO5: =SETTINGS!R14 -> Trend Follow | DP5: 4e-05 | DQ5: 4 | DR5: 0 | DS5: 0 | DT5: 0 | DV5: 0.0000% | DW5: =IFERROR(-SUMIFS(PNLPercent,PNLPercent,"<=0",SetupLog,SETTINGS!R14)/DT5,0) -> 0.00% | DX5: 0 | DY5: =IF(DT5=0,0,IF(SETTINGS!$AN$6=SETTINGS!$AI$3,EF5,EG5)) -> 0 | DZ5: 0 | EA5: 0 | EB5: 0 | ED5: =IFERROR(EB5/DT5,0) -> 0 | EE5: 0 | EI5: 0 | EJ5: -942.77997 | EK5: 3 | EL5: =INDEX(SETTINGS!$R$11:$R$21,EK5) -> Bounce | EM5: -78.565 | EN5: 41.7% | EO5: 12.00
C6: CUMULATIVE | D6: ='MONTHLY REPORT'!K14 -> $4,271.4 | I6: Emotion | AE6: Leverage | AF6: =SETTINGS!O4 -> 100 | AH6: =IF(AND(AH4<AH7,AH1>AH7),AH7,IF(AH4<AH1,AH1,AH7)) -> 74.00 | AO6: =IF(H5="","",H5) -> SELL | AP6: TYPE | AY6: Thu | AZ6: 5 | BA6: =COUNTIFS('TRADE LOG'!$AP$15:$AP$9733,AZ6,$BK$15:$BK$9733,"<>0") -> 28 | BB6: =COUNTIFS('TRADE LOG'!$AP$15:$AP$9733,AZ6,'TRADE LOG'!$BK$15:$BK$9733,"1") -> 15 | BC6: =BA6-BB6 -> 13 | BD6: 54% | BK6: losing streak | BL6: =-MIN(BQ15:BQ9733) -> 5 | BM6: =MIN(BP15:BP9833) -> -1015.36 | BU6: JUN | BV6: 6 | BX6: 5 | BZ6: profit | CD6: yield | CF6: =IF(SETTINGS!R16="",NA(),1) -> 1 | CG6: =IF(SETTINGS!M16="",NA(),1) -> 1 | CH6: =IF(SETTINGS!O16="",NA(),1) -> 1 | DO6: =SETTINGS!R15 -> Swing Trade | DP6: 5e-05 | DQ6: 5 | DR6: 7 | DS6: 3 | DT6: 4 | DU6: 43% | DV6: 7.6788% | DW6: =IFERROR(-SUMIFS(PNLPercent,PNLPercent,"<=0",SetupLog,SETTINGS!R15)/DT6,0) -> 10.35% | DX6: 0.74 | DY6: =IF(DT6=0,0,IF(SETTINGS!$AN$6=SETTINGS!$AI$3,EF6,EG6)) -> 0.5740300125 | DZ6: 1 | EA6: 1267.05 | EB6: -847.71 | EC6: 422.35 | ED6: -211.9275 | EE6: 1.992898515 | EF6: 33% | EG6: 57% | EH6: 419.34005 | EI6: 59.90571429 | EL6: =INDEX(SETTINGS!$R$11:$R$21,EK6) -> 
C7: CUMULATIVE % | D7: ='MONTHLY REPORT'!L14 -> ▲ 8.54% | AE7: Account Currency | AF7: =SETTINGS!O3 -> USD | AH7: =COUNT(B15:B9733)+14 -> 74.00 | AI7: last log | AL7: =IF('TRADE LOG'!E2='TRADE STATISTICS'!X13,IFERROR('MONTHLY REPORT'!K15,0),"Invalid User") -> 0 | AX7: row | AY7: Fri | AZ7: 6 | BA7: =COUNTIFS('TRADE LOG'!$AP$15:$AP$9733,AZ7,$BK$15:$BK$9733,"<>0") -> 12 | BB7: =COUNTIFS('TRADE LOG'!$AP$15:$AP$9733,AZ7,'TRADE LOG'!$BK$15:$BK$9733,"1") -> 6 | BC7: =BA7-BB7 -> 6 | BD7: 50% | BK7: winning streak | BL7: =MAX(BQ15:BQ9733) -> 5 | BM7: =MAX(BP15:BP9833) -> 1391.75 | BU7: JUL | BV7: 7 | BX7: 6 | BY7: 1 | BZ7: =SMALL('TRADE STATISTICS'!$BE$16:$BE$66,BY7) -> -419.12997 | CA7: =IF(BZ7>=0,"",BZ7) -> -419.12997 | CB7: =MATCH(CA7,'TRADE STATISTICS'!$BE$16:$BE$66,0) -> 3 | CC7: =INDEX('TRADE STATISTICS'!$AJ$16:$AJ$66,CB7) -> EURUSD | CD7: =IF(CC7="","",INDEX('TRADE STATISTICS'!$BK$16:$BK$66,CB7)) -> -0.2% | CF7: =IF(SETTINGS!R17="",NA(),1) -> 1 | CG7: =IF(SETTINGS!M17="",NA(),1) ->  | CH7: =IF(SETTINGS!O17="",NA(),1) -> 1 | DO7: =SETTINGS!R16 -> Bottom fishing | DP7: 6e-05 | DQ7: 6 | DR7: 0 | DS7: 0 | DT7: 0 | DV7: 0.0000% | DW7: =IFERROR(-SUMIFS(PNLPercent,PNLPercent,"<=0",SetupLog,SETTINGS!R16)/DT7,0) -> 0.00% | DX7: 0 | DY7: =IF(DT7=0,0,IF(SETTINGS!$AN$6=SETTINGS!$AI$3,EF7,EG7)) -> 0 | DZ7: 0 | EA7: 0 | EB7: 0 | ED7: 0 | EE7: 0 | EF7: =IF(DR7=0,"",1/(1+(EE7/1))) ->  | EI7: 0 | EL7: =INDEX(SETTINGS!$R$11:$R$21,EK7) -> 
C8: =IF(((COUNTA(D15:D9733)*2)-(COUNT(J15:J9733)+COUNT(C15:C9733)))=0,""," "&((COUNTA(D15:D9733)*2)-(COUNT(J15:J9733)+COUNT(C15:C9733)))&" Invalid Date Format") ->  | I8: =" Last Data Update: "&TEXT(INDEX(C:C,AH4),"mmm-dd-yyyy") -> Last Data Update: Jun-01-2020 | AE8: Lot Units | AF8: =SETTINGS!AB28 -> 100,000 | AH8: =IF(AH9>10014,10014,AH9) -> 174.00 | AI8: add row | AL8: =SETTINGS!S3 -> 1.0% | AX8: =COUNT(J15:J9832) -> 56 | AY8: Sat | AZ8: 7 | BA8: =COUNTIFS('TRADE LOG'!$AP$15:$AP$9733,AZ8,$BK$15:$BK$9733,"<>0") -> 0 | BB8: =COUNTIFS('TRADE LOG'!$AP$15:$AP$9733,AZ8,'TRADE LOG'!$BK$15:$BK$9733,"1") -> 0 | BC8: =BA8-BB8 -> 0 | BD8: =IFERROR(BB8/BA8,0) -> 0% | BK8: cons. Losses | BL8: =MIN(BM15:BM9833) -> -1,745.67 | BM8: =-INDEX(BL15:BL9733,MATCH(BL8,BM15:BM9733,0)) -> 3 | BU8: AUG | BV8: 8 | BX8: 7 | BY8: 2 | BZ8: =SMALL('TRADE STATISTICS'!$BE$16:$BE$66,BY8) -> -409.99998 | CA8: =IF(BZ8>=0,"",BZ8) -> -409.99998 | CB8: =MATCH(CA8,'TRADE STATISTICS'!$BE$16:$BE$66,0) -> 2 | CC8: =INDEX('TRADE STATISTICS'!$AJ$16:$AJ$66,CB8) -> XAUUSD | CD8: =IF(CC8="","",INDEX('TRADE STATISTICS'!$BK$16:$BK$66,CB8)) -> -0.0% | CF8: =IF(SETTINGS!R18="",NA(),1) -> 1 | CG8: =IF(SETTINGS!M18="",NA(),1) ->  | CH8: =IF(SETTINGS!O18="",NA(),1) -> 1 | DO8: =SETTINGS!R17 -> My Setup 1 | DP8: 7e-05 | DQ8: 7 | DR8: 0 | DS8: 0 | DT8: 0 | DV8: 0.0000% | DW8: =IFERROR(-SUMIFS(PNLPercent,PNLPercent,"<=0",SetupLog,SETTINGS!R17)/DT8,0) -> 0.00% | DX8: 0 | DY8: =IF(DT8=0,0,IF(SETTINGS!$AN$6=SETTINGS!$AI$3,EF8,EG8)) -> 0 | DZ8: 0 | EA8: 0 | EB8: 0 | ED8: 0 | EE8: 0 | EF8: =IF(DR8=0,"",1/(1+(EE8/1))) ->  | EG8: =IF(DR8=0,"",1/(1+(DX8/1))) ->  | EH8: =IF(DR8=0,"",EA8+EB8+DP8) ->  | EI8: 0 | EL8: =INDEX(SETTINGS!$R$11:$R$21,EK8) -> 
AE9: margin% | AF9: =1/AF6 -> 0.0100 | AG9: def | AH9: =AH7+SETTINGS!W4 -> 174.00 | AY9: Sun | AZ9: 1 | BA9: =COUNTIFS('TRADE LOG'!$AP$15:$AP$9733,AZ9,$BK$15:$BK$9733,"<>0") -> 0 | BB9: =COUNTIFS('TRADE LOG'!$AP$15:$AP$9733,AZ9,'TRADE LOG'!$BK$15:$BK$9733,"1") -> 0 | BC9: 0 | BD9: 0% | BK9: cons profit | BL9: =MAX(BO15:BO9833) -> 2572.9 | BM9: =INDEX(BN15:BN9733,MATCH(BL9,BO15:BO9733,0)) -> 4 | BU9: SEP | BV9: 9 | BY9: 3 | BZ9: =SMALL('TRADE STATISTICS'!$BE$16:$BE$66,BY9) -> -128.90994 | CA9: -128.90994 | CB9: =MATCH(CA9,'TRADE STATISTICS'!$BE$16:$BE$66,0) -> 6 | CC9: =INDEX('TRADE STATISTICS'!$AJ$16:$AJ$66,CB9) -> USDCAD | CD9: =IF(CC9="","",INDEX('TRADE STATISTICS'!$BK$16:$BK$66,CB9)) -> -0.1% | CF9: =IF(SETTINGS!R19="",NA(),1) -> 1 | CG9: =IF(SETTINGS!M19="",NA(),1) ->  | CH9: =IF(SETTINGS!O19="",NA(),1) -> 1 | DO9: =SETTINGS!R18 -> My Setup 2 | DP9: 8e-05 | DQ9: 8 | DR9: 0 | DS9: 0 | DT9: 0 | DV9: 0.0000% | DW9: =IFERROR(-SUMIFS(PNLPercent,PNLPercent,"<=0",SetupLog,SETTINGS!R18)/DT9,0) -> 0.00% | DX9: 0 | DY9: =IF(DT9=0,0,IF(SETTINGS!$AN$6=SETTINGS!$AI$3,EF9,EG9)) -> 0 | DZ9: 0 | EA9: 0 | EB9: 0 | ED9: 0 | EE9: 0 | EI9: 0 | EL9: =INDEX(SETTINGS!$R$11:$R$21,EK9) -> 
AF10: =1/SETTINGS!AC29 -> 1.0000 | AG10: stock | BA10: =COUNTIFS('TRADE LOG'!$AP$15:$AP$9733,AZ10,$BK$15:$BK$9733,"<>0") -> 0 | BC10: =IF(AZ15=0,BA15,0) -> 50000 | BU10: OCT | BV10: 10 | CF10: =IF(SETTINGS!R20="",NA(),1) -> 1 | CG10: =IF(SETTINGS!M20="",NA(),1) ->  | CH10: =IF(SETTINGS!O20="",NA(),1) ->  | DO10: =SETTINGS!R19 -> My Setup 3 | DP10: 9e-05 | DQ10: 9 | DR10: 0 | DS10: 0 | DT10: 0 | DV10: 0.0000% | DW10: =IFERROR(-SUMIFS(PNLPercent,PNLPercent,"<=0",SetupLog,SETTINGS!R19)/DT10,0) -> 0.00% | DX10: 0 | DY10: =IF(DT10=0,0,IF(SETTINGS!$AN$6=SETTINGS!$AI$3,EF10,EG10)) -> 0 | DZ10: 0 | EA10: 0 | EB10: 0 | ED10: 0 | EE10: 0 | EI10: 0 | EL10: =INDEX(SETTINGS!$R$11:$R$21,EK10) -> 
AE11: STOCK UNITS | AF11: =1/SETTINGS!AC30 -> 1.0000 | AG11: gold | AL11: =AX8-COUNT($C$15:$C$9733) -> 00:00:00 | BF11: Line chart | BU11: NOV | BV11: 11 | CF11: =IF(SETTINGS!R21="",NA(),1) -> 1 | CG11: =IF(SETTINGS!M21="",NA(),1) -> 1 | CH11: =IF(SETTINGS!O21="",NA(),1) ->  | DO11: =SETTINGS!R20 -> My Setup 4 | DP11: 0.0001 | DQ11: 10 | DR11: 0 | DS11: 0 | DT11: 0 | DV11: 0.0000% | DW11: =IFERROR(-SUMIFS(PNLPercent,PNLPercent,"<=0",SetupLog,SETTINGS!R20)/DT11,0) -> 0.00% | DX11: 0 | DY11: =IF(DT11=0,0,IF(SETTINGS!$AN$6=SETTINGS!$AI$3,EF11,EG11)) -> 0 | DZ11: 0 | EA11: 0 | EB11: 0 | ED11: 0 | EE11: 0 | EI11: 0 | EL11: =INDEX(SETTINGS!$R$11:$R$21,EK11) -> 
B12: =(B11+1) -> 1 | P12: =IF(D12="buy",K12-G12,G12-K12) -> 0 | Q12: =IFERROR(E12*G12*IF(AM12=0,AE12,AM12)*IF(N12>0,(1/N12),AJ12),"") -> 0 | R12: =IFERROR(E12*K12*IF(AM12=0,AE12,AM12)*IF(N12>0,(1/N12),AJ12),"") -> 0 | S12: =IF(K12="","",IF(ISNUMBER(VALUE(RIGHT(F12,2)))=FALSE,P12/AG12,P12)) ->  | T12: =IF(OR(D12="in",D12="out"),M12,IF(J12="","",IF(K12="","",IF(M12="",(P12*E12*AM12)+L12,M12+L12)))) ->  | U12: =IFERROR(T12/Q12,"") ->  | V12: =IFERROR(IF(E12="","",(INT(J12-C12)&"d "&TEXT(J12-C12,"h""h ""m""m """))),"") ->  | W12: =IFERROR(IF(F12="","",T12/(BG11*$AL$8)),"") ->  | AD12: =IF(B12="","",IF(OR(D12="in",D12="out"),B12,IF(T12<=0,"L","W"))) -> W | AE12: =IF(RIGHT(F12,3)="JPY",1000,IF(AI12=1,100000,IF(LEFT(F12,3)="XAU",100,1))) -> 1 | AF12: =J12-C12 -> 0 | AG12: =IF(O12<>"",O12,IF(RIGHT(F12,3)="jpy",0.01,IF(LEN(F12)<6,0.01,IF(AND(G12>=10,G12<1000),0.01,IF(G12>=1000,0.1,0.0001))))) -> 0.010 | AH12: =MATCH(F12,curpairs,0) ->  | AI12: =IFERROR(IF(AH12>0,1,0),0) -> 0 | AJ12: =IF(AI12=1,$AF$9,IF(LEFT(F12,3)="XAU",$AF$11,$AF$10)) -> 1 | AM12: =IFERROR(IF(M12="",AE12,M12/(IF(K12="","",P12)*E12)),0) -> 1 | AN12: =IF(C12="","",TEXT(C12,"mmm")) ->  | AO12: =IF(C12="","",VALUE(TEXT(C12,"yyy"))) ->  | AP12: =WEEKDAY(AT12,1) -> 3 | AQ12: =IF(COUNTIF($F12:F$15,F12)=1,B12,"") ->  | AR12: =AR11+0.00001 -> 1e-05 | AS12: =IF(J12="","",J12+AR12) ->  | AT12: =IFERROR(SMALL(DateExit,B12),"") -> 2020-05-26T05:48:19.864 | AU12: =IF(AT12="","",MATCH(AT12,DateExit,0)) -> 1 | AV12: =DATE(YEAR(J12),MONTH(J12),DAY(1)) -> 1900-01-01 | AZ12: =INDEX($Q$15:$Q$9733,AU12) -> 0 | BA12: =INDEX($T$15:$T$9733,AU12)-BB12 -> 50,000.0 | BB12: =INDEX(Fees,AU12) -> 0 | BC12: =IF(AZ12=0,BA12,0) -> 50000 | BD12: =IFERROR(IF(AZ12=0,0,BA12+BB12),"") -> 0 | BE12: =IFERROR(BD12/AZ12,"") ->  | BF12: =IF(BG12="","",B12) -> 1 | BG12: =IFERROR(IF(AT12="",NA(),BG11+IF(BD12="",0,BD12)),"") -> 0 | BH12: =IF(AT12="","",BH11+BD12+BC12) -> 50000 | BI12: =IFERROR(AZ12/BH12,"") -> 0 | BK12: =IF(BC12<>0,0,IF(BD12>0,1,-1)) -> 0 | BL12: =IF(BK12=1,0,BK12+BL11) -> 0 | BM12: =IFERROR(IF(AZ12="",0,IF(BK12<0,BD12+BM11,0)),0) -> 0 | BN12: =IF(BK12=-1,0,BK12+BN11) -> 0 | BO12: =IFERROR(IF(AZ12="","",IF(BN12>0,BD12+BO11,0)),0) -> 0 | BP12: =IF(BQ12=$BL$7,BO12,IF(BQ12=-$BL$6,BM12,0)) -> 0 | BQ12: =IFERROR(BN12+BL12,"") -> 0 | BR12: =IFERROR(MAX($BG12:BG$14),"") -> 0 | BS12: =IFERROR((BG12-BR12)/BR12,"") ->  | BU12: DEC | BV12: 12 | CF12: =IF(SETTINGS!R22="",NA(),1) ->  | CG12: =IF(SETTINGS!M22="",NA(),1) ->  | CH12: =IF(SETTINGS!O22="",NA(),1) ->  | DO12: =SETTINGS!R21 -> My Setup 5 | DP12: 0.00011 | DQ12: 11 | DR12: 0 | DS12: 0 | DT12: 0 | DV12: 0 | DW12: =IFERROR(-SUMIFS(PNLPercent,PNLPercent,"<=0",SetupLog,SETTINGS!R21)/DT12,0) -> 0 | DX12: 0 | DY12: =IF(SETTINGS!$AN$6=SETTINGS!$AI$3,EF12,EG12) ->  | DZ12: 0 | EA12: 0 | EB12: 0 | ED12: 0 | EE12: 0 | EI12: 0 | EL12: =INDEX(SETTINGS!$R$11:$R$21,EK12) -> 
B13: NO. | C13: OPEN TIME | D13: TYPE | E13: SIZE | F13: ITEM | G13: ENTRY PRICE | H13: S / L | I13: T / P | J13: CLOSE TIME | K13: EXIT PRICE | L13: TOTAL FEES | M13: PROFIT / LOSS | N13: LEVERAGE | O13: PIP SIZE | P13: pip decimals | Q13: ENTRY AMOUNT | R13: EXIT AMOUNT | S13: PIPS | T13: ="NET PNL ("&SETTINGS!AL1&")" -> NET PNL ($) | U13: P&L % | V13: DURATION | W13: R-MUL. | X13: TRADE SETUP | Y13: ENTRY/EXIT | Z13: EMOTION | AA13: REASON FOR BUYING/SELLING | AB13: ADDITIONAL NOTES | AC13: ADDITIONAL NOTES | AD13: Deposit ref | AE13: units | AF13: duration | AG13: pip definition | AM13: CONTRACT SIZE | AN13: month | AO13: year | AP13: day | AQ13: unique symbol | AR13: Helper unique | AS13: original unique date | AT13: Sorted sell | AU13: helper match | AV13: datecode | AZ13: entry amount | BA13: profit & transfers | BB13: FEES | BC13: deposits | BD13: netprofit | BE13: % P&L | BG13: Performance | BH13: Equity | BI13: allocation% | BK13: tally | BL13: loss streak | BM13: loss cost | BN13: win streak | BO13: win cost | BP13: streak cost | BQ13: Max streak | BR13: max drawdown | BS13: max drawdown% | CF13: =IF(SETTINGS!R23="",NA(),1) ->  | CG13: =IF(SETTINGS!M23="",NA(),1) ->  | CH13: =IF(SETTINGS!O23="",NA(),1) -> 
B14: b1sm1ll4hftj | C14: Open Time | D14: Type | E14: Size | F14: Item | G14: Entry Price | H14: S / L | I14: T / P | J14: Close Time | K14: Exit Price | L14: Total Fees | M14: Profit / Loss | Q14: Entry Amount | R14: Exit Amount | S14: Pips | T14: P&L + Fees ($) | U14: P&L % | V14: Duration | W14: R-Mul. | X14: Setup | Y14: Entry/Exit | Z14: Emotion | AA14: Reason for Buying/Selling | AB14: Additional notes | AD14: w/l | AE14: units | AG14: pip definition | AN14: month | AO14: year | AQ14: unique name list | AR14: # | AS14: unique date | AT14: Sorted sell | AV14: datecode | AZ14: entry amount | BA14: profit | BC14: IN/OUT | BD14: profit | BE14: % P&L | BF14: x axis | BI14: allocation% | BK14: Winloss | BR14: peak | BS14: drawdown | CF14: =IF(SETTINGS!R24="",NA(),1) ->  | CG14: =IF(SETTINGS!M24="",NA(),1) ->  | CH14: =IF(SETTINGS!O24="",NA(),1) -> 
B15: 1 | C15: 2020-05-26T05:48:19 | D15: IN | J15: 2020-05-26T05:48:19 | M15: 50,000.000 | P15: =IF(D15="buy",K15-G15,G15-K15) -> 0 | Q15: =IFERROR(E15*G15*IF(AM15=0,AE15,AM15)*IF(N15>0,(1/N15),AJ15),"") -> 0 | R15: =IFERROR(E15*K15*IF(AM15=0,AE15,AM15)*IF(N15>0,(1/N15),AJ15),"") -> 0 | S15: =IF(K15="","",IF(ISNUMBER(VALUE(RIGHT(F15,2)))=FALSE,P15/AG15,P15)) ->  | T15: =IF(OR(D15="in",D15="out"),M15,IF(J15="","",IF(K15="","",IF(M15="",(P15*E15*AM15)+L15,M15+L15)))) -> 50,000.00 | U15: =IFERROR(T15/Q15,"") ->  | V15: =IFERROR(IF(E15="","",(INT(J15-C15)&"d "&TEXT(J15-C15,"h""h ""m""m """))),"") ->  | W15: =IFERROR(IF(F15="","",T15/(BG14*$AL$8)),"") ->  | AD15: =IF(B15="","",IF(OR(D15="in",D15="out"),B15,IF(T15<=0,"L","W"))) -> 1 | AE15: =IF(RIGHT(F15,3)="JPY",1000,IF(AI15=1,100000,IF(LEFT(F15,3)="XAU",100,1))) -> 1 | AF15: =J15-C15 -> 0 | AG15: =IF(O15<>"",O15,IF(RIGHT(F15,3)="jpy",0.01,IF(LEN(F15)<6,0.01,IF(AND(G15>=10,G15<1000),0.01,IF(G15>=1000,0.1,0.0001))))) -> 0.010 | AH15: =MATCH(F15,curpairs,0) ->  | AI15: =IFERROR(IF(AH15>0,1,0),0) -> 0 | AJ15: =IF(AI15=1,$AF$9,IF(LEFT(F15,3)="XAU",$AF$11,$AF$10)) -> 1 | AM15: =IFERROR(IF(M15="",AE15,M15/(IF(K15="","",P15)*E15)),0) -> 0 | AN15: =IF(C15="","",TEXT(C15,"mmm")) -> May | AO15: =IF(C15="","",VALUE(TEXT(C15,"yyy"))) -> 2020 | AP15: =WEEKDAY(AT15,1) -> 3 | AQ15: =IF(COUNTIF($F15:F$15,F15)=1,B15,"") ->  | AR15: =0.00001 -> 1e-05 | AS15: =IF(J15="","",J15+AR15) -> 2020-05-26T05:48:19.864 | AT15: =IFERROR(SMALL(DateExit,B15),"") -> 2020-05-26T05:48:19.864 | AU15: =IF(AT15="","",MATCH(AT15,DateExit,0)) -> 1 | AV15: =DATE(YEAR(J15),MONTH(J15),DAY(1)) -> 2020-05-01 | AZ15: =INDEX(BuyAmount,AU15) -> 0 | BA15: =INDEX(PNLwFees,AU15)-BB15 -> 50,000.0 | BB15: =INDEX(Fees,AU15) -> 0 | BC15: =IF(AZ15<=0,BA15,0) -> 50000 | BD15: =IFERROR(IF(AZ15=0,0,BA15+BB15),"") -> 0 | BE15: =IFERROR(BD15/AZ15,"") ->  | BF15: =IF(BG15="","",B15) -> 1 | BG15: =BH15 -> 50,000.00 | BH15: =T15 -> 50,000.00 | BI15: =IFERROR(AZ15/(BH15),"") -> 0.00% | BK15: =IF(BC15<>0,0,IF(BD15>0,1,-1)) -> 0 | BL15: =IF(BK15=1,0,BK15+BL14) -> 0 | BM15: =IFERROR(IF(AZ15="",0,IF(BK15<0,BD15+BM14,0)),0) -> 0 | BN15: =IF(BK15=-1,0,BK15+BN14) -> 0 | BO15: =IFERROR(IF(AZ15="","",IF(BN15>0,BD15+BO14,0)),0) -> 0 | BP15: =IF(BQ15=$BL$7,BO15,IF(BQ15=-$BL$6,BM15,0)) -> 0 | BQ15: =IFERROR(BN15+BL15,"") -> 0 | BR15: =IFERROR(MAX($BG$14:BG15),"") -> 50000 | BS15: =IFERROR((BG15-BR15)/BR15,"") -> 0 | CF15: =IF(SETTINGS!R25="",NA(),1) ->  | CH15: =IF(SETTINGS!O25="",NA(),1) -> 
B16: =(B15+1) -> 2 | C16: 2020-05-27T08:48:48 | D16: BUY | E16: 5.00 | F16: AUDUSD | G16: 0.66398 | H16: 0 | I16: 0 | J16: 2020-05-27T08:49:59 | K16: 0.66372 | L16: -37.65 | M16: -130.000 | P16: -0.00026 | Q16: 3319.9 | R16: 3318.6 | S16: -2.6 | T16: -167.65 | U16: -5.05% | V16: 0d 0h 1m | W16: -0.34R | AD16: =IF(B16="","",IF(OR(D16="in",D16="out"),B16,IF(T16<=0,"L","W"))) -> L | AE16: 100000 | AF16: 0.0008217592549 | AG16: 0.000 | AH16: 82 | AI16: 1 | AJ16: 0.01 | AM16: 100000 | AN16: May | AO16: 2020 | AP16: 4 | AQ16: =IF(COUNTIF($F$15:F16,F16)=1,B16,"") -> 2 | AR16: =AR15+0.00001 -> 2e-05 | AS16: 2020-05-27T08:50:00.728 | AT16: 2020-05-27T08:50:00.728 | AU16: 2 | AV16: 2020-05-01 | AZ16: 3319.9 | BA16: -130.0 | BB16: -37.65 | BC16: =IF(AZ16="",BA16,0) -> 0 | BD16: =IFERROR(IF(AZ16=0,0,BA16+BB16),"") -> -167.65 | BE16: -0.05049850899 | BF16: 2 | BG16: =IFERROR(IF(AT16="",NA(),BG15+IF(BD16="",0,BD16)),"") -> 49832.35 | BH16: =IF(AT16="","",BH15+BD16+BC16) -> 49832.35 | BI16: =IFERROR(AZ16/(BH16),"") -> 6.66% | BK16: -1 | BL16: =IF(BK16=1,0,BK16+BL15) -> -1 | BM16: =IFERROR(IF(AZ16="",0,IF(BK16<0,BD16+BM15,0)),0) -> -167.65 | BN16: =IF(BK16=-1,0,BK16+BN15) -> 0 | BO16: =IFERROR(IF(AZ16="","",IF(BN16>0,BD16+BO15,0)),0) -> 0 | BP16: 0 | BQ16: -1 | BR16: =IFERROR(MAX($BG$14:BG16),"") -> 50000 | BS16: -0.003353 | CF16: =IF(SETTINGS!R26="",NA(),1) ->  | CH16: =IF(SETTINGS!O26="",NA(),1) -> 
B17: =(B16+1) -> 3 | C17: 2020-05-27T11:58:33 | D17: BUY | E17: 5.00 | F17: XAUUSD | G17: 1,705.84000 | H17: 0 | I17: 0 | J17: 2020-05-27T11:58:43 | K17: 1,705.24000 | L17: 0.00 | M17: -300.000 | P17: -0.6 | Q17: 852920 | R17: 852620 | S17: -6.0 | T17: -300.00 | U17: =IFERROR(T17/Q17,"") -> -0.04% | V17: =IFERROR(IF(E17="","",(INT(J17-C17)&"d "&TEXT(J17-C17,"h""h ""m""m """))),"") -> 0d 0h 0m | W17: -0.60R | X17: Swing Trade | Y17: AS PLANNED | Z17: CONFIDENT | AD17: L | AE17: 100 | AF17: 0.000115740746 | AG17: 0.100 | AI17: 0 | AJ17: 1 | AM17: 100 | AN17: May | AO17: 2020 | AP17: 4 | AQ17: =IF(COUNTIF($F$15:F17,F17)=1,B17,"") -> 3 | AR17: 3e-05 | AS17: 2020-05-27T11:58:45.592 | AT17: 2020-05-27T11:58:45.592 | AU17: 3 | AV17: 2020-05-01 | AZ17: 852920 | BA17: -300.0 | BB17: 0 | BC17: =IF(AZ17="",BA17,0) -> 0 | BD17: -300 | BE17: -0.0003517328706 | BF17: 3 | BG17: 49532.35 | BH17: =IF(AT17="","",BH16+BD17+BC17) -> 49532.35 | BI17: 1721.95% | BK17: -1 | BL17: -2 | BM17: -467.65 | BN17: 0 | BO17: 0 | BP17: 0 | BQ17: -2 | BR17: =IFERROR(MAX($BG$14:BG17),"") -> 50000 | BS17: -0.009353
B18: 4 | C18: 2020-05-28T04:57:49 | D18: BUY | E18: 1.00 | F18: EURUSD | G18: 1.10287 | H18: 0 | I18: 0 | J18: 2020-05-28T07:59:36 | K18: 1.10081 | L18: -7.53 | M18: -206.000 | P18: -0.00206 | Q18: 1102.87 | R18: 1100.81 | S18: -20.6 | T18: -213.53 | U18: -19.36% | V18: 0d 3h 1m | W18: -0.43R | X18: Swing Trade | Y18: AS PLANNED | Z18: CONFIDENT | AD18: L | AE18: 100000 | AF18: 0.1262384259 | AG18: 0.000 | AH18: 109 | AI18: 1 | AJ18: 0.01 | AM18: 100000 | AN18: May | AO18: 2020 | AP18: 5 | AQ18: =IF(COUNTIF($F$15:F18,F18)=1,B18,"") -> 4 | AR18: 4e-05 | AS18: 2020-05-28T07:59:39.456 | AT18: 2020-05-28T07:59:39.456 | AU18: 4 | AV18: 2020-05-01 | AZ18: 1102.87 | BA18: -206.0 | BB18: -7.53 | BC18: =IF(AZ18=0,BA18,0) -> 0 | BD18: -213.53 | BE18: -0.1936130278 | BF18: 4 | BG18: 49318.82 | BH18: 49318.82 | BI18: 2.24% | BK18: -1 | BL18: -3 | BM18: -681.18 | BN18: 0 | BO18: 0 | BP18: 0 | BQ18: -3 | BR18: =IFERROR(MAX($BG$14:BG18),"") -> 50000 | BS18: -0.0136236
B19: 5 | C19: 2020-05-28T04:58:19 | D19: BUY | E19: 1.00 | F19: EURUSD | G19: 1.10270 | H19: 0 | I19: 0 | J19: 2020-05-28T07:59:38 | K19: 1.10081 | L19: -7.53 | M19: -189.000 | P19: -0.00189 | Q19: 1102.7 | R19: 1100.81 | S19: -18.9 | T19: -196.53 | U19: -17.82% | V19: 0d 3h 1m | W19: -0.40R | X19: Swing Trade | Y19: AS PLANNED | Z19: CONFIDENT | AD19: L | AE19: 100000 | AF19: 0.1259143519 | AG19: 0.000 | AH19: 109 | AI19: 1 | AJ19: 0.01 | AM19: 100000 | AN19: May | AO19: 2020 | AP19: 5 | AQ19: =IF(COUNTIF($F$15:F19,F19)=1,B19,"") ->  | AR19: 5e-05 | AS19: 2020-05-28T07:59:42.320 | AT19: 2020-05-28T07:59:42.320 | AU19: 5 | AV19: 2020-05-01 | AZ19: 1102.7 | BA19: -189.0 | BB19: -7.53 | BC19: 0 | BD19: -196.53 | BE19: -0.1782261721 | BF19: 5 | BG19: 49122.29 | BH19: 49122.29 | BI19: 2.24% | BK19: -1 | BL19: -4 | BM19: -877.71 | BN19: 0 | BO19: 0 | BP19: 0 | BQ19: -4 | BR19: =IFERROR(MAX($BG$14:BG19),"") -> 50000 | BS19: -0.0175542
B20: 6 | C20: 2020-05-28T08:00:37 | D20: BUY | E20: 5.00 | F20: AUDUSD | G20: 0.65983 | H20: 0 | I20: 0 | J20: 2020-05-28T08:01:40 | K20: 0.65963 | L20: -37.65 | M20: -100.000 | P20: -0.0002 | Q20: 3299.15 | R20: 3298.15 | S20: -2.0 | T20: -137.65 | U20: -4.17% | V20: 0d 0h 1m | W20: -0.28R | X20: Swing Trade | AD20: L | AE20: 100000 | AF20: 0.0007291666625 | AG20: 0.000 | AH20: 82 | AI20: 1 | AJ20: 0.01 | AM20: 100000 | AN20: May | AO20: 2020 | AP20: 5 | AQ20: =IF(COUNTIF($F$15:F20,F20)=1,B20,"") ->  | AR20: 6e-05 | AS20: 2020-05-28T08:01:45.184 | AT20: 2020-05-28T08:01:45.184 | AU20: 6 | AV20: 2020-05-01 | AZ20: =INDEX($Q$15:$Q$9733,AU20) -> 3299.15 | BA20: =INDEX($T$15:$T$9733,AU20)-BB20 -> -100.0 | BB20: -37.65 | BC20: 0 | BD20: -137.65 | BE20: -0.04172286801 | BF20: 6 | BG20: 48984.64 | BH20: 48984.64 | BI20: =IFERROR(AZ20/BH20,"") -> 0.06735070422 | BK20: -1 | BL20: -5 | BM20: -1015.36 | BN20: 0 | BO20: 0 | BP20: -1015.36 | BQ20: -5 | BR20: =IFERROR(MAX($BG$14:BG20),"") -> 50000 | BS20: -0.0203072
B21: 7 | C21: 2020-05-28T08:04:35 | D21: BUY | E21: 5.00 | F21: AUDUSD | G21: 0.66008 | H21: 0.66039 | I21: 0 | J21: 2020-05-28T08:06:10 | K21: 0.66039 | L21: -37.65 | M21: 155.000 | P21: 0.00031 | Q21: 3300.4 | R21: 3301.95 | S21: 3.1 | T21: 117.35 | U21: 3.56% | V21: 0d 0h 1m | W21: 0.24R | AD21: W | AE21: 100000 | AF21: 0.001099537039 | AG21: 0.000 | AH21: 82 | AI21: 1 | AJ21: 0.01 | AM21: 100000 | AN21: May | AO21: 2020 | AP21: 5 | AQ21: =IF(COUNTIF($F$15:F21,F21)=1,B21,"") ->  | AR21: 7e-05 | AS21: 2020-05-28T08:06:16.048 | AT21: 2020-05-28T08:06:16.048 | AU21: 7 | AV21: 2020-05-01 | AZ21: 3300.4 | BA21: 155.0 | BB21: -37.65 | BC21: 0 | BD21: 117.35 | BE21: 0.03555629621 | BF21: 7 | BG21: 49101.99 | BH21: 49101.99 | BI21: 0.06721519841 | BK21: 1 | BL21: 0 | BM21: 0 | BN21: 1 | BO21: 117.35 | BP21: 0 | BQ21: 1 | BR21: =IFERROR(MAX($BG$14:BG21),"") -> 50000 | BS21: -0.0179602
B22: 8 | C22: 2020-05-28T08:12:14 | D22: BUY | E22: 5.00 | F22: AUDUSD | G22: 0.66076 | H22: 0 | I22: 0 | J22: 2020-05-28T09:05:32 | K22: 0.66145 | L22: -37.65 | M22: 345.000 | P22: 0.00069 | Q22: 3303.8 | R22: 3307.25 | S22: 6.9 | T22: 307.35 | U22: 9.30% | V22: 0d 0h 53m | W22: 0.63R | AD22: W | AE22: 100000 | AF22: 0.03701388889 | AG22: 0.000 | AH22: 82 | AI22: 1 | AJ22: 0.01 | AM22: 100000 | AN22: May | AO22: 2020 | AP22: 5 | AQ22: =IF(COUNTIF($F$15:F22,F22)=1,B22,"") ->  | AR22: 8e-05 | AS22: 2020-05-28T09:05:38.912 | AT22: 2020-05-28T09:05:38.912 | AU22: 8 | AV22: 2020-05-01 | AZ22: 3303.8 | BA22: 345.0 | BB22: -37.65 | BC22: 0 | BD22: 307.35 | BE22: 0.09302923906 | BF22: 8 | BG22: 49409.34 | BH22: 49409.34 | BI22: 0.06686590025 | BK22: 1 | BL22: 0 | BM22: 0 | BN22: 2 | BO22: 424.7 | BP22: 0 | BQ22: 2 | BR22: =IFERROR(MAX($BG$14:BG22),"") -> 50000 | BS22: -0.0118132
B23: 9 | C23: 2020-05-28T11:20:56 | D23: BUY | E23: 5.00 | F23: AUDUSD | G23: 0.66019 | H23: 0 | I23: 0 | J23: 2020-05-28T11:32:43 | K23: 0.65959 | L23: -37.65 | M23: -300.000 | P23: -0.0006 | Q23: 3300.95 | R23: 3297.95 | S23: -6.0 | T23: -337.65 | U23: -10.23% | V23: 0d 0h 11m | W23: -0.68R | Y23: TOO LATE | Z23: CONFIDENT | AD23: L | AE23: 100000 | AF23: 0.00818287037 | AG23: 0.000 | AH23: 82 | AI23: 1 | AJ23: 0.01 | AM23: 100000 | AN23: May | AO23: 2020 | AP23: 5 | AQ23: =IF(COUNTIF($F$15:F23,F23)=1,B23,"") ->  | AR23: 9e-05 | AS23: 2020-05-28T11:32:50.776 | AT23: 2020-05-28T11:32:50.776 | AU23: 9 | AV23: 2020-05-01 | AZ23: 3300.95 | BA23: -300.0 | BB23: -37.65 | BC23: 0 | BD23: -337.65 | BE23: -0.1022887351 | BF23: 9 | BG23: 49071.69 | BH23: 49071.69 | BI23: 0.06726790946 | BK23: -1 | BL23: -1 | BM23: -337.65 | BN23: 0 | BO23: 0 | BP23: 0 | BQ23: -1 | BR23: =IFERROR(MAX($BG$14:BG23),"") -> 50000 | BS23: -0.0185662
B24: 10 | C24: 2020-05-28T12:05:53 | D24: BUY | E24: 5.00 | F24: EURUSD | G24: 1.09973 | H24: 0 | I24: 0 | J24: 2020-05-28T12:27:06 | K24: 1.10113 | L24: -37.65 | M24: 700.000 | P24: 0.0014 | Q24: 5498.65 | R24: 5505.65 | S24: 14.0 | T24: 662.35 | U24: 12.05% | V24: 0d 0h 21m | W24: 1.35R | X24: Swing Trade | Y24: AS PLANNED | Z24: CONFIDENT | AD24: W | AE24: 100000 | AF24: 0.01473379629 | AG24: 0.000 | AH24: 109 | AI24: 1 | AJ24: 0.01 | AM24: 100000 | AN24: May | AO24: 2020 | AP24: 5 | AQ24: =IF(COUNTIF($F$15:F24,F24)=1,B24,"") ->  | AR24: 0.0001 | AS24: 2020-05-28T12:27:14.640 | AT24: 2020-05-28T12:27:13.504 | AU24: 11 | AV24: 2020-05-01 | AZ24: 5501.15 | BA24: 470.0 | BB24: -37.65 | BC24: 0 | BD24: 432.35 | BE24: 0.0785926579 | BF24: 10 | BG24: 49504.04 | BH24: 49504.04 | BI24: 0.1111252738 | BK24: 1 | BL24: 0 | BM24: 0 | BN24: 1 | BO24: 432.35 | BP24: 0 | BQ24: 1 | BR24: =IFERROR(MAX($BG$14:BG24),"") -> 50000 | BS24: -0.0099192
B25: 11 | C25: 2020-05-28T12:14:13 | D25: BUY | E25: 5.00 | F25: EURUSD | G25: 1.10023 | H25: 0 | I25: 0 | J25: 2020-05-28T12:27:04 | K25: 1.10117 | L25: -37.65 | M25: 470.000 | P25: 0.00094 | Q25: 5501.15 | R25: 5505.85 | S25: 9.4 | T25: 432.35 | U25: 7.86% | V25: 0d 0h 12m | W25: 0.87R | X25: Swing Trade | Y25: TOO EARLY | Z25: CONFIDENT | AD25: W | AE25: 100000 | AF25: 0.008923611109 | AG25: 0.000 | AH25: 109 | AI25: 1 | AJ25: 0.01 | AM25: 100000 | AN25: May | AO25: 2020 | AP25: 5 | AQ25: =IF(COUNTIF($F$15:F25,F25)=1,B25,"") ->  | AR25: 0.00011 | AS25: 2020-05-28T12:27:13.504 | AT25: 2020-05-28T12:27:14.640 | AU25: 10 | AV25: 2020-05-01 | AZ25: 5498.65 | BA25: 700.0 | BB25: -37.65 | BC25: 0 | BD25: 662.35 | BE25: 0.1204568394 | BF25: 11 | BG25: 50166.39 | BH25: 50166.39 | BI25: 0.1096082457 | BK25: 1 | BL25: 0 | BM25: 0 | BN25: 2 | BO25: 1094.7 | BP25: 0 | BQ25: 2 | BR25: =IFERROR(MAX($BG$14:BG25),"") -> 50166.39 | BS25: 0
B26: 12 | C26: 2020-05-28T12:37:05 | D26: BUY | E26: 5.00 | F26: EURUSD | G26: 1.10075 | H26: 1.10050 | I26: 0 | J26: 2020-05-28T12:41:41 | K26: 1.10117 | L26: -37.65 | M26: 210.000 | P26: 0.00042 | Q26: 5503.75 | R26: 5505.85 | S26: 4.2 | T26: 172.35 | U26: 3.13% | V26: 0d 0h 4m | W26: 0.34R | X26: Swing Trade | AD26: W | AE26: 100000 | AF26: 0.003194444442 | AG26: 0.000 | AH26: 109 | AI26: 1 | AJ26: 0.01 | AM26: 100000 | AN26: May | AO26: 2020 | AP26: 5 | AQ26: =IF(COUNTIF($F$15:F26,F26)=1,B26,"") ->  | AR26: 0.00012 | AS26: 2020-05-28T12:41:51.368 | AT26: 2020-05-28T12:41:51.368 | AU26: 12 | AV26: 2020-05-01 | AZ26: 5503.75 | BA26: 210.0 | BB26: -37.65 | BC26: 0 | BD26: 172.35 | BE26: 0.03131501249 | BF26: 12 | BG26: 50338.74 | BH26: 50338.74 | BI26: 0.1093342821 | BK26: 1 | BL26: 0 | BM26: 0 | BN26: 3 | BO26: 1267.05 | BP26: 0 | BQ26: 3 | BR26: =IFERROR(MAX($BG$14:BG26),"") -> 50338.74 | BS26: 0
B27: 13 | C27: 2020-05-28T12:42:24 | D27: SELL | E27: 5.00 | F27: EURUSD | G27: 1.10107 | H27: 0 | I27: 0 | J27: 2020-05-28T12:42:48 | K27: 1.10090 | L27: -37.65 | M27: 85.000 | P27: 0.00017 | Q27: 5505.35 | R27: 5504.5 | S27: 1.7 | T27: 47.35 | U27: 0.86% | V27: 0d 0h 0m | W27: 0.09R | AD27: W | AE27: 100000 | AF27: 0.0002777777772 | AG27: 0.000 | AH27: 109 | AI27: 1 | AJ27: 0.01 | AM27: 100000 | AN27: May | AO27: 2020 | AP27: 5 | AQ27: =IF(COUNTIF($F$15:F27,F27)=1,B27,"") ->  | AR27: 0.00013 | AS27: 2020-05-28T12:42:59.232 | AT27: 2020-05-28T12:42:59.232 | AU27: 13 | AV27: 2020-05-01 | AZ27: 5505.35 | BA27: 85.0 | BB27: -37.65 | BC27: 0 | BD27: 47.35 | BE27: 0.00860072475 | BF27: 13 | BG27: 50386.09 | BH27: 50386.09 | BI27: 0.1092632907 | BK27: 1 | BL27: 0 | BM27: 0 | BN27: 4 | BO27: 1314.4 | BP27: 0 | BQ27: 4 | BR27: =IFERROR(MAX($BG$14:BG27),"") -> 50386.09 | BS27: 0
B28: 14 | C28: 2020-05-28T12:46:31 | D28: SELL | E28: 5.00 | F28: AUDUSD | G28: 0.66165 | H28: 0 | I28: 0 | J28: 2020-05-28T12:55:51 | K28: 0.66142 | L28: -37.65 | M28: 115.000 | P28: 0.00023 | Q28: 3308.25 | R28: 3307.1 | S28: 2.3 | T28: 77.35 | U28: 2.34% | V28: 0d 0h 9m | W28: 0.15R | AD28: W | AE28: 100000 | AF28: 0.006481481483 | AG28: 0.000 | AH28: 82 | AI28: 1 | AJ28: 0.01 | AM28: 100000 | AN28: May | AO28: 2020 | AP28: 5 | AQ28: =IF(COUNTIF($F$15:F28,F28)=1,B28,"") ->  | AR28: 0.00014 | AS28: 2020-05-28T12:56:03.096 | AT28: 2020-05-28T12:56:03.096 | AU28: 14 | AV28: 2020-05-01 | AZ28: 3308.25 | BA28: 115.0 | BB28: -37.65 | BC28: 0 | BD28: 77.35 | BE28: 0.02338094159 | BF28: 14 | BG28: 50463.44 | BH28: 50463.44 | BI28: 0.06555736192 | BK28: 1 | BL28: 0 | BM28: 0 | BN28: 5 | BO28: 1391.75 | BP28: 1391.75 | BQ28: 5 | BR28: =IFERROR(MAX($BG$14:BG28),"") -> 50463.44 | BS28: 0
B29: 15 | C29: 2020-05-28T13:04:55 | D29: BUY | E29: 5.00 | F29: EURUSD | G29: 1.10068 | H29: 0 | I29: 0 | J29: 2020-05-28T13:08:53 | K29: 1.10054 | L29: -37.65 | M29: -70.000 | P29: -0.00014 | Q29: 5503.4 | R29: 5502.7 | S29: -1.4 | T29: -107.65 | U29: -1.96% | V29: 0d 0h 3m | W29: -0.21R | Y29: TOO EARLY | AD29: L | AE29: 100000 | AF29: 0.002754629626 | AG29: 0.000 | AH29: 109 | AI29: 1 | AJ29: 0.01 | AM29: 100000 | AN29: May | AO29: 2020 | AP29: 5 | AQ29: =IF(COUNTIF($F$15:F29,F29)=1,B29,"") ->  | AR29: 0.00015 | AS29: 2020-05-28T13:09:05.960 | AT29: 2020-05-28T13:09:05.960 | AU29: 15 | AV29: 2020-05-01 | AZ29: 5503.4 | BA29: -70.0 | BB29: -37.65 | BC29: 0 | BD29: -107.65 | BE29: -0.01956063524 | BF29: 15 | BG29: 50355.79 | BH29: 50355.79 | BI29: 0.109290312 | BK29: -1 | BL29: -1 | BM29: -107.65 | BN29: 0 | BO29: 0 | BP29: 0 | BQ29: -1 | BR29: =IFERROR(MAX($BG$14:BG29),"") -> 50463.44 | BS29: -0.002133227541
B30: 16 | C30: 2020-05-28T13:20:35 | D30: BUY | E30: 5.00 | F30: AUDUSD | G30: 0.66093 | H30: 0.66174 | I30: 0 | J30: 2020-05-28T14:10:36 | K30: 0.66174 | L30: -37.65 | M30: 405.000 | P30: 0.00081 | Q30: 3304.65 | R30: 3308.7 | S30: 8.1 | T30: 367.35 | U30: 11.12% | V30: 0d 0h 50m | W30: 0.73R | X30: Bounce | AD30: W | AE30: 100000 | AF30: 0.0347337963 | AG30: 0.000 | AH30: 82 | AI30: 1 | AJ30: 0.01 | AM30: 100000 | AN30: May | AO30: 2020 | AP30: 5 | AQ30: =IF(COUNTIF($F$15:F30,F30)=1,B30,"") ->  | AR30: 0.00016 | AS30: 2020-05-28T14:10:49.824 | AT30: 2020-05-28T13:58:23.688 | AU30: 17 | AV30: 2020-05-01 | AZ30: 3309 | BA30: -340.0 | BB30: -37.65 | BC30: 0 | BD30: -377.65 | BE30: -0.1141281354 | BF30: 16 | BG30: 49978.14 | BH30: 49978.14 | BI30: 0.06620894655 | BK30: -1 | BL30: -2 | BM30: -485.3 | BN30: 0 | BO30: 0 | BP30: 0 | BQ30: -2 | BR30: =IFERROR(MAX($BG$14:BG30),"") -> 50463.44 | BS30: -0.009616863218
B31: 17 | C31: 2020-05-28T13:27:23 | D31: BUY | E31: 5.00 | F31: AUDUSD | G31: 0.66180 | H31: 0 | I31: 0 | J31: 2020-05-28T13:58:09 | K31: 0.66112 | L31: -37.65 | M31: -340.000 | P31: -0.00068 | Q31: 3309 | R31: 3305.6 | S31: -6.8 | T31: -377.65 | U31: -11.41% | V31: 0d 0h 30m | W31: -0.76R | X31: Bounce | AD31: L | AE31: 100000 | AF31: 0.02136574074 | AG31: 0.000 | AH31: 82 | AI31: 1 | AJ31: 0.01 | AM31: 100000 | AN31: May | AO31: 2020 | AP31: 5 | AQ31: =IF(COUNTIF($F$15:F31,F31)=1,B31,"") ->  | AR31: 0.00017 | AS31: 2020-05-28T13:58:23.688 | AT31: 2020-05-28T14:08:26.280 | AU31: 20 | AV31: 2020-05-01 | AZ31: 3308.15 | BA31: -180.0 | BB31: -37.65 | BC31: 0 | BD31: -217.65 | BE31: -0.06579205901 | BF31: 17 | BG31: 49760.49 | BH31: 49760.49 | BI31: 0.06648145949 | BK31: -1 | BL31: -3 | BM31: -702.95 | BN31: 0 | BO31: 0 | BP31: 0 | BQ31: -3 | BR31: =IFERROR(MAX($BG$14:BG31),"") -> 50463.44 | BS31: -0.01392988667
B32: 18 | C32: 2020-05-28T13:42:19 | D32: BUY | E32: 5.00 | F32: AUDUSD | G32: 0.66071 | H32: 0.66175 | I32: 0 | J32: 2020-05-28T14:10:36 | K32: 0.66175 | L32: -37.65 | M32: 520.000 | P32: 0.00104 | Q32: 3303.55 | R32: 3308.75 | S32: 10.4 | T32: 482.35 | U32: 14.60% | V32: 0d 0h 28m | W32: 0.97R | X32: Bounce | Y32: AS PLANNED | Z32: CONFIDENT | AD32: W | AE32: 100000 | AF32: 0.0196412037 | AG32: 0.000 | AH32: 82 | AI32: 1 | AJ32: 0.01 | AM32: 100000 | AN32: May | AO32: 2020 | AP32: 5 | AQ32: =IF(COUNTIF($F$15:F32,F32)=1,B32,"") ->  | AR32: 0.00018 | AS32: 2020-05-28T14:10:51.552 | AT32: 2020-05-28T14:10:49.824 | AU32: 16 | AV32: 2020-05-01 | AZ32: 3304.65 | BA32: 405.0 | BB32: -37.65 | BC32: 0 | BD32: 367.35 | BE32: 0.1111615451 | BF32: 18 | BG32: 50127.84 | BH32: 50127.84 | BI32: 0.06592444438 | BK32: 1 | BL32: 0 | BM32: 0 | BN32: 1 | BO32: 367.35 | BP32: 0 | BQ32: 1 | BR32: =IFERROR(MAX($BG$14:BG32),"") -> 50463.44 | BS32: -0.006650359151
B33: 19 | C33: 2020-05-28T14:02:00 | D33: BUY | E33: 5.00 | F33: AUDUSD | G33: 0.66123 | H33: 0.66174 | I33: 0 | J33: 2020-05-28T14:10:36 | K33: 0.66174 | L33: -37.65 | M33: 255.000 | P33: 0.00051 | Q33: 3306.15 | R33: 3308.7 | S33: 5.1 | T33: 217.35 | U33: 6.57% | V33: 0d 0h 8m | W33: 0.43R | X33: Bounce | AD33: W | AE33: 100000 | AF33: 0.005972222221 | AG33: 0.000 | AH33: 82 | AI33: 1 | AJ33: 0.01 | AM33: 100000 | AN33: May | AO33: 2020 | AP33: 5 | AQ33: =IF(COUNTIF($F$15:F33,F33)=1,B33,"") ->  | AR33: 0.00019 | AS33: 2020-05-28T14:10:52.416 | AT33: 2020-05-28T14:10:51.552 | AU33: 18 | AV33: 2020-05-01 | AZ33: 3303.55 | BA33: 520.0 | BB33: -37.65 | BC33: 0 | BD33: 482.35 | BE33: 0.1460095957 | BF33: 19 | BG33: 50610.19 | BH33: 50610.19 | BI33: 0.06527440423 | BK33: 1 | BL33: 0 | BM33: 0 | BN33: 2 | BO33: 849.7 | BP33: 0 | BQ33: 2 | BR33: =IFERROR(MAX($BG$14:BG33),"") -> 50610.19 | BS33: 0
B34: 20 | C34: 2020-05-28T14:05:50 | D34: SELL | E34: 5.00 | F34: AUDUSD | G34: 0.66163 | H34: 0 | I34: 0 | J34: 2020-05-28T14:08:09 | K34: 0.66199 | L34: -37.65 | M34: -180.000 | P34: -0.00036 | Q34: 3308.15 | R34: 3309.95 | S34: -3.6 | T34: -217.65 | U34: -6.58% | V34: 0d 0h 2m | W34: -0.43R | X34: Bounce | AD34: L | AE34: 100000 | AF34: 0.001608796294 | AG34: 0.000 | AH34: 82 | AI34: 1 | AJ34: 0.01 | AM34: 100000 | AN34: May | AO34: 2020 | AP34: 5 | AQ34: =IF(COUNTIF($F$15:F34,F34)=1,B34,"") ->  | AR34: 0.0002 | AS34: 2020-05-28T14:08:26.280 | AT34: 2020-05-28T14:10:52.416 | AU34: 19 | AV34: 2020-05-01 | AZ34: 3306.15 | BA34: 255.0 | BB34: -37.65 | BC34: 0 | BD34: 217.35 | BE34: 0.06574111882 | BF34: 20 | BG34: 50827.54 | BH34: 50827.54 | BI34: 0.06504642955 | BK34: 1 | BL34: 0 | BM34: 0 | BN34: 3 | BO34: 1067.05 | BP34: 0 | BQ34: 3 | BR34: =IFERROR(MAX($BG$14:BG34),"") -> 50827.54 | BS34: 0
B35: 21 | C35: 2020-05-28T14:17:28 | D35: BUY | E35: 10.00 | F35: EURUSD | G35: 1.10075 | H35: 0 | I35: 0 | J35: 2020-05-28T14:24:33 | K35: 1.10030 | L35: -75.30 | M35: -450.000 | P35: -0.00045 | Q35: 11007.5 | R35: 11003 | S35: -4.5 | T35: -525.30 | U35: -4.77% | V35: 0d 0h 7m | W35: -1.03R | X35: Bounce | Y35: TOO LATE | Z35: HOPE | AD35: L | AE35: 100000 | AF35: 0.004918981482 | AG35: 0.000 | AH35: 109 | AI35: 1 | AJ35: 0.01 | AM35: 100000 | AN35: May | AO35: 2020 | AP35: 5 | AQ35: =IF(COUNTIF($F$15:F35,F35)=1,B35,"") ->  | AR35: 0.00021 | AS35: 2020-05-28T14:24:51.144 | AT35: 2020-05-28T14:24:51.144 | AU35: 21 | AV35: 2020-05-01 | AZ35: 11007.5 | BA35: -450.0 | BB35: -75.3 | BC35: 0 | BD35: -525.3 | BE35: -0.04772200772 | BF35: 21 | BG35: 50302.24 | BH35: 50302.24 | BI35: 0.2188272331 | BK35: -1 | BL35: -1 | BM35: -525.3 | BN35: 0 | BO35: 0 | BP35: 0 | BQ35: -1 | BR35: =IFERROR(MAX($BG$14:BG35),"") -> 50827.54 | BS35: -0.01033494834
B36: 22 | C36: 2020-05-28T14:50:47 | D36: BUY | E36: 10.00 | F36: EURUSD | G36: 1.10144 | H36: 0 | I36: 0 | J36: 2020-05-28T14:59:56 | K36: 1.10068 | L36: -75.30 | M36: -760.000 | P36: -0.00076 | Q36: 11014.4 | R36: 11006.8 | S36: -7.6 | T36: -835.30 | U36: -7.58% | V36: 0d 0h 9m | W36: -1.66R | X36: Bounce | Y36: TOO LATE | Z36: HOPE | AD36: L | AE36: 100000 | AF36: 0.00635416666 | AG36: 0.000 | AH36: 109 | AI36: 1 | AJ36: 0.01 | AM36: 100000 | AN36: May | AO36: 2020 | AP36: 5 | AQ36: =IF(COUNTIF($F$15:F36,F36)=1,B36,"") ->  | AR36: 0.00022 | AS36: 2020-05-28T15:00:15.008 | AT36: 2020-05-28T15:00:15.008 | AU36: 22 | AV36: 2020-05-01 | AZ36: 11014.4 | BA36: -760.0 | BB36: -75.3 | BC36: 0 | BD36: -835.3 | BE36: -0.075837086 | BF36: 22 | BG36: 49466.94 | BH36: 49466.94 | BI36: 0.2226618424 | BK36: -1 | BL36: -2 | BM36: -1360.6 | BN36: 0 | BO36: 0 | BP36: 0 | BQ36: -2 | BR36: =IFERROR(MAX($BG$14:BG36),"") -> 50827.54 | BS36: -0.02676895242
B37: 23 | C37: 2020-05-28T15:01:02 | D37: BUY | E37: 10.00 | F37: EURUSD | G37: 1.10087 | H37: 1.10221 | I37: 0 | J37: 2020-05-28T15:59:10 | K37: 1.10221 | L37: -75.30 | M37: 1,340.000 | P37: 0.00134 | Q37: 11008.7 | R37: 11022.1 | S37: 13.4 | T37: 1,264.70 | U37: 11.49% | V37: 0d 0h 58m | W37: 2.56R | X37: Momentum | Y37: BROKE RULES | AD37: W | AE37: 100000 | AF37: 0.04037037037 | AG37: 0.000 | AH37: 109 | AI37: 1 | AJ37: 0.01 | AM37: 100000 | AN37: May | AO37: 2020 | AP37: 5 | AQ37: =IF(COUNTIF($F$15:F37,F37)=1,B37,"") ->  | AR37: 0.00023 | AS37: 2020-05-28T15:59:29.872 | AT37: 2020-05-28T15:56:49.736 | AU37: 24 | AV37: 2020-05-01 | AZ37: 3318.2 | BA37: -260.0 | BB37: -37.65 | BC37: 0 | BD37: -297.65 | BE37: -0.08970224821 | BF37: 23 | BG37: 49169.29 | BH37: 49169.29 | BI37: 0.06748521282 | BK37: -1 | BL37: -3 | BM37: -1658.25 | BN37: 0 | BO37: 0 | BP37: 0 | BQ37: -3 | BR37: =IFERROR(MAX($BG$14:BG37),"") -> 50827.54 | BS37: -0.03262502966
B38: 24 | C38: 2020-05-28T15:51:50 | D38: BUY | E38: 5.00 | F38: AUDUSD | G38: 0.66364 | H38: 0 | I38: 0 | J38: 2020-05-28T15:56:29 | K38: 0.66312 | L38: -37.65 | M38: -260.000 | P38: -0.00052 | Q38: 3318.2 | R38: 3315.6 | S38: -5.2 | T38: -297.65 | U38: -8.97% | V38: 0d 0h 4m | W38: -0.61R | X38: Bounce | AD38: L | AE38: 100000 | AF38: 0.003229166665 | AG38: 0.000 | AH38: 82 | AI38: 1 | AJ38: 0.01 | AM38: 100000 | AN38: May | AO38: 2020 | AP38: 5 | AQ38: =IF(COUNTIF($F$15:F38,F38)=1,B38,"") ->  | AR38: 0.00024 | AS38: 2020-05-28T15:56:49.736 | AT38: 2020-05-28T15:59:29.872 | AU38: 23 | AV38: 2020-05-01 | AZ38: 11008.7 | BA38: 1,340.0 | BB38: -75.3 | BC38: 0 | BD38: 1264.7 | BE38: 0.1148818662 | BF38: 24 | BG38: 50433.99 | BH38: 50433.99 | BI38: 0.2182793786 | BK38: 1 | BL38: 0 | BM38: 0 | BN38: 1 | BO38: 1264.7 | BP38: 0 | BQ38: 1 | BR38: =IFERROR(MAX($BG$14:BG38),"") -> 50827.54 | BS38: -0.007742849644
B39: 25 | C39: 2020-05-28T15:57:29 | D39: BUY | E39: 5.00 | F39: AUDUSD | G39: 0.66358 | H39: 0 | I39: 0 | J39: 2020-05-28T16:00:10 | K39: 0.66334 | L39: -37.65 | M39: -120.000 | P39: -0.00024 | Q39: 3317.9 | R39: 3316.7 | S39: -2.4 | T39: -157.65 | U39: -4.75% | V39: 0d 0h 2m | W39: -0.31R | X39: Bounce | AD39: L | AE39: 100000 | AF39: 0.001863425932 | AG39: 0.000 | AH39: 82 | AI39: 1 | AJ39: 0.01 | AM39: 100000 | AN39: May | AO39: 2020 | AP39: 5 | AQ39: =IF(COUNTIF($F$15:F39,F39)=1,B39,"") ->  | AR39: 0.00025 | AS39: 2020-05-28T16:00:31.600 | AT39: 2020-05-28T16:00:31.600 | AU39: 25 | AV39: 2020-05-01 | AZ39: 3317.9 | BA39: -120.0 | BB39: -37.65 | BC39: 0 | BD39: -157.65 | BE39: -0.04751499442 | BF39: 25 | BG39: 50276.34 | BH39: 50276.34 | BI39: 0.0659932684 | BK39: -1 | BL39: -1 | BM39: -157.65 | BN39: 0 | BO39: 0 | BP39: 0 | BQ39: -1 | BR39: =IFERROR(MAX($BG$14:BG39),"") -> 50827.54 | BS39: -0.01084451461
B40: 26 | C40: 2020-05-28T16:00:00 | D40: BUY | E40: 5.00 | F40: GBPUSD | G40: 1.22771 | H40: 1.22831 | I40: 0 | J40: 2020-05-28T16:03:01 | K40: 1.22831 | L40: -37.65 | M40: 300.000 | P40: 0.0006 | Q40: 6138.55 | R40: 6141.55 | S40: 6.0 | T40: 262.35 | U40: 4.27% | V40: 0d 0h 3m | W40: 0.52R | X40: Bounce | AD40: W | AE40: 100000 | AF40: 0.00209490741 | AG40: 0.000 | AH40: 127 | AI40: 1 | AJ40: 0.01 | AM40: 100000 | AN40: May | AO40: 2020 | AP40: 5 | AQ40: =IF(COUNTIF($F$15:F40,F40)=1,B40,"") -> 26 | AR40: 0.00026 | AS40: 2020-05-28T16:03:23.464 | AT40: 2020-05-28T16:02:49.192 | AU40: 28 | AV40: 2020-05-01 | AZ40: 5000.2032 | BA40: -55.7 | BB40: -37.65 | BC40: 0 | BD40: -93.33 | BE40: -0.01866524144 | BF40: 26 | BG40: 50183.01 | BH40: 50183.01 | BI40: 0.099639364 | BK40: -1 | BL40: -2 | BM40: -250.98 | BN40: 0 | BO40: 0 | BP40: 0 | BQ40: -2 | BR40: =IFERROR(MAX($BG$14:BG40),"") -> 50827.54 | BS40: -0.01268072388
B41: 27 | C41: 2020-05-28T16:01:49 | D41: BUY | E41: 5.00 | F41: AUDUSD | G41: 0.66372 | H41: 0.66426 | I41: 0 | J41: 2020-05-28T16:05:21 | K41: 0.66426 | L41: -37.65 | M41: 270.000 | P41: 0.00054 | Q41: 3318.6 | R41: 3321.3 | S41: 5.4 | T41: 232.35 | U41: 7.00% | V41: 0d 0h 3m | W41: 0.46R | X41: Bounce | AD41: W | AE41: 100000 | AF41: 0.002453703702 | AG41: 0.000 | AH41: 82 | AI41: 1 | AJ41: 0.01 | AM41: 100000 | AN41: May | AO41: 2020 | AP41: 5 | AQ41: =IF(COUNTIF($F$15:F41,F41)=1,B41,"") ->  | AR41: 0.00027 | AS41: 2020-05-28T16:05:44.328 | AT41: 2020-05-28T16:03:23.464 | AU41: 26 | AV41: 2020-05-01 | AZ41: 6138.55 | BA41: 300.0 | BB41: -37.65 | BC41: 0 | BD41: 262.35 | BE41: 0.0427381059 | BF41: 27 | BG41: 50445.36 | BH41: 50445.36 | BI41: 0.1216871086 | BK41: 1 | BL41: 0 | BM41: 0 | BN41: 1 | BO41: 262.35 | BP41: 0 | BQ41: 1 | BR41: =IFERROR(MAX($BG$14:BG41),"") -> 50827.54 | BS41: -0.007519152019
B42: 28 | C42: 2020-05-28T16:01:55 | D42: BUY | E42: 5.00 | F42: USDJPY | G42: 107.76300 | H42: 107.75100 | I42: 0 | J42: 2020-05-28T16:02:25 | K42: 107.75100 | L42: -37.65 | M42: -55.680 | P42: -0.012 | Q42: 5000.2032 | R42: 4999.6464 | S42: -1.2 | T42: -93.33 | U42: -1.87% | V42: 0d 0h 0m | W42: -0.19R | X42: Bounce | AD42: L | AE42: 1000 | AF42: 0.0003472222161 | AG42: 0.010 | AH42: 147 | AI42: 1 | AJ42: 0.01 | AM42: 928 | AN42: May | AO42: 2020 | AP42: 5 | AQ42: =IF(COUNTIF($F$15:F42,F42)=1,B42,"") -> 28 | AR42: 0.00028 | AS42: 2020-05-28T16:02:49.192 | AT42: 2020-05-28T16:05:44.328 | AU42: 27 | AV42: 2020-05-01 | AZ42: 3318.6 | BA42: 270.0 | BB42: -37.65 | BC42: 0 | BD42: 232.35 | BE42: 0.07001446393 | BF42: 28 | BG42: 50677.71 | BH42: 50677.71 | BI42: 0.06548441119 | BK42: 1 | BL42: 0 | BM42: 0 | BN42: 2 | BO42: 494.7 | BP42: 0 | BQ42: 2 | BR42: =IFERROR(MAX($BG$14:BG42),"") -> 50827.54 | BS42: -0.002947811364
B43: 29 | C43: 2020-05-28T16:11:54 | D43: BUY | E43: 10.00 | F43: EURUSD | G43: 1.10293 | H43: 1.10350 | I43: 0 | J43: 2020-05-28T16:16:40 | K43: 1.10366 | L43: -75.30 | M43: 730.000 | P43: 0.00073 | Q43: 11029.3 | R43: 11036.6 | S43: 7.3 | T43: 654.70 | U43: 5.94% | V43: 0d 0h 4m | W43: 1.29R | Y43: AS PLANNED | Z43: CONFIDENT | AD43: W | AE43: 100000 | AF43: 0.00331018518 | AG43: 0.000 | AH43: 109 | AI43: 1 | AJ43: 0.01 | AM43: 100000 | AN43: May | AO43: 2020 | AP43: 5 | AQ43: =IF(COUNTIF($F$15:F43,F43)=1,B43,"") ->  | AR43: 0.00029 | AS43: 2020-05-28T16:17:05.056 | AT43: 2020-05-28T16:17:05.056 | AU43: 29 | AV43: 2020-05-01 | AZ43: 11029.3 | BA43: 730.0 | BB43: -75.3 | BC43: 0 | BD43: 654.7 | BE43: 0.05936006818 | BF43: 29 | BG43: 51332.41 | BH43: 51332.41 | BI43: 0.2148603582 | BK43: 1 | BL43: 0 | BM43: 0 | BN43: 3 | BO43: 1149.4 | BP43: 0 | BQ43: 3 | BR43: =IFERROR(MAX($BG$14:BG43),"") -> 51332.41 | BS43: 0
B44: 30 | C44: 2020-05-28T16:41:16 | D44: BUY | E44: 50.00 | F44: GBPUSD | G44: 1.22822 | H44: 1.22858 | I44: 0 | J44: 2020-05-28T16:42:58 | K44: 1.22858 | L44: -376.50 | M44: 1,800.000 | P44: 0.00036 | Q44: 61411 | R44: 61429 | S44: 3.6 | T44: 1,423.50 | U44: 2.32% | V44: 0d 0h 1m | W44: 2.77R | X44: Momentum | Y44: AS PLANNED | Z44: CONFIDENT | AD44: W | AE44: 100000 | AF44: 0.001180555555 | AG44: 0.000 | AH44: 127 | AI44: 1 | AJ44: 0.01 | AM44: 100000 | AN44: May | AO44: 2020 | AP44: 5 | AQ44: =IF(COUNTIF($F$15:F44,F44)=1,B44,"") ->  | AR44: 0.0003 | AS44: 2020-05-28T16:43:23.920 | AT44: 2020-05-28T16:43:23.920 | AU44: 30 | AV44: 2020-05-01 | AZ44: 61411 | BA44: 1,800.0 | BB44: -376.5 | BC44: 0 | BD44: 1423.5 | BE44: 0.02317988634 | BF44: 30 | BG44: 52755.91 | BH44: 52755.91 | BI44: 1.164059155 | BK44: 1 | BL44: 0 | BM44: 0 | BN44: 4 | BO44: 2572.9 | BP44: 0 | BQ44: 4 | BR44: =IFERROR(MAX($BG$14:BG44),"") -> 52755.91 | BS44: 0
B45: 31 | C45: 2020-05-28T17:07:35 | D45: BUY | E45: 20.00 | F45: EURUSD | G45: 1.10429 | H45: 1.10419 | I45: 0 | J45: 2020-05-28T17:08:13 | K45: 1.10419 | L45: -150.60 | M45: -200.000 | P45: -0.0001 | Q45: 22085.8 | R45: 22083.8 | S45: -1.0 | T45: -350.60 | U45: -1.59% | V45: 0d 0h 0m | W45: -0.66R | AD45: L | AE45: 100000 | AF45: 0.0004398148158 | AG45: 0.000 | AH45: 109 | AI45: 1 | AJ45: 0.01 | AM45: 100000 | AN45: May | AO45: 2020 | AP45: 5 | AQ45: =IF(COUNTIF($F$15:F45,F45)=1,B45,"") ->  | AR45: 0.00031 | AS45: 2020-05-28T17:08:39.784 | AT45: 2020-05-28T17:08:39.784 | AU45: 31 | AV45: 2020-05-01 | AZ45: 22085.8 | BA45: -200.0 | BB45: -150.6 | BC45: 0 | BD45: -350.6 | BE45: -0.01587445327 | BF45: 31 | BG45: 52405.31 | BH45: 52405.31 | BI45: 0.4214420256 | BK45: -1 | BL45: -1 | BM45: -350.6 | BN45: 0 | BO45: 0 | BP45: 0 | BQ45: -1 | BR45: =IFERROR(MAX($BG$14:BG45),"") -> 52755.91 | BS45: -0.006645700927
B46: 32 | C46: 2020-05-29T04:15:03 | D46: BUY | E46: 1.00 | F46: EURUSD | G46: 1.10761 | H46: 1.10882 | I46: 0 | J46: 2020-05-29T06:02:37 | K46: 1.10882 | L46: -7.53 | M46: 121.000 | P46: 0.00121 | Q46: 1107.61 | R46: 1108.82 | S46: 12.1 | T46: 113.47 | U46: 10.24% | V46: 0d 1h 47m | W46: 0.22R | AD46: W | AE46: 100000 | AF46: 0.07469907407 | AG46: 0.000 | AH46: 109 | AI46: 1 | AJ46: 0.01 | AM46: 100000 | AN46: May | AO46: 2020 | AP46: 6 | AQ46: =IF(COUNTIF($F$15:F46,F46)=1,B46,"") ->  | AR46: 0.00032 | AS46: 2020-05-29T06:03:04.648 | AT46: 2020-05-29T06:03:04.648 | AU46: 32 | AV46: 2020-05-01 | AZ46: 1107.61 | BA46: 121.0 | BB46: -7.53 | BC46: 0 | BD46: 113.47 | BE46: 0.1024458067 | BF46: 32 | BG46: 52518.78 | BH46: 52518.78 | BI46: 0.02108978921 | BK46: 1 | BL46: 0 | BM46: 0 | BN46: 1 | BO46: 113.47 | BP46: 0 | BQ46: 1 | BR46: =IFERROR(MAX($BG$14:BG46),"") -> 52755.91 | BS46: -0.004494851856
B47: 33 | C47: 2020-05-29T06:01:51 | D47: BUY | E47: 5.00 | F47: GBPUSD | G47: 1.23297 | H47: 0 | I47: 0 | J47: 2020-05-29T06:14:02 | K47: 1.23236 | L47: -37.65 | M47: -305.000 | P47: -0.00061 | Q47: 6164.85 | R47: 6161.8 | S47: -6.1 | T47: -342.65 | U47: -5.56% | V47: 0d 0h 12m | W47: -0.65R | AD47: L | AE47: 100000 | AF47: 0.008460648147 | AG47: 0.000 | AH47: 127 | AI47: 1 | AJ47: 0.01 | AM47: 100000 | AN47: May | AO47: 2020 | AP47: 6 | AQ47: =IF(COUNTIF($F$15:F47,F47)=1,B47,"") ->  | AR47: 0.00033 | AS47: 2020-05-29T06:14:30.512 | AT47: 2020-05-29T06:14:30.512 | AU47: 33 | AV47: 2020-05-01 | AZ47: 6164.85 | BA47: -305.0 | BB47: -37.65 | BC47: 0 | BD47: -342.65 | BE47: -0.0555812388 | BF47: 33 | BG47: 52176.13 | BH47: 52176.13 | BI47: 0.1181546044 | BK47: -1 | BL47: -1 | BM47: -342.65 | BN47: 0 | BO47: 0 | BP47: 0 | BQ47: -1 | BR47: =IFERROR(MAX($BG$14:BG47),"") -> 52755.91 | BS47: -0.01098985877
B48: 34 | C48: 2020-05-29T08:07:26 | D48: BUY | E48: 5.00 | F48: USDJPY | G48: 107.14800 | H48: 107.21000 | I48: 107.25500 | J48: 2020-05-29T08:17:06 | K48: 107.21000 | L48: -37.65 | M48: 289.150 | P48: 0.062 | Q48: 4997.071645 | R48: 4999.963145 | S48: 6.2 | T48: 251.50 | U48: 5.03% | V48: 0d 0h 9m | W48: 0.48R | AD48: W | AE48: 1000 | AF48: 0.006712962961 | AG48: 0.010 | AH48: 147 | AI48: 1 | AJ48: 0.01 | AM48: 932.7419355 | AN48: May | AO48: 2020 | AP48: 6 | AQ48: =IF(COUNTIF($F$15:F48,F48)=1,B48,"") ->  | AR48: 0.00034 | AS48: 2020-05-29T08:17:35.376 | AT48: 2020-05-29T08:17:35.376 | AU48: 34 | AV48: 2020-05-01 | AZ48: 4997.071645 | BA48: 289.2 | BB48: -37.65 | BC48: 0 | BD48: 251.5 | BE48: 0.05032947651 | BF48: 34 | BG48: 52427.63 | BH48: 52427.63 | BI48: 0.09531370472 | BK48: 1 | BL48: 0 | BM48: 0 | BN48: 1 | BO48: 251.5 | BP48: 0 | BQ48: 1 | BR48: =IFERROR(MAX($BG$14:BG48),"") -> 52755.91 | BS48: -0.006222620366
B49: 35 | C49: 2020-05-29T08:30:13 | D49: BUY | E49: 5.00 | F49: AUDUSD | G49: 0.66495 | H49: 0.66583 | I49: 0 | J49: 2020-05-29T08:54:06 | K49: 0.66583 | L49: -37.65 | M49: 440.000 | P49: 0.00088 | Q49: 3324.75 | R49: 3329.15 | S49: 8.8 | T49: 402.35 | U49: 12.10% | V49: 0d 0h 23m | W49: 0.77R | Y49: AS PLANNED | Z49: CONFIDENT | AD49: W | AE49: 100000 | AF49: 0.01658564815 | AG49: 0.000 | AH49: 82 | AI49: 1 | AJ49: 0.01 | AM49: 100000 | AN49: May | AO49: 2020 | AP49: 6 | AQ49: =IF(COUNTIF($F$15:F49,F49)=1,B49,"") ->  | AR49: 0.00035 | AS49: 2020-05-29T08:54:36.240 | AT49: 2020-05-29T08:54:36.240 | AU49: 35 | AV49: 2020-05-01 | AZ49: 3324.75 | BA49: 440.0 | BB49: -37.65 | BC49: 0 | BD49: 402.35 | BE49: 0.1210166178 | BF49: 35 | BG49: 52829.98 | BH49: 52829.98 | BI49: 0.06293301644 | BK49: 1 | BL49: 0 | BM49: 0 | BN49: 2 | BO49: 653.85 | BP49: 0 | BQ49: 2 | BR49: =IFERROR(MAX($BG$14:BG49),"") -> 52829.98 | BS49: 0
B50: 36 | C50: 2020-05-29T13:50:18 | D50: BUY | E50: 50.00 | F50: USDCAD | G50: 1.37441 | H50: 1.37478 | I50: 0 | J50: 2020-05-29T13:51:57 | K50: 1.37478 | L50: -376.50 | M50: 1,345.670 | P50: 0.00037 | Q50: 49986.54878 | R50: 50000.00548 | S50: 3.7 | T50: 969.17 | U50: 1.94% | V50: 0d 0h 1m | W50: 1.83R | Y50: AS PLANNED | Z50: CONFIDENT | AD50: W | AE50: 100000 | AF50: 0.001145833332 | AG50: 0.000 | AH50: 140 | AI50: 1 | AJ50: 0.01 | AM50: 72738.91892 | AN50: May | AO50: 2020 | AP50: 6 | AQ50: =IF(COUNTIF($F$15:F50,F50)=1,B50,"") -> 36 | AR50: 0.00036 | AS50: 2020-05-29T13:52:28.104 | AT50: 2020-05-29T13:52:28.104 | AU50: 36 | AV50: 2020-05-01 | AZ50: 49986.54878 | BA50: 1,345.7 | BB50: -376.5 | BC50: 0 | BD50: 969.17 | BE50: 0.01938861601 | BF50: 36 | BG50: 53799.15 | BH50: 53799.15 | BI50: 0.9291326866 | BK50: 1 | BL50: 0 | BM50: 0 | BN50: 3 | BO50: 1623.02 | BP50: 0 | BQ50: 3 | BR50: =IFERROR(MAX($BG$14:BG50),"") -> 53799.15 | BS50: 0
B51: 37 | C51: 2020-05-29T13:53:32 | D51: BUY | E51: 50.00 | F51: USDCAD | G51: 1.37475 | H51: 1.37462 | I51: 0 | J51: 2020-05-29T13:54:49 | K51: 1.37468 | L51: -376.50 | M51: -254.600 | P51: -7e-05 | Q51: 50001.62143 | R51: 49999.07543 | S51: -0.7 | T51: -631.10 | U51: -1.26% | V51: 0d 0h 1m | W51: -1.17R | AD51: L | AE51: 100000 | AF51: 0.000891203701 | AG51: 0.000 | AH51: 140 | AI51: 1 | AJ51: 0.01 | AM51: 72742.85714 | AN51: May | AO51: 2020 | AP51: 6 | AQ51: =IF(COUNTIF($F$15:F51,F51)=1,B51,"") ->  | AR51: 0.00037 | AS51: 2020-05-29T13:55:20.968 | AT51: 2020-05-29T13:55:20.968 | AU51: 37 | AV51: 2020-05-01 | AZ51: 50001.62143 | BA51: -254.6 | BB51: -376.5 | BC51: 0 | BD51: -631.1 | BE51: -0.0126215907 | BF51: 37 | BG51: 53168.05 | BH51: 53168.05 | BI51: 0.9404448993 | BK51: -1 | BL51: -1 | BM51: -631.1 | BN51: 0 | BO51: 0 | BP51: 0 | BQ51: -1 | BR51: =IFERROR(MAX($BG$14:BG51),"") -> 53799.15 | BS51: -0.01173066861
B52: 38 | C52: 2020-05-29T14:11:14 | D52: BUY | E52: 40.00 | F52: USDCAD | G52: 1.37448 | H52: 1.37434 | I52: 0 | J52: 2020-05-29T14:12:22 | K52: 1.37434 | L52: -301.20 | M52: -407.470 | P52: -0.00014 | Q52: 40004.2404 | R52: 40000.1657 | S52: -1.4 | T52: -708.67 | U52: -1.77% | V52: 0d 0h 1m | W52: -1.33R | AD52: L | AE52: 100000 | AF52: 0.0007870370391 | AG52: 0.000 | AH52: 140 | AI52: 1 | AJ52: 0.01 | AM52: 72762.5 | AN52: May | AO52: 2020 | AP52: 6 | AQ52: =IF(COUNTIF($F$15:F52,F52)=1,B52,"") ->  | AR52: 0.00038 | AS52: 2020-05-29T14:12:54.832 | AT52: 2020-05-29T14:12:54.832 | AU52: 38 | AV52: 2020-05-01 | AZ52: 40004.2404 | BA52: -407.5 | BB52: -301.2 | BC52: 0 | BD52: -708.67 | BE52: -0.01771487205 | BF52: 38 | BG52: 52459.38 | BH52: 52459.38 | BI52: 0.762575547 | BK52: -1 | BL52: -2 | BM52: -1339.77 | BN52: 0 | BO52: 0 | BP52: 0 | BQ52: -2 | BR52: =IFERROR(MAX($BG$14:BG52),"") -> 53799.15 | BS52: -0.02490318156
B53: 39 | C53: 2020-05-29T14:15:39 | D53: BUY | E53: 30.00 | F53: EURUSD | G53: 1.11338 | H53: 1.11332 | I53: 0 | J53: 2020-05-29T14:18:11 | K53: 1.11332 | L53: -225.90 | M53: -180.000 | P53: -6e-05 | Q53: 33401.4 | R53: 33399.6 | S53: -0.6 | T53: -405.90 | U53: -1.22% | V53: 0d 0h 2m | W53: -0.77R | AD53: L | AE53: 100000 | AF53: 0.001759259263 | AG53: 0.000 | AH53: 109 | AI53: 1 | AJ53: 0.01 | AM53: 100000 | AN53: May | AO53: 2020 | AP53: 6 | AQ53: =IF(COUNTIF($F$15:F53,F53)=1,B53,"") ->  | AR53: 0.00039 | AS53: 2020-05-29T14:18:44.696 | AT53: 2020-05-29T14:18:44.696 | AU53: 39 | AV53: 2020-05-01 | AZ53: 33401.4 | BA53: -180.0 | BB53: -225.9 | BC53: 0 | BD53: -405.9 | BE53: -0.01215218524 | BF53: 39 | BG53: 52053.48 | BH53: 52053.48 | BI53: 0.6416746777 | BK53: -1 | BL53: -3 | BM53: -1745.67 | BN53: 0 | BO53: 0 | BP53: 0 | BQ53: -3 | BR53: =IFERROR(MAX($BG$14:BG53),"") -> 53799.15 | BS53: -0.03244791042
B54: 40 | C54: 2020-05-29T14:20:31 | D54: BUY | E54: 40.00 | F54: USDCAD | G54: 1.37336 | H54: 1.37380 | I54: 0 | J54: 2020-05-29T14:28:06 | K54: 1.37380 | L54: -301.20 | M54: 1,281.120 | P54: 0.00044 | Q54: 39987.24916 | R54: 40000.06036 | S54: 4.4 | T54: 979.92 | U54: 2.45% | V54: 0d 0h 7m | W54: 1.88R | AD54: W | AE54: 100000 | AF54: 0.005266203705 | AG54: 0.000 | AH54: 140 | AI54: 1 | AJ54: 0.01 | AM54: 72790.90909 | AN54: May | AO54: 2020 | AP54: 6 | AQ54: =IF(COUNTIF($F$15:F54,F54)=1,B54,"") ->  | AR54: 0.0004 | AS54: 2020-05-29T14:28:40.560 | AT54: 2020-05-29T14:28:40.560 | AU54: 40 | AV54: 2020-05-01 | AZ54: 39987.24916 | BA54: 1,281.1 | BB54: -301.2 | BC54: 0 | BD54: 979.92 | BE54: 0.02450581174 | BF54: 40 | BG54: 53033.4 | BH54: 53033.4 | BI54: 0.7540012363 | BK54: 1 | BL54: 0 | BM54: 0 | BN54: 1 | BO54: 979.92 | BP54: 0 | BQ54: 1 | BR54: =IFERROR(MAX($BG$14:BG54),"") -> 53799.15 | BS54: -0.01423349625
B55: 41 | C55: 2020-05-29T15:24:34 | D55: BUY | E55: 40.00 | F55: USDCAD | G55: 1.37304 | H55: 1.37289 | I55: 0 | J55: 2020-05-29T15:25:47 | K55: 1.37289 | L55: -301.20 | M55: -437.030 | P55: -0.00015 | Q55: 40003.97808 | R55: 39999.60778 | S55: -1.5 | T55: -738.23 | U55: -1.85% | V55: 0d 0h 1m | W55: -1.39R | Y55: TOO LATE | Z55: HOPE | AD55: L | AE55: 100000 | AF55: 0.0008449074085 | AG55: 0.000 | AH55: 140 | AI55: 1 | AJ55: 0.01 | AM55: 72838.33333 | AN55: May | AO55: 2020 | AP55: 6 | AQ55: =IF(COUNTIF($F$15:F55,F55)=1,B55,"") ->  | AR55: 0.00041 | AS55: 2020-05-29T15:26:22.424 | AT55: 2020-05-29T15:26:22.424 | AU55: 41 | AV55: 2020-05-01 | AZ55: 40003.97808 | BA55: -437.0 | BB55: -301.2 | BC55: 0 | BD55: -738.23 | BE55: -0.01845391472 | BF55: 41 | BG55: 52295.17 | BH55: 52295.17 | BI55: 0.7649650643 | BK55: -1 | BL55: -1 | BM55: -738.23 | BN55: 0 | BO55: 0 | BP55: 0 | BQ55: -1 | BR55: =IFERROR(MAX($BG$14:BG55),"") -> 53799.15 | BS55: -0.02795546026
B56: 42 | C56: 2020-05-29T15:31:47 | D56: BUY | E56: 30.00 | F56: EURUSD | G56: 1.11361 | H56: 0 | I56: 0 | J56: 2020-05-29T15:33:05 | K56: 1.11346 | L56: -225.90 | M56: -450.000 | P56: -0.00015 | Q56: 33408.3 | R56: 33403.8 | S56: -1.5 | T56: -675.90 | U56: -2.02% | V56: 0d 0h 1m | W56: -1.29R | Y56: TOO LATE | Z56: HOPE | AD56: L | AE56: 100000 | AF56: 0.0009027777778 | AG56: 0.000 | AH56: 109 | AI56: 1 | AJ56: 0.01 | AM56: 100000 | AN56: May | AO56: 2020 | AP56: 6 | AQ56: =IF(COUNTIF($F$15:F56,F56)=1,B56,"") ->  | AR56: 0.00042 | AS56: 2020-05-29T15:33:41.288 | AT56: 2020-05-29T15:33:41.288 | AU56: 42 | AV56: 2020-05-01 | AZ56: 33408.3 | BA56: -450.0 | BB56: -225.9 | BC56: 0 | BD56: -675.9 | BE56: -0.02023149936 | BF56: 42 | BG56: 51619.27 | BH56: 51619.27 | BI56: 0.6472059756 | BK56: -1 | BL56: -2 | BM56: -1414.13 | BN56: 0 | BO56: 0 | BP56: 0 | BQ56: -2 | BR56: =IFERROR(MAX($BG$14:BG56),"") -> 53799.15 | BS56: -0.04051885578
B57: 43 | C57: 2020-05-29T15:35:14 | D57: BUY | E57: 50.00 | F57: AUDUSD | G57: 0.66582 | H57: 0.66635 | I57: 0 | J57: 2020-05-29T15:37:03 | K57: 0.66635 | L57: -376.50 | M57: 2,650.000 | P57: 0.00053 | Q57: 33291 | R57: 33317.5 | S57: 5.3 | T57: 2,273.50 | U57: 6.83% | V57: 0d 0h 1m | W57: 4.40R | Y57: BROKE RULES | Z57: CONFIDENT | AD57: W | AE57: 100000 | AF57: 0.001261574071 | AG57: 0.000 | AH57: 82 | AI57: 1 | AJ57: 0.01 | AM57: 100000 | AN57: May | AO57: 2020 | AP57: 6 | AQ57: =IF(COUNTIF($F$15:F57,F57)=1,B57,"") ->  | AR57: 0.00043 | AS57: 2020-05-29T15:37:40.152 | AT57: 2020-05-29T15:37:40.152 | AU57: 43 | AV57: 2020-05-01 | AZ57: 33291 | BA57: 2,650.0 | BB57: -376.5 | BC57: 0 | BD57: 2273.5 | BE57: 0.0682917305 | BF57: 43 | BG57: 53892.77 | BH57: 53892.77 | BI57: 0.617726645 | BK57: 1 | BL57: 0 | BM57: 0 | BN57: 1 | BO57: 2273.5 | BP57: 0 | BQ57: 1 | BR57: =IFERROR(MAX($BG$14:BG57),"") -> 53892.77 | BS57: 0
B58: 44 | C58: 2020-06-01T04:28:43 | D58: BUY | E58: 5.81 | F58: EURUSD | G58: 1.11359 | H58: 0 | I58: 0 | J58: 2020-06-01T04:54:28 | K58: 1.11345 | L58: -43.75 | M58: -81.340 | P58: -0.00014 | Q58: 6469.9579 | R58: 6469.1445 | S58: -1.4 | T58: -125.09 | U58: -1.93% | V58: 0d 0h 25m | W58: -0.23R | AD58: L | AE58: 100000 | AF58: 0.01788194444 | AG58: 0.000 | AH58: 109 | AI58: 1 | AJ58: 0.01 | AM58: 100000 | AN58: Jun | AO58: 2020 | AP58: 2 | AQ58: =IF(COUNTIF($F$15:F58,F58)=1,B58,"") ->  | AR58: 0.00044 | AS58: 2020-06-01T04:55:06.016 | AT58: 2020-06-01T04:55:06.016 | AU58: 44 | AV58: 2020-06-01 | AZ58: 6469.9579 | BA58: -81.3 | BB58: -43.75 | BC58: 0 | BD58: -125.09 | BE58: -0.01933397434 | BF58: 44 | BG58: 53767.68 | BH58: 53767.68 | BI58: 0.120331729 | BK58: -1 | BL58: -1 | BM58: -125.09 | BN58: 0 | BO58: 0 | BP58: 0 | BQ58: -1 | BR58: =IFERROR(MAX($BG$14:BG58),"") -> 53892.77 | BS58: -0.002321090566
B59: 45 | C59: 2020-06-01T04:58:38 | D59: BUY | E59: 10.00 | F59: GBPUSD | G59: 1.24098 | H59: 1.24076 | I59: 0 | J59: 2020-06-01T05:01:41 | K59: 1.24076 | L59: -75.30 | M59: -220.000 | P59: -0.00022 | Q59: 12409.8 | R59: 12407.6 | S59: -2.2 | T59: -295.30 | U59: -2.38% | V59: 0d 0h 3m | W59: -0.55R | AD59: L | AE59: 100000 | AF59: 0.002118055556 | AG59: 0.000 | AH59: 127 | AI59: 1 | AJ59: 0.01 | AM59: 100000 | AN59: Jun | AO59: 2020 | AP59: 2 | AQ59: =IF(COUNTIF($F$15:F59,F59)=1,B59,"") ->  | AR59: 0.00045 | AS59: 2020-06-01T05:02:19.880 | AT59: 2020-06-01T05:02:19.880 | AU59: 45 | AV59: 2020-06-01 | AZ59: 12409.8 | BA59: -220.0 | BB59: -75.3 | BC59: 0 | BD59: -295.3 | BE59: -0.02379570984 | BF59: 45 | BG59: 53472.38 | BH59: 53472.38 | BI59: 0.2320786918 | BK59: -1 | BL59: -2 | BM59: -420.39 | BN59: 0 | BO59: 0 | BP59: 0 | BQ59: -2 | BR59: =IFERROR(MAX($BG$14:BG59),"") -> 53892.77 | BS59: -0.00780048975
B60: 46 | C60: 2020-06-01T05:03:30 | D60: BUY | E60: 10.00 | F60: USDJPY | G60: 107.71500 | H60: 107.69900 | I60: 0 | J60: 2020-06-01T05:09:12 | K60: 107.69900 | L60: -75.30 | M60: -148.560 | P60: -0.016 | Q60: 10001.33775 | R60: 9999.85215 | S60: -1.6 | T60: -223.86 | U60: -2.24% | V60: 0d 0h 5m | W60: -0.42R | AD60: L | AE60: 1000 | AF60: 0.003958333327 | AG60: 0.010 | AH60: 147 | AI60: 1 | AJ60: 0.01 | AM60: 928.5 | AN60: Jun | AO60: 2020 | AP60: 2 | AQ60: =IF(COUNTIF($F$15:F60,F60)=1,B60,"") ->  | AR60: 0.00046 | AS60: 2020-06-01T05:09:51.744 | AT60: 2020-06-01T05:09:51.744 | AU60: 46 | AV60: 2020-06-01 | AZ60: 10001.33775 | BA60: -148.6 | BB60: -75.3 | BC60: 0 | BD60: -223.86 | BE60: -0.02238300571 | BF60: 46 | BG60: 53248.52 | BH60: 53248.52 | BI60: 0.1878237696 | BK60: -1 | BL60: -3 | BM60: -644.25 | BN60: 0 | BO60: 0 | BP60: 0 | BQ60: -3 | BR60: =IFERROR(MAX($BG$14:BG60),"") -> 53892.77 | BS60: -0.01195429368
B61: 47 | C61: 2020-06-01T05:25:00 | D61: BUY | E61: 10.00 | F61: GBPUSD | G61: 1.24114 | H61: 1.24095 | I61: 0 | J61: 2020-06-01T05:29:24 | K61: 1.24095 | L61: -75.30 | M61: -190.000 | P61: -0.00019 | Q61: 12411.4 | R61: 12409.5 | S61: -1.9 | T61: -265.30 | U61: -2.14% | V61: 0d 0h 4m | W61: -0.50R | AD61: L | AE61: 100000 | AF61: 0.003055555557 | AG61: 0.000 | AH61: 127 | AI61: 1 | AJ61: 0.01 | AM61: 100000 | AN61: Jun | AO61: 2020 | AP61: 2 | AQ61: =IF(COUNTIF($F$15:F61,F61)=1,B61,"") ->  | AR61: 0.00047 | AS61: 2020-06-01T05:30:04.608 | AT61: 2020-06-01T05:30:04.608 | AU61: 47 | AV61: 2020-06-01 | AZ61: 12411.4 | BA61: -190.0 | BB61: -75.3 | BC61: 0 | BD61: -265.3 | BE61: -0.02137550961 | BF61: 47 | BG61: 52983.22 | BH61: 52983.22 | BI61: 0.2342515234 | BK61: -1 | BL61: -4 | BM61: -909.55 | BN61: 0 | BO61: 0 | BP61: 0 | BQ61: -4 | BR61: =IFERROR(MAX($BG$14:BG61),"") -> 53892.77 | BS61: -0.01687703193
B62: 48 | C62: 2020-06-01T05:40:25 | D62: BUY | E62: 10.00 | F62: EURUSD | G62: 1.11378 | H62: 1.11369 | I62: 0 | J62: 2020-06-01T05:53:06 | K62: 1.11369 | L62: -75.30 | M62: -90.000 | P62: -9e-05 | Q62: 11137.8 | R62: 11136.9 | S62: -0.9 | T62: -165.30 | U62: -1.48% | V62: 0d 0h 12m | W62: -0.31R | AD62: L | AE62: 100000 | AF62: 0.00880787037 | AG62: 0.000 | AH62: 109 | AI62: 1 | AJ62: 0.01 | AM62: 100000 | AN62: Jun | AO62: 2020 | AP62: 2 | AQ62: =IF(COUNTIF($F$15:F62,F62)=1,B62,"") ->  | AR62: 0.00048 | AS62: 2020-06-01T05:53:47.472 | AT62: 2020-06-01T05:46:23.336 | AU62: 49 | AV62: 2020-06-01 | AZ62: 6731.7 | BA62: 490.0 | BB62: -75.3 | BC62: 0 | BD62: 414.7 | BE62: 0.06160405247 | BF62: 48 | BG62: 53397.92 | BH62: 53397.92 | BI62: 0.1260667082 | BK62: 1 | BL62: 0 | BM62: 0 | BN62: 1 | BO62: 414.7 | BP62: 0 | BQ62: 1 | BR62: =IFERROR(MAX($BG$14:BG62),"") -> 53892.77 | BS62: -0.009182122203
B63: 49 | C63: 2020-06-01T05:41:24 | D63: BUY | E63: 10.00 | F63: AUDUSD | G63: 0.67317 | H63: 0.67366 | I63: 0 | J63: 2020-06-01T05:45:41 | K63: 0.67366 | L63: -75.30 | M63: 490.000 | P63: 0.00049 | Q63: 6731.7 | R63: 6736.6 | S63: 4.9 | T63: 414.70 | U63: 6.16% | V63: 0d 0h 4m | W63: 0.78R | AD63: W | AE63: 100000 | AF63: 0.002974537034 | AG63: 0.000 | AH63: 82 | AI63: 1 | AJ63: 0.01 | AM63: 100000 | AN63: Jun | AO63: 2020 | AP63: 2 | AQ63: =IF(COUNTIF($F$15:F63,F63)=1,B63,"") ->  | AR63: 0.00049 | AS63: 2020-06-01T05:46:23.336 | AT63: 2020-06-01T05:53:47.472 | AU63: 48 | AV63: 2020-06-01 | AZ63: 11137.8 | BA63: -90.0 | BB63: -75.3 | BC63: 0 | BD63: -165.3 | BE63: -0.01484135107 | BF63: 49 | BG63: 53232.62 | BH63: 53232.62 | BI63: 0.2092288525 | BK63: -1 | BL63: -1 | BM63: -165.3 | BN63: 0 | BO63: 0 | BP63: 0 | BQ63: -1 | BR63: =IFERROR(MAX($BG$14:BG63),"") -> 53892.77 | BS63: -0.01224932398
B64: 50 | C64: 2020-06-01T06:00:37 | D64: BUY | E64: 10.00 | F64: XAUUSD | G64: 1,738.84000 | H64: 0 | I64: 0 | J64: 2020-06-01T06:00:50 | K64: 1,738.64000 | L64: 0.00 | M64: -200.000 | P64: -0.2 | Q64: 1738840 | R64: 1738640 | S64: -2.0 | T64: -200.00 | U64: -0.01% | V64: 0d 0h 0m | W64: -0.38R | AD64: L | AE64: 100 | AF64: 0.0001504629618 | AG64: 0.100 | AI64: 0 | AJ64: 1 | AM64: 100 | AN64: Jun | AO64: 2020 | AP64: 2 | AQ64: =IF(COUNTIF($F$15:F64,F64)=1,B64,"") ->  | AR64: 0.0005 | AS64: 2020-06-01T06:01:33.200 | AT64: 2020-06-01T06:01:33.200 | AU64: 50 | AV64: 2020-06-01 | AZ64: 1738840 | BA64: -200.0 | BB64: 0 | BC64: 0 | BD64: -200 | BE64: -0.0001150192082 | BF64: 50 | BG64: 53032.62 | BH64: 53032.62 | BI64: 32.78812173 | BK64: -1 | BL64: -2 | BM64: -365.3 | BN64: 0 | BO64: 0 | BP64: 0 | BQ64: -2 | BR64: =IFERROR(MAX($BG$14:BG64),"") -> 53892.77 | BS64: -0.01596039691
B65: 51 | C65: 2020-06-01T07:25:28 | D65: BUY | E65: 10.00 | F65: GBPUSD | G65: 1.23931 | H65: 1.23913 | I65: 0 | J65: 2020-06-01T07:31:07 | K65: 1.23913 | L65: -75.30 | M65: -180.000 | P65: -0.00018 | Q65: 12393.1 | R65: 12391.3 | S65: -1.8 | T65: -255.30 | U65: -2.06% | V65: 0d 0h 5m | W65: -0.48R | AD65: L | AE65: 100000 | AF65: 0.003923611112 | AG65: 0.000 | AH65: 127 | AI65: 1 | AJ65: 0.01 | AM65: 100000 | AN65: Jun | AO65: 2020 | AP65: 2 | AQ65: =IF(COUNTIF($F$15:F65,F65)=1,B65,"") ->  | AR65: 0.00051 | AS65: 2020-06-01T07:31:51.064 | AT65: 2020-06-01T07:29:35.928 | AU65: 52 | AV65: 2020-06-01 | AZ65: 1741320 | BA65: 110.0 | BB65: 0 | BC65: 0 | BD65: 110 | BE65: 6.317046838e-05 | BF65: 51 | BG65: 53142.62 | BH65: 53142.62 | BI65: 32.76692041 | BK65: 1 | BL65: 0 | BM65: 0 | BN65: 1 | BO65: 110 | BP65: 0 | BQ65: 1 | BR65: =IFERROR(MAX($BG$14:BG65),"") -> 53892.77 | BS65: -0.0139193068
B66: 52 | C66: 2020-06-01T07:28:15 | D66: BUY | E66: 10.00 | F66: XAUUSD | G66: 1,741.32000 | H66: 1,741.43000 | I66: 0 | J66: 2020-06-01T07:28:51 | K66: 1,741.43000 | L66: 0.00 | M66: 110.000 | P66: 0.11 | Q66: 1741320 | R66: 1741430 | S66: 1.1 | T66: 110.00 | U66: 0.01% | V66: 0d 0h 0m | W66: 0.21R | AD66: W | AE66: 100 | AF66: 0.0004166666695 | AG66: 0.100 | AI66: 0 | AJ66: 1 | AM66: 100 | AN66: Jun | AO66: 2020 | AP66: 2 | AQ66: =IF(COUNTIF($F$15:F66,F66)=1,B66,"") ->  | AR66: 0.00052 | AS66: 2020-06-01T07:29:35.928 | AT66: 2020-06-01T07:31:51.064 | AU66: 51 | AV66: 2020-06-01 | AZ66: 12393.1 | BA66: -180.0 | BB66: -75.3 | BC66: 0 | BD66: -255.3 | BE66: -0.02060017268 | BF66: 52 | BG66: 52887.32 | BH66: 52887.32 | BI66: 0.2343302705 | BK66: -1 | BL66: -1 | BM66: -255.3 | BN66: 0 | BO66: 0 | BP66: 0 | BQ66: -1 | BR66: =IFERROR(MAX($BG$14:BG66),"") -> 53892.77 | BS66: -0.0186564914
B67: 53 | C67: 2020-06-01T08:05:26 | D67: BUY | E67: 10.00 | F67: EURUSD | G67: 1.11318 | H67: 1.11309 | I67: 0 | J67: 2020-06-01T08:12:47 | K67: 1.11309 | L67: -75.30 | M67: -90.000 | P67: -9e-05 | Q67: 11131.8 | R67: 11130.9 | S67: -0.9 | T67: -165.30 | U67: -1.48% | V67: 0d 0h 7m | W67: -0.31R | X67: Momentum | AD67: L | AE67: 100000 | AF67: 0.005104166667 | AG67: 0.000 | AH67: 109 | AI67: 1 | AJ67: 0.01 | AM67: 100000 | AN67: Jun | AO67: 2020 | AP67: 2 | AQ67: =IF(COUNTIF($F$15:F67,F67)=1,B67,"") ->  | AR67: 0.00053 | AS67: 2020-06-01T08:13:32.792 | AT67: 2020-06-01T08:13:32.792 | AU67: 53 | AV67: 2020-06-01 | AZ67: 11131.8 | BA67: -90.0 | BB67: -75.3 | BC67: 0 | BD67: -165.3 | BE67: -0.01484935051 | BF67: 53 | BG67: 52722.02 | BH67: 52722.02 | BI67: 0.2111413789 | BK67: -1 | BL67: -2 | BM67: -420.6 | BN67: 0 | BO67: 0 | BP67: 0 | BQ67: -2 | BR67: =IFERROR(MAX($BG$14:BG67),"") -> 53892.77 | BS67: -0.02172369318
B68: 54 | C68: 2020-06-01T08:09:07 | D68: BUY | E68: 10.00 | F68: AUDUSD | G68: 0.67216 | H68: 0.67325 | I68: 0 | J68: 2020-06-01T08:29:03 | K68: 0.67325 | L68: -75.30 | M68: 1,090.000 | P68: 0.00109 | Q68: 6721.6 | R68: 6732.5 | S68: 10.9 | T68: 1,014.70 | U68: 15.10% | V68: 0d 0h 19m | W68: 1.92R | Y68: AS PLANNED | Z68: CONFIDENT | AD68: W | AE68: 100000 | AF68: 0.0138425926 | AG68: 0.000 | AH68: 82 | AI68: 1 | AJ68: 0.01 | AM68: 100000 | AN68: Jun | AO68: 2020 | AP68: 2 | AQ68: =IF(COUNTIF($F$15:F68,F68)=1,B68,"") ->  | AR68: 0.00054 | AS68: 2020-06-01T08:29:49.656 | AT68: 2020-06-01T08:23:59.520 | AU68: 55 | AV68: 2020-06-01 | AZ68: 871150 | BA68: -20.0 | BB68: 0 | BC68: 0 | BD68: -20 | BE68: -2.295815876e-05 | BF68: 54 | BG68: 52702.02 | BH68: 52702.02 | BI68: 16.52972694 | BK68: -1 | BL68: -3 | BM68: -440.6 | BN68: 0 | BO68: 0 | BP68: 0 | BQ68: -3 | BR68: =IFERROR(MAX($BG$14:BG68),"") -> 53892.77 | BS68: -0.02209480047
B69: 55 | C69: 2020-06-01T08:16:24 | D69: BUY | E69: 5.00 | F69: XAUUSD | G69: 1,742.30000 | H69: 1,742.26000 | I69: 0 | J69: 2020-06-01T08:23:12 | K69: 1,742.26000 | L69: 0.00 | M69: -20.000 | P69: -0.04 | Q69: 871150 | R69: 871130 | S69: -0.4 | T69: -20.00 | U69: -0.00% | V69: 0d 0h 6m | W69: -0.04R | X69: Momentum | AD69: L | AE69: 100 | AF69: 0.00472222222 | AG69: 0.100 | AI69: 0 | AJ69: 1 | AM69: 100 | AN69: Jun | AO69: 2020 | AP69: 2 | AQ69: =IF(COUNTIF($F$15:F69,F69)=1,B69,"") ->  | AR69: 0.00055 | AS69: 2020-06-01T08:23:59.520 | AT69: 2020-06-01T08:29:49.656 | AU69: 54 | AV69: 2020-06-01 | AZ69: 6721.6 | BA69: 1,090.0 | BB69: -75.3 | BC69: 0 | BD69: 1014.7 | BE69: 0.1509610807 | BF69: 55 | BG69: 53716.72 | BH69: 53716.72 | BI69: 0.1251304994 | BK69: 1 | BL69: 0 | BM69: 0 | BN69: 1 | BO69: 1014.7 | BP69: 0 | BQ69: 1 | BR69: =IFERROR(MAX($BG$14:BG69),"") -> 53892.77 | BS69: -0.003266671949
B70: 56 | C70: 2020-06-01T08:20:50 | D70: BUY | E70: 10.00 | F70: AUDUSD | G70: 0.67276 | H70: 0.67339 | I70: 0 | J70: 2020-06-01T08:33:02 | K70: 0.67339 | L70: -75.30 | M70: 630.000 | P70: 0.00063 | Q70: 6727.6 | R70: 6733.9 | S70: 6.3 | T70: 554.70 | U70: 8.25% | V70: 0d 0h 12m | W70: 1.03R | X70: Momentum | Y70: AS PLANNED | Z70: CONFIDENT | AD70: W | AE70: 100000 | AF70: 0.008472222224 | AG70: 0.000 | AH70: 82 | AI70: 1 | AJ70: 0.01 | AM70: 100000 | AN70: Jun | AO70: 2020 | AP70: 2 | AQ70: =IF(COUNTIF($F$15:F70,F70)=1,B70,"") ->  | AR70: 0.00056 | AS70: 2020-06-01T08:33:50.384 | AT70: 2020-06-01T08:33:50.384 | AU70: 56 | AV70: 2020-06-01 | AZ70: 6727.6 | BA70: 630.0 | BB70: -75.3 | BC70: 0 | BD70: 554.7 | BE70: 0.08245139426 | BF70: 56 | BG70: 54271.42 | BH70: 54271.42 | BI70: 0.1239621149 | BK70: 1 | BL70: 0 | BM70: 0 | BN70: 2 | BO70: 1569.4 | BP70: 0 | BQ70: 2 | BR70: =IFERROR(MAX($BG$14:BG70),"") -> 54271.42 | BS70: 0
B71: 57 | P71: 0 | Q71: 0 | R71: 0 | Y71: TOO LATE | Z71: HOPE | AD71: W | AE71: 1 | AF71: 0 | AG71: 0.010 | AI71: 0 | AJ71: 1 | AM71: 1 | AQ71: =IF(COUNTIF($F$15:F71,F71)=1,B71,"") ->  | AR71: 0.00057 | AV71: 1900-01-01 | BM71: 0 | BO71: 0 | BP71: 0 | BR71: =IFERROR(MAX($BG$14:BG71),"") -> 54271.42
B72: 58 | P72: 0 | Q72: 0 | R72: 0 | X72: Momentum | AD72: W | AE72: 1 | AF72: 0 | AG72: 0.010 | AI72: 0 | AJ72: 1 | AM72: 1 | AQ72: =IF(COUNTIF($F$15:F72,F72)=1,B72,"") ->  | AR72: 0.00058 | AV72: 1900-01-01 | BM72: 0 | BO72: 0 | BP72: 0 | BR72: =IFERROR(MAX($BG$14:BG72),"") -> 54271.42
B73: 59 | P73: 0 | Q73: 0 | R73: 0 | AD73: W | AE73: 1 | AF73: 0 | AG73: 0.010 | AI73: 0 | AJ73: 1 | AM73: 1 | AQ73: =IF(COUNTIF($F$15:F73,F73)=1,B73,"") ->  | AR73: 0.00059 | AV73: 1900-01-01 | BM73: 0 | BO73: 0 | BP73: 0 | BR73: =IFERROR(MAX($BG$14:BG73),"") -> 54271.42
B74: 60 | P74: 0 | Q74: 0 | R74: 0 | AD74: W | AE74: 1 | AF74: 0 | AG74: 0.010 | AI74: 0 | AJ74: 1 | AM74: 1 | AQ74: =IF(COUNTIF($F$15:F74,F74)=1,B74,"") ->  | AR74: 0.0006 | AV74: 1900-01-01 | BM74: 0 | BO74: 0 | BP74: 0 | BR74: =IFERROR(MAX($BG$14:BG74),"") -> 54271.42
A88: =(A87+1) -> 1

Sheet TRADE STATISTICS (hidden)
C1: TRADE STATISTICS
C3: TOP 6 TRADE SETUP | N3: STATISTICS | Z3: =SETTINGS!AA13 -> REWARD-RISK RATIO | AA3: edge | AB3: AVE.WIN% | AC3: AVE.LOSS% | AD3: TO b.e | AE3: WIN RATE | AF3: RRR w% | AG3: Adj. RRR | AH3: EDGE | AJ3: REWARD-RISK RATIO | AO3: NET PROFIT & LOSS | AR3: long | AS3: =SUMIFS(PNLwFees,ActionLog,"buy",PNLwFees,">0") -> 13680.41 | AY3: LONG STATISTICS | BA3: ave.profit | BB3: ave.loss | BD3: SHORT STATISTICS | BF3: ave.profit | BG3: ave.loss | BI3: OVERALL STATISTICS | BK3: ave.profit | BL3: ave.loss
D4: Setup | E4: Net Profit | F4: Trades | G4: Win% | H4: Expectancy | P4: Total | Q4: Long | R4: Short | Z4: LONG | AA4: =BB8 -> 1.85 | AB4: =SUMIFS(PNLPercent,ActionLog,"buy",WL,"w")/AY4 -> 7.27% | AC4: =-SUMIFS(PNLPercent,ActionLog,"buy",WL,"L")/AZ4 -> 4.38% | AD4: =IF($Z$3=$AJ$4,AH4,AF4) -> 37.57% | AE4: =AY6 -> 44.2% | AF4: =AC4/(AB4+AC4) -> 38% | AG4: =1/(1+((AE4*AB4)/((1-AE4)*AC4)/1)) -> 43% | AH4: =1/(1+(AA4/1)) -> 35% | AJ4: PROFIT-LOSS RATIO | AR4: long | AS4: =SUMIFS(PNLwFees,ActionLog,"buy",PNLwFees,"<=0") -> -9316.04 | AU4: ='MONTHLY REPORT'!AD6 -> 13805.11 | AW4: =IFERROR(AU4/'Bank Transfers'!H5,0) -> 0.2761022 | AY4: =COUNTIFS(PNLPercent,">0",ActionLog,"buy") -> 23 | AZ4: =COUNTIFS(PNLPercent,"<=0",ActionLog,"buy") -> 29 | BA4: =IFERROR(AS3/AY4,0) -> 594.80 | BB4: =IFERROR(-AS4/AZ4,0) -> 321.24 | BD4: =COUNTIFS(PNLPercent,">0",ActionLog,"sell") -> 2 | BE4: =COUNTIFS(PNLPercent,"<=0",ActionLog,"sell") -> 1 | BF4: =IFERROR(AS5/BD4,0) -> 62.35 | BG4: =IFERROR(-AS6/BE4,0) -> 217.65 | BI4: =BD4+AY4 -> 25 | BJ4: =BE4+AZ4 -> 30 | BK4: =IFERROR(AU4/BI4,0) -> 552.2044 | BL4: =IFERROR(-AU6/BJ4,0) -> 317.7896667
C5: =IFERROR(" "&'TRADE LOG'!EL2,"") -> Momentum | E5: =IFERROR('TRADE LOG'!EJ2,"") -> $3,057.6 | F5: =IFERROR('TRADE LOG'!EO2,"") -> 6 | G5: =IFERROR('TRADE LOG'!EN2,"") -> 66.7% | H5: =IFERROR('TRADE LOG'!EM2,"") -> $509.6 | N5: Ave. Profit | O5: =BK4 -> $552.2 | Q5: =BA4 -> $594.8 | R5: =BF4 -> $62.4 | Y5: =SETTINGS!O3 -> USD | Z5: SHORT | AA5: =BG8 -> 0.29 | AB5: =SUMIFS(PNLPercent,ActionLog,"sell",WL,"w")/BD4 -> 1.60% | AC5: =-SUMIFS(PNLPercent,ActionLog,"sell",WL,"L")/BE4 -> 6.58% | AD5: =IF($Z$3=$AJ$4,AH5,AF5) -> 80.45% | AE5: =BD6 -> 66.7% | AF5: =AC5/(AB5+AC5) -> 80% | AG5: =1/(1+((AE5*AB5)/((1-AE5)*AC5)/1)) -> 67% | AH5: =1/(1+(AA5/1)) -> 78% | AJ5: PROFIT RATIO | AO5: =AS4+AS3 -> 4364.37 | AQ5: =IFERROR(AO5/'Bank Transfers'!H5,0) -> 0.0872874 | AR5: short | AS5: =SUMIFS(PNLwFees,ActionLog,"sell",PNLwFees,">0") -> 124.7 | AU5: Total Profit | AW5: Profit % | AY5: Win Trades | AZ5: Loss Trades | BA5: Ave. Profit | BB5: Ave. Loss | BD5: Win Trades | BE5: Loss Trades | BF5: Ave. Profit | BG5: Ave. Loss | BI5: Win Trades | BJ5: Loss Trades | BK5: Ave. Profit | BL5: Ave. Loss
C6: =IFERROR(" "&'TRADE LOG'!EL3,"") -> NO SETUP | E6: =IFERROR('TRADE LOG'!EJ3,"") -> $1,737.3 | F6: =IFERROR('TRADE LOG'!EO3,"") -> 30 | G6: =IFERROR('TRADE LOG'!EN3,"") -> 43.3% | H6: =IFERROR('TRADE LOG'!EM3,"") -> $57.9 | N6: Ave. Loss | O6: =-BL4 -> $-317.8 | Q6: =-BB4 -> $-321.2 | R6: =-BG4 -> $-217.7 | X6: row | Y6: =CONCATENATE("L",COUNT(D16:D66)+16) -> L22 | Z6: TOTAL | AA6: =BL8 -> 1.74 | AB6: =DASHBOARD!$I$37 -> 6.82% | AC6: =-DASHBOARD!$I$38 -> 4.45% | AD6: 39.49% | AE6: =BI6 -> 45.5% | AF6: =AC6/(AB6+AC6) -> 39% | AG6: 44% | AH6: =1/(1+(AA6/1)) -> 37% | AJ6: Adj. PROFIT RATIO | AO6: Long Net P&L | AR6: short | AS6: =SUMIFS(PNLwFees,ActionLog,"sell",PNLwFees,"<=0") -> -217.65 | AU6: ='MONTHLY REPORT'!AE6 -> -9533.69 | AW6: =IFERROR(AU6/'Bank Transfers'!H5,0) -> -0.1906738 | AY6: =IFERROR(AY4/(AY4+AZ4),0) -> 44.2% | AZ6: =IFERROR(AZ4/(AY4+AZ4),0) -> 55.8% | BA6: =IFERROR(BA4/(BA4+BB4),0) -> 64.9% | BB6: =IFERROR(BB4/(BA4+BB4),0) -> 35.1% | BD6: =IFERROR(BD4/(BD4+BE4),0) -> 66.7% | BE6: =IFERROR(BE4/(BD4+BE4),0) -> 33.3% | BF6: =IFERROR(BF4/(BF4+BG4),0) -> 22.3% | BG6: =IFERROR(BG4/(BF4+BG4),0) -> 77.7% | BI6: =IFERROR(BI4/(BI4+BJ4),0) -> 45.5% | BJ6: =IFERROR(BJ4/(BI4+BJ4),0) -> 54.5% | BK6: =IFERROR(BK4/(BK4+BL4),0) -> 63.5% | BL6: =IFERROR(BL4/(BK4+BL4),0) -> 36.5%
C7: =IFERROR(" "&'TRADE LOG'!EL4,"") -> Swing Trade | E7: =IFERROR('TRADE LOG'!EJ4,"") -> $419.3 | F7: =IFERROR('TRADE LOG'!EO4,"") -> 7 | G7: =IFERROR('TRADE LOG'!EN4,"") -> 42.9% | H7: =IFERROR('TRADE LOG'!EM4,"") -> $59.9 | N7: Profit Ratio | O7: =BL8 -> 1.74 : 1 | Q7: =BB8 -> 1.85 : 1 | R7: =BG8 -> 0.29 : 1 | X7: =BB9 -> 83.93 | Y7: LONG | AA7: LONG | AO7: =AS6+AS5 -> -92.95 | AQ7: =IFERROR(AO7/'Bank Transfers'!H5,0) -> -0.001859 | AU7: Total Losses | AW7: Losses % | AY7: Win Rate | AZ7: Loss Rate | BA7: Profit Rate | BB7: Loss Rate | BD7: Win Rate | BE7: Loss Rate | BF7: Profit Rate | BG7: Loss Rate | BI7: Win Rate | BJ7: Loss Rate | BK7: Profit Rate | BL7: Loss Rate
C8: =IFERROR(" "&'TRADE LOG'!EL5,"") -> Bounce | E8: =IFERROR('TRADE LOG'!EJ5,"") -> $-942.8 | F8: =IFERROR('TRADE LOG'!EO5,"") -> 12 | G8: =IFERROR('TRADE LOG'!EN5,"") -> 41.7% | H8: =IFERROR('TRADE LOG'!EM5,"") -> $-78.6 | N8: Profit Factor | O8: =IFERROR(BJ9,0) -> 1.45 | Q8: =IFERROR(AZ9,0) -> 1.47 | R8: =IFERROR(BE9,0) -> 0.57 | X8: =BG9 -> (30.98) | Y8: SHORT | AA8: SHORT | AO8: Short Net P&L | AY8: W&L Ratio: | AZ8: =IFERROR(AY4/AZ4,AY4& " : " & 0) -> 0.79 | BA8: P&L Ratio: | BB8: =IFERROR(IFERROR(BA4/BB4,(ROUND(BA4,1) &" : " &"0")),"0 : 0") -> 1.85 | BD8: W&L Ratio: | BE8: =IFERROR(BD4/BE4,BD4& " : " & 0) -> 2.00 | BF8: P&L Ratio: | BG8: =IFERROR(IFERROR(BF4/BG4,(ROUND(BF4,1) &" : " &"0")),"0 : 0") -> 0.2864691018 | BI8: W&L Ratio: | BJ8: =IFERROR(BI4/BJ4,BI4& " : " & 0) -> 0.83 | BK8: P&L Ratio: | BL8: =IFERROR(IFERROR(BK4/BL4,(ROUND(BK4,1) &" : " &"0")),"0 : 0") -> 1.74
C9: =IFERROR(" "&'TRADE LOG'!EL6,"") ->  | E9: =IFERROR('TRADE LOG'!EJ6,"") ->  | F9: =IFERROR('TRADE LOG'!EO6,"") ->  | G9: =IFERROR('TRADE LOG'!EN6,"") ->  | H9: =IFERROR('TRADE LOG'!EM6,"") ->  | N9: Expectancy | O9: =BL9 -> $77.7 | Q9: =BB9 -> $83.9 | R9: =BG9 -> $-31.0 | X9: =BL9 -> $77.66 | Y9: TOTAL | AA9: TOTAL | AO9: =IFERROR(AU6+AU4,0) -> 4271.42 | AQ9: =AW6+AW4 -> 0.0854284 | AY9: Profit Factor | AZ9: =(AY6*BA4)/(AZ6*BB4) -> 1.47 | BA9: Expectancy | BB9: =(AY6*BA4)-(AZ6*BB4) -> 83.93 | BD9: Profit Factor | BE9: =(BD6*BF4)/(BE6*BG4) -> 0.57 | BF9: Expectancy | BG9: =(BD6*BF4)-(BE6*BG4) -> -30.98333333 | BI9: Profit Factor | BJ9: =(BI6*BK4)/(BJ6*BL4) -> 1.45 | BK9: Expectancy | BL9: =(BI6*BK4)-(BJ6*BL4) -> 77.66
C10: =IFERROR(" "&'TRADE LOG'!EL7,"") ->  | E10: =IFERROR('TRADE LOG'!EJ7,"") ->  | F10: =IFERROR('TRADE LOG'!EO7,"") ->  | G10: =IFERROR('TRADE LOG'!EN7,"") ->  | H10: =IFERROR('TRADE LOG'!EM7,"") ->  | X10: Stock Position Amount: | AO10: Total Net P&L
C13: ALL TRADES | J13: LONG TRADES | P13: SHORT TRADES | X13: Rocketsheets
C14: ITEM | D14: NET PROFIT | E14: TRADES (WIN%) | F14: P/RATIO | G14: P/FACTOR | H14: EXPECTANCY | J14: NET PROFIT | K14: TRADES (WIN%) | L14: P/RATIO | M14: P/FACTOR | N14: EXPECTANCY | P14: NET PROFIT | Q14: TRADES (WIN%) | R14: P/RATIO | S14: P/FACTOR | T14: EXPECTANCY | AI14: Unique Symbol | AK14: LONG | AP14: LONG | AT14: SHORT | BC14: TOTAL
B15: No. | C15: TOTAL | D15: =AO9 -> $4,271.4 | E15: =CONCATENATE(BI4+BJ4," (",TEXT(BI6,"0.0%"),")") -> 55 (45.5%) | F15: =BL8 -> 1.74 | G15: =IFERROR(BJ9,"") -> 1.45 | H15: =BL9 -> $77.7 | J15: =AO5 -> $4,364.4 | K15: =CONCATENATE(AY4+AZ4," (",TEXT(AY6,"0.0%"),")") -> 52 (44.2%) | L15: =BB8 -> 1.85 | M15: =IFERROR(AZ9,"") -> 1.47 | N15: =BB9 -> $83.9 | P15: =AO7 -> $-93.0 | Q15: =CONCATENATE(BD4+BE4," (",TEXT(BD6,"0.0%"),")") -> 3 (66.7%) | R15: =BG8 -> 0.29 | S15: =IFERROR(BE9,"") -> 0.57 | T15: =BG9 -> $-31.0 | X15: =IFERROR('MONTHLY REPORT'!G14,"xxx") -> 16146.94 | Z15: total | AA15: mach | AB15: item | AC15: long profit | AD15: short profit | AI15: sorting name | AJ15: Stock Code | AK15: Total Bought | AL15: Profir | AM15: Loss | AN15: Net PNL | AP15: trades | AQ15: win trades | AR15: win rate | AS15: stats | AT15: total buy | AU15: profit | AV15: loss | AW15: pnl | AY15: trades | AZ15: win trades | BA15: win rate | BB15: stats | BC15: profit | BD15: loss | BE15: pnl | BF15: TOTAL TRADES | BG15: TOTAL WINS | BH15: total win rate | BI15: total stats | BJ15: Total buy | BK15: pnl% | BL15: AVEW | BM15: AVEL | BN15: EXP | BO15: pofit ratio | BP15: profit factor | BQ15: ave.profit | BR15: ave.Loss | BS15: expectancy | BT15: profit ratio | BU15: profit factor | BV15: ave.profit | BW15: ave.Loss | BX15: expectancy | BY15: profit ratio | BZ15: profit factor
B16: 1 | C16: =IFERROR(AB16,"") -> AUDUSD | D16: =IFERROR(P16+J16,"") -> $4,767.9 | E16: =IFERROR(INDEX($BI$16:$BI$65,AA16),"") -> 19 (63.2%) | F16: =IFERROR(INDEX($BO$16:$BO$65,AA16),"") -> 2.23 | G16: =IFERROR(INDEX($BP$16:$BP$65,AA16),"") -> 3.82 | H16: =IFERROR(INDEX($BN$16:$BN$65,AA16),"") -> $250.9 | J16: =IFERROR(AC16,"") -> $4,908.2 | K16: =IFERROR(INDEX($AS$16:$AS$65,AA16),"") -> 17 (64.7%) | L16: =IFERROR(INDEX($BT$16:$BT$65,AA16),"") -> 2.36 | M16: =IFERROR(INDEX($BU$16:$BU$65,AA16),"") -> 4.33 | N16: =IFERROR(INDEX($BS$16:$BS$65,AA16),"") -> $288.7 | P16: =IFERROR(AD16,"") -> $-140.3 | Q16: =IFERROR(INDEX($BB$16:$BB$65,AA16),"") -> 2 (50.0%) | R16: =IFERROR(INDEX($BY$16:$BY$65,AA16),"") -> 0.36 | S16: =IFERROR(INDEX($BZ$16:$BZ$65,AA16),"") -> 0.36 | T16: =IFERROR(INDEX($BX$16:$BX$65,AA16),"") -> $-70.2 | Z16: =LARGE($BE$16:$BE$66,B16) -> 4767.85001 | AA16: =MATCH(Z16,$BE$16:$BE$66,0) -> 1 | AB16: =INDEX($AJ$16:$AJ$66,AA16) -> AUDUSD | AC16: =INDEX($AN$16:$AN$66,AA16) -> 4,908.15 | AD16: =INDEX($AW$16:$AW$66,AA16) -> (140.30) | AI16: =SMALL('TRADE LOG'!$AQ$15:$AQ$9733,'TRADE LOG'!B15) -> 2 | AJ16: =IFERROR(INDEX(StockLog,AI16),"") -> AUDUSD | AK16: =(SUMIFS(BuyAmount,StockLog,AJ16,ActionLog,"buy")) -> 96498.9 | AL16: =SUMIFS(PNLwFees,StockLog,AJ16,ActionLog,"BUY",WL,"W") -> 6384.05 | AM16: =SUMIFS(PNLwFees,StockLog,AJ16,ActionLog,"BUY",WL,"L") -> -1475.9 | AN16: =AL16+AM16 -> 4908.15 | AP16: =(COUNTIFS(StockLog,AJ16,ActionLog,"buy",StockLog,"<>0")) -> 17 | AQ16: =(COUNTIFS(StockLog,AJ16,PNLwFees,">0",ActionLog,"buy")) -> 11 | AR16: =AQ16/AP16 -> 0.6470588235 | AS16: =CONCATENATE(AP16," (",TEXT(AR16,"0.0%"),")") -> 17 (64.7%) | AT16: =SUMIFS(NetAmount,StockLog,AJ16,ActionLog,"sell") -> 6617.05 | AU16: =SUMIFS(PNLwFees,StockLog,AJ16,ActionLog,"sell",WL,"W") -> 77.35 | AV16: =SUMIFS(PNLwFees,StockLog,AJ16,ActionLog,"sell",WL,"L") -> -217.65 | AW16: =AU16+AV16 -> -140.3 | AY16: =(COUNTIFS(StockLog,AJ16,ActionLog,"sell",StockLog,"<>0")) -> 2 | AZ16: =(COUNTIFS(StockLog,AJ16,WL,"W",ActionLog,"sell")) -> 1 | BA16: =AZ16/AY16 -> 0.5 | BB16: =CONCATENATE(AY16," (",TEXT(BA16,"0.0%"),")") -> 2 (50.0%) | BC16: =AL16+AU16 -> 6461.4 | BD16: =AV16+AM16 -> -1693.55 | BE16: =IF(AJ16="","",BD16+BC16+'TRADE LOG'!AR15) -> 4767.85001 | BF16: =AP16+AY16 -> 19 | BG16: =AQ16+AZ16 -> 12 | BH16: =BG16/BF16 -> 0.6315789474 | BI16: =CONCATENATE(BF16," (",TEXT(BH16,"0.0%"),")") -> 19 (63.2%) | BJ16: =AK16+AT16 -> 103115.95 | BK16: =BE16/BJ16 -> 0.04623775478 | BL16: =BC16/BG16 -> 538.45 | BM16: =BD16/(BF16-BG16) -> -241.9357143 | BN16: =(BL16*BH16)-((1-BH16)*-BM16) -> 250.9394737 | BO16: =BL16/-BM16 -> 2.225591214 | BP16: =(BL16*BH16)/((1-BH16)*-BM16) -> 3.815299224 | BQ16: =IFERROR(AL16/AQ16,0) -> 580.3681818 | BR16: =IFERROR(AM16/(AP16-AQ16),0) -> -245.9833333 | BS16: =(BQ16*AR16)-((1-AR16)*-BR16) -> 288.7147059 | BT16: =BQ16/-BR16 -> 2.359380101 | BU16: =(BQ16*AR16)/((1-AR16)*-BR16) -> 4.325530185 | BV16: =IFERROR(AU16/AZ16,0) -> 77.35 | BW16: =IFERROR(AV16/(AY16-AZ16),0) -> -217.65 | BX16: =(BV16*BA16)-((1-BA16)*-BW16) -> -70.15 | BY16: =BV16/-BW16 -> 0.3553870894 | BZ16: =(BV16*BA16)/((1-BA16)*-BW16) -> 0.3553870894
B17: 2 | C17: =IFERROR(AB17,"") -> GBPUSD | D17: $527.3 | E17: =IFERROR(INDEX($BI$16:$BI$65,AA17),"") -> 6 (33.3%) | F17: =IFERROR(INDEX($BO$16:$BO$65,AA17),"") -> 2.91 | G17: =IFERROR(INDEX($BP$16:$BP$65,AA17),"") -> 1.46 | H17: =IFERROR(INDEX($BN$16:$BN$65,AA17),"") -> $87.9 | J17: $527.3 | K17: =IFERROR(INDEX($AS$16:$AS$65,AA17),"") -> 6 (33.3%) | L17: =IFERROR(INDEX($BT$16:$BT$65,AA17),"") -> 2.91 | M17: =IFERROR(INDEX($BU$16:$BU$65,AA17),"") -> 1.46 | N17: =IFERROR(INDEX($BS$16:$BS$65,AA17),"") -> $87.9 | P17: 0 | Q17: =IFERROR(INDEX($BB$16:$BB$65,AA17),"") ->  | R17: =IFERROR(INDEX($BY$16:$BY$65,AA17),"") ->  | S17: =IFERROR(INDEX($BZ$16:$BZ$65,AA17),"") ->  | T17: =IFERROR(INDEX($BX$16:$BX$65,AA17),"") ->  | Z17: 527.30004 | AA17: 4 | AB17: GBPUSD | AC17: 527.30 | AD17: 0 | AI17: =SMALL('TRADE LOG'!$AQ$15:$AQ$9733,'TRADE LOG'!B16) -> 3 | AJ17: XAUUSD | AK17: 5204230 | AL17: 110 | AM17: -520 | AN17: -410 | AP17: 4 | AQ17: 1 | AR17: 0.25 | AS17: 4 (25.0%) | AT17: 0 | AU17: 0 | AV17: 0 | AW17: 0 | AY17: 0 | AZ17: 0 | BC17: 110 | BD17: -520 | BE17: =IF(AJ17="","",BD17+BC17+'TRADE LOG'!AR16) -> -409.99998 | BF17: 4 | BG17: 1 | BH17: 0.25 | BI17: 4 (25.0%) | BJ17: 5204230 | BK17: -7.878206382e-05 | BL17: 110 | BM17: -173.3333333 | BN17: -102.5 | BO17: 0.6346153846 | BP17: 0.2115384615 | BQ17: =IFERROR(AL17/AQ17,0) -> 110 | BR17: -173.3333333 | BS17: -102.5 | BT17: 0.6346153846 | BU17: 0.2115384615 | BV17: =IFERROR(AU17/AZ17,0) -> 0 | BW17: =IFERROR(AV17/(AY17-AZ17),0) -> 0
B18: 3 | C18: USDJPY | D18: $-65.7 | E18: 3 (33.3%) | F18: 1.59 | G18: 0.79 | H18: $-21.9 | J18: $-65.7 | K18: =IFERROR(INDEX($AS$16:$AS$65,AA18),"") -> 3 (33.3%) | L18: 1.59 | M18: 0.79 | N18: $-21.9 | P18: 0 | Z18: -65.68995 | AA18: 5 | AB18: USDJPY | AC18: (65.69) | AD18: 0 | AI18: =SMALL('TRADE LOG'!$AQ$15:$AQ$9733,'TRADE LOG'!B17) -> 4 | AJ18: EURUSD | AK18: 187015.0879 | AL18: 3299.92 | AM18: -3766.4 | AN18: -466.48 | AP18: 17 | AQ18: 6 | AR18: 0.3529411765 | AS18: 17 (35.3%) | AT18: 5504.5 | AU18: 47.35 | AV18: 0 | AW18: 47.35 | AY18: 1 | AZ18: 1 | BA18: 1 | BB18: 1 (100.0%) | BC18: 3347.27 | BD18: -3766.4 | BE18: =IF(AJ18="","",BD18+BC18+'TRADE LOG'!AR17) -> -419.12997 | BF18: 18 | BG18: 7 | BH18: 0.3888888889 | BI18: 18 (38.9%) | BJ18: 192519.5879 | BK18: -0.002177077016 | BL18: 478.1814286 | BM18: -342.4 | BN18: -23.285 | BO18: 1.396557911 | BP18: 0.8887186703 | BQ18: 549.9866667 | BR18: -342.4 | BS18: -27.44 | BT18: 1.60626947 | BU18: 0.8761469839 | BV18: 47.35 | BW18: 0 | BX18: 47.35
B19: 4 | C19: USDCAD | D19: $-128.9 | E19: 5 (40.0%) | F19: 1.41 | G19: 0.94 | H19: $-25.8 | J19: $-128.9 | K19: 5 (40.0%) | L19: 1.41 | M19: 0.94 | N19: $-25.8 | P19: 0 | Z19: -128.90994 | AA19: 6 | AB19: USDCAD | AC19: (128.91) | AD19: 0 | AI19: =SMALL('TRADE LOG'!$AQ$15:$AQ$9733,'TRADE LOG'!B18) -> 26 | AJ19: GBPUSD | AK19: 110928.7 | AL19: 1685.85 | AM19: -1158.55 | AN19: 527.3 | AP19: 6 | AQ19: 2 | AR19: 0.3333333333 | AS19: 6 (33.3%) | AT19: 0 | AU19: 0 | AV19: 0 | AW19: 0 | AY19: 0 | AZ19: 0 | BC19: 1685.85 | BD19: -1158.55 | BE19: =IF(AJ19="","",BD19+BC19+'TRADE LOG'!AR18) -> 527.30004 | BF19: 6 | BG19: 2 | BH19: 0.3333333333 | BI19: 6 (33.3%) | BJ19: 110928.7 | BK19: 0.004753504188 | BL19: 842.925 | BM19: -289.6375 | BN19: 87.88333333 | BO19: 2.910275776 | BP19: 1.455137888 | BQ19: 842.925 | BR19: -289.6375 | BS19: 87.88333333 | BT19: 2.910275776 | BU19: 1.455137888 | BV19: 0 | BW19: 0
B20: 5 | C20: XAUUSD | D20: $-410.0 | E20: 4 (25.0%) | F20: 0.63 | G20: 0.21 | H20: $-102.5 | J20: $-410.0 | K20: 4 (25.0%) | L20: 0.63 | M20: 0.21 | N20: $-102.5 | P20: 0 | Z20: -409.99998 | AA20: 2 | AB20: XAUUSD | AC20: (410.00) | AD20: 0 | AI20: =SMALL('TRADE LOG'!$AQ$15:$AQ$9733,'TRADE LOG'!B19) -> 28 | AJ20: USDJPY | AK20: 19998.6126 | AL20: 251.5 | AM20: -317.19 | AN20: -65.69 | AP20: 3 | AQ20: 1 | AR20: 0.3333333333 | AS20: 3 (33.3%) | AT20: 0 | AU20: 0 | AV20: 0 | AW20: 0 | AY20: 0 | AZ20: 0 | BC20: 251.5 | BD20: -317.19 | BE20: =IF(AJ20="","",BD20+BC20+'TRADE LOG'!AR19) -> -65.68995 | BF20: 3 | BG20: 1 | BH20: 0.3333333333 | BI20: 3 (33.3%) | BJ20: 19998.6126 | BK20: -0.003284725362 | BL20: 251.5 | BM20: -158.595 | BN20: -21.89666667 | BO20: 1.585800309 | BP20: 0.7929001545 | BQ20: 251.5 | BR20: =IFERROR(AM20/(AP20-AQ20),0) -> -158.595 | BS20: -21.89666667 | BT20: 1.585800309 | BU20: 0.7929001545 | BV20: 0 | BW20: 0
B21: 6 | C21: EURUSD | D21: $-419.1 | E21: 18 (38.9%) | F21: 1.40 | G21: 0.89 | H21: $-23.3 | J21: $-466.5 | K21: 17 (35.3%) | L21: 1.61 | M21: 0.88 | N21: $-27.4 | P21: $47.4 | Q21: 1 (100.0%) | T21: $47.4 | Z21: -419.12997 | AA21: 3 | AB21: EURUSD | AC21: (466.48) | AD21: 47.35 | AI21: =SMALL('TRADE LOG'!$AQ$15:$AQ$9733,'TRADE LOG'!B20) -> 36 | AJ21: USDCAD | AK21: 219983.6378 | AL21: 1949.09 | AM21: -2078 | AN21: -128.91 | AP21: 5 | AQ21: 2 | AR21: 0.4 | AS21: 5 (40.0%) | AT21: 0 | AU21: 0 | AV21: 0 | AW21: 0 | AY21: 0 | AZ21: 0 | BC21: 1949.09 | BD21: -2078 | BE21: =IF(AJ21="","",BD21+BC21+'TRADE LOG'!AR20) -> -128.90994 | BF21: 5 | BG21: 2 | BH21: 0.4 | BI21: 5 (40.0%) | BJ21: 219983.6378 | BK21: -0.0005859978554 | BL21: 974.545 | BM21: -692.6666667 | BN21: -25.782 | BO21: 1.406946583 | BP21: 0.9379643888 | BQ21: 974.545 | BR21: =IFERROR(AM21/(AP21-AQ21),0) -> -692.6666667 | BS21: -25.782 | BT21: 1.406946583 | BU21: 0.9379643888 | BV21: 0 | BW21: 0
B22: 7 | AI22: =SMALL('TRADE LOG'!$AQ$15:$AQ$9733,'TRADE LOG'!B21) ->  | AK22: 0 | AL22: 0 | AM22: 0 | AN22: 0 | AP22: 0 | AQ22: 0 | AT22: 0 | AU22: 0 | AV22: 0 | AW22: 0 | AY22: 0 | AZ22: 0 | BC22: 0 | BD22: 0 | BE22: =IF(AJ22="","",BD22+BC22+'TRADE LOG'!AR21) ->  | BF22: 0 | BG22: 0 | BJ22: 0 | BQ22: 0 | BR22: 0 | BV22: 0 | BW22: 0
B23: 8 | AI23: =SMALL('TRADE LOG'!$AQ$15:$AQ$9733,'TRADE LOG'!B22) ->  | AK23: 0 | AL23: 0 | AM23: 0 | AN23: 0 | AP23: 0 | AQ23: 0 | AT23: 0 | AU23: 0 | AV23: 0 | AW23: 0 | AY23: 0 | AZ23: 0 | BC23: 0 | BD23: 0 | BE23: =IF(AJ23="","",BD23+BC23+'TRADE LOG'!AR22) ->  | BF23: 0 | BG23: 0 | BJ23: 0 | BQ23: 0 | BR23: 0 | BV23: 0 | BW23: 0
B24: 9 | AI24: =SMALL('TRADE LOG'!$AQ$15:$AQ$9733,'TRADE LOG'!B23) ->  | AK24: 0 | AL24: 0 | AM24: 0 | AN24: 0 | AP24: 0 | AQ24: 0 | AT24: 0 | AU24: 0 | AV24: 0 | AW24: 0 | AY24: 0 | AZ24: 0 | BC24: 0 | BD24: 0 | BE24: =IF(AJ24="","",BD24+BC24+'TRADE LOG'!AR23) ->  | BF24: 0 | BG24: 0 | BJ24: 0 | BQ24: 0 | BR24: 0 | BV24: 0 | BW24: 0
B25: 10 | AI25: =SMALL('TRADE LOG'!$AQ$15:$AQ$9733,'TRADE LOG'!B24) ->  | AK25: 0 | AL25: 0 | AM25: 0 | AN25: 0 | AP25: 0 | AQ25: 0 | AT25: 0 | AU25: 0 | AV25: 0 | AW25: 0 | AY25: 0 | AZ25: 0 | BC25: 0 | BD25: 0 | BE25: =IF(AJ25="","",BD25+BC25+'TRADE LOG'!AR24) ->  | BF25: 0 | BG25: 0 | BJ25: 0 | BQ25: 0 | BR25: 0 | BV25: 0 | BW25: 0
B26: 11 | AI26: =SMALL('TRADE LOG'!$AQ$15:$AQ$9733,'TRADE LOG'!B25) ->  | AK26: 0 | AL26: 0 | AM26: 0 | AN26: 0 | AP26: 0 | AQ26: 0 | AT26: 0 | AU26: 0 | AV26: 0 | AW26: 0 | AY26: 0 | AZ26: 0 | BC26: 0 | BD26: 0 | BE26: =IF(AJ26="","",BD26+BC26+'TRADE LOG'!AR25) ->  | BF26: 0 | BG26: 0 | BJ26: 0 | BQ26: 0 | BR26: 0 | BV26: 0 | BW26: 0
B27: 12 | AI27: =SMALL('TRADE LOG'!$AQ$15:$AQ$9733,'TRADE LOG'!B26) ->  | AK27: 0 | AL27: 0 | AM27: 0 | AN27: 0 | AP27: 0 | AQ27: 0 | AT27: 0 | AU27: 0 | AV27: 0 | AW27: 0 | AY27: 0 | AZ27: 0 | BC27: 0 | BD27: 0 | BE27: =IF(AJ27="","",BD27+BC27+'TRADE LOG'!AR26) ->  | BF27: 0 | BG27: 0 | BJ27: 0 | BQ27: 0 | BR27: 0 | BV27: 0 | BW27: 0
B28: 13 | AI28: =SMALL('TRADE LOG'!$AQ$15:$AQ$9733,'TRADE LOG'!B27) ->  | AK28: 0 | AL28: 0 | AM28: 0 | AN28: 0 | AP28: 0 | AQ28: 0 | AT28: 0 | AU28: 0 | AV28: 0 | AW28: 0 | AY28: 0 | AZ28: 0 | BC28: 0 | BD28: 0 | BE28: =IF(AJ28="","",BD28+BC28+'TRADE LOG'!AR27) ->  | BF28: 0 | BG28: 0 | BJ28: 0 | BQ28: 0 | BR28: 0 | BV28: 0 | BW28: 0
B29: 14 | AI29: =SMALL('TRADE LOG'!$AQ$15:$AQ$9733,'TRADE LOG'!B28) ->  | AK29: 0 | AL29: 0 | AM29: 0 | AN29: 0 | AP29: 0 | AQ29: 0 | AT29: 0 | AU29: 0 | AV29: 0 | AW29: 0 | AY29: 0 | AZ29: 0 | BC29: 0 | BD29: 0 | BE29: =IF(AJ29="","",BD29+BC29+'TRADE LOG'!AR28) ->  | BF29: 0 | BG29: 0 | BJ29: 0 | BQ29: 0 | BR29: 0 | BV29: 0 | BW29: 0
B30: 15 | AI30: =SMALL('TRADE LOG'!$AQ$15:$AQ$9733,'TRADE LOG'!B29) ->  | AK30: 0 | AL30: 0 | AM30: 0 | AN30: 0 | AP30: 0 | AQ30: 0 | AT30: 0 | AU30: 0 | AV30: 0 | AW30: 0 | AY30: 0 | AZ30: 0 | BC30: 0 | BD30: 0 | BE30: =IF(AJ30="","",BD30+BC30+'TRADE LOG'!AR29) ->  | BF30: 0 | BG30: 0 | BJ30: 0 | BQ30: 0 | BR30: 0 | BV30: 0 | BW30: 0
B31: 16 | AI31: =SMALL('TRADE LOG'!$AQ$15:$AQ$9733,'TRADE LOG'!B30) ->  | AK31: 0 | AL31: 0 | AM31: 0 | AN31: 0 | AP31: 0 | AQ31: 0 | AT31: 0 | AU31: 0 | AV31: 0 | AW31: 0 | AY31: 0 | AZ31: 0 | BC31: 0 | BD31: 0 | BE31: =IF(AJ31="","",BD31+BC31+'TRADE LOG'!AR30) ->  | BF31: 0 | BG31: 0 | BJ31: 0 | BQ31: 0 | BR31: 0 | BV31: 0 | BW31: 0
B32: 17 | AI32: =SMALL('TRADE LOG'!$AQ$15:$AQ$9733,'TRADE LOG'!B31) ->  | AK32: 0 | AL32: 0 | AM32: 0 | AN32: 0 | AP32: 0 | AQ32: 0 | AT32: 0 | AU32: 0 | AV32: 0 | AW32: 0 | AY32: 0 | AZ32: 0 | BC32: 0 | BD32: 0 | BE32: =IF(AJ32="","",BD32+BC32+'TRADE LOG'!AR31) ->  | BF32: 0 | BG32: 0 | BJ32: 0 | BQ32: 0 | BR32: 0 | BV32: 0 | BW32: 0
B33: 18 | AI33: =SMALL('TRADE LOG'!$AQ$15:$AQ$9733,'TRADE LOG'!B32) ->  | AK33: 0 | AL33: 0 | AM33: 0 | AN33: 0 | AP33: 0 | AQ33: 0 | AT33: 0 | AU33: 0 | AV33: 0 | AW33: 0 | AY33: 0 | AZ33: 0 | BC33: 0 | BD33: 0 | BE33: =IF(AJ33="","",BD33+BC33+'TRADE LOG'!AR32) ->  | BF33: 0 | BG33: 0 | BJ33: 0 | BQ33: 0 | BR33: 0 | BV33: 0 | BW33: 0
B34: 19 | AI34: =SMALL('TRADE LOG'!$AQ$15:$AQ$9733,'TRADE LOG'!B33) ->  | AK34: 0 | AL34: 0 | AM34: 0 | AN34: 0 | AP34: 0 | AQ34: 0 | AT34: 0 | AU34: 0 | AV34: 0 | AW34: 0 | AY34: 0 | AZ34: 0 | BC34: 0 | BD34: 0 | BE34: =IF(AJ34="","",BD34+BC34+'TRADE LOG'!AR33) ->  | BF34: 0 | BG34: 0 | BJ34: 0 | BQ34: 0 | BR34: 0 | BV34: 0 | BW34: 0
B35: 20 | AI35: =SMALL('TRADE LOG'!$AQ$15:$AQ$9733,'TRADE LOG'!B34) ->  | AK35: 0 | AL35: 0 | AM35: 0 | AN35: 0 | AP35: 0 | AQ35: 0 | AT35: 0 | AU35: 0 | AV35: 0 | AW35: 0 | AY35: 0 | AZ35: 0 | BC35: 0 | BD35: 0 | BE35: =IF(AJ35="","",BD35+BC35+'TRADE LOG'!AR34) ->  | BF35: 0 | BG35: 0 | BJ35: 0 | BQ35: 0 | BR35: 0 | BV35: 0 | BW35: 0
B36: 21 | AI36: =SMALL('TRADE LOG'!$AQ$15:$AQ$9733,'TRADE LOG'!B35) ->  | AK36: 0 | AL36: 0 | AM36: 0 | AN36: 0 | AP36: 0 | AQ36: 0 | AT36: 0 | AU36: 0 | AV36: 0 | AW36: 0 | AY36: 0 | AZ36: 0 | BC36: 0 | BD36: 0 | BE36: =IF(AJ36="","",BD36+BC36+'TRADE LOG'!AR35) ->  | BF36: 0 | BG36: 0 | BJ36: 0 | BQ36: 0 | BR36: 0 | BV36: 0 | BW36: 0
B37: 22 | AI37: =SMALL('TRADE LOG'!$AQ$15:$AQ$9733,'TRADE LOG'!B36) ->  | AK37: 0 | AL37: 0 | AM37: 0 | AN37: 0 | AP37: 0 | AQ37: 0 | AT37: 0 | AU37: 0 | AV37: 0 | AW37: 0 | AY37: 0 | AZ37: 0 | BC37: 0 | BD37: 0 | BE37: =IF(AJ37="","",BD37+BC37+'TRADE LOG'!AR36) ->  | BF37: 0 | BG37: 0 | BJ37: 0 | BQ37: 0 | BR37: 0 | BV37: 0 | BW37: 0
B38: 23 | AI38: =SMALL('TRADE LOG'!$AQ$15:$AQ$9733,'TRADE LOG'!B37) ->  | AK38: 0 | AL38: 0 | AM38: 0 | AN38: 0 | AP38: 0 | AQ38: 0 | AT38: 0 | AU38: 0 | AV38: 0 | AW38: 0 | AY38: 0 | AZ38: 0 | BC38: 0 | BD38: 0 | BE38: =IF(AJ38="","",BD38+BC38+'TRADE LOG'!AR37) ->  | BF38: 0 | BG38: 0 | BJ38: 0 | BQ38: 0 | BR38: 0 | BV38: 0 | BW38: 0
B39: 24 | AI39: =SMALL('TRADE LOG'!$AQ$15:$AQ$9733,'TRADE LOG'!B38) ->  | AK39: 0 | AL39: 0 | AM39: 0 | AN39: 0 | AP39: 0 | AQ39: 0 | AT39: 0 | AU39: 0 | AV39: 0 | AW39: 0 | AY39: 0 | AZ39: 0 | BC39: 0 | BD39: 0 | BE39: =IF(AJ39="","",BD39+BC39+'TRADE LOG'!AR38) ->  | BF39: 0 | BG39: 0 | BJ39: 0 | BQ39: 0 | BR39: 0 | BV39: 0 | BW39: 0
B40: 25 | AI40: =SMALL('TRADE LOG'!$AQ$15:$AQ$9733,'TRADE LOG'!B39) ->  | AK40: 0 | AL40: 0 | AM40: 0 | AN40: 0 | AP40: 0 | AQ40: 0 | AT40: 0 | AU40: 0 | AV40: 0 | AW40: 0 | AY40: 0 | AZ40: 0 | BC40: 0 | BD40: 0 | BE40: =IF(AJ40="","",BD40+BC40+'TRADE LOG'!AR39) ->  | BF40: 0 | BG40: 0 | BJ40: 0 | BQ40: 0 | BR40: 0 | BV40: 0 | BW40: 0
B41: 26 | AI41: =SMALL('TRADE LOG'!$AQ$15:$AQ$9733,'TRADE LOG'!B40) ->  | AK41: 0 | AL41: 0 | AM41: 0 | AN41: 0 | AP41: 0 | AQ41: 0 | AT41: 0 | AU41: 0 | AV41: 0 | AW41: 0 | AY41: 0 | AZ41: 0 | BC41: 0 | BD41: 0 | BE41: =IF(AJ41="","",BD41+BC41+'TRADE LOG'!AR40) ->  | BF41: 0 | BG41: 0 | BJ41: 0 | BQ41: 0 | BR41: 0 | BV41: 0 | BW41: 0
B42: 27 | AI42: =SMALL('TRADE LOG'!$AQ$15:$AQ$9733,'TRADE LOG'!B41) ->  | AK42: 0 | AL42: 0 | AM42: 0 | AN42: 0 | AP42: 0 | AQ42: 0 | AT42: 0 | AU42: 0 | AV42: 0 | AW42: 0 | AY42: 0 | AZ42: 0 | BC42: 0 | BD42: 0 | BE42: =IF(AJ42="","",BD42+BC42+'TRADE LOG'!AR41) ->  | BF42: 0 | BG42: 0 | BJ42: 0 | BQ42: 0 | BR42: 0 | BV42: 0 | BW42: 0
B43: 28 | AI43: =SMALL('TRADE LOG'!$AQ$15:$AQ$9733,'TRADE LOG'!B42) ->  | AK43: 0 | AL43: 0 | AM43: 0 | AN43: 0 | AP43: 0 | AQ43: 0 | AT43: 0 | AU43: 0 | AV43: 0 | AW43: 0 | AY43: 0 | AZ43: 0 | BC43: 0 | BD43: 0 | BE43: =IF(AJ43="","",BD43+BC43+'TRADE LOG'!AR42) ->  | BF43: 0 | BG43: 0 | BJ43: 0 | BQ43: 0 | BR43: 0 | BV43: 0 | BW43: 0
B44: 29 | AI44: =SMALL('TRADE LOG'!$AQ$15:$AQ$9733,'TRADE LOG'!B43) ->  | AK44: 0 | AL44: 0 | AM44: 0 | AN44: 0 | AP44: 0 | AQ44: 0 | AT44: 0 | AU44: 0 | AV44: 0 | AW44: 0 | AY44: 0 | AZ44: 0 | BC44: 0 | BD44: 0 | BE44: =IF(AJ44="","",BD44+BC44+'TRADE LOG'!AR43) ->  | BF44: 0 | BG44: 0 | BJ44: 0 | BQ44: 0 | BR44: 0 | BV44: 0 | BW44: 0
B45: 30 | AI45: =SMALL('TRADE LOG'!$AQ$15:$AQ$9733,'TRADE LOG'!B44) ->  | AK45: 0 | AL45: 0 | AM45: 0 | AN45: 0 | AP45: 0 | AQ45: 0 | AT45: 0 | AU45: 0 | AV45: 0 | AW45: 0 | AY45: 0 | AZ45: 0 | BC45: 0 | BD45: 0 | BE45: =IF(AJ45="","",BD45+BC45+'TRADE LOG'!AR44) ->  | BF45: 0 | BG45: 0 | BJ45: 0 | BQ45: 0 | BR45: 0 | BV45: 0 | BW45: 0
B46: 31 | AI46: =SMALL('TRADE LOG'!$AQ$15:$AQ$9733,'TRADE LOG'!B45) ->  | AK46: 0 | AL46: 0 | AM46: 0 | AN46: 0 | AP46: 0 | AQ46: 0 | AT46: 0 | AU46: 0 | AV46: 0 | AW46: 0 | AY46: 0 | AZ46: 0 | BC46: 0 | BD46: 0 | BE46: =IF(AJ46="","",BD46+BC46+'TRADE LOG'!AR45) ->  | BF46: 0 | BG46: 0 | BJ46: 0 | BQ46: 0 | BR46: 0 | BV46: 0 | BW46: 0
B47: 32 | AI47: =SMALL('TRADE LOG'!$AQ$15:$AQ$9733,'TRADE LOG'!B46) ->  | AK47: 0 | AL47: 0 | AM47: 0 | AN47: 0 | AP47: 0 | AQ47: 0 | AT47: 0 | AU47: 0 | AV47: 0 | AW47: 0 | AY47: 0 | AZ47: 0 | BC47: 0 | BD47: 0 | BE47: =IF(AJ47="","",BD47+BC47+'TRADE LOG'!AR46) ->  | BF47: 0 | BG47: 0 | BJ47: 0 | BQ47: 0 | BR47: 0 | BV47: 0 | BW47: 0
B48: 33 | D48: =IFERROR(P48+J48,"") ->  | J48: =IFERROR(AC48,"") ->  | P48: =IFERROR(AD48,"") ->  | Z48: =LARGE($BE$16:$BE$66,B48) ->  | AA48: =MATCH(Z48,$BE$16:$BE$66,0) ->  | AB48: =INDEX($AJ$16:$AJ$66,AA48) ->  | AC48: =INDEX($AN$16:$AN$66,AA48) ->  | AD48: =INDEX($AW$16:$AW$66,AA48) ->  | AI48: =SMALL('TRADE LOG'!$AQ$15:$AQ$9733,'TRADE LOG'!B47) ->  | AJ48: =IFERROR(INDEX(StockLog,AI48),"") ->  | AK48: =(SUMIFS(BuyAmount,StockLog,AJ48,ActionLog,"buy")) -> 0 | AL48: =SUMIFS(PNLwFees,StockLog,AJ48,ActionLog,"BUY",WL,"W") -> 0 | AM48: =SUMIFS(PNLwFees,StockLog,AJ48,ActionLog,"BUY",WL,"L") -> 0 | AN48: =AL48+AM48 -> 0 | AP48: =(COUNTIFS(StockLog,AJ48,ActionLog,"buy",StockLog,"<>0")) -> 0 | AQ48: =(COUNTIFS(StockLog,AJ48,PNLwFees,">0",ActionLog,"buy")) -> 0 | AR48: =AQ48/AP48 ->  | AS48: =CONCATENATE(AP48," (",TEXT(AR48,"0.0%"),")") ->  | AT48: =SUMIFS(NetAmount,StockLog,AJ48,ActionLog,"sell") -> 0 | AU48: =SUMIFS(PNLwFees,StockLog,AJ48,ActionLog,"sell",WL,"W") -> 0 | AV48: =SUMIFS(PNLwFees,StockLog,AJ48,ActionLog,"sell",WL,"L") -> 0 | AW48: =AU48+AV48 -> 0 | AY48: =(COUNTIFS(StockLog,AJ48,ActionLog,"sell",StockLog,"<>0")) -> 0 | AZ48: =(COUNTIFS(StockLog,AJ48,WL,"W",ActionLog,"sell")) -> 0 | BA48: =AZ48/AY48 ->  | BB48: =CONCATENATE(AY48," (",TEXT(BA48,"0.0%"),")") ->  | BC48: =AL48+AU48 -> 0 | BD48: =AV48+AM48 -> 0 | BE48: =IF(AJ48="","",BD48+BC48+'TRADE LOG'!AR47) ->  | BF48: =AP48+AY48 -> 0 | BG48: =AQ48+AZ48 -> 0 | BH48: =BG48/BF48 ->  | BI48: =CONCATENATE(BF48," (",TEXT(BH48,"0.0%"),")") ->  | BJ48: =AK48+AT48 -> 0 | BK48: =BE48/BJ48 ->  | BL48: =BC48/BG48 ->  | BM48: =BD48/(BF48-BG48) ->  | BN48: =(BL48*BH48)-((1-BH48)*-BM48) ->  | BO48: =BL48/-BM48 ->  | BP48: =(BL48*BH48)/((1-BH48)*-BM48) ->  | BQ48: 0 | BR48: 0 | BS48: =(BQ48*AR48)-((1-AR48)*-BR48) ->  | BT48: =BQ48/-BR48 ->  | BU48: =(BQ48*AR48)/((1-AR48)*-BR48) ->  | BV48: 0 | BW48: 0 | BX48: =(BV48*BA48)-((1-BA48)*-BW48) ->  | BY48: =BV48/-BW48 ->  | BZ48: =(BV48*BA48)/((1-BA48)*-BW48) -> 
B49: 34 | AI49: =SMALL('TRADE LOG'!$AQ$15:$AQ$9733,'TRADE LOG'!B48) ->  | AK49: 0 | AL49: 0 | AM49: 0 | AN49: 0 | AP49: 0 | AQ49: 0 | AT49: 0 | AU49: 0 | AV49: 0 | AW49: 0 | AY49: 0 | AZ49: 0 | BC49: 0 | BD49: 0 | BE49: =IF(AJ49="","",BD49+BC49+'TRADE LOG'!AR48) ->  | BF49: 0 | BG49: 0 | BJ49: 0 | BQ49: 0 | BR49: 0 | BV49: 0 | BW49: 0
B50: 35 | AI50: =SMALL('TRADE LOG'!$AQ$15:$AQ$9733,'TRADE LOG'!B49) ->  | AK50: 0 | AL50: 0 | AM50: 0 | AN50: 0 | AP50: 0 | AQ50: 0 | AT50: 0 | AU50: 0 | AV50: 0 | AW50: 0 | AY50: 0 | AZ50: 0 | BC50: 0 | BD50: 0 | BE50: =IF(AJ50="","",BD50+BC50+'TRADE LOG'!AR49) ->  | BF50: 0 | BG50: 0 | BJ50: 0 | BQ50: 0 | BR50: 0 | BV50: 0 | BW50: 0
B51: 36 | AI51: =SMALL('TRADE LOG'!$AQ$15:$AQ$9733,'TRADE LOG'!B50) ->  | AK51: 0 | AL51: 0 | AM51: 0 | AN51: 0 | AP51: 0 | AQ51: 0 | AT51: 0 | AU51: 0 | AV51: 0 | AW51: 0 | AY51: 0 | AZ51: 0 | BC51: 0 | BD51: 0 | BE51: =IF(AJ51="","",BD51+BC51+'TRADE LOG'!AR50) ->  | BF51: 0 | BG51: 0 | BJ51: 0 | BQ51: 0 | BR51: 0 | BV51: 0 | BW51: 0
B52: 37 | AI52: =SMALL('TRADE LOG'!$AQ$15:$AQ$9733,'TRADE LOG'!B51) ->  | AK52: 0 | AL52: 0 | AM52: 0 | AN52: 0 | AP52: 0 | AQ52: 0 | AT52: 0 | AU52: 0 | AV52: 0 | AW52: 0 | AY52: 0 | AZ52: 0 | BC52: 0 | BD52: 0 | BE52: =IF(AJ52="","",BD52+BC52+'TRADE LOG'!AR51) ->  | BF52: 0 | BG52: 0 | BJ52: 0 | BQ52: 0 | BR52: 0 | BV52: 0 | BW52: 0
B53: 38 | AI53: =SMALL('TRADE LOG'!$AQ$15:$AQ$9733,'TRADE LOG'!B52) ->  | AK53: 0 | AL53: 0 | AM53: 0 | AN53: 0 | AP53: 0 | AQ53: 0 | AT53: 0 | AU53: 0 | AV53: 0 | AW53: 0 | AY53: 0 | AZ53: 0 | BC53: 0 | BD53: 0 | BE53: =IF(AJ53="","",BD53+BC53+'TRADE LOG'!AR52) ->  | BF53: 0 | BG53: 0 | BJ53: 0 | BQ53: 0 | BR53: 0 | BV53: 0 | BW53: 0
B54: 39 | AI54: =SMALL('TRADE LOG'!$AQ$15:$AQ$9733,'TRADE LOG'!B53) ->  | AK54: 0 | AL54: 0 | AM54: 0 | AN54: 0 | AP54: 0 | AQ54: 0 | AT54: 0 | AU54: 0 | AV54: 0 | AW54: 0 | AY54: 0 | AZ54: 0 | BC54: 0 | BD54: 0 | BE54: =IF(AJ54="","",BD54+BC54+'TRADE LOG'!AR53) ->  | BF54: 0 | BG54: 0 | BJ54: 0 | BQ54: 0 | BR54: 0 | BV54: 0 | BW54: 0
B55: 40 | AI55: =SMALL('TRADE LOG'!$AQ$15:$AQ$9733,'TRADE LOG'!B54) ->  | AK55: 0 | AL55: 0 | AM55: 0 | AN55: 0 | AP55: 0 | AQ55: 0 | AT55: 0 | AU55: 0 | AV55: 0 | AW55: 0 | AY55: 0 | AZ55: 0 | BC55: 0 | BD55: 0 | BE55: =IF(AJ55="","",BD55+BC55+'TRADE LOG'!AR54) ->  | BF55: 0 | BG55: 0 | BJ55: 0 | BQ55: 0 | BR55: 0 | BV55: 0 | BW55: 0
B56: 41 | AI56: =SMALL('TRADE LOG'!$AQ$15:$AQ$9733,'TRADE LOG'!B55) ->  | AK56: 0 | AL56: 0 | AM56: 0 | AN56: 0 | AP56: 0 | AQ56: 0 | AT56: 0 | AU56: 0 | AV56: 0 | AW56: 0 | AY56: 0 | AZ56: 0 | BC56: 0 | BD56: 0 | BE56: =IF(AJ56="","",BD56+BC56+'TRADE LOG'!AR55) ->  | BF56: 0 | BG56: 0 | BJ56: 0 | BQ56: 0 | BR56: 0 | BV56: 0 | BW56: 0
B57: 42 | AI57: =SMALL('TRADE LOG'!$AQ$15:$AQ$9733,'TRADE LOG'!B56) ->  | AK57: 0 | AL57: 0 | AM57: 0 | AN57: 0 | AP57: 0 | AQ57: 0 | AT57: 0 | AU57: 0 | AV57: 0 | AW57: 0 | AY57: 0 | AZ57: 0 | BC57: 0 | BD57: 0 | BE57: =IF(AJ57="","",BD57+BC57+'TRADE LOG'!AR56) ->  | BF57: 0 | BG57: 0 | BJ57: 0 | BQ57: 0 | BR57: 0 | BV57: 0 | BW57: 0
B58: 43 | AI58: =SMALL('TRADE LOG'!$AQ$15:$AQ$9733,'TRADE LOG'!B57) ->  | AK58: 0 | AL58: 0 | AM58: 0 | AN58: 0 | AP58: 0 | AQ58: 0 | AT58: 0 | AU58: 0 | AV58: 0 | AW58: 0 | AY58: 0 | AZ58: 0 | BC58: 0 | BD58: 0 | BE58: =IF(AJ58="","",BD58+BC58+'TRADE LOG'!AR57) ->  | BF58: 0 | BG58: 0 | BJ58: 0 | BQ58: 0 | BR58: 0 | BV58: 0 | BW58: 0
B59: 44 | AI59: =SMALL('TRADE LOG'!$AQ$15:$AQ$9733,'TRADE LOG'!B58) ->  | AK59: 0 | AL59: 0 | AM59: 0 | AN59: 0 | AP59: 0 | AQ59: 0 | AT59: 0 | AU59: 0 | AV59: 0 | AW59: 0 | AY59: 0 | AZ59: 0 | BC59: 0 | BD59: 0 | BE59: =IF(AJ59="","",BD59+BC59+'TRADE LOG'!AR58) ->  | BF59: 0 | BG59: 0 | BJ59: 0 | BQ59: 0 | BR59: 0 | BV59: 0 | BW59: 0
B60: 45 | AI60: =SMALL('TRADE LOG'!$AQ$15:$AQ$9733,'TRADE LOG'!B59) ->  | AK60: 0 | AL60: 0 | AM60: 0 | AN60: 0 | AP60: 0 | AQ60: 0 | AT60: 0 | AU60: 0 | AV60: 0 | AW60: 0 | AY60: 0 | AZ60: 0 | BC60: 0 | BD60: 0 | BE60: =IF(AJ60="","",BD60+BC60+'TRADE LOG'!AR59) ->  | BF60: 0 | BG60: 0 | BJ60: 0 | BQ60: 0 | BR60: 0 | BV60: 0 | BW60: 0
B61: 46 | AI61: =SMALL('TRADE LOG'!$AQ$15:$AQ$9733,'TRADE LOG'!B60) ->  | AK61: 0 | AL61: 0 | AM61: 0 | AN61: 0 | AP61: 0 | AQ61: 0 | AT61: 0 | AU61: 0 | AV61: 0 | AW61: 0 | AY61: 0 | AZ61: 0 | BC61: 0 | BD61: 0 | BE61: =IF(AJ61="","",BD61+BC61+'TRADE LOG'!AR60) ->  | BF61: 0 | BG61: 0 | BJ61: 0 | BQ61: 0 | BR61: 0 | BV61: 0 | BW61: 0
B62: 47 | AI62: =SMALL('TRADE LOG'!$AQ$15:$AQ$9733,'TRADE LOG'!B61) ->  | AK62: 0 | AL62: 0 | AM62: 0 | AN62: 0 | AP62: 0 | AQ62: 0 | AT62: 0 | AU62: 0 | AV62: 0 | AW62: 0 | AY62: 0 | AZ62: 0 | BC62: 0 | BD62: 0 | BE62: =IF(AJ62="","",BD62+BC62+'TRADE LOG'!AR61) ->  | BF62: 0 | BG62: 0 | BJ62: 0 | BQ62: 0 | BR62: 0 | BV62: 0 | BW62: 0
B63: 48 | AI63: =SMALL('TRADE LOG'!$AQ$15:$AQ$9733,'TRADE LOG'!B62) ->  | AK63: 0 | AL63: 0 | AM63: 0 | AN63: 0 | AP63: 0 | AQ63: 0 | AT63: 0 | AU63: 0 | AV63: 0 | AW63: 0 | AY63: 0 | AZ63: 0 | BC63: 0 | BD63: 0 | BE63: =IF(AJ63="","",BD63+BC63+'TRADE LOG'!AR62) ->  | BF63: 0 | BG63: 0 | BJ63: 0 | BQ63: 0 | BR63: 0 | BV63: 0 | BW63: 0
B64: 49 | AI64: =SMALL('TRADE LOG'!$AQ$15:$AQ$9733,'TRADE LOG'!B63) ->  | AK64: 0 | AL64: 0 | AM64: 0 | AN64: 0 | AP64: 0 | AQ64: 0 | AT64: 0 | AU64: 0 | AV64: 0 | AW64: 0 | AY64: 0 | AZ64: 0 | BC64: 0 | BD64: 0 | BE64: =IF(AJ64="","",BD64+BC64+'TRADE LOG'!AR63) ->  | BF64: 0 | BG64: 0 | BJ64: 0 | BQ64: 0 | BR64: 0 | BV64: 0 | BW64: 0
B65: 50 | AI65: =SMALL('TRADE LOG'!$AQ$15:$AQ$9733,'TRADE LOG'!B64) ->  | AK65: 0 | AL65: 0 | AM65: 0 | AN65: 0 | AP65: 0 | AQ65: 0 | AT65: 0 | AU65: 0 | AV65: 0 | AW65: 0 | AY65: 0 | AZ65: 0 | BC65: 0 | BD65: 0 | BE65: =IF(AJ65="","",BD65+BC65+'TRADE LOG'!AR64) ->  | BF65: 0 | BG65: 0 | BJ65: 0 | BQ65: 0 | BR65: 0 | BV65: 0 | BW65: 0
D66: =IFERROR(P66+J66,"") ->  | J66: =IFERROR(AC66,"") ->  | P66: =IFERROR(AD66,"") ->  | AI66: =SMALL('TRADE LOG'!$AQ$15:$AQ$9733,'TRADE LOG'!B65) ->  | AK66: 0 | AL66: 0 | AM66: 0 | AN66: 0 | AP66: 0 | AQ66: 0 | AT66: 0 | AU66: 0 | AV66: 0 | AW66: 0 | AX66: =AW66/AT66 ->  | AY66: 0 | AZ66: 0 | BC66: 0 | BD66: 0 | BE66: =IF(AJ66="","",BD66+BC66+'TRADE LOG'!AR65) ->  | BF66: 0 | BG66: 0 | BJ66: 0 | BQ66: 0 | BR66: 0 | BV66: 0 | BW66: 0

Sheet MONTHLY REPORT (hidden)
B1: MONTHLY REPORT | X1: =SETTINGS!AA13 -> REWARD-RISK RATIO | Y1: ="WIN% VS "&X1 -> WIN% VS REWARD-RISK RATIO | AY1: Win rate% | AZ1: RRR
X3: =SETTINGS!AH2 -> 2023-03-17 | AM3: =CONCATENATE(TEXT(AM4," 0.0% "),"to Breakeven") -> 39.5% to Breakeven | AN3: full | AO3: Win Rate% | AP3: Ave.Gain% | AQ3: Ave.Loss% | AR3: RRR | AT3: Edge | AV3: Ratio | AZ3: Adj. RRR
X4: =DATE(YEAR(X3),MONTH(X3),DAY(1)) -> 2023-03-01 | Y4: =IF(SETTINGS!L20="Archived","Archived",X4) -> 44986 | AL4: =S2O -> 2023-03-01 | AM4: =1/(1+(AV4/1)) -> 39% | AN4: =IF(AM4>0,100%) -> 100% | AO4: =AK15 -> 45% | AP4: =AP15 -> 7% | AQ4: =-AQ15 -> 4% | AR4: =AP4/AQ4 -> 1.532 | AT4: =AT15/AU15 ->  | AV4: =IF($X$1=$AB$8,AR4,AT4) -> 1.53 | AZ4: Edge Ratio
X5: =MIN('TRADE LOG'!C15:C1749) -> 2020-05-26T05:48:19 | Y5: =HOME!U6 -> 0 | AD5: net profit | AE5: net loss | AL5: =X16 -> 2023-02-01 | AM5: 39% | AN5: =IF(AM5>0,100%) -> 100% | AO5: 45% | AP5: 7% | AQ5: 4% | AR5: 1.532 | AV5: =IF($X$1=$AB$8,AR5,AT5) -> 1.53 | AZ5: Profit Factor
X6: =MIN('Bank Transfers'!D15:D1000) -> 2020-05-26T05:48:19 | AD6: =SUMIFS('TRADE LOG'!$BD$15:$BD$9733,'TRADE LOG'!$BK$15:$BK$9733,1) -> 13805.11 | AE6: =SUMIFS('TRADE LOG'!$BD$15:$BD$9733,'TRADE LOG'!$BK$15:$BK$9733,-1,'TRADE LOG'!$BC$15:$BC$9733,0) -> -9533.69 | AL6: =X17 -> 2023-01-01 | AM6: 39% | AN6: 100% | AO6: 45% | AP6: 7% | AQ6: 4% | AR6: 1.532 | AV6: 1.53
X7: =IF(OR(MIN(X5:X6)=0,COUNT(S2O)=0),SETTINGS!#REF!,MIN(X5:X6)) -> 2020-05-26T05:48:19 | Y7: =DATE(YEAR(X7),MONTH(X7),DAY(1)) -> 43952 | AD7: =AD6/-AE6 -> 1.448034287 | AL7: =X18 -> 2022-12-01 | AM7: 39% | AN7: 100% | AO7: 45% | AP7: 7% | AQ7: 4% | AR7: 1.532 | AV7: 1.53
AB8: REWARD-RISK RATIO | AG8: Average Win% / Average Loss% | AL8: =X19 -> 2022-11-01 | AM8: 39% | AN8: 100% | AO8: 45% | AP8: 7% | AQ8: 4% | AR8: 1.532 | AV8: 1.53
AB9: PROFIT-LOSS RATIO | AE9: =AL15/AG15 ->  | AL9: =X20 -> 2022-10-01 | AM9: 39% | AN9: 100% | AO9: 45% | AP9: 7% | AQ9: 4% | AR9: 1.53 | AV9: 1.53
X10: =SETTINGS!S3 -> 0.01 | AE10: =AL16/AG16 -> 
X11: =SUMIFS(ProfitLoss,ProfitLoss,">0",Datelog,">0",'TRADE LOG'!$Q$15:$Q$9733,">0") -> 13805.11 | AY11: vol axis | AZ11: equity axis
AT12: cum | AY12: =MAX(AA15:AA50)*1.5 -> 6671169.143 | AZ12: =MAX(J15:J50)*1.1 -> 59698.562
B13: MONTH | C13: Additional Deposits | D13: Withdrawals | E13: BEG. BALANCE | F13: FUND TRANSFER | G13: GROSS PROFIT | H13: GROSS LOSS | I13: TAX & FEES | J13: END BALANCE | K13: NET PROFIT | L13: % P&L | N13: TRADES | O13: WIN RATE% | P13: AVE.WIN% | Q13: AVE.LOSS% | R13: RRR | S13: EDGE RATIO | T13: P-FACTOR | U13: NET R-MUL | AB13: equity chart | AD13: historical win rate% | AE13: col chart | AF13: monthly | AG13: win trade | AH13: loss | AI13: cum.w | AJ13: cum.l | AK13: cum.win% | AL13: %win sum | AM13: %loss sum | AN13: cumulative W% | AO13: Cumulative L% | AP13: Cum.ave.Win% | AQ13: Cum.ave.loss% | AR13: cum.profit | AS13: cu.loss | AT13: ave.profit | AU13: ave.loss | AV13: ave.profit | AW13: ave.loss | AY13: =MIN(AA15:AA50)*0.8 -> 0 | AZ13: =LARGE(J15:J50,COUNT(U15:U50))*0.8 -> 0
B14: TOTAL | C14: =SUMIFS('Bank Transfers'!H15:H514,'Bank Transfers'!E15:E514,"deposit") -> 50000 | D14: =SUMIFS('Bank Transfers'!H15:H514,'Bank Transfers'!E15:E514,"Withdraw",'Bank Transfers'!D15:D514,">0") -> 0 | E14: ='TRADE LOG'!T15 -> $50,000.0 | F14: =SUM(F15:F50) -> 0 | G14: =SUMIFS('TRADE LOG'!$M$15:$M$9733,WL,"W") -> $16,146.9 | H14: =SUMIFS('TRADE LOG'!$M$15:$M$9733,WL,"L") -> $-6,914.7 | I14: =SUM(Fees) -> $-4,960.8 | J14: =SUM(E14:I14) -> $54,271.4 | K14: =G14+H14+I14 -> $4,271.4 | L14: =IFERROR(K14/(E14),0) -> ▲ 8.54% | N14: ='TRADE STATISTICS'!BI4+'TRADE STATISTICS'!BJ4 -> 55 | O14: ='TRADE STATISTICS'!BI6 -> 45.5% | P14: =DASHBOARD!I37 -> 6.8% | Q14: =DASHBOARD!I38 -> -4.5% | R14: =IFERROR(P14/-Q14,"") -> 1.5 | S14: ='TRADE STATISTICS'!BL8 -> 1.7 | T14: ='TRADE STATISTICS'!BJ9 -> 1.4 | U14: =IFERROR(K14/((E14+F14)*X10),0) -> 8.54R | X14: Month | Z14: Month | AA14: Volume | AB14: vol positive | AC14: vol.neg | AD14: increase % | AE14: decrease% | AF14: win% | AG14: ='TRADE STATISTICS'!BI4 -> 25 | AH14: ='TRADE STATISTICS'!BJ4 -> 30 | AL14: =SUMIFS(PNLPercent,WL,"W") -> 1.705076119 | AM14: =SUMIFS(PNLPercent,WL,"L") -> -1.335570258 | AR14: =AD6 -> 13805.11 | AS14: =AE6 -> -9533.69 | AX14: NET PROFIT | AY14: NET LOSS
A15: 1 | B15: =IFERROR(IF(COUNT(X15)=0,S2O,IF(IF(X15<=$X$4,X15,"")<$Y$7,"",IF(X15<=$X$4,X15,""))),"") -> 2023-03-01 | C15: =SUMIFS('Bank Transfers'!$H$15:$H$514,'Bank Transfers'!$L$15:$L$514,B15,'Bank Transfers'!$E$15:$E$514,"deposit") -> 0 | D15: =SUMIFS('Bank Transfers'!$H$15:$H$514,'Bank Transfers'!$L$15:$L$514,B15,'Bank Transfers'!$E$15:$E$514,"withdraw") -> 0 | E15: =IF(B15="","",IF(B15='Bank Transfers'!$L$15,'Bank Transfers'!$H$15,J16)) -> $54,271.4 | F15: =IFERROR(IF(B15='Bank Transfers'!$L$15,C15+D15-E15,C15+D15),0) -> 0 | G15: =SUMIFS('TRADE LOG'!$M$15:$M$9733,WL,"W",datecode,B15) -> 0 | H15: =SUMIFS('TRADE LOG'!$M$15:$M$9733,WL,"L",datecode,B15) -> 0 | I15: =SUMIFS(Fees,datecode,B15) -> 0 | J15: =IFERROR(IF(B15="",0,SUM(E15:I15)),"") -> $54,271.4 | K15: =IFERROR(G15+H15+I15,"") -> 0 | L15: =IFERROR(K15/IF(AND(B15<>"",E15<=0),F15,E15),"") -> 0 | N15: =IF(E15="","",AG15+AH15) -> 0 | O15: =IFERROR(AG15/(AG15+AH15),"") ->  | P15: =IFERROR(SUMIFS(PNLPercent,WL,"W",datecode,B15)/AG15,"") ->  | Q15: =IFERROR(SUMIFS('TRADE LOG'!$BE$15:$BE$9733,'TRADE LOG'!$BK$15:$BK$9733,-1,datecode,B15)/AH15,"") ->  | R15: =IFERROR(P15/-Q15,"") ->  | S15: =IFERROR(AV15/AW15,"") ->  | T15: =IFERROR((AV15*AF15)/(AW15*(1-AF15)),"") ->  | U15: =IFERROR(SUMIFS('TRADE LOG'!$W$15:$W$9733,datecode,"="&B15),"") -> 0.00R | X15: =IFERROR(IF(Nameko=SheetlU13,M2O,Y5),Y5) -> 44986 | Y15: =IF(J15=0,NA(),J15) -> 54271.42 | Z15: =B15 -> 44986 | AA15: =SUMIFS(BuyAmount,datecode,"="&'MONTHLY REPORT'!B15) -> 0 | AB15: =IF(L15>0,AA15,0) -> 0 | AC15: =AA15-AB15 -> 0 | AD15: =IF(O15>O16,O15,0) -> 0 | AE15: =O15-AD15 ->  | AF15: =O15 ->  | AG15: =COUNTIFS(WL,"W",datecode,B15) -> 0 | AH15: =COUNTIFS(WL,"L",datecode,B15) -> 0 | AI15: =AG14 -> 25 | AJ15: =AH14 -> 30 | AK15: =IFERROR(AI15/(AI15+AJ15),NA()) -> 0.4545454545 | AL15: =SUMIFS(PNLPercent,WL,"W",datecode,B15) -> 0 | AM15: =SUMIFS(PNLPercent,WL,"L",datecode,B15) -> 0 | AN15: =AL14 -> 1.705076119 | AO15: =AM14 -> -1.335570258 | AP15: =IFERROR(AN15/AI15,0) -> 0.06820304475 | AQ15: =IFERROR(AO15/AJ15,0) -> -0.04451900859 | AR15: =AX15+AR16 -> 0 | AS15: =AY15+AS16 -> 0 | AT15: =AR15/AI15 -> 0 | AU15: =-AS15/AJ15 -> 0 | AV15: =AX15/AG15 ->  | AW15: =-AY15/AH15 ->  | AX15: =SUMIFS(PNLwFees,WL,"W",datecode,B15) -> 0 | AY15: =SUMIFS(PNLwFees,WL,"L",datecode,B15) -> 0
A16: =A15+1 -> 2 | B16: =IFERROR(IF(IF(X16<=$X$4,X16,"")<$Y$7,"",IF(X16<=$X$4,X16,"")),"") -> 2023-02-01 | C16: =SUMIFS('Bank Transfers'!$H$15:$H$514,'Bank Transfers'!$L$15:$L$514,B16,'Bank Transfers'!$E$15:$E$514,"deposit") -> 0 | D16: =SUMIFS('Bank Transfers'!$H$15:$H$514,'Bank Transfers'!$L$15:$L$514,B16,'Bank Transfers'!$E$15:$E$514,"withdraw") -> 0 | E16: =IF(B16="","",IF(B16='Bank Transfers'!$L$15,'Bank Transfers'!$H$15,J17)) -> $54,271.4 | F16: =IFERROR(IF(B16='Bank Transfers'!$L$15,C16+D16-E16,C16+D16),0) -> 0 | G16: =SUMIFS('TRADE LOG'!$M$15:$M$9733,WL,"W",datecode,B16) -> 0 | H16: =SUMIFS('TRADE LOG'!$M$15:$M$9733,WL,"L",datecode,B16) -> 0 | I16: 0 | J16: =IFERROR(IF(B16="",0,SUM(E16:I16)),"") -> $54,271.4 | K16: =IFERROR(G16+H16+I16,"") -> 0 | L16: 0 | N16: 0 | Q16: =IFERROR(SUMIFS(PNLPercent,WL,"L",datecode,B16)/AH16,"") ->  | R16: =IFERROR(P16/-Q16,"") ->  | S16: =IFERROR(AV16/AW16,"") ->  | U16: =IFERROR(SUMIFS('TRADE LOG'!$W$15:$W$9733,datecode,"="&B16),"") -> 0.00R | X16: =EOMONTH(X15,-2)+1 -> 44958 | Y16: =IF(J16=0,NA(),J16) -> 54271.42 | Z16: 44958 | AA16: =SUMIFS(BuyAmount,datecode,"="&'MONTHLY REPORT'!B16) -> 0 | AB16: 0 | AC16: =AA16-AB16 -> 0 | AD16: 0 | AG16: 0 | AH16: 0 | AI16: =AI15-AG15 -> 25 | AJ16: 30 | AK16: =IFERROR(AI16/(AI16+AJ16),NA()) -> 0.4545454545 | AL16: 0 | AM16: 0 | AN16: =AN15-AL15 -> 1.705076119 | AO16: =AO15-AM15 -> -1.335570258 | AP16: =IFERROR(AN16/AI16,0) -> 0.06820304475 | AQ16: =IFERROR(AO16/AJ16,0) -> -0.04451900859 | AR16: =AX16+AR17 -> 0 | AS16: =AY16+AS17 -> 0 | AT16: =AR16/AI16 -> 0 | AU16: =-AS16/AJ16 -> 0 | AX16: 0 | AY16: 0
A17: 3 | B17: =IFERROR(IF(IF(X17<=$X$4,X17,"")<$Y$7,"",IF(X17<=$X$4,X17,"")),"") -> 2023-01-01 | C17: =SUMIFS('Bank Transfers'!$H$15:$H$514,'Bank Transfers'!$L$15:$L$514,B17,'Bank Transfers'!$E$15:$E$514,"deposit") -> 0 | D17: =SUMIFS('Bank Transfers'!$H$15:$H$514,'Bank Transfers'!$L$15:$L$514,B17,'Bank Transfers'!$E$15:$E$514,"withdraw") -> 0 | E17: =IF(B17="","",IF(B17='Bank Transfers'!$L$15,'Bank Transfers'!$H$15,J18)) -> $54,271.4 | F17: =IFERROR(IF(B17='Bank Transfers'!$L$15,C17+D17-E17,C17+D17),0) -> 0 | G17: =SUMIFS('TRADE LOG'!$M$15:$M$9733,WL,"W",datecode,B17) -> 0 | H17: =SUMIFS('TRADE LOG'!$M$15:$M$9733,WL,"L",datecode,B17) -> 0 | I17: 0 | J17: =IFERROR(IF(B17="",0,SUM(E17:I17)),"") -> $54,271.4 | K17: =IFERROR(G17+H17+I17,"") -> 0 | L17: 0 | N17: 0 | S17: =IFERROR(AV17/AW17,"") ->  | U17: =IFERROR(SUMIFS('TRADE LOG'!$W$15:$W$9733,datecode,"="&B17),"") -> 0.00R | X17: 44927 | Y17: 54271.42 | Z17: 44927 | AA17: =SUMIFS(BuyAmount,datecode,"="&'MONTHLY REPORT'!B17) -> 0 | AB17: 0 | AC17: 0 | AD17: 0 | AG17: 0 | AH17: 0 | AI17: 25 | AJ17: 30 | AK17: 0.4545454545 | AL17: 0 | AM17: 0 | AN17: =AN16-AL16 -> 1.705076119 | AO17: -1.335570258 | AP17: 0.06820304475 | AQ17: -0.04451900859 | AR17: =AX17+AR18 -> 0 | AS17: =AY17+AS18 -> 0 | AT17: 0 | AU17: 0 | AX17: 0 | AY17: 0
A18: 4 | B18: =IFERROR(IF(IF(X18<=$X$4,X18,"")<$Y$7,"",IF(X18<=$X$4,X18,"")),"") -> 2022-12-01 | C18: =SUMIFS('Bank Transfers'!$H$15:$H$514,'Bank Transfers'!$L$15:$L$514,B18,'Bank Transfers'!$E$15:$E$514,"deposit") -> 0 | D18: =SUMIFS('Bank Transfers'!$H$15:$H$514,'Bank Transfers'!$L$15:$L$514,B18,'Bank Transfers'!$E$15:$E$514,"withdraw") -> 0 | E18: =IF(B18="","",IF(B18='Bank Transfers'!$L$15,'Bank Transfers'!$H$15,J19)) -> $54,271.4 | F18: =IFERROR(IF(B18='Bank Transfers'!$L$15,C18+D18-E18,C18+D18),0) -> 0 | G18: =SUMIFS('TRADE LOG'!$M$15:$M$9733,WL,"W",datecode,B18) -> 0 | H18: =SUMIFS('TRADE LOG'!$M$15:$M$9733,WL,"L",datecode,B18) -> 0 | I18: 0 | J18: $54,271.4 | K18: 0 | L18: 0 | N18: 0 | U18: =IFERROR(SUMIFS('TRADE LOG'!$W$15:$W$9733,datecode,"="&B18),"") -> 0.00R | X18: 44896 | Y18: 54271.42 | Z18: 44896 | AA18: =SUMIFS(BuyAmount,datecode,"="&'MONTHLY REPORT'!B18) -> 0 | AB18: 0 | AC18: 0 | AD18: 0 | AG18: 0 | AH18: 0 | AI18: 25 | AJ18: 30 | AK18: 0.4545454545 | AL18: 0 | AM18: 0 | AN18: 1.705076119 | AO18: -1.335570258 | AP18: 0.06820304475 | AQ18: -0.04451900859 | AR18: =AX18+AR19 -> 0 | AS18: 0 | AT18: 0 | AU18: 0 | AX18: 0 | AY18: 0
A19: 5 | B19: 2022-11-01 | C19: =SUMIFS('Bank Transfers'!$H$15:$H$514,'Bank Transfers'!$L$15:$L$514,B19,'Bank Transfers'!$E$15:$E$514,"deposit") -> 0 | D19: =SUMIFS('Bank Transfers'!$H$15:$H$514,'Bank Transfers'!$L$15:$L$514,B19,'Bank Transfers'!$E$15:$E$514,"withdraw") -> 0 | E19: =IF(B19="","",IF(B19='Bank Transfers'!$L$15,'Bank Transfers'!$H$15,J20)) -> $54,271.4 | F19: =IFERROR(IF(B19='Bank Transfers'!$L$15,C19+D19-E19,C19+D19),0) -> 0 | G19: =SUMIFS('TRADE LOG'!$M$15:$M$9733,WL,"W",datecode,B19) -> 0 | H19: =SUMIFS('TRADE LOG'!$M$15:$M$9733,WL,"L",datecode,B19) -> 0 | I19: 0 | J19: $54,271.4 | K19: 0 | L19: 0 | N19: 0 | U19: =IFERROR(SUMIFS('TRADE LOG'!$W$15:$W$9733,datecode,"="&B19),"") -> 0.00R | X19: 44866 | Y19: 54271.42 | Z19: 44866 | AA19: =SUMIFS(BuyAmount,datecode,"="&'MONTHLY REPORT'!B19) -> 0 | AB19: 0 | AC19: 0 | AD19: 0 | AG19: 0 | AH19: 0 | AI19: =AI18-AG18 -> 25 | AJ19: 30 | AK19: 0.4545454545 | AL19: 0 | AM19: 0 | AN19: 1.705076119 | AO19: =AO18-AM18 -> -1.335570258 | AP19: 0.06820304475 | AQ19: -0.04451900859 | AR19: 0 | AS19: 0 | AT19: 0 | AU19: 0 | AX19: 0 | AY19: 0
A20: 6 | B20: 2022-10-01 | C20: =SUMIFS('Bank Transfers'!$H$15:$H$514,'Bank Transfers'!$L$15:$L$514,B20,'Bank Transfers'!$E$15:$E$514,"deposit") -> 0 | D20: =SUMIFS('Bank Transfers'!$H$15:$H$514,'Bank Transfers'!$L$15:$L$514,B20,'Bank Transfers'!$E$15:$E$514,"withdraw") -> 0 | E20: =IF(B20="","",IF(B20='Bank Transfers'!$L$15,'Bank Transfers'!$H$15,J21)) -> $54,271.4 | F20: =IFERROR(IF(B20='Bank Transfers'!$L$15,C20+D20-E20,C20+D20),0) -> 0 | G20: =SUMIFS('TRADE LOG'!$M$15:$M$9733,WL,"W",datecode,B20) -> 0 | H20: =SUMIFS('TRADE LOG'!$M$15:$M$9733,WL,"L",datecode,B20) -> 0 | I20: 0 | J20: $54,271.4 | K20: 0 | L20: 0 | N20: 0 | U20: =IFERROR(SUMIFS('TRADE LOG'!$W$15:$W$9733,datecode,"="&B20),"") -> 0.00R | X20: 44835 | Y20: 54271.42 | Z20: 44835 | AA20: =SUMIFS(BuyAmount,datecode,"="&'MONTHLY REPORT'!B20) -> 0 | AB20: 0 | AC20: 0 | AD20: 0 | AG20: 0 | AH20: 0 | AI20: 25 | AJ20: 30 | AK20: 0.4545454545 | AL20: 0 | AM20: 0 | AN20: 1.705076119 | AO20: -1.335570258 | AP20: 0.06820304475 | AQ20: -0.04451900859 | AR20: 0 | AS20: 0 | AT20: 0 | AU20: 0 | AX20: 0 | AY20: 0
A21: 7 | B21: 2022-09-01 | C21: =SUMIFS('Bank Transfers'!$H$15:$H$514,'Bank Transfers'!$L$15:$L$514,B21,'Bank Transfers'!$E$15:$E$514,"deposit") -> 0 | D21: =SUMIFS('Bank Transfers'!$H$15:$H$514,'Bank Transfers'!$L$15:$L$514,B21,'Bank Transfers'!$E$15:$E$514,"withdraw") -> 0 | E21: =IF(B21="","",IF(B21='Bank Transfers'!$L$15,'Bank Transfers'!$H$15,J22)) -> $54,271.4 | F21: =IFERROR(IF(B21='Bank Transfers'!$L$15,C21+D21-E21,C21+D21),0) -> 0 | G21: =SUMIFS('TRADE LOG'!$M$15:$M$9733,WL,"W",datecode,B21) -> 0 | H21: =SUMIFS('TRADE LOG'!$M$15:$M$9733,WL,"L",datecode,B21) -> 0 | I21: 0 | J21: $54,271.4 | K21: 0 | L21: 0 | N21: 0 | U21: =IFERROR(SUMIFS('TRADE LOG'!$W$15:$W$9733,datecode,"="&B21),"") -> 0.00R | X21: 44805 | Y21: 54271.42 | Z21: 44805 | AA21: =SUMIFS(BuyAmount,datecode,"="&'MONTHLY REPORT'!B21) -> 0 | AB21: 0 | AC21: 0 | AG21: 0 | AH21: 0 | AX21: 0 | AY21: 0
A22: 8 | B22: 2022-08-01 | C22: =SUMIFS('Bank Transfers'!$H$15:$H$514,'Bank Transfers'!$L$15:$L$514,B22,'Bank Transfers'!$E$15:$E$514,"deposit") -> 0 | D22: =SUMIFS('Bank Transfers'!$H$15:$H$514,'Bank Transfers'!$L$15:$L$514,B22,'Bank Transfers'!$E$15:$E$514,"withdraw") -> 0 | E22: =IF(B22="","",IF(B22='Bank Transfers'!$L$15,'Bank Transfers'!$H$15,J23)) -> $54,271.4 | F22: =IFERROR(IF(B22='Bank Transfers'!$L$15,C22+D22-E22,C22+D22),0) -> 0 | G22: =SUMIFS('TRADE LOG'!$M$15:$M$9733,WL,"W",datecode,B22) -> 0 | H22: =SUMIFS('TRADE LOG'!$M$15:$M$9733,WL,"L",datecode,B22) -> 0 | I22: 0 | J22: $54,271.4 | K22: 0 | L22: 0 | N22: 0 | U22: =IFERROR(SUMIFS('TRADE LOG'!$W$15:$W$9733,datecode,"="&B22),"") -> 0.00R | X22: 44774 | Y22: 54271.42 | Z22: 44774 | AA22: =SUMIFS(BuyAmount,datecode,"="&'MONTHLY REPORT'!B22) -> 0 | AB22: 0 | AC22: 0 | AG22: 0 | AH22: 0 | AX22: 0 | AY22: 0
A23: 9 | B23: 2022-07-01 | C23: =SUMIFS('Bank Transfers'!$H$15:$H$514,'Bank Transfers'!$L$15:$L$514,B23,'Bank Transfers'!$E$15:$E$514,"deposit") -> 0 | D23: =SUMIFS('Bank Transfers'!$H$15:$H$514,'Bank Transfers'!$L$15:$L$514,B23,'Bank Transfers'!$E$15:$E$514,"withdraw") -> 0 | E23: =IF(B23="","",IF(B23='Bank Transfers'!$L$15,'Bank Transfers'!$H$15,J24)) -> $54,271.4 | F23: =IFERROR(IF(B23='Bank Transfers'!$L$15,C23+D23-E23,C23+D23),0) -> 0 | G23: =SUMIFS('TRADE LOG'!$M$15:$M$9733,WL,"W",datecode,B23) -> 0 | H23: =SUMIFS('TRADE LOG'!$M$15:$M$9733,WL,"L",datecode,B23) -> 0 | I23: 0 | J23: $54,271.4 | K23: 0 | L23: =IFERROR(K23/IF(AND(B23<>"",E23<=0),F23,E23),"") -> 0 | N23: 0 | U23: =IFERROR(SUMIFS('TRADE LOG'!$W$15:$W$9733,datecode,"="&B23),"") -> 0.00R | X23: 44743 | Y23: 54271.42 | Z23: 44743 | AA23: =SUMIFS(BuyAmount,datecode,"="&'MONTHLY REPORT'!B23) -> 0 | AB23: 0 | AC23: 0 | AG23: 0 | AH23: 0 | AX23: 0 | AY23: 0
A24: 10 | B24: 2022-06-01 | C24: =SUMIFS('Bank Transfers'!$H$15:$H$514,'Bank Transfers'!$L$15:$L$514,B24,'Bank Transfers'!$E$15:$E$514,"deposit") -> 0 | D24: =SUMIFS('Bank Transfers'!$H$15:$H$514,'Bank Transfers'!$L$15:$L$514,B24,'Bank Transfers'!$E$15:$E$514,"withdraw") -> 0 | E24: =IF(B24="","",IF(B24='Bank Transfers'!$L$15,'Bank Transfers'!$H$15,J25)) -> $54,271.4 | F24: =IFERROR(IF(B24='Bank Transfers'!$L$15,C24+D24-E24,C24+D24),0) -> 0 | G24: =SUMIFS('TRADE LOG'!$M$15:$M$9733,WL,"W",datecode,B24) -> 0 | H24: =SUMIFS('TRADE LOG'!$M$15:$M$9733,WL,"L",datecode,B24) -> 0 | I24: 0 | J24: $54,271.4 | K24: 0 | L24: =IFERROR(K24/IF(AND(B24<>"",E24<=0),F24,E24),"") -> 0 | N24: 0 | U24: =IFERROR(SUMIFS('TRADE LOG'!$W$15:$W$9733,datecode,"="&B24),"") -> 0.00R | X24: 44713 | Y24: 54271.42 | Z24: 44713 | AA24: =SUMIFS(BuyAmount,datecode,"="&'MONTHLY REPORT'!B24) -> 0 | AB24: 0 | AC24: 0 | AG24: 0 | AH24: 0 | AX24: 0 | AY24: 0
A25: 11 | B25: 2022-05-01 | C25: =SUMIFS('Bank Transfers'!$H$15:$H$514,'Bank Transfers'!$L$15:$L$514,B25,'Bank Transfers'!$E$15:$E$514,"deposit") -> 0 | D25: =SUMIFS('Bank Transfers'!$H$15:$H$514,'Bank Transfers'!$L$15:$L$514,B25,'Bank Transfers'!$E$15:$E$514,"withdraw") -> 0 | E25: =IF(B25="","",IF(B25='Bank Transfers'!$L$15,'Bank Transfers'!$H$15,J26)) -> $54,271.4 | F25: =IFERROR(IF(B25='Bank Transfers'!$L$15,C25+D25-E25,C25+D25),0) -> 0 | G25: =SUMIFS('TRADE LOG'!$M$15:$M$9733,WL,"W",datecode,B25) -> 0 | H25: =SUMIFS('TRADE LOG'!$M$15:$M$9733,WL,"L",datecode,B25) -> 0 | I25: 0 | J25: $54,271.4 | K25: 0 | L25: 0 | N25: 0 | U25: =IFERROR(SUMIFS('TRADE LOG'!$W$15:$W$9733,datecode,"="&B25),"") -> 0.00R | X25: 44682 | Y25: 54271.42 | Z25: 44682 | AA25: =SUMIFS(BuyAmount,datecode,"="&'MONTHLY REPORT'!B25) -> 0 | AB25: 0 | AC25: 0 | AG25: 0 | AH25: 0 | AX25: 0 | AY25: 0
A26: 12 | B26: 2022-04-01 | C26: =SUMIFS('Bank Transfers'!$H$15:$H$514,'Bank Transfers'!$L$15:$L$514,B26,'Bank Transfers'!$E$15:$E$514,"deposit") -> 0 | D26: =SUMIFS('Bank Transfers'!$H$15:$H$514,'Bank Transfers'!$L$15:$L$514,B26,'Bank Transfers'!$E$15:$E$514,"withdraw") -> 0 | E26: =IF(B26="","",IF(B26='Bank Transfers'!$L$15,'Bank Transfers'!$H$15,J27)) -> $54,271.4 | F26: =IFERROR(IF(B26='Bank Transfers'!$L$15,C26+D26-E26,C26+D26),0) -> 0 | G26: =SUMIFS('TRADE LOG'!$M$15:$M$9733,WL,"W",datecode,B26) -> 0 | H26: =SUMIFS('TRADE LOG'!$M$15:$M$9733,WL,"L",datecode,B26) -> 0 | I26: 0 | J26: $54,271.4 | K26: 0 | L26: 0 | N26: 0 | U26: =IFERROR(SUMIFS('TRADE LOG'!$W$15:$W$9733,datecode,"="&B26),"") -> 0.00R | X26: 44652 | Y26: 54271.42 | Z26: 44652 | AA26: =SUMIFS(BuyAmount,datecode,"="&'MONTHLY REPORT'!B26) -> 0 | AB26: 0 | AC26: 0 | AG26: 0 | AH26: 0 | AX26: 0 | AY26: 0
A27: 13 | B27: 2022-03-01 | C27: =SUMIFS('Bank Transfers'!$H$15:$H$514,'Bank Transfers'!$L$15:$L$514,B27,'Bank Transfers'!$E$15:$E$514,"deposit") -> 0 | D27: =SUMIFS('Bank Transfers'!$H$15:$H$514,'Bank Transfers'!$L$15:$L$514,B27,'Bank Transfers'!$E$15:$E$514,"withdraw") -> 0 | E27: =IF(B27="","",IF(B27='Bank Transfers'!$L$15,'Bank Transfers'!$H$15,J28)) -> $54,271.4 | F27: =IFERROR(IF(B27='Bank Transfers'!$L$15,C27+D27-E27,C27+D27),0) -> 0 | G27: =SUMIFS('TRADE LOG'!$M$15:$M$9733,WL,"W",datecode,B27) -> 0 | H27: =SUMIFS('TRADE LOG'!$M$15:$M$9733,WL,"L",datecode,B27) -> 0 | I27: 0 | J27: $54,271.4 | K27: 0 | L27: 0 | N27: 0 | U27: =IFERROR(SUMIFS('TRADE LOG'!$W$15:$W$9733,datecode,"="&B27),"") -> 0.00R | X27: 44621 | Y27: 54271.42 | Z27: 44621 | AA27: =SUMIFS(BuyAmount,datecode,"="&'MONTHLY REPORT'!B27) -> 0 | AB27: 0 | AC27: 0 | AG27: 0 | AH27: 0 | AX27: 0 | AY27: 0
A28: 14 | B28: 2022-02-01 | C28: =SUMIFS('Bank Transfers'!$H$15:$H$514,'Bank Transfers'!$L$15:$L$514,B28,'Bank Transfers'!$E$15:$E$514,"deposit") -> 0 | D28: =SUMIFS('Bank Transfers'!$H$15:$H$514,'Bank Transfers'!$L$15:$L$514,B28,'Bank Transfers'!$E$15:$E$514,"withdraw") -> 0 | E28: =IF(B28="","",IF(B28='Bank Transfers'!$L$15,'Bank Transfers'!$H$15,J29)) -> $54,271.4 | F28: =IFERROR(IF(B28='Bank Transfers'!$L$15,C28+D28-E28,C28+D28),0) -> 0 | G28: =SUMIFS('TRADE LOG'!$M$15:$M$9733,WL,"W",datecode,B28) -> 0 | H28: =SUMIFS('TRADE LOG'!$M$15:$M$9733,WL,"L",datecode,B28) -> 0 | I28: 0 | J28: $54,271.4 | K28: 0 | L28: 0 | N28: 0 | U28: =IFERROR(SUMIFS('TRADE LOG'!$W$15:$W$9733,datecode,"="&B28),"") -> 0.00R | X28: 44593 | Y28: 54271.42 | Z28: 44593 | AA28: =SUMIFS(BuyAmount,datecode,"="&'MONTHLY REPORT'!B28) -> 0 | AB28: 0 | AC28: 0 | AG28: 0 | AH28: 0 | AX28: 0 | AY28: 0
A29: 15 | B29: 2022-01-01 | C29: =SUMIFS('Bank Transfers'!$H$15:$H$514,'Bank Transfers'!$L$15:$L$514,B29,'Bank Transfers'!$E$15:$E$514,"deposit") -> 0 | D29: =SUMIFS('Bank Transfers'!$H$15:$H$514,'Bank Transfers'!$L$15:$L$514,B29,'Bank Transfers'!$E$15:$E$514,"withdraw") -> 0 | E29: =IF(B29="","",IF(B29='Bank Transfers'!$L$15,'Bank Transfers'!$H$15,J30)) -> $54,271.4 | F29: =IFERROR(IF(B29='Bank Transfers'!$L$15,C29+D29-E29,C29+D29),0) -> 0 | G29: =SUMIFS('TRADE LOG'!$M$15:$M$9733,WL,"W",datecode,B29) -> 0 | H29: =SUMIFS('TRADE LOG'!$M$15:$M$9733,WL,"L",datecode,B29) -> 0 | I29: 0 | J29: $54,271.4 | K29: 0 | L29: 0 | N29: 0 | U29: =IFERROR(SUMIFS('TRADE LOG'!$W$15:$W$9733,datecode,"="&B29),"") -> 0.00R | X29: 44562 | Y29: 54271.42 | Z29: 44562 | AA29: =SUMIFS(BuyAmount,datecode,"="&'MONTHLY REPORT'!B29) -> 0 | AB29: 0 | AC29: 0 | AG29: 0 | AH29: 0 | AX29: 0 | AY29: 0
A30: 16 | B30: 2021-12-01 | C30: =SUMIFS('Bank Transfers'!$H$15:$H$514,'Bank Transfers'!$L$15:$L$514,B30,'Bank Transfers'!$E$15:$E$514,"deposit") -> 0 | D30: =SUMIFS('Bank Transfers'!$H$15:$H$514,'Bank Transfers'!$L$15:$L$514,B30,'Bank Transfers'!$E$15:$E$514,"withdraw") -> 0 | E30: =IF(B30="","",IF(B30='Bank Transfers'!$L$15,'Bank Transfers'!$H$15,J31)) -> $54,271.4 | F30: =IFERROR(IF(B30='Bank Transfers'!$L$15,C30+D30-E30,C30+D30),0) -> 0 | G30: =SUMIFS('TRADE LOG'!$M$15:$M$9733,WL,"W",datecode,B30) -> 0 | H30: =SUMIFS('TRADE LOG'!$M$15:$M$9733,WL,"L",datecode,B30) -> 0 | I30: 0 | J30: $54,271.4 | K30: 0 | L30: 0 | N30: 0 | U30: =IFERROR(SUMIFS('TRADE LOG'!$W$15:$W$9733,datecode,"="&B30),"") -> 0.00R | X30: 44531 | Y30: 54271.42 | Z30: 44531 | AA30: =SUMIFS(BuyAmount,datecode,"="&'MONTHLY REPORT'!B30) -> 0 | AB30: 0 | AC30: 0 | AG30: 0 | AH30: 0 | AX30: 0 | AY30: 0
A31: 17 | B31: 2021-11-01 | C31: =SUMIFS('Bank Transfers'!$H$15:$H$514,'Bank Transfers'!$L$15:$L$514,B31,'Bank Transfers'!$E$15:$E$514,"deposit") -> 0 | D31: =SUMIFS('Bank Transfers'!$H$15:$H$514,'Bank Transfers'!$L$15:$L$514,B31,'Bank Transfers'!$E$15:$E$514,"withdraw") -> 0 | E31: =IF(B31="","",IF(B31='Bank Transfers'!$L$15,'Bank Transfers'!$H$15,J32)) -> $54,271.4 | F31: =IFERROR(IF(B31='Bank Transfers'!$L$15,C31+D31-E31,C31+D31),0) -> 0 | G31: =SUMIFS('TRADE LOG'!$M$15:$M$9733,WL,"W",datecode,B31) -> 0 | H31: =SUMIFS('TRADE LOG'!$M$15:$M$9733,WL,"L",datecode,B31) -> 0 | I31: 0 | J31: $54,271.4 | K31: 0 | L31: 0 | N31: 0 | U31: =IFERROR(SUMIFS('TRADE LOG'!$W$15:$W$9733,datecode,"="&B31),"") -> 0.00R | X31: 44501 | Y31: 54271.42 | Z31: 44501 | AA31: =SUMIFS(BuyAmount,datecode,"="&'MONTHLY REPORT'!B31) -> 0 | AB31: 0 | AC31: 0 | AG31: 0 | AH31: 0 | AX31: 0 | AY31: 0
A32: 18 | B32: 2021-10-01 | C32: =SUMIFS('Bank Transfers'!$H$15:$H$514,'Bank Transfers'!$L$15:$L$514,B32,'Bank Transfers'!$E$15:$E$514,"deposit") -> 0 | D32: =SUMIFS('Bank Transfers'!$H$15:$H$514,'Bank Transfers'!$L$15:$L$514,B32,'Bank Transfers'!$E$15:$E$514,"withdraw") -> 0 | E32: =IF(B32="","",IF(B32='Bank Transfers'!$L$15,'Bank Transfers'!$H$15,J33)) -> $54,271.4 | F32: =IFERROR(IF(B32='Bank Transfers'!$L$15,C32+D32-E32,C32+D32),0) -> 0 | G32: =SUMIFS('TRADE LOG'!$M$15:$M$9733,WL,"W",datecode,B32) -> 0 | H32: =SUMIFS('TRADE LOG'!$M$15:$M$9733,WL,"L",datecode,B32) -> 0 | I32: 0 | J32: $54,271.4 | K32: 0 | L32: 0 | N32: 0 | U32: =IFERROR(SUMIFS('TRADE LOG'!$W$15:$W$9733,datecode,"="&B32),"") -> 0.00R | X32: 44470 | Y32: 54271.42 | Z32: 44470 | AA32: =SUMIFS(BuyAmount,datecode,"="&'MONTHLY REPORT'!B32) -> 0 | AB32: 0 | AC32: 0 | AG32: 0 | AH32: 0 | AX32: 0 | AY32: 0
A33: 19 | B33: 2021-09-01 | C33: =SUMIFS('Bank Transfers'!$H$15:$H$514,'Bank Transfers'!$L$15:$L$514,B33,'Bank Transfers'!$E$15:$E$514,"deposit") -> 0 | D33: =SUMIFS('Bank Transfers'!$H$15:$H$514,'Bank Transfers'!$L$15:$L$514,B33,'Bank Transfers'!$E$15:$E$514,"withdraw") -> 0 | E33: =IF(B33="","",IF(B33='Bank Transfers'!$L$15,'Bank Transfers'!$H$15,J34)) -> $54,271.4 | F33: =IFERROR(IF(B33='Bank Transfers'!$L$15,C33+D33-E33,C33+D33),0) -> 0 | G33: =SUMIFS('TRADE LOG'!$M$15:$M$9733,WL,"W",datecode,B33) -> 0 | H33: =SUMIFS('TRADE LOG'!$M$15:$M$9733,WL,"L",datecode,B33) -> 0 | I33: 0 | J33: $54,271.4 | K33: 0 | L33: 0 | N33: 0 | U33: =IFERROR(SUMIFS('TRADE LOG'!$W$15:$W$9733,datecode,"="&B33),"") -> 0.00R | X33: 44440 | Y33: 54271.42 | Z33: 44440 | AA33: =SUMIFS(BuyAmount,datecode,"="&'MONTHLY REPORT'!B33) -> 0 | AB33: 0 | AC33: 0 | AG33: 0 | AH33: 0 | AX33: 0 | AY33: 0
A34: 20 | B34: 2021-08-01 | C34: =SUMIFS('Bank Transfers'!$H$15:$H$514,'Bank Transfers'!$L$15:$L$514,B34,'Bank Transfers'!$E$15:$E$514,"deposit") -> 0 | D34: =SUMIFS('Bank Transfers'!$H$15:$H$514,'Bank Transfers'!$L$15:$L$514,B34,'Bank Transfers'!$E$15:$E$514,"withdraw") -> 0 | E34: =IF(B34="","",IF(B34='Bank Transfers'!$L$15,'Bank Transfers'!$H$15,J35)) -> $54,271.4 | F34: =IFERROR(IF(B34='Bank Transfers'!$L$15,C34+D34-E34,C34+D34),0) -> 0 | G34: =SUMIFS('TRADE LOG'!$M$15:$M$9733,WL,"W",datecode,B34) -> 0 | H34: =SUMIFS('TRADE LOG'!$M$15:$M$9733,WL,"L",datecode,B34) -> 0 | I34: 0 | J34: $54,271.4 | K34: 0 | L34: 0 | N34: 0 | U34: =IFERROR(SUMIFS('TRADE LOG'!$W$15:$W$9733,datecode,"="&B34),"") -> 0.00R | X34: 44409 | Y34: 54271.42 | Z34: 44409 | AA34: =SUMIFS(BuyAmount,datecode,"="&'MONTHLY REPORT'!B34) -> 0 | AB34: 0 | AC34: 0 | AG34: 0 | AH34: 0 | AX34: 0 | AY34: 0
A35: 21 | B35: 2021-07-01 | C35: =SUMIFS('Bank Transfers'!$H$15:$H$514,'Bank Transfers'!$L$15:$L$514,B35,'Bank Transfers'!$E$15:$E$514,"deposit") -> 0 | D35: =SUMIFS('Bank Transfers'!$H$15:$H$514,'Bank Transfers'!$L$15:$L$514,B35,'Bank Transfers'!$E$15:$E$514,"withdraw") -> 0 | E35: =IF(B35="","",IF(B35='Bank Transfers'!$L$15,'Bank Transfers'!$H$15,J36)) -> $54,271.4 | F35: =IFERROR(IF(B35='Bank Transfers'!$L$15,C35+D35-E35,C35+D35),0) -> 0 | G35: =SUMIFS('TRADE LOG'!$M$15:$M$9733,WL,"W",datecode,B35) -> 0 | H35: =SUMIFS('TRADE LOG'!$M$15:$M$9733,WL,"L",datecode,B35) -> 0 | I35: 0 | J35: $54,271.4 | K35: 0 | L35: 0 | N35: 0 | U35: =IFERROR(SUMIFS('TRADE LOG'!$W$15:$W$9733,datecode,"="&B35),"") -> 0.00R | X35: 44378 | Y35: 54271.42 | Z35: 44378 | AA35: =SUMIFS(BuyAmount,datecode,"="&'MONTHLY REPORT'!B35) -> 0 | AB35: 0 | AC35: 0 | AG35: 0 | AH35: 0 | AX35: 0 | AY35: 0
A36: 22 | B36: 2021-06-01 | C36: =SUMIFS('Bank Transfers'!$H$15:$H$514,'Bank Transfers'!$L$15:$L$514,B36,'Bank Transfers'!$E$15:$E$514,"deposit") -> 0 | D36: =SUMIFS('Bank Transfers'!$H$15:$H$514,'Bank Transfers'!$L$15:$L$514,B36,'Bank Transfers'!$E$15:$E$514,"withdraw") -> 0 | E36: =IF(B36="","",IF(B36='Bank Transfers'!$L$15,'Bank Transfers'!$H$15,J37)) -> $54,271.4 | F36: =IFERROR(IF(B36='Bank Transfers'!$L$15,C36+D36-E36,C36+D36),0) -> 0 | G36: =SUMIFS('TRADE LOG'!$M$15:$M$9733,WL,"W",datecode,B36) -> 0 | H36: =SUMIFS('TRADE LOG'!$M$15:$M$9733,WL,"L",datecode,B36) -> 0 | I36: 0 | J36: $54,271.4 | K36: 0 | L36: 0 | N36: 0 | U36: =IFERROR(SUMIFS('TRADE LOG'!$W$15:$W$9733,datecode,"="&B36),"") -> 0.00R | X36: 44348 | Y36: 54271.42 | Z36: 44348 | AA36: =SUMIFS(BuyAmount,datecode,"="&'MONTHLY REPORT'!B36) -> 0 | AB36: 0 | AC36: 0 | AG36: 0 | AH36: 0 | AX36: 0 | AY36: 0
A37: 23 | B37: 2021-05-01 | C37: =SUMIFS('Bank Transfers'!$H$15:$H$514,'Bank Transfers'!$L$15:$L$514,B37,'Bank Transfers'!$E$15:$E$514,"deposit") -> 0 | D37: =SUMIFS('Bank Transfers'!$H$15:$H$514,'Bank Transfers'!$L$15:$L$514,B37,'Bank Transfers'!$E$15:$E$514,"withdraw") -> 0 | E37: =IF(B37="","",IF(B37='Bank Transfers'!$L$15,'Bank Transfers'!$H$15,J38)) -> $54,271.4 | F37: =IFERROR(IF(B37='Bank Transfers'!$L$15,C37+D37-E37,C37+D37),0) -> 0 | G37: =SUMIFS('TRADE LOG'!$M$15:$M$9733,WL,"W",datecode,B37) -> 0 | H37: =SUMIFS('TRADE LOG'!$M$15:$M$9733,WL,"L",datecode,B37) -> 0 | I37: 0 | J37: $54,271.4 | K37: 0 | L37: 0 | N37: 0 | U37: =IFERROR(SUMIFS('TRADE LOG'!$W$15:$W$9733,datecode,"="&B37),"") -> 0.00R | X37: 44317 | Y37: 54271.42 | Z37: 44317 | AA37: =SUMIFS(BuyAmount,datecode,"="&'MONTHLY REPORT'!B37) -> 0 | AB37: 0 | AC37: 0 | AG37: 0 | AH37: 0 | AX37: 0 | AY37: 0
A38: 24 | B38: 2021-04-01 | C38: =SUMIFS('Bank Transfers'!$H$15:$H$514,'Bank Transfers'!$L$15:$L$514,B38,'Bank Transfers'!$E$15:$E$514,"deposit") -> 0 | D38: =SUMIFS('Bank Transfers'!$H$15:$H$514,'Bank Transfers'!$L$15:$L$514,B38,'Bank Transfers'!$E$15:$E$514,"withdraw") -> 0 | E38: =IF(B38="","",IF(B38='Bank Transfers'!$L$15,'Bank Transfers'!$H$15,J39)) -> $54,271.4 | F38: =IFERROR(IF(B38='Bank Transfers'!$L$15,C38+D38-E38,C38+D38),0) -> 0 | G38: =SUMIFS('TRADE LOG'!$M$15:$M$9733,WL,"W",datecode,B38) -> 0 | H38: =SUMIFS('TRADE LOG'!$M$15:$M$9733,WL,"L",datecode,B38) -> 0 | I38: 0 | J38: $54,271.4 | K38: 0 | L38: 0 | N38: 0 | U38: =IFERROR(SUMIFS('TRADE LOG'!$W$15:$W$9733,datecode,"="&B38),"") -> 0.00R | X38: 44287 | Y38: 54271.42 | Z38: 44287 | AA38: =SUMIFS(BuyAmount,datecode,"="&'MONTHLY REPORT'!B38) -> 0 | AB38: 0 | AC38: 0 | AG38: 0 | AH38: 0 | AX38: 0 | AY38: 0
A39: 25 | B39: 2021-03-01 | C39: =SUMIFS('Bank Transfers'!$H$15:$H$514,'Bank Transfers'!$L$15:$L$514,B39,'Bank Transfers'!$E$15:$E$514,"deposit") -> 0 | D39: =SUMIFS('Bank Transfers'!$H$15:$H$514,'Bank Transfers'!$L$15:$L$514,B39,'Bank Transfers'!$E$15:$E$514,"withdraw") -> 0 | E39: =IF(B39="","",IF(B39='Bank Transfers'!$L$15,'Bank Transfers'!$H$15,J40)) -> $54,271.4 | F39: =IFERROR(IF(B39='Bank Transfers'!$L$15,C39+D39-E39,C39+D39),0) -> 0 | G39: =SUMIFS('TRADE LOG'!$M$15:$M$9733,WL,"W",datecode,B39) -> 0 | H39: =SUMIFS('TRADE LOG'!$M$15:$M$9733,WL,"L",datecode,B39) -> 0 | I39: 0 | J39: $54,271.4 | K39: 0 | L39: 0 | N39: 0 | U39: =IFERROR(SUMIFS('TRADE LOG'!$W$15:$W$9733,datecode,"="&B39),"") -> 0.00R | X39: 44256 | Y39: 54271.42 | Z39: 44256 | AA39: =SUMIFS(BuyAmount,datecode,"="&'MONTHLY REPORT'!B39) -> 0 | AB39: 0 | AC39: 0 | AG39: 0 | AH39: 0 | AX39: 0 | AY39: 0
A40: 26 | B40: 2021-02-01 | C40: =SUMIFS('Bank Transfers'!$H$15:$H$514,'Bank Transfers'!$L$15:$L$514,B40,'Bank Transfers'!$E$15:$E$514,"deposit") -> 0 | D40: =SUMIFS('Bank Transfers'!$H$15:$H$514,'Bank Transfers'!$L$15:$L$514,B40,'Bank Transfers'!$E$15:$E$514,"withdraw") -> 0 | E40: =IF(B40="","",IF(B40='Bank Transfers'!$L$15,'Bank Transfers'!$H$15,J41)) -> $54,271.4 | F40: =IFERROR(IF(B40='Bank Transfers'!$L$15,C40+D40-E40,C40+D40),0) -> 0 | G40: =SUMIFS('TRADE LOG'!$M$15:$M$9733,WL,"W",datecode,B40) -> 0 | H40: =SUMIFS('TRADE LOG'!$M$15:$M$9733,WL,"L",datecode,B40) -> 0 | I40: 0 | J40: $54,271.4 | K40: 0 | L40: 0 | N40: 0 | U40: =IFERROR(SUMIFS('TRADE LOG'!$W$15:$W$9733,datecode,"="&B40),"") -> 0.00R | X40: 44228 | Y40: 54271.42 | Z40: 44228 | AA40: =SUMIFS(BuyAmount,datecode,"="&'MONTHLY REPORT'!B40) -> 0 | AB40: 0 | AC40: 0 | AG40: 0 | AH40: 0 | AX40: 0 | AY40: 0
A41: 27 | B41: 2021-01-01 | C41: =SUMIFS('Bank Transfers'!$H$15:$H$514,'Bank Transfers'!$L$15:$L$514,B41,'Bank Transfers'!$E$15:$E$514,"deposit") -> 0 | D41: =SUMIFS('Bank Transfers'!$H$15:$H$514,'Bank Transfers'!$L$15:$L$514,B41,'Bank Transfers'!$E$15:$E$514,"withdraw") -> 0 | E41: =IF(B41="","",IF(B41='Bank Transfers'!$L$15,'Bank Transfers'!$H$15,J42)) -> $54,271.4 | F41: =IFERROR(IF(B41='Bank Transfers'!$L$15,C41+D41-E41,C41+D41),0) -> 0 | G41: =SUMIFS('TRADE LOG'!$M$15:$M$9733,WL,"W",datecode,B41) -> 0 | H41: =SUMIFS('TRADE LOG'!$M$15:$M$9733,WL,"L",datecode,B41) -> 0 | I41: 0 | J41: $54,271.4 | K41: 0 | L41: 0 | N41: 0 | U41: =IFERROR(SUMIFS('TRADE LOG'!$W$15:$W$9733,datecode,"="&B41),"") -> 0.00R | X41: 44197 | Y41: 54271.42 | Z41: 44197 | AA41: =SUMIFS(BuyAmount,datecode,"="&'MONTHLY REPORT'!B41) -> 0 | AB41: 0 | AC41: 0 | AG41: 0 | AH41: 0 | AX41: 0 | AY41: 0
A42: 28 | B42: 2020-12-01 | C42: =SUMIFS('Bank Transfers'!$H$15:$H$514,'Bank Transfers'!$L$15:$L$514,B42,'Bank Transfers'!$E$15:$E$514,"deposit") -> 0 | D42: =SUMIFS('Bank Transfers'!$H$15:$H$514,'Bank Transfers'!$L$15:$L$514,B42,'Bank Transfers'!$E$15:$E$514,"withdraw") -> 0 | E42: =IF(B42="","",IF(B42='Bank Transfers'!$L$15,'Bank Transfers'!$H$15,J43)) -> $54,271.4 | F42: =IFERROR(IF(B42='Bank Transfers'!$L$15,C42+D42-E42,C42+D42),0) -> 0 | G42: =SUMIFS('TRADE LOG'!$M$15:$M$9733,WL,"W",datecode,B42) -> 0 | H42: =SUMIFS('TRADE LOG'!$M$15:$M$9733,WL,"L",datecode,B42) -> 0 | I42: 0 | J42: $54,271.4 | K42: 0 | L42: 0 | N42: 0 | U42: =IFERROR(SUMIFS('TRADE LOG'!$W$15:$W$9733,datecode,"="&B42),"") -> 0.00R | X42: 44166 | Y42: 54271.42 | Z42: 44166 | AA42: =SUMIFS(BuyAmount,datecode,"="&'MONTHLY REPORT'!B42) -> 0 | AB42: 0 | AC42: 0 | AG42: 0 | AH42: 0 | AX42: 0 | AY42: 0
A43: 29 | B43: 2020-11-01 | C43: =SUMIFS('Bank Transfers'!$H$15:$H$514,'Bank Transfers'!$L$15:$L$514,B43,'Bank Transfers'!$E$15:$E$514,"deposit") -> 0 | D43: =SUMIFS('Bank Transfers'!$H$15:$H$514,'Bank Transfers'!$L$15:$L$514,B43,'Bank Transfers'!$E$15:$E$514,"withdraw") -> 0 | E43: =IF(B43="","",IF(B43='Bank Transfers'!$L$15,'Bank Transfers'!$H$15,J44)) -> $54,271.4 | F43: =IFERROR(IF(B43='Bank Transfers'!$L$15,C43+D43-E43,C43+D43),0) -> 0 | G43: =SUMIFS('TRADE LOG'!$M$15:$M$9733,WL,"W",datecode,B43) -> 0 | H43: =SUMIFS('TRADE LOG'!$M$15:$M$9733,WL,"L",datecode,B43) -> 0 | I43: 0 | J43: $54,271.4 | K43: 0 | L43: 0 | N43: 0 | U43: =IFERROR(SUMIFS('TRADE LOG'!$W$15:$W$9733,datecode,"="&B43),"") -> 0.00R | X43: 44136 | Y43: 54271.42 | Z43: 44136 | AA43: =SUMIFS(BuyAmount,datecode,"="&'MONTHLY REPORT'!B43) -> 0 | AB43: 0 | AC43: 0 | AG43: 0 | AH43: 0 | AX43: 0 | AY43: 0
A44: 30 | B44: 2020-10-01 | C44: =SUMIFS('Bank Transfers'!$H$15:$H$514,'Bank Transfers'!$L$15:$L$514,B44,'Bank Transfers'!$E$15:$E$514,"deposit") -> 0 | D44: =SUMIFS('Bank Transfers'!$H$15:$H$514,'Bank Transfers'!$L$15:$L$514,B44,'Bank Transfers'!$E$15:$E$514,"withdraw") -> 0 | E44: =IF(B44="","",IF(B44='Bank Transfers'!$L$15,'Bank Transfers'!$H$15,J45)) -> $54,271.4 | F44: =IFERROR(IF(B44='Bank Transfers'!$L$15,C44+D44-E44,C44+D44),0) -> 0 | G44: =SUMIFS('TRADE LOG'!$M$15:$M$9733,WL,"W",datecode,B44) -> 0 | H44: =SUMIFS('TRADE LOG'!$M$15:$M$9733,WL,"L",datecode,B44) -> 0 | I44: 0 | J44: $54,271.4 | K44: 0 | L44: 0 | N44: 0 | U44: =IFERROR(SUMIFS('TRADE LOG'!$W$15:$W$9733,datecode,"="&B44),"") -> 0.00R | X44: 44105 | Y44: 54271.42 | Z44: 44105 | AA44: =SUMIFS(BuyAmount,datecode,"="&'MONTHLY REPORT'!B44) -> 0 | AB44: 0 | AC44: 0 | AG44: 0 | AH44: 0 | AX44: 0 | AY44: 0
A45: 31 | B45: 2020-09-01 | C45: =SUMIFS('Bank Transfers'!$H$15:$H$514,'Bank Transfers'!$L$15:$L$514,B45,'Bank Transfers'!$E$15:$E$514,"deposit") -> 0 | D45: =SUMIFS('Bank Transfers'!$H$15:$H$514,'Bank Transfers'!$L$15:$L$514,B45,'Bank Transfers'!$E$15:$E$514,"withdraw") -> 0 | E45: =IF(B45="","",IF(B45='Bank Transfers'!$L$15,'Bank Transfers'!$H$15,J46)) -> $54,271.4 | F45: =IFERROR(IF(B45='Bank Transfers'!$L$15,C45+D45-E45,C45+D45),0) -> 0 | G45: =SUMIFS('TRADE LOG'!$M$15:$M$9733,WL,"W",datecode,B45) -> 0 | H45: =SUMIFS('TRADE LOG'!$M$15:$M$9733,WL,"L",datecode,B45) -> 0 | I45: 0 | J45: $54,271.4 | K45: 0 | L45: 0 | N45: 0 | U45: =IFERROR(SUMIFS('TRADE LOG'!$W$15:$W$9733,datecode,"="&B45),"") -> 0.00R | X45: 44075 | Y45: 54271.42 | Z45: 44075 | AA45: =SUMIFS(BuyAmount,datecode,"="&'MONTHLY REPORT'!B45) -> 0 | AB45: 0 | AC45: 0 | AG45: 0 | AH45: 0 | AX45: 0 | AY45: 0
A46: 32 | B46: 2020-08-01 | C46: =SUMIFS('Bank Transfers'!$H$15:$H$514,'Bank Transfers'!$L$15:$L$514,B46,'Bank Transfers'!$E$15:$E$514,"deposit") -> 0 | D46: =SUMIFS('Bank Transfers'!$H$15:$H$514,'Bank Transfers'!$L$15:$L$514,B46,'Bank Transfers'!$E$15:$E$514,"withdraw") -> 0 | E46: =IF(B46="","",IF(B46='Bank Transfers'!$L$15,'Bank Transfers'!$H$15,J47)) -> $54,271.4 | F46: =IFERROR(IF(B46='Bank Transfers'!$L$15,C46+D46-E46,C46+D46),0) -> 0 | G46: =SUMIFS('TRADE LOG'!$M$15:$M$9733,WL,"W",datecode,B46) -> 0 | H46: =SUMIFS('TRADE LOG'!$M$15:$M$9733,WL,"L",datecode,B46) -> 0 | I46: 0 | J46: $54,271.4 | K46: 0 | L46: 0 | N46: 0 | U46: =IFERROR(SUMIFS('TRADE LOG'!$W$15:$W$9733,datecode,"="&B46),"") -> 0.00R | X46: 44044 | Y46: 54271.42 | Z46: 44044 | AA46: =SUMIFS(BuyAmount,datecode,"="&'MONTHLY REPORT'!B46) -> 0 | AB46: 0 | AC46: 0 | AG46: 0 | AH46: 0 | AX46: 0 | AY46: 0
A47: 33 | B47: 2020-07-01 | C47: =SUMIFS('Bank Transfers'!$H$15:$H$514,'Bank Transfers'!$L$15:$L$514,B47,'Bank Transfers'!$E$15:$E$514,"deposit") -> 0 | D47: =SUMIFS('Bank Transfers'!$H$15:$H$514,'Bank Transfers'!$L$15:$L$514,B47,'Bank Transfers'!$E$15:$E$514,"withdraw") -> 0 | E47: =IF(B47="","",IF(B47='Bank Transfers'!$L$15,'Bank Transfers'!$H$15,J48)) -> $54,271.4 | F47: =IFERROR(IF(B47='Bank Transfers'!$L$15,C47+D47-E47,C47+D47),0) -> 0 | G47: =SUMIFS('TRADE LOG'!$M$15:$M$9733,WL,"W",datecode,B47) -> 0 | H47: =SUMIFS('TRADE LOG'!$M$15:$M$9733,WL,"L",datecode,B47) -> 0 | I47: 0 | J47: $54,271.4 | K47: 0 | L47: 0 | N47: =IF(E47="","",AG47+AH47) -> 0 | O47: =IFERROR(AG47/(AG47+AH47),"") ->  | T47: =IFERROR((AV47*AF47)/(AW47*(1-AF47)),"") ->  | U47: =IFERROR(SUMIFS('TRADE LOG'!$W$15:$W$9733,datecode,"="&B47),"") -> 0.00R | X47: 44013 | Y47: 54271.42 | Z47: =B47 -> 44013 | AA47: =SUMIFS(BuyAmount,datecode,"="&'MONTHLY REPORT'!B47) -> 0 | AB47: =IF(L47>0,AA47,0) -> 0 | AC47: 0 | AG47: 0 | AH47: 0 | AV47: =AX47/AG47 ->  | AW47: =-AY47/AH47 ->  | AX47: 0 | AY47: 0
A48: =A47+1 -> 34 | B48: 2020-06-01 | C48: =SUMIFS('Bank Transfers'!$H$15:$H$514,'Bank Transfers'!$L$15:$L$514,B48,'Bank Transfers'!$E$15:$E$514,"deposit") -> 0 | D48: =SUMIFS('Bank Transfers'!$H$15:$H$514,'Bank Transfers'!$L$15:$L$514,B48,'Bank Transfers'!$E$15:$E$514,"withdraw") -> 0 | E48: =IF(B48="","",IF(B48='Bank Transfers'!$L$15,'Bank Transfers'!$H$15,J49)) -> $53,892.8 | F48: =IFERROR(IF(B48='Bank Transfers'!$L$15,C48+D48-E48,C48+D48),0) -> 0 | G48: =SUMIFS('TRADE LOG'!$M$15:$M$9733,WL,"W",datecode,B48) -> $2,320.0 | H48: =SUMIFS('TRADE LOG'!$M$15:$M$9733,WL,"L",datecode,B48) -> $-1,219.9 | I48: $-721.5 | J48: $54,271.4 | K48: $378.7 | L48: ▲ 0.70% | N48: 13 | O48: 30.8% | P48: 7.4% | Q48: -1.5% | R48: 4.8 | S48: 2.7 | T48: 0.0 | U48: =IFERROR(SUMIFS('TRADE LOG'!$W$15:$W$9733,datecode,"="&B48),"") -> 0.72R | X48: 43983 | Y48: 54271.42 | Z48: 43983 | AA48: =SUMIFS(BuyAmount,datecode,"="&'MONTHLY REPORT'!B48) -> 4447446.096 | AB48: 4447446.096 | AC48: 0 | AG48: 4 | AH48: 9 | AV48: 523.525 | AW48: 190.6055556 | AX48: 2094.1 | AY48: -1715.45
A49: 35 | B49: 2020-05-01 | C49: =SUMIFS('Bank Transfers'!$H$15:$H$514,'Bank Transfers'!$L$15:$L$514,B49,'Bank Transfers'!$E$15:$E$514,"deposit") -> 50000 | D49: =SUMIFS('Bank Transfers'!$H$15:$H$514,'Bank Transfers'!$L$15:$L$514,B49,'Bank Transfers'!$E$15:$E$514,"withdraw") -> 0 | E49: =IF(B49="","",IF(B49='Bank Transfers'!$L$15,'Bank Transfers'!$H$15,J50)) -> $50,000.0 | F49: =IFERROR(IF(B49='Bank Transfers'!$L$15,C49+D49-E49,C49+D49),0) -> 0 | G49: =SUMIFS('TRADE LOG'!$M$15:$M$9733,WL,"W",datecode,B49) -> $13,826.9 | H49: =SUMIFS('TRADE LOG'!$M$15:$M$9733,WL,"L",datecode,B49) -> $-5,694.8 | I49: $-4,239.4 | J49: $53,892.8 | K49: $3,892.8 | L49: ▲ 7.79% | N49: 42 | O49: 50.0% | P49: 6.7% | Q49: -5.7% | R49: 1.2 | S49: 1.5 | T49: 0.0 | U49: =IFERROR(SUMIFS('TRADE LOG'!$W$15:$W$9733,datecode,"="&B49),"") -> 7.80R | X49: =EOMONTH(X48,-2)+1 -> 43952 | Y49: 53892.77 | Z49: 43952 | AA49: =SUMIFS(BuyAmount,datecode,"="&'MONTHLY REPORT'!B49) -> 1403330.593 | AB49: 1403330.593 | AC49: 0 | AG49: 21 | AH49: 21 | AV49: 557.6671429 | AW49: 372.2971429 | AX49: 11711.01 | AY49: -7818.24
A50: 36 | C50: =SUMIFS('Bank Transfers'!$H$15:$H$514,'Bank Transfers'!$L$15:$L$514,B50,'Bank Transfers'!$E$15:$E$514,"deposit") -> 0 | D50: =SUMIFS('Bank Transfers'!$H$15:$H$514,'Bank Transfers'!$L$15:$L$514,B50,'Bank Transfers'!$E$15:$E$514,"withdraw") -> 0 | E50: =IF(B50="","",IF(B50='Bank Transfers'!$L$15,'Bank Transfers'!$H$15,J51)) ->  | F50: =IFERROR(IF(B50='Bank Transfers'!$L$15,C50+D50-E50,C50+D50),0) -> 0 | G50: =SUMIFS('TRADE LOG'!$M$15:$M$9733,WL,"W",datecode,B50) -> 0 | H50: =SUMIFS('TRADE LOG'!$M$15:$M$9733,WL,"L",datecode,B50) -> 0 | I50: 0 | J50: 0 | K50: 0 | U50: =IFERROR(SUMIFS('TRADE LOG'!$W$15:$W$9733,datecode,"="&B50),"") -> 0.00R | X50: 43922 | AA50: =SUMIFS(BuyAmount,datecode,"="&'MONTHLY REPORT'!B50) -> 0 | AB50: 0 | AC50: 0 | AG50: 0 | AH50: 0 | AX50: 0 | AY50: 0
Z90: =#REF! -> 

Sheet CALENDAR (hidden)
C2: Starting Month | D2: Year
C3: May | D3: 2020
C6: =DATEVALUE("1"&C3&D3) -> 2020-05-01
C7: SUN | D7: MON | E7: TUE | F7: WED | G7: THU | H7: FRI | I7: SAT
C8: =IF(MONTH(C6)<>MONTH((C6-WEEKDAY(C6,1)+1)),"",(C6-WEEKDAY(C6,1)+1)) ->  | D8: =IF(MONTH(C6)<>MONTH((C6-WEEKDAY(C6,1)+2)),"",(C6-WEEKDAY(C6,1)+2)) ->  | E8: =IF(MONTH(C6)<>MONTH((C6-WEEKDAY(C6,1)+3)),"",(C6-WEEKDAY(C6,1)+3)) ->  | F8: =IF(MONTH(C6)<>MONTH((C6-WEEKDAY(C6,1)+4)),"",(C6-WEEKDAY(C6,1)+4)) ->  | G8: =IF(MONTH(C6)<>MONTH((C6-WEEKDAY(C6,1)+5)),"",(C6-WEEKDAY(C6,1)+5)) ->  | H8: =IF(MONTH(C6)<>MONTH((C6-WEEKDAY(C6,1)+6)),"",(C6-WEEKDAY(C6,1)+6)) -> 2020-05-01 | I8: =IF(MONTH(C6)<>MONTH((C6-WEEKDAY(C6,1)+7)),"",(C6-WEEKDAY(C6,1)+7)) -> 2020-05-02
C9: =SUMIFS('TRADE LOG'!$T$15:$T$9733,closeDate,">"&CALENDAR!C8,closeDate,"<="&D8,SIZE,">0") -> 0 | D9: =SUMIFS('TRADE LOG'!$T$15:$T$9733,closeDate,">"&CALENDAR!D8,closeDate,"<="&E8,SIZE,">0") -> 0 | E9: =SUMIFS('TRADE LOG'!$T$15:$T$9733,closeDate,">"&CALENDAR!E8,closeDate,"<="&F8,SIZE,">0") -> 0 | F9: =SUMIFS('TRADE LOG'!$T$15:$T$9733,closeDate,">"&CALENDAR!F8,closeDate,"<="&G8,SIZE,">0") -> 0 | G9: =SUMIFS('TRADE LOG'!$T$15:$T$9733,closeDate,">"&CALENDAR!G8,closeDate,"<="&H8,SIZE,">0") -> 0 | H9: =SUMIFS('TRADE LOG'!$T$15:$T$9733,closeDate,">"&CALENDAR!H8,closeDate,"<="&I8,SIZE,">0") -> 0 | I9: =SUMIFS('TRADE LOG'!$T$15:$T$9733,closeDate,">"&CALENDAR!I8,closeDate,"<="&C11,SIZE,">0") -> 0
C10: =COUNTIFS(closeDate,">"&CALENDAR!C8,closeDate,"<="&D8,SIZE,">0") -> 0 | D10: =COUNTIFS(closeDate,">"&CALENDAR!D8,closeDate,"<="&E8,SIZE,">0") -> 0 | E10: =COUNTIFS(closeDate,">"&CALENDAR!E8,closeDate,"<="&F8,SIZE,">0") -> 0 | F10: =COUNTIFS(closeDate,">"&CALENDAR!F8,closeDate,"<="&G8,SIZE,">0") -> 0 | G10: =COUNTIFS(closeDate,">"&CALENDAR!G8,closeDate,"<="&H8,SIZE,">0") -> 0 | H10: =COUNTIFS(closeDate,">"&CALENDAR!H8,closeDate,"<="&I8,SIZE,">0") -> 0 | I10: =COUNTIFS(closeDate,">"&CALENDAR!I8,closeDate,"<="&(I8+1),SIZE,">0") -> 0
C11: =I8+1 -> 2020-05-03 | D11: =C11+1 -> 2020-05-04 | E11: =D11+1 -> 2020-05-05 | F11: 2020-05-06 | G11: 2020-05-07 | H11: 2020-05-08 | I11: 2020-05-09
C12: =SUMIFS('TRADE LOG'!$T$15:$T$9733,closeDate,">"&CALENDAR!C11,closeDate,"<="&D11,SIZE,">0") -> 0 | D12: =SUMIFS('TRADE LOG'!$T$15:$T$9733,closeDate,">"&CALENDAR!D11,closeDate,"<="&E11,SIZE,">0") -> 0 | E12: =SUMIFS('TRADE LOG'!$T$15:$T$9733,closeDate,">"&CALENDAR!E11,closeDate,"<="&F11,SIZE,">0") -> 0 | F12: =SUMIFS('TRADE LOG'!$T$15:$T$9733,closeDate,">"&CALENDAR!F11,closeDate,"<="&G11,SIZE,">0") -> 0 | G12: =SUMIFS('TRADE LOG'!$T$15:$T$9733,closeDate,">"&CALENDAR!G11,closeDate,"<="&H11,SIZE,">0") -> 0 | H12: =SUMIFS('TRADE LOG'!$T$15:$T$9733,closeDate,">"&CALENDAR!H11,closeDate,"<="&I11,SIZE,">0") -> 0 | I12: =SUMIFS('TRADE LOG'!$T$15:$T$9733,closeDate,">"&CALENDAR!I11,closeDate,"<="&C14,SIZE,">0") -> 0
C13: =COUNTIFS(closeDate,">"&CALENDAR!C11,closeDate,"<="&D11,SIZE,">0") -> 0 | D13: =COUNTIFS(closeDate,">"&CALENDAR!D11,closeDate,"<="&E11,SIZE,">0") -> 0 | E13: =COUNTIFS(closeDate,">"&CALENDAR!E11,closeDate,"<="&F11,SIZE,">0") -> 0 | F13: =COUNTIFS(closeDate,">"&CALENDAR!F11,closeDate,"<="&G11,SIZE,">0") -> 0 | G13: =COUNTIFS(closeDate,">"&CALENDAR!G11,closeDate,"<="&H11,SIZE,">0") -> 0 | H13: =COUNTIFS(closeDate,">"&CALENDAR!H11,closeDate,"<="&I11,SIZE,">0") -> 0 | I13: =COUNTIFS(closeDate,">"&CALENDAR!I11,closeDate,"<="&(I11+1),SIZE,">0") -> 0
C14: =I11+1 -> 2020-05-10 | D14: =C14+1 -> 2020-05-11 | E14: 2020-05-12 | F14: 2020-05-13 | G14: 2020-05-14 | H14: 2020-05-15 | I14: 2020-05-16
C15: =SUMIFS('TRADE LOG'!$T$15:$T$9733,closeDate,">"&CALENDAR!C14,closeDate,"<="&D14,SIZE,">0") -> 0 | D15: =SUMIFS('TRADE LOG'!$T$15:$T$9733,closeDate,">"&CALENDAR!D14,closeDate,"<="&E14,SIZE,">0") -> 0 | E15: =SUMIFS('TRADE LOG'!$T$15:$T$9733,closeDate,">"&CALENDAR!E14,closeDate,"<="&F14,SIZE,">0") -> 0 | F15: =SUMIFS('TRADE LOG'!$T$15:$T$9733,closeDate,">"&CALENDAR!F14,closeDate,"<="&G14,SIZE,">0") -> 0 | G15: =SUMIFS('TRADE LOG'!$T$15:$T$9733,closeDate,">"&CALENDAR!G14,closeDate,"<="&H14,SIZE,">0") -> 0 | H15: =SUMIFS('TRADE LOG'!$T$15:$T$9733,closeDate,">"&CALENDAR!H14,closeDate,"<="&I14,SIZE,">0") -> 0 | I15: =SUMIFS('TRADE LOG'!$T$15:$T$9733,closeDate,">"&CALENDAR!I14,closeDate,"<="&C17,SIZE,">0") -> 0
C16: =COUNTIFS(closeDate,">"&CALENDAR!C14,closeDate,"<="&D14,SIZE,">0") -> 0 | D16: =COUNTIFS(closeDate,">"&CALENDAR!D14,closeDate,"<="&E14,SIZE,">0") -> 0 | E16: =COUNTIFS(closeDate,">"&CALENDAR!E14,closeDate,"<="&F14,SIZE,">0") -> 0 | F16: =COUNTIFS(closeDate,">"&CALENDAR!F14,closeDate,"<="&G14,SIZE,">0") -> 0 | G16: =COUNTIFS(closeDate,">"&CALENDAR!G14,closeDate,"<="&H14,SIZE,">0") -> 0 | H16: =COUNTIFS(closeDate,">"&CALENDAR!H14,closeDate,"<="&I14,SIZE,">0") -> 0 | I16: =COUNTIFS(closeDate,">"&CALENDAR!I14,closeDate,"<="&(I14+1),SIZE,">0") -> 0
C17: =I14+1 -> 2020-05-17 | D17: =C17+1 -> 2020-05-18 | E17: 2020-05-19 | F17: 2020-05-20 | G17: 2020-05-21 | H17: 2020-05-22 | I17: 2020-05-23
C18: =SUMIFS('TRADE LOG'!$T$15:$T$9733,closeDate,">"&CALENDAR!C17,closeDate,"<="&D17,SIZE,">0") -> 0 | D18: =SUMIFS('TRADE LOG'!$T$15:$T$9733,closeDate,">"&CALENDAR!D17,closeDate,"<="&E17,SIZE,">0") -> 0 | E18: =SUMIFS('TRADE LOG'!$T$15:$T$9733,closeDate,">"&CALENDAR!E17,closeDate,"<="&F17,SIZE,">0") -> 0 | F18: =SUMIFS('TRADE LOG'!$T$15:$T$9733,closeDate,">"&CALENDAR!F17,closeDate,"<="&G17,SIZE,">0") -> 0 | G18: =SUMIFS('TRADE LOG'!$T$15:$T$9733,closeDate,">"&CALENDAR!G17,closeDate,"<="&H17,SIZE,">0") -> 0 | H18: =SUMIFS('TRADE LOG'!$T$15:$T$9733,closeDate,">"&CALENDAR!H17,closeDate,"<="&I17,SIZE,">0") -> 0 | I18: =SUMIFS('TRADE LOG'!$T$15:$T$9733,closeDate,">"&CALENDAR!I17,closeDate,"<="&C20,SIZE,">0") -> 0
C19: =COUNTIFS(closeDate,">"&CALENDAR!C17,closeDate,"<="&D17,SIZE,">0") -> 0 | D19: =COUNTIFS(closeDate,">"&CALENDAR!D17,closeDate,"<="&E17,SIZE,">0") -> 0 | E19: =COUNTIFS(closeDate,">"&CALENDAR!E17,closeDate,"<="&F17,SIZE,">0") -> 0 | F19: =COUNTIFS(closeDate,">"&CALENDAR!F17,closeDate,"<="&G17,SIZE,">0") -> 0 | G19: =COUNTIFS(closeDate,">"&CALENDAR!G17,closeDate,"<="&H17,SIZE,">0") -> 0 | H19: =COUNTIFS(closeDate,">"&CALENDAR!H17,closeDate,"<="&I17,SIZE,">0") -> 0 | I19: =COUNTIFS(closeDate,">"&CALENDAR!I17,closeDate,"<="&(I17+1),SIZE,">0") -> 0
C20: =IFERROR(IF(MONTH(C6)<>MONTH(I17+1),"",(I17+1)),"") -> 2020-05-24 | D20: =IFERROR(IF(MONTH(C6)<>MONTH(C20+1),"",(C20+1)),"") -> 2020-05-25 | E20: =IFERROR(IF(MONTH(C6)<>MONTH(D20+1),"",(D20+1)),"") -> 2020-05-26 | F20: =IFERROR(IF(MONTH(C6)<>MONTH(E20+1),"",(E20+1)),"") -> 2020-05-27 | G20: =IFERROR(IF(MONTH(C6)<>MONTH(F20+1),"",(F20+1)),"") -> 2020-05-28 | H20: =IFERROR(IF(MONTH(C6)<>MONTH(G20+1),"",(G20+1)),"") -> 2020-05-29 | I20: =IFERROR(IF(MONTH(C6)<>MONTH(H20+1),"",(H20+1)),"") -> 2020-05-30
C21: =SUMIFS('TRADE LOG'!$T$15:$T$9733,closeDate,">"&CALENDAR!C20,closeDate,"<="&D20,SIZE,">0") -> 0 | D21: =SUMIFS('TRADE LOG'!$T$15:$T$9733,closeDate,">"&CALENDAR!D20,closeDate,"<="&E20,SIZE,">0") -> 0 | E21: =SUMIFS('TRADE LOG'!$T$15:$T$9733,closeDate,">"&CALENDAR!E20,closeDate,"<="&F20,SIZE,">0") -> 0 | F21: =SUMIFS('TRADE LOG'!$T$15:$T$9733,closeDate,">"&CALENDAR!F20,closeDate,"<="&G20,SIZE,">0") -> $ -467.7 | G21: =SUMIFS('TRADE LOG'!$T$15:$T$9733,closeDate,">"&CALENDAR!G20,closeDate,"<="&H20,SIZE,">0") -> $ 2,873.0 | H21: =SUMIFS('TRADE LOG'!$T$15:$T$9733,closeDate,">"&CALENDAR!H20,closeDate,"<="&I20,SIZE,">0") -> $ 1,487.5 | I21: =SUMIFS('TRADE LOG'!$T$15:$T$9733,closeDate,">"&CALENDAR!I20,closeDate,"<="&C23,SIZE,">0") -> 0
C22: =COUNTIFS(closeDate,">"&CALENDAR!C20,closeDate,"<="&D20,SIZE,">0") -> 0 | D22: =COUNTIFS(closeDate,">"&CALENDAR!D20,closeDate,"<="&E20,SIZE,">0") -> 0 | E22: =COUNTIFS(closeDate,">"&CALENDAR!E20,closeDate,"<="&F20,SIZE,">0") -> 0 | F22: =COUNTIFS(closeDate,">"&CALENDAR!F20,closeDate,"<="&G20,SIZE,">0") -> 2 Trades | G22: =COUNTIFS(closeDate,">"&CALENDAR!G20,closeDate,"<="&H20,SIZE,">0") -> 28 Trades | H22: =COUNTIFS(closeDate,">"&CALENDAR!H20,closeDate,"<="&I20,SIZE,">0") -> 12 Trades | I22: =COUNTIFS(closeDate,">"&CALENDAR!I20,closeDate,"<="&(I20+1),SIZE,">0") -> 0
C23: =IFERROR(IF(MONTH(C6)<>MONTH(I20+1),"",(I20+1)),"") -> 2020-05-31 | D23: =IFERROR(IF(MONTH(C6)<>MONTH(C23+1),"",(C23+1)),"") ->  | E23: =IFERROR(IF(MONTH(C6)<>MONTH(D23+1),"",(D23+1)),"") ->  | F23: =IFERROR(IF(MONTH(C6)<>MONTH(E23+1),"",(E23+1)),"") ->  | G23: =IFERROR(IF(MONTH(C6)<>MONTH(F23+1),"",(F23+1)),"") ->  | H23: =IFERROR(IF(MONTH(C6)<>MONTH(G23+1),"",(G23+1)),"") ->  | I23: =IFERROR(IF(MONTH(C6)<>MONTH(H23+1),"",(H23+1)),"") -> 
C24: =SUMIFS('TRADE LOG'!$T$15:$T$9733,closeDate,">"&CALENDAR!C23,closeDate,"<="&D23,SIZE,">0") -> 0 | D24: =SUMIFS('TRADE LOG'!$T$15:$T$9733,closeDate,">"&CALENDAR!D23,closeDate,"<="&E23,SIZE,">0") -> 0 | E24: =SUMIFS('TRADE LOG'!$T$15:$T$9733,closeDate,">"&CALENDAR!E23,closeDate,"<="&F23,SIZE,">0") -> 0 | F24: =SUMIFS('TRADE LOG'!$T$15:$T$9733,closeDate,">"&CALENDAR!F23,closeDate,"<="&G23,SIZE,">0") -> 0 | G24: =SUMIFS('TRADE LOG'!$T$15:$T$9733,closeDate,">"&CALENDAR!G23,closeDate,"<="&H23,SIZE,">0") -> 0 | H24: =SUMIFS('TRADE LOG'!$T$15:$T$9733,closeDate,">"&CALENDAR!H23,closeDate,"<="&I23,SIZE,">0") -> 0 | I24: =SUMIFS('TRADE LOG'!$T$15:$T$9733,closeDate,">"&CALENDAR!I23,closeDate,"<="&C26,SIZE,">0") -> 0
C25: =COUNTIFS(closeDate,">"&CALENDAR!C23,closeDate,"<="&D23,SIZE,">0") -> 0 | D25: =COUNTIFS(closeDate,">"&CALENDAR!D23,closeDate,"<="&E23,SIZE,">0") -> 0 | E25: =COUNTIFS(closeDate,">"&CALENDAR!E23,closeDate,"<="&F23,SIZE,">0") -> 0 | F25: =COUNTIFS(closeDate,">"&CALENDAR!F23,closeDate,"<="&G23,SIZE,">0") -> 0 | G25: =COUNTIFS(closeDate,">"&CALENDAR!G23,closeDate,"<="&H23,SIZE,">0") -> 0 | H25: =COUNTIFS(closeDate,">"&CALENDAR!H23,closeDate,"<="&I23,SIZE,">0") -> 0 | I25: =COUNTIFS(closeDate,">"&CALENDAR!I23,closeDate,"<="&(I23+1),SIZE,">0") -> 0
C27: =EOMONTH(C6,0)+1 -> 2020-06-01
C28: SUN | D28: MON | E28: TUE | F28: WED | G28: THU | H28: FRI | I28: SAT
C29: =IF(MONTH(C27)<>MONTH((C27-WEEKDAY(C27,1)+1)),"",(C27-WEEKDAY(C27,1)+1)) ->  | D29: =IF(MONTH(C27)<>MONTH((C27-WEEKDAY(C27,1)+2)),"",(C27-WEEKDAY(C27,1)+2)) -> 2020-06-01 | E29: =IF(MONTH(C27)<>MONTH((C27-WEEKDAY(C27,1)+3)),"",(C27-WEEKDAY(C27,1)+3)) -> 2020-06-02 | F29: =IF(MONTH(C27)<>MONTH((C27-WEEKDAY(C27,1)+4)),"",(C27-WEEKDAY(C27,1)+4)) -> 2020-06-03 | G29: =IF(MONTH(C27)<>MONTH((C27-WEEKDAY(C27,1)+5)),"",(C27-WEEKDAY(C27,1)+5)) -> 2020-06-04 | H29: =IF(MONTH(C27)<>MONTH((C27-WEEKDAY(C27,1)+6)),"",(C27-WEEKDAY(C27,1)+6)) -> 2020-06-05 | I29: =IF(MONTH(C27)<>MONTH((C27-WEEKDAY(C27,1)+7)),"",(C27-WEEKDAY(C27,1)+7)) -> 2020-06-06
C30: =SUMIFS('TRADE LOG'!$T$15:$T$9733,closeDate,">"&CALENDAR!C29,closeDate,"<="&D29,SIZE,">0") -> 0 | D30: =SUMIFS('TRADE LOG'!$T$15:$T$9733,closeDate,">"&CALENDAR!D29,closeDate,"<="&E29,SIZE,">0") -> $ 378.7 | E30: =SUMIFS('TRADE LOG'!$T$15:$T$9733,closeDate,">"&CALENDAR!E29,closeDate,"<="&F29,SIZE,">0") -> 0 | F30: =SUMIFS('TRADE LOG'!$T$15:$T$9733,closeDate,">"&CALENDAR!F29,closeDate,"<="&G29,SIZE,">0") -> 0 | G30: =SUMIFS('TRADE LOG'!$T$15:$T$9733,closeDate,">"&CALENDAR!G29,closeDate,"<="&H29,SIZE,">0") -> 0 | H30: =SUMIFS('TRADE LOG'!$T$15:$T$9733,closeDate,">"&CALENDAR!H29,closeDate,"<="&I29,SIZE,">0") -> 0 | I30: =SUMIFS('TRADE LOG'!$T$15:$T$9733,closeDate,">"&CALENDAR!I29,closeDate,"<="&C32,SIZE,">0") -> 0
C31: =COUNTIFS(closeDate,">"&CALENDAR!C29,closeDate,"<="&D29,SIZE,">0") -> 0 | D31: =COUNTIFS(closeDate,">"&CALENDAR!D29,closeDate,"<="&E29,SIZE,">0") -> 13 Trades | E31: =COUNTIFS(closeDate,">"&CALENDAR!E29,closeDate,"<="&F29,SIZE,">0") -> 0 | F31: =COUNTIFS(closeDate,">"&CALENDAR!F29,closeDate,"<="&G29,SIZE,">0") -> 0 | G31: =COUNTIFS(closeDate,">"&CALENDAR!G29,closeDate,"<="&H29,SIZE,">0") -> 0 | H31: =COUNTIFS(closeDate,">"&CALENDAR!H29,closeDate,"<="&I29,SIZE,">0") -> 0 | I31: =COUNTIFS(closeDate,">"&CALENDAR!I29,closeDate,"<="&(I29+1),SIZE,">0") -> 0
C32: =I29+1 -> 2020-06-07 | D32: =C32+1 -> 2020-06-08 | E32: =D32+1 -> 2020-06-09 | F32: =E32+1 -> 2020-06-10 | G32: =F32+1 -> 2020-06-11 | H32: =G32+1 -> 2020-06-12 | I32: =H32+1 -> 2020-06-13
C33: =SUMIFS('TRADE LOG'!$T$15:$T$9733,closeDate,">"&CALENDAR!C32,closeDate,"<="&D32,SIZE,">0") -> 0 | D33: =SUMIFS('TRADE LOG'!$T$15:$T$9733,closeDate,">"&CALENDAR!D32,closeDate,"<="&E32,SIZE,">0") -> 0 | E33: =SUMIFS('TRADE LOG'!$T$15:$T$9733,closeDate,">"&CALENDAR!E32,closeDate,"<="&F32,SIZE,">0") -> 0 | F33: =SUMIFS('TRADE LOG'!$T$15:$T$9733,closeDate,">"&CALENDAR!F32,closeDate,"<="&G32,SIZE,">0") -> 0 | G33: =SUMIFS('TRADE LOG'!$T$15:$T$9733,closeDate,">"&CALENDAR!G32,closeDate,"<="&H32,SIZE,">0") -> 0 | H33: =SUMIFS('TRADE LOG'!$T$15:$T$9733,closeDate,">"&CALENDAR!H32,closeDate,"<="&I32,SIZE,">0") -> 0 | I33: =SUMIFS('TRADE LOG'!$T$15:$T$9733,closeDate,">"&CALENDAR!I32,closeDate,"<="&C35,SIZE,">0") -> 0
C34: =COUNTIFS(closeDate,">"&CALENDAR!C32,closeDate,"<="&D32,SIZE,">0") -> 0 | D34: =COUNTIFS(closeDate,">"&CALENDAR!D32,closeDate,"<="&E32,SIZE,">0") -> 0 | E34: =COUNTIFS(closeDate,">"&CALENDAR!E32,closeDate,"<="&F32,SIZE,">0") -> 0 | F34: =COUNTIFS(closeDate,">"&CALENDAR!F32,closeDate,"<="&G32,SIZE,">0") -> 0 | G34: =COUNTIFS(closeDate,">"&CALENDAR!G32,closeDate,"<="&H32,SIZE,">0") -> 0 | H34: =COUNTIFS(closeDate,">"&CALENDAR!H32,closeDate,"<="&I32,SIZE,">0") -> 0 | I34: =COUNTIFS(closeDate,">"&CALENDAR!I32,closeDate,"<="&(I32+1),SIZE,">0") -> 0
C35: =I32+1 -> 2020-06-14 | D35: =C35+1 -> 2020-06-15 | E35: =D35+1 -> 2020-06-16 | F35: =E35+1 -> 2020-06-17 | G35: =F35+1 -> 2020-06-18 | H35: =G35+1 -> 2020-06-19 | I35: =H35+1 -> 2020-06-20
C36: =SUMIFS('TRADE LOG'!$T$15:$T$9733,closeDate,">"&CALENDAR!C35,closeDate,"<="&D35,SIZE,">0") -> 0 | D36: =SUMIFS('TRADE LOG'!$T$15:$T$9733,closeDate,">"&CALENDAR!D35,closeDate,"<="&E35,SIZE,">0") -> 0 | E36: =SUMIFS('TRADE LOG'!$T$15:$T$9733,closeDate,">"&CALENDAR!E35,closeDate,"<="&F35,SIZE,">0") -> 0 | F36: =SUMIFS('TRADE LOG'!$T$15:$T$9733,closeDate,">"&CALENDAR!F35,closeDate,"<="&G35,SIZE,">0") -> 0 | G36: =SUMIFS('TRADE LOG'!$T$15:$T$9733,closeDate,">"&CALENDAR!G35,closeDate,"<="&H35,SIZE,">0") -> 0 | H36: =SUMIFS('TRADE LOG'!$T$15:$T$9733,closeDate,">"&CALENDAR!H35,closeDate,"<="&I35,SIZE,">0") -> 0 | I36: =SUMIFS('TRADE LOG'!$T$15:$T$9733,closeDate,">"&CALENDAR!I35,closeDate,"<="&C38,SIZE,">0") -> 0
C37: =COUNTIFS(closeDate,">"&CALENDAR!C35,closeDate,"<="&D35,SIZE,">0") -> 0 | D37: =COUNTIFS(closeDate,">"&CALENDAR!D35,closeDate,"<="&E35,SIZE,">0") -> 0 | E37: =COUNTIFS(closeDate,">"&CALENDAR!E35,closeDate,"<="&F35,SIZE,">0") -> 0 | F37: =COUNTIFS(closeDate,">"&CALENDAR!F35,closeDate,"<="&G35,SIZE,">0") -> 0 | G37: =COUNTIFS(closeDate,">"&CALENDAR!G35,closeDate,"<="&H35,SIZE,">0") -> 0 | H37: =COUNTIFS(closeDate,">"&CALENDAR!H35,closeDate,"<="&I35,SIZE,">0") -> 0 | I37: =COUNTIFS(closeDate,">"&CALENDAR!I35,closeDate,"<="&(I35+1),SIZE,">0") -> 0
C38: =I35+1 -> 2020-06-21 | D38: =C38+1 -> 2020-06-22 | E38: =D38+1 -> 2020-06-23 | F38: =E38+1 -> 2020-06-24 | G38: =F38+1 -> 2020-06-25 | H38: =G38+1 -> 2020-06-26 | I38: =H38+1 -> 2020-06-27
C39: =SUMIFS('TRADE LOG'!$T$15:$T$9733,closeDate,">"&CALENDAR!C38,closeDate,"<="&D38,SIZE,">0") -> 0 | D39: =SUMIFS('TRADE LOG'!$T$15:$T$9733,closeDate,">"&CALENDAR!D38,closeDate,"<="&E38,SIZE,">0") -> 0 | E39: =SUMIFS('TRADE LOG'!$T$15:$T$9733,closeDate,">"&CALENDAR!E38,closeDate,"<="&F38,SIZE,">0") -> 0 | F39: =SUMIFS('TRADE LOG'!$T$15:$T$9733,closeDate,">"&CALENDAR!F38,closeDate,"<="&G38,SIZE,">0") -> 0 | G39: =SUMIFS('TRADE LOG'!$T$15:$T$9733,closeDate,">"&CALENDAR!G38,closeDate,"<="&H38,SIZE,">0") -> 0 | H39: =SUMIFS('TRADE LOG'!$T$15:$T$9733,closeDate,">"&CALENDAR!H38,closeDate,"<="&I38,SIZE,">0") -> 0 | I39: =SUMIFS('TRADE LOG'!$T$15:$T$9733,closeDate,">"&CALENDAR!I38,closeDate,"<="&C41,SIZE,">0") -> 0
C40: =COUNTIFS(closeDate,">"&CALENDAR!C38,closeDate,"<="&D38,SIZE,">0") -> 0 | D40: =COUNTIFS(closeDate,">"&CALENDAR!D38,closeDate,"<="&E38,SIZE,">0") -> 0 | E40: =COUNTIFS(closeDate,">"&CALENDAR!E38,closeDate,"<="&F38,SIZE,">0") -> 0 | F40: =COUNTIFS(closeDate,">"&CALENDAR!F38,closeDate,"<="&G38,SIZE,">0") -> 0 | G40: =COUNTIFS(closeDate,">"&CALENDAR!G38,closeDate,"<="&H38,SIZE,">0") -> 0 | H40: =COUNTIFS(closeDate,">"&CALENDAR!H38,closeDate,"<="&I38,SIZE,">0") -> 0 | I40: =COUNTIFS(closeDate,">"&CALENDAR!I38,closeDate,"<="&(I38+1),SIZE,">0") -> 0
C41: =IFERROR(IF(MONTH(C27)<>MONTH(I38+1),"",(I38+1)),"") -> 2020-06-28 | D41: =IFERROR(IF(MONTH(C27)<>MONTH(C41+1),"",(C41+1)),"") -> 2020-06-29 | E41: =IFERROR(IF(MONTH(C27)<>MONTH(D41+1),"",(D41+1)),"") -> 2020-06-30 | F41: =IFERROR(IF(MONTH(C27)<>MONTH(E41+1),"",(E41+1)),"") ->  | G41: =IFERROR(IF(MONTH(C27)<>MONTH(F41+1),"",(F41+1)),"") ->  | H41: =IFERROR(IF(MONTH(C27)<>MONTH(G41+1),"",(G41+1)),"") ->  | I41: =IFERROR(IF(MONTH(C27)<>MONTH(H41+1),"",(H41+1)),"") -> 
C42: =SUMIFS('TRADE LOG'!$T$15:$T$9733,closeDate,">"&CALENDAR!C41,closeDate,"<="&D41,SIZE,">0") -> 0 | D42: =SUMIFS('TRADE LOG'!$T$15:$T$9733,closeDate,">"&CALENDAR!D41,closeDate,"<="&E41,SIZE,">0") -> 0 | E42: =SUMIFS('TRADE LOG'!$T$15:$T$9733,closeDate,">"&CALENDAR!E41,closeDate,"<="&F41,SIZE,">0") -> 0 | F42: =SUMIFS('TRADE LOG'!$T$15:$T$9733,closeDate,">"&CALENDAR!F41,closeDate,"<="&G41,SIZE,">0") -> 0 | G42: =SUMIFS('TRADE LOG'!$T$15:$T$9733,closeDate,">"&CALENDAR!G41,closeDate,"<="&H41,SIZE,">0") -> 0 | H42: =SUMIFS('TRADE LOG'!$T$15:$T$9733,closeDate,">"&CALENDAR!H41,closeDate,"<="&I41,SIZE,">0") -> 0 | I42: =SUMIFS('TRADE LOG'!$T$15:$T$9733,closeDate,">"&CALENDAR!I41,closeDate,"<="&C44,SIZE,">0") -> 0
C43: =COUNTIFS(closeDate,">"&CALENDAR!C41,closeDate,"<="&D41,SIZE,">0") -> 0 | D43: =COUNTIFS(closeDate,">"&CALENDAR!D41,closeDate,"<="&E41,SIZE,">0") -> 0 | E43: =COUNTIFS(closeDate,">"&CALENDAR!E41,closeDate,"<="&F41,SIZE,">0") -> 0 | F43: =COUNTIFS(closeDate,">"&CALENDAR!F41,closeDate,"<="&G41,SIZE,">0") -> 0 | G43: =COUNTIFS(closeDate,">"&CALENDAR!G41,closeDate,"<="&H41,SIZE,">0") -> 0 | H43: =COUNTIFS(closeDate,">"&CALENDAR!H41,closeDate,"<="&I41,SIZE,">0") -> 0 | I43: =COUNTIFS(closeDate,">"&CALENDAR!I41,closeDate,"<="&(I41+1),SIZE,">0") -> 0
C44: =IFERROR(IF(MONTH(C27)<>MONTH(I41+1),"",(I41+1)),"") ->  | D44: =IFERROR(IF(MONTH(C27)<>MONTH(C44+1),"",(C44+1)),"") ->  | E44: =IFERROR(IF(MONTH(C27)<>MONTH(D44+1),"",(D44+1)),"") ->  | F44: =IFERROR(IF(MONTH(C27)<>MONTH(E44+1),"",(E44+1)),"") ->  | G44: =IFERROR(IF(MONTH(C27)<>MONTH(F44+1),"",(F44+1)),"") ->  | H44: =IFERROR(IF(MONTH(C27)<>MONTH(G44+1),"",(G44+1)),"") ->  | I44: =IFERROR(IF(MONTH(C27)<>MONTH(H44+1),"",(H44+1)),"") -> 
C45: =SUMIFS('TRADE LOG'!$T$15:$T$9733,closeDate,">"&CALENDAR!C44,closeDate,"<="&D44,SIZE,">0") -> 0 | D45: =SUMIFS('TRADE LOG'!$T$15:$T$9733,closeDate,">"&CALENDAR!D44,closeDate,"<="&E44,SIZE,">0") -> 0 | E45: =SUMIFS('TRADE LOG'!$T$15:$T$9733,closeDate,">"&CALENDAR!E44,closeDate,"<="&F44,SIZE,">0") -> 0 | F45: =SUMIFS('TRADE LOG'!$T$15:$T$9733,closeDate,">"&CALENDAR!F44,closeDate,"<="&G44,SIZE,">0") -> 0 | G45: =SUMIFS('TRADE LOG'!$T$15:$T$9733,closeDate,">"&CALENDAR!G44,closeDate,"<="&H44,SIZE,">0") -> 0 | H45: =SUMIFS('TRADE LOG'!$T$15:$T$9733,closeDate,">"&CALENDAR!H44,closeDate,"<="&I44,SIZE,">0") -> 0 | I45: =SUMIFS('TRADE LOG'!$T$15:$T$9733,closeDate,">"&CALENDAR!I44,closeDate,"<="&C47,SIZE,">0") -> 0
C46: =COUNTIFS(closeDate,">"&CALENDAR!C44,closeDate,"<="&D44,SIZE,">0") -> 0 | D46: =COUNTIFS(closeDate,">"&CALENDAR!D44,closeDate,"<="&E44,SIZE,">0") -> 0 | E46: =COUNTIFS(closeDate,">"&CALENDAR!E44,closeDate,"<="&F44,SIZE,">0") -> 0 | F46: =COUNTIFS(closeDate,">"&CALENDAR!F44,closeDate,"<="&G44,SIZE,">0") -> 0 | G46: =COUNTIFS(closeDate,">"&CALENDAR!G44,closeDate,"<="&H44,SIZE,">0") -> 0 | H46: =COUNTIFS(closeDate,">"&CALENDAR!H44,closeDate,"<="&I44,SIZE,">0") -> 0 | I46: =COUNTIFS(closeDate,">"&CALENDAR!I44,closeDate,"<="&(I44+1),SIZE,">0") -> 0
C48: =EOMONTH(C27,0)+1 -> 2020-07-01
C49: SUN | D49: MON | E49: TUE | F49: WED | G49: THU | H49: FRI | I49: SAT
C50: =IF(MONTH(C48)<>MONTH((C48-WEEKDAY(C48,1)+1)),"",(C48-WEEKDAY(C48,1)+1)) ->  | D50: =IF(MONTH(C48)<>MONTH((C48-WEEKDAY(C48,1)+2)),"",(C48-WEEKDAY(C48,1)+2)) ->  | E50: =IF(MONTH(C48)<>MONTH((C48-WEEKDAY(C48,1)+3)),"",(C48-WEEKDAY(C48,1)+3)) ->  | F50: =IF(MONTH(C48)<>MONTH((C48-WEEKDAY(C48,1)+4)),"",(C48-WEEKDAY(C48,1)+4)) -> 2020-07-01 | G50: =IF(MONTH(C48)<>MONTH((C48-WEEKDAY(C48,1)+5)),"",(C48-WEEKDAY(C48,1)+5)) -> 2020-07-02 | H50: =IF(MONTH(C48)<>MONTH((C48-WEEKDAY(C48,1)+6)),"",(C48-WEEKDAY(C48,1)+6)) -> 2020-07-03 | I50: =IF(MONTH(C48)<>MONTH((C48-WEEKDAY(C48,1)+7)),"",(C48-WEEKDAY(C48,1)+7)) -> 2020-07-04
C51: =SUMIFS('TRADE LOG'!$T$15:$T$9733,closeDate,">"&CALENDAR!C50,closeDate,"<="&D50,SIZE,">0") -> 0 | D51: =SUMIFS('TRADE LOG'!$T$15:$T$9733,closeDate,">"&CALENDAR!D50,closeDate,"<="&E50,SIZE,">0") -> 0 | E51: =SUMIFS('TRADE LOG'!$T$15:$T$9733,closeDate,">"&CALENDAR!E50,closeDate,"<="&F50,SIZE,">0") -> 0 | F51: =SUMIFS('TRADE LOG'!$T$15:$T$9733,closeDate,">"&CALENDAR!F50,closeDate,"<="&G50,SIZE,">0") -> 0 | G51: =SUMIFS('TRADE LOG'!$T$15:$T$9733,closeDate,">"&CALENDAR!G50,closeDate,"<="&H50,SIZE,">0") -> 0 | H51: =SUMIFS('TRADE LOG'!$T$15:$T$9733,closeDate,">"&CALENDAR!H50,closeDate,"<="&I50,SIZE,">0") -> 0 | I51: =SUMIFS('TRADE LOG'!$T$15:$T$9733,closeDate,">"&CALENDAR!I50,closeDate,"<="&C53,SIZE,">0") -> 0
C52: =COUNTIFS(closeDate,">"&CALENDAR!C50,closeDate,"<="&D50,SIZE,">0") -> 0 | D52: =COUNTIFS(closeDate,">"&CALENDAR!D50,closeDate,"<="&E50,SIZE,">0") -> 0 | E52: =COUNTIFS(closeDate,">"&CALENDAR!E50,closeDate,"<="&F50,SIZE,">0") -> 0 | F52: =COUNTIFS(closeDate,">"&CALENDAR!F50,closeDate,"<="&G50,SIZE,">0") -> 0 | G52: =COUNTIFS(closeDate,">"&CALENDAR!G50,closeDate,"<="&H50,SIZE,">0") -> 0 | H52: =COUNTIFS(closeDate,">"&CALENDAR!H50,closeDate,"<="&I50,SIZE,">0") -> 0 | I52: =COUNTIFS(closeDate,">"&CALENDAR!I50,closeDate,"<="&(I50+1),SIZE,">0") -> 0
C53: =I50+1 -> 2020-07-05 | D53: =C53+1 -> 2020-07-06 | E53: =D53+1 -> 2020-07-07 | F53: 2020-07-08 | G53: 2020-07-09 | H53: 2020-07-10 | I53: 2020-07-11
C54: =SUMIFS('TRADE LOG'!$T$15:$T$9733,closeDate,">"&CALENDAR!C53,closeDate,"<="&D53,SIZE,">0") -> 0 | D54: =SUMIFS('TRADE LOG'!$T$15:$T$9733,closeDate,">"&CALENDAR!D53,closeDate,"<="&E53,SIZE,">0") -> 0 | E54: =SUMIFS('TRADE LOG'!$T$15:$T$9733,closeDate,">"&CALENDAR!E53,closeDate,"<="&F53,SIZE,">0") -> 0 | F54: =SUMIFS('TRADE LOG'!$T$15:$T$9733,closeDate,">"&CALENDAR!F53,closeDate,"<="&G53,SIZE,">0") -> 0 | G54: =SUMIFS('TRADE LOG'!$T$15:$T$9733,closeDate,">"&CALENDAR!G53,closeDate,"<="&H53,SIZE,">0") -> 0 | H54: =SUMIFS('TRADE LOG'!$T$15:$T$9733,closeDate,">"&CALENDAR!H53,closeDate,"<="&I53,SIZE,">0") -> 0 | I54: =SUMIFS('TRADE LOG'!$T$15:$T$9733,closeDate,">"&CALENDAR!I53,closeDate,"<="&C56,SIZE,">0") -> 0
C55: =COUNTIFS(closeDate,">"&CALENDAR!C53,closeDate,"<="&D53,SIZE,">0") -> 0 | D55: =COUNTIFS(closeDate,">"&CALENDAR!D53,closeDate,"<="&E53,SIZE,">0") -> 0 | E55: =COUNTIFS(closeDate,">"&CALENDAR!E53,closeDate,"<="&F53,SIZE,">0") -> 0 | F55: =COUNTIFS(closeDate,">"&CALENDAR!F53,closeDate,"<="&G53,SIZE,">0") -> 0 | G55: =COUNTIFS(closeDate,">"&CALENDAR!G53,closeDate,"<="&H53,SIZE,">0") -> 0 | H55: =COUNTIFS(closeDate,">"&CALENDAR!H53,closeDate,"<="&I53,SIZE,">0") -> 0 | I55: =COUNTIFS(closeDate,">"&CALENDAR!I53,closeDate,"<="&(I53+1),SIZE,">0") -> 0
C56: =I53+1 -> 2020-07-12 | D56: =C56+1 -> 2020-07-13 | E56: =D56+1 -> 2020-07-14 | F56: 2020-07-15 | G56: 2020-07-16 | H56: 2020-07-17 | I56: 2020-07-18
C57: =SUMIFS('TRADE LOG'!$T$15:$T$9733,closeDate,">"&CALENDAR!C56,closeDate,"<="&D56,SIZE,">0") -> 0 | D57: =SUMIFS('TRADE LOG'!$T$15:$T$9733,closeDate,">"&CALENDAR!D56,closeDate,"<="&E56,SIZE,">0") -> 0 | E57: =SUMIFS('TRADE LOG'!$T$15:$T$9733,closeDate,">"&CALENDAR!E56,closeDate,"<="&F56,SIZE,">0") -> 0 | F57: =SUMIFS('TRADE LOG'!$T$15:$T$9733,closeDate,">"&CALENDAR!F56,closeDate,"<="&G56,SIZE,">0") -> 0 | G57: =SUMIFS('TRADE LOG'!$T$15:$T$9733,closeDate,">"&CALENDAR!G56,closeDate,"<="&H56,SIZE,">0") -> 0 | H57: =SUMIFS('TRADE LOG'!$T$15:$T$9733,closeDate,">"&CALENDAR!H56,closeDate,"<="&I56,SIZE,">0") -> 0 | I57: =SUMIFS('TRADE LOG'!$T$15:$T$9733,closeDate,">"&CALENDAR!I56,closeDate,"<="&C59,SIZE,">0") -> 0
C58: =COUNTIFS(closeDate,">"&CALENDAR!C56,closeDate,"<="&D56,SIZE,">0") -> 0 | D58: =COUNTIFS(closeDate,">"&CALENDAR!D56,closeDate,"<="&E56,SIZE,">0") -> 0 | E58: =COUNTIFS(closeDate,">"&CALENDAR!E56,closeDate,"<="&F56,SIZE,">0") -> 0 | F58: =COUNTIFS(closeDate,">"&CALENDAR!F56,closeDate,"<="&G56,SIZE,">0") -> 0 | G58: =COUNTIFS(closeDate,">"&CALENDAR!G56,closeDate,"<="&H56,SIZE,">0") -> 0 | H58: =COUNTIFS(closeDate,">"&CALENDAR!H56,closeDate,"<="&I56,SIZE,">0") -> 0 | I58: =COUNTIFS(closeDate,">"&CALENDAR!I56,closeDate,"<="&(I56+1),SIZE,">0") -> 0
C59: =I56+1 -> 2020-07-19 | D59: =C59+1 -> 2020-07-20 | E59: =D59+1 -> 2020-07-21 | F59: 2020-07-22 | G59: 2020-07-23 | H59: 2020-07-24 | I59: 2020-07-25
C60: =SUMIFS('TRADE LOG'!$T$15:$T$9733,closeDate,">"&CALENDAR!C59,closeDate,"<="&D59,SIZE,">0") -> 0 | D60: =SUMIFS('TRADE LOG'!$T$15:$T$9733,closeDate,">"&CALENDAR!D59,closeDate,"<="&E59,SIZE,">0") -> 0 | E60: =SUMIFS('TRADE LOG'!$T$15:$T$9733,closeDate,">"&CALENDAR!E59,closeDate,"<="&F59,SIZE,">0") -> 0 | F60: =SUMIFS('TRADE LOG'!$T$15:$T$9733,closeDate,">"&CALENDAR!F59,closeDate,"<="&G59,SIZE,">0") -> 0 | G60: =SUMIFS('TRADE LOG'!$T$15:$T$9733,closeDate,">"&CALENDAR!G59,closeDate,"<="&H59,SIZE,">0") -> 0 | H60: =SUMIFS('TRADE LOG'!$T$15:$T$9733,closeDate,">"&CALENDAR!H59,closeDate,"<="&I59,SIZE,">0") -> 0 | I60: =SUMIFS('TRADE LOG'!$T$15:$T$9733,closeDate,">"&CALENDAR!I59,closeDate,"<="&C62,SIZE,">0") -> 0
C61: =COUNTIFS(closeDate,">"&CALENDAR!C59,closeDate,"<="&D59,SIZE,">0") -> 0 | D61: =COUNTIFS(closeDate,">"&CALENDAR!D59,closeDate,"<="&E59,SIZE,">0") -> 0 | E61: =COUNTIFS(closeDate,">"&CALENDAR!E59,closeDate,"<="&F59,SIZE,">0") -> 0 | F61: =COUNTIFS(closeDate,">"&CALENDAR!F59,closeDate,"<="&G59,SIZE,">0") -> 0 | G61: =COUNTIFS(closeDate,">"&CALENDAR!G59,closeDate,"<="&H59,SIZE,">0") -> 0 | H61: =COUNTIFS(closeDate,">"&CALENDAR!H59,closeDate,"<="&I59,SIZE,">0") -> 0 | I61: =COUNTIFS(closeDate,">"&CALENDAR!I59,closeDate,"<="&(I59+1),SIZE,">0") -> 0
C62: =IFERROR(IF(MONTH(C48)<>MONTH(I59+1),"",(I59+1)),"") -> 2020-07-26 | D62: =IFERROR(IF(MONTH(C48)<>MONTH(C62+1),"",(C62+1)),"") -> 2020-07-27 | E62: =IFERROR(IF(MONTH(C48)<>MONTH(D62+1),"",(D62+1)),"") -> 2020-07-28 | F62: =IFERROR(IF(MONTH(C48)<>MONTH(E62+1),"",(E62+1)),"") -> 2020-07-29 | G62: =IFERROR(IF(MONTH(C48)<>MONTH(F62+1),"",(F62+1)),"") -> 2020-07-30 | H62: =IFERROR(IF(MONTH(C48)<>MONTH(G62+1),"",(G62+1)),"") -> 2020-07-31 | I62: =IFERROR(IF(MONTH(C48)<>MONTH(H62+1),"",(H62+1)),"") -> 
C63: =SUMIFS('TRADE LOG'!$T$15:$T$9733,closeDate,">"&CALENDAR!C62,closeDate,"<="&D62,SIZE,">0") -> 0 | D63: =SUMIFS('TRADE LOG'!$T$15:$T$9733,closeDate,">"&CALENDAR!D62,closeDate,"<="&E62,SIZE,">0") -> 0 | E63: =SUMIFS('TRADE LOG'!$T$15:$T$9733,closeDate,">"&CALENDAR!E62,closeDate,"<="&F62,SIZE,">0") -> 0 | F63: =SUMIFS('TRADE LOG'!$T$15:$T$9733,closeDate,">"&CALENDAR!F62,closeDate,"<="&G62,SIZE,">0") -> 0 | G63: =SUMIFS('TRADE LOG'!$T$15:$T$9733,closeDate,">"&CALENDAR!G62,closeDate,"<="&H62,SIZE,">0") -> 0 | H63: =SUMIFS('TRADE LOG'!$T$15:$T$9733,closeDate,">"&CALENDAR!H62,closeDate,"<="&I62,SIZE,">0") -> 0 | I63: =SUMIFS('TRADE LOG'!$T$15:$T$9733,closeDate,">"&CALENDAR!I62,closeDate,"<="&C65,SIZE,">0") -> 0
C64: =COUNTIFS(closeDate,">"&CALENDAR!C62,closeDate,"<="&D62,SIZE,">0") -> 0 | D64: =COUNTIFS(closeDate,">"&CALENDAR!D62,closeDate,"<="&E62,SIZE,">0") -> 0 | E64: =COUNTIFS(closeDate,">"&CALENDAR!E62,closeDate,"<="&F62,SIZE,">0") -> 0 | F64: =COUNTIFS(closeDate,">"&CALENDAR!F62,closeDate,"<="&G62,SIZE,">0") -> 0 | G64: =COUNTIFS(closeDate,">"&CALENDAR!G62,closeDate,"<="&H62,SIZE,">0") -> 0 | H64: =COUNTIFS(closeDate,">"&CALENDAR!H62,closeDate,"<="&I62,SIZE,">0") -> 0 | I64: =COUNTIFS(closeDate,">"&CALENDAR!I62,closeDate,"<="&(I62+1),SIZE,">0") -> 0
C65: =IFERROR(IF(MONTH(C48)<>MONTH(I62+1),"",(I62+1)),"") ->  | D65: =IFERROR(IF(MONTH(C48)<>MONTH(C65+1),"",(C65+1)),"") ->  | E65: =IFERROR(IF(MONTH(C48)<>MONTH(D65+1),"",(D65+1)),"") ->  | F65: =IFERROR(IF(MONTH(C48)<>MONTH(E65+1),"",(E65+1)),"") ->  | G65: =IFERROR(IF(MONTH(C48)<>MONTH(F65+1),"",(F65+1)),"") ->  | H65: =IFERROR(IF(MONTH(C48)<>MONTH(G65+1),"",(G65+1)),"") ->  | I65: =IFERROR(IF(MONTH(C48)<>MONTH(H65+1),"",(H65+1)),"") -> 
C66: =SUMIFS('TRADE LOG'!$T$15:$T$9733,closeDate,">"&CALENDAR!C65,closeDate,"<="&D65,SIZE,">0") -> 0 | D66: =SUMIFS('TRADE LOG'!$T$15:$T$9733,closeDate,">"&CALENDAR!D65,closeDate,"<="&E65,SIZE,">0") -> 0 | E66: =SUMIFS('TRADE LOG'!$T$15:$T$9733,closeDate,">"&CALENDAR!E65,closeDate,"<="&F65,SIZE,">0") -> 0 | F66: =SUMIFS('TRADE LOG'!$T$15:$T$9733,closeDate,">"&CALENDAR!F65,closeDate,"<="&G65,SIZE,">0") -> 0 | G66: =SUMIFS('TRADE LOG'!$T$15:$T$9733,closeDate,">"&CALENDAR!G65,closeDate,"<="&H65,SIZE,">0") -> 0 | H66: =SUMIFS('TRADE LOG'!$T$15:$T$9733,closeDate,">"&CALENDAR!H65,closeDate,"<="&I65,SIZE,">0") -> 0 | I66: =SUMIFS('TRADE LOG'!$T$15:$T$9733,closeDate,">"&CALENDAR!I65,closeDate,"<="&C68,SIZE,">0") -> 0
C67: =COUNTIFS(closeDate,">"&CALENDAR!C65,closeDate,"<="&D65,SIZE,">0") -> 0 | D67: =COUNTIFS(closeDate,">"&CALENDAR!D65,closeDate,"<="&E65,SIZE,">0") -> 0 | E67: =COUNTIFS(closeDate,">"&CALENDAR!E65,closeDate,"<="&F65,SIZE,">0") -> 0 | F67: =COUNTIFS(closeDate,">"&CALENDAR!F65,closeDate,"<="&G65,SIZE,">0") -> 0 | G67: =COUNTIFS(closeDate,">"&CALENDAR!G65,closeDate,"<="&H65,SIZE,">0") -> 0 | H67: =COUNTIFS(closeDate,">"&CALENDAR!H65,closeDate,"<="&I65,SIZE,">0") -> 0 | I67: =COUNTIFS(closeDate,">"&CALENDAR!I65,closeDate,"<="&(I65+1),SIZE,">0") -> 0
C69: =EOMONTH(C48,0)+1 -> 2020-08-01
C70: SUN | D70: MON | E70: TUE | F70: WED | G70: THU | H70: FRI | I70: SAT
C71: =IF(MONTH(C69)<>MONTH((C69-WEEKDAY(C69,1)+1)),"",(C69-WEEKDAY(C69,1)+1)) ->  | D71: =IF(MONTH(C69)<>MONTH((C69-WEEKDAY(C69,1)+2)),"",(C69-WEEKDAY(C69,1)+2)) ->  | E71: =IF(MONTH(C69)<>MONTH((C69-WEEKDAY(C69,1)+3)),"",(C69-WEEKDAY(C69,1)+3)) ->  | F71: =IF(MONTH(C69)<>MONTH((C69-WEEKDAY(C69,1)+4)),"",(C69-WEEKDAY(C69,1)+4)) ->  | G71: =IF(MONTH(C69)<>MONTH((C69-WEEKDAY(C69,1)+5)),"",(C69-WEEKDAY(C69,1)+5)) ->  | H71: =IF(MONTH(C69)<>MONTH((C69-WEEKDAY(C69,1)+6)),"",(C69-WEEKDAY(C69,1)+6)) ->  | I71: =IF(MONTH(C69)<>MONTH((C69-WEEKDAY(C69,1)+7)),"",(C69-WEEKDAY(C69,1)+7)) -> 2020-08-01
C72: =SUMIFS('TRADE LOG'!$T$15:$T$9733,closeDate,">"&CALENDAR!C71,closeDate,"<="&D71,SIZE,">0") -> 0 | D72: =SUMIFS('TRADE LOG'!$T$15:$T$9733,closeDate,">"&CALENDAR!D71,closeDate,"<="&E71,SIZE,">0") -> 0 | E72: =SUMIFS('TRADE LOG'!$T$15:$T$9733,closeDate,">"&CALENDAR!E71,closeDate,"<="&F71,SIZE,">0") -> 0 | F72: =SUMIFS('TRADE LOG'!$T$15:$T$9733,closeDate,">"&CALENDAR!F71,closeDate,"<="&G71,SIZE,">0") -> 0 | G72: =SUMIFS('TRADE LOG'!$T$15:$T$9733,closeDate,">"&CALENDAR!G71,closeDate,"<="&H71,SIZE,">0") -> 0 | H72: =SUMIFS('TRADE LOG'!$T$15:$T$9733,closeDate,">"&CALENDAR!H71,closeDate,"<="&I71,SIZE,">0") -> 0 | I72: =SUMIFS('TRADE LOG'!$T$15:$T$9733,closeDate,">"&CALENDAR!I71,closeDate,"<="&C74,SIZE,">0") -> 0
C73: =COUNTIFS(closeDate,">"&CALENDAR!C71,closeDate,"<="&D71,SIZE,">0") -> 0 | D73: =COUNTIFS(closeDate,">"&CALENDAR!D71,closeDate,"<="&E71,SIZE,">0") -> 0 | E73: =COUNTIFS(closeDate,">"&CALENDAR!E71,closeDate,"<="&F71,SIZE,">0") -> 0 | F73: =COUNTIFS(closeDate,">"&CALENDAR!F71,closeDate,"<="&G71,SIZE,">0") -> 0 | G73: =COUNTIFS(closeDate,">"&CALENDAR!G71,closeDate,"<="&H71,SIZE,">0") -> 0 | H73: =COUNTIFS(closeDate,">"&CALENDAR!H71,closeDate,"<="&I71,SIZE,">0") -> 0 | I73: =COUNTIFS(closeDate,">"&CALENDAR!I71,closeDate,"<="&(I71+1),SIZE,">0") -> 0
C74: =I71+1 -> 2020-08-02 | D74: =C74+1 -> 2020-08-03 | E74: =D74+1 -> 2020-08-04 | F74: 2020-08-05 | G74: 2020-08-06 | H74: 2020-08-07 | I74: 2020-08-08
C75: =SUMIFS('TRADE LOG'!$T$15:$T$9733,closeDate,">"&CALENDAR!C74,closeDate,"<="&D74,SIZE,">0") -> 0 | D75: =SUMIFS('TRADE LOG'!$T$15:$T$9733,closeDate,">"&CALENDAR!D74,closeDate,"<="&E74,SIZE,">0") -> 0 | E75: =SUMIFS('TRADE LOG'!$T$15:$T$9733,closeDate,">"&CALENDAR!E74,closeDate,"<="&F74,SIZE,">0") -> 0 | F75: =SUMIFS('TRADE LOG'!$T$15:$T$9733,closeDate,">"&CALENDAR!F74,closeDate,"<="&G74,SIZE,">0") -> 0 | G75: =SUMIFS('TRADE LOG'!$T$15:$T$9733,closeDate,">"&CALENDAR!G74,closeDate,"<="&H74,SIZE,">0") -> 0 | H75: =SUMIFS('TRADE LOG'!$T$15:$T$9733,closeDate,">"&CALENDAR!H74,closeDate,"<="&I74,SIZE,">0") -> 0 | I75: =SUMIFS('TRADE LOG'!$T$15:$T$9733,closeDate,">"&CALENDAR!I74,closeDate,"<="&C77,SIZE,">0") -> 0
C76: =COUNTIFS(closeDate,">"&CALENDAR!C74,closeDate,"<="&D74,SIZE,">0") -> 0 | D76: =COUNTIFS(closeDate,">"&CALENDAR!D74,closeDate,"<="&E74,SIZE,">0") -> 0 | E76: =COUNTIFS(closeDate,">"&CALENDAR!E74,closeDate,"<="&F74,SIZE,">0") -> 0 | F76: =COUNTIFS(closeDate,">"&CALENDAR!F74,closeDate,"<="&G74,SIZE,">0") -> 0 | G76: =COUNTIFS(closeDate,">"&CALENDAR!G74,closeDate,"<="&H74,SIZE,">0") -> 0 | H76: =COUNTIFS(closeDate,">"&CALENDAR!H74,closeDate,"<="&I74,SIZE,">0") -> 0 | I76: =COUNTIFS(closeDate,">"&CALENDAR!I74,closeDate,"<="&(I74+1),SIZE,">0") -> 0
C77: =I74+1 -> 2020-08-09 | D77: =C77+1 -> 2020-08-10 | E77: =D77+1 -> 2020-08-11 | F77: 2020-08-12 | G77: 2020-08-13 | H77: 2020-08-14 | I77: 2020-08-15
C78: =SUMIFS('TRADE LOG'!$T$15:$T$9733,closeDate,">"&CALENDAR!C77,closeDate,"<="&D77,SIZE,">0") -> 0 | D78: =SUMIFS('TRADE LOG'!$T$15:$T$9733,closeDate,">"&CALENDAR!D77,closeDate,"<="&E77,SIZE,">0") -> 0 | E78: =SUMIFS('TRADE LOG'!$T$15:$T$9733,closeDate,">"&CALENDAR!E77,closeDate,"<="&F77,SIZE,">0") -> 0 | F78: =SUMIFS('TRADE LOG'!$T$15:$T$9733,closeDate,">"&CALENDAR!F77,closeDate,"<="&G77,SIZE,">0") -> 0 | G78: =SUMIFS('TRADE LOG'!$T$15:$T$9733,closeDate,">"&CALENDAR!G77,closeDate,"<="&H77,SIZE,">0") -> 0 | H78: =SUMIFS('TRADE LOG'!$T$15:$T$9733,closeDate,">"&CALENDAR!H77,closeDate,"<="&I77,SIZE,">0") -> 0 | I78: =SUMIFS('TRADE LOG'!$T$15:$T$9733,closeDate,">"&CALENDAR!I77,closeDate,"<="&C80,SIZE,">0") -> 0
C79: =COUNTIFS(closeDate,">"&CALENDAR!C77,closeDate,"<="&D77,SIZE,">0") -> 0 | D79: =COUNTIFS(closeDate,">"&CALENDAR!D77,closeDate,"<="&E77,SIZE,">0") -> 0 | E79: =COUNTIFS(closeDate,">"&CALENDAR!E77,closeDate,"<="&F77,SIZE,">0") -> 0 | F79: =COUNTIFS(closeDate,">"&CALENDAR!F77,closeDate,"<="&G77,SIZE,">0") -> 0 | G79: =COUNTIFS(closeDate,">"&CALENDAR!G77,closeDate,"<="&H77,SIZE,">0") -> 0 | H79: =COUNTIFS(closeDate,">"&CALENDAR!H77,closeDate,"<="&I77,SIZE,">0") -> 0 | I79: =COUNTIFS(closeDate,">"&CALENDAR!I77,closeDate,"<="&(I77+1),SIZE,">0") -> 0
C80: =I77+1 -> 2020-08-16 | D80: =C80+1 -> 2020-08-17 | E80: =D80+1 -> 2020-08-18 | F80: 2020-08-19 | G80: 2020-08-20 | H80: 2020-08-21 | I80: 2020-08-22
C81: =SUMIFS('TRADE LOG'!$T$15:$T$9733,closeDate,">"&CALENDAR!C80,closeDate,"<="&D80,SIZE,">0") -> 0 | D81: =SUMIFS('TRADE LOG'!$T$15:$T$9733,closeDate,">"&CALENDAR!D80,closeDate,"<="&E80,SIZE,">0") -> 0 | E81: =SUMIFS('TRADE LOG'!$T$15:$T$9733,closeDate,">"&CALENDAR!E80,closeDate,"<="&F80,SIZE,">0") -> 0 | F81: =SUMIFS('TRADE LOG'!$T$15:$T$9733,closeDate,">"&CALENDAR!F80,closeDate,"<="&G80,SIZE,">0") -> 0 | G81: =SUMIFS('TRADE LOG'!$T$15:$T$9733,closeDate,">"&CALENDAR!G80,closeDate,"<="&H80,SIZE,">0") -> 0 | H81: =SUMIFS('TRADE LOG'!$T$15:$T$9733,closeDate,">"&CALENDAR!H80,closeDate,"<="&I80,SIZE,">0") -> 0 | I81: =SUMIFS('TRADE LOG'!$T$15:$T$9733,closeDate,">"&CALENDAR!I80,closeDate,"<="&C83,SIZE,">0") -> 0
C82: =COUNTIFS(closeDate,">"&CALENDAR!C80,closeDate,"<="&D80,SIZE,">0") -> 0 | D82: =COUNTIFS(closeDate,">"&CALENDAR!D80,closeDate,"<="&E80,SIZE,">0") -> 0 | E82: =COUNTIFS(closeDate,">"&CALENDAR!E80,closeDate,"<="&F80,SIZE,">0") -> 0 | F82: =COUNTIFS(closeDate,">"&CALENDAR!F80,closeDate,"<="&G80,SIZE,">0") -> 0 | G82: =COUNTIFS(closeDate,">"&CALENDAR!G80,closeDate,"<="&H80,SIZE,">0") -> 0 | H82: =COUNTIFS(closeDate,">"&CALENDAR!H80,closeDate,"<="&I80,SIZE,">0") -> 0 | I82: =COUNTIFS(closeDate,">"&CALENDAR!I80,closeDate,"<="&(I80+1),SIZE,">0") -> 0
C83: =IFERROR(IF(MONTH(C69)<>MONTH(I80+1),"",(I80+1)),"") -> 2020-08-23 | D83: =IFERROR(IF(MONTH(C69)<>MONTH(C83+1),"",(C83+1)),"") -> 2020-08-24 | E83: =IFERROR(IF(MONTH(C69)<>MONTH(D83+1),"",(D83+1)),"") -> 2020-08-25 | F83: =IFERROR(IF(MONTH(C69)<>MONTH(E83+1),"",(E83+1)),"") -> 2020-08-26 | G83: =IFERROR(IF(MONTH(C69)<>MONTH(F83+1),"",(F83+1)),"") -> 2020-08-27 | H83: =IFERROR(IF(MONTH(C69)<>MONTH(G83+1),"",(G83+1)),"") -> 2020-08-28 | I83: =IFERROR(IF(MONTH(C69)<>MONTH(H83+1),"",(H83+1)),"") -> 2020-08-29
C84: =SUMIFS('TRADE LOG'!$T$15:$T$9733,closeDate,">"&CALENDAR!C83,closeDate,"<="&D83,SIZE,">0") -> 0 | D84: =SUMIFS('TRADE LOG'!$T$15:$T$9733,closeDate,">"&CALENDAR!D83,closeDate,"<="&E83,SIZE,">0") -> 0 | E84: =SUMIFS('TRADE LOG'!$T$15:$T$9733,closeDate,">"&CALENDAR!E83,closeDate,"<="&F83,SIZE,">0") -> 0 | F84: =SUMIFS('TRADE LOG'!$T$15:$T$9733,closeDate,">"&CALENDAR!F83,closeDate,"<="&G83,SIZE,">0") -> 0 | G84: =SUMIFS('TRADE LOG'!$T$15:$T$9733,closeDate,">"&CALENDAR!G83,closeDate,"<="&H83,SIZE,">0") -> 0 | H84: =SUMIFS('TRADE LOG'!$T$15:$T$9733,closeDate,">"&CALENDAR!H83,closeDate,"<="&I83,SIZE,">0") -> 0 | I84: =SUMIFS('TRADE LOG'!$T$15:$T$9733,closeDate,">"&CALENDAR!I83,closeDate,"<="&C86,SIZE,">0") -> 0
C85: =COUNTIFS(closeDate,">"&CALENDAR!C83,closeDate,"<="&D83,SIZE,">0") -> 0 | D85: =COUNTIFS(closeDate,">"&CALENDAR!D83,closeDate,"<="&E83,SIZE,">0") -> 0 | E85: =COUNTIFS(closeDate,">"&CALENDAR!E83,closeDate,"<="&F83,SIZE,">0") -> 0 | F85: =COUNTIFS(closeDate,">"&CALENDAR!F83,closeDate,"<="&G83,SIZE,">0") -> 0 | G85: =COUNTIFS(closeDate,">"&CALENDAR!G83,closeDate,"<="&H83,SIZE,">0") -> 0 | H85: =COUNTIFS(closeDate,">"&CALENDAR!H83,closeDate,"<="&I83,SIZE,">0") -> 0 | I85: =COUNTIFS(closeDate,">"&CALENDAR!I83,closeDate,"<="&(I83+1),SIZE,">0") -> 0
C86: =IFERROR(IF(MONTH(C69)<>MONTH(I83+1),"",(I83+1)),"") -> 2020-08-30 | D86: =IFERROR(IF(MONTH(C69)<>MONTH(C86+1),"",(C86+1)),"") -> 2020-08-31 | E86: =IFERROR(IF(MONTH(C69)<>MONTH(D86+1),"",(D86+1)),"") ->  | F86: =IFERROR(IF(MONTH(C69)<>MONTH(E86+1),"",(E86+1)),"") ->  | G86: =IFERROR(IF(MONTH(C69)<>MONTH(F86+1),"",(F86+1)),"") ->  | H86: =IFERROR(IF(MONTH(C69)<>MONTH(G86+1),"",(G86+1)),"") ->  | I86: =IFERROR(IF(MONTH(C69)<>MONTH(H86+1),"",(H86+1)),"") -> 
C87: =SUMIFS('TRADE LOG'!$T$15:$T$9733,closeDate,">"&CALENDAR!C86,closeDate,"<="&D86,SIZE,">0") -> 0 | D87: =SUMIFS('TRADE LOG'!$T$15:$T$9733,closeDate,">"&CALENDAR!D86,closeDate,"<="&E86,SIZE,">0") -> 0 | E87: =SUMIFS('TRADE LOG'!$T$15:$T$9733,closeDate,">"&CALENDAR!E86,closeDate,"<="&F86,SIZE,">0") -> 0 | F87: =SUMIFS('TRADE LOG'!$T$15:$T$9733,closeDate,">"&CALENDAR!F86,closeDate,"<="&G86,SIZE,">0") -> 0 | G87: =SUMIFS('TRADE LOG'!$T$15:$T$9733,closeDate,">"&CALENDAR!G86,closeDate,"<="&H86,SIZE,">0") -> 0 | H87: =SUMIFS('TRADE LOG'!$T$15:$T$9733,closeDate,">"&CALENDAR!H86,closeDate,"<="&I86,SIZE,">0") -> 0 | I87: =SUMIFS('TRADE LOG'!$T$15:$T$9733,closeDate,">"&CALENDAR!I86,closeDate,"<="&C89,SIZE,">0") -> 0
C88: =COUNTIFS(closeDate,">"&CALENDAR!C86,closeDate,"<="&D86,SIZE,">0") -> 0 | D88: =COUNTIFS(closeDate,">"&CALENDAR!D86,closeDate,"<="&E86,SIZE,">0") -> 0 | E88: =COUNTIFS(closeDate,">"&CALENDAR!E86,closeDate,"<="&F86,SIZE,">0") -> 0 | F88: =COUNTIFS(closeDate,">"&CALENDAR!F86,closeDate,"<="&G86,SIZE,">0") -> 0 | G88: =COUNTIFS(closeDate,">"&CALENDAR!G86,closeDate,"<="&H86,SIZE,">0") -> 0 | H88: =COUNTIFS(closeDate,">"&CALENDAR!H86,closeDate,"<="&I86,SIZE,">0") -> 0 | I88: =COUNTIFS(closeDate,">"&CALENDAR!I86,closeDate,"<="&(I86+1),SIZE,">0") -> 0
C90: =EOMONTH(C69,0)+1 -> 2020-09-01
C91: SUN | D91: MON | E91: TUE | F91: WED | G91: THU | H91: FRI | I91: SAT
C92: =IF(MONTH(C90)<>MONTH((C90-WEEKDAY(C90,1)+1)),"",(C90-WEEKDAY(C90,1)+1)) ->  | D92: =IF(MONTH(C90)<>MONTH((C90-WEEKDAY(C90,1)+2)),"",(C90-WEEKDAY(C90,1)+2)) ->  | E92: =IF(MONTH(C90)<>MONTH((C90-WEEKDAY(C90,1)+3)),"",(C90-WEEKDAY(C90,1)+3)) -> 2020-09-01 | F92: =IF(MONTH(C90)<>MONTH((C90-WEEKDAY(C90,1)+4)),"",(C90-WEEKDAY(C90,1)+4)) -> 2020-09-02 | G92: =IF(MONTH(C90)<>MONTH((C90-WEEKDAY(C90,1)+5)),"",(C90-WEEKDAY(C90,1)+5)) -> 2020-09-03 | H92: =IF(MONTH(C90)<>MONTH((C90-WEEKDAY(C90,1)+6)),"",(C90-WEEKDAY(C90,1)+6)) -> 2020-09-04 | I92: =IF(MONTH(C90)<>MONTH((C90-WEEKDAY(C90,1)+7)),"",(C90-WEEKDAY(C90,1)+7)) -> 2020-09-05
C93: =SUMIFS('TRADE LOG'!$T$15:$T$9733,closeDate,">"&CALENDAR!C92,closeDate,"<="&D92,SIZE,">0") -> 0 | D93: =SUMIFS('TRADE LOG'!$T$15:$T$9733,closeDate,">"&CALENDAR!D92,closeDate,"<="&E92,SIZE,">0") -> 0 | E93: =SUMIFS('TRADE LOG'!$T$15:$T$9733,closeDate,">"&CALENDAR!E92,closeDate,"<="&F92,SIZE,">0") -> 0 | F93: =SUMIFS('TRADE LOG'!$T$15:$T$9733,closeDate,">"&CALENDAR!F92,closeDate,"<="&G92,SIZE,">0") -> 0 | G93: =SUMIFS('TRADE LOG'!$T$15:$T$9733,closeDate,">"&CALENDAR!G92,closeDate,"<="&H92,SIZE,">0") -> 0 | H93: =SUMIFS('TRADE LOG'!$T$15:$T$9733,closeDate,">"&CALENDAR!H92,closeDate,"<="&I92,SIZE,">0") -> 0 | I93: =SUMIFS('TRADE LOG'!$T$15:$T$9733,closeDate,">"&CALENDAR!I92,closeDate,"<="&C95,SIZE,">0") -> 0
C94: =COUNTIFS(closeDate,">"&CALENDAR!C92,closeDate,"<="&D92,SIZE,">0") -> 0 | D94: =COUNTIFS(closeDate,">"&CALENDAR!D92,closeDate,"<="&E92,SIZE,">0") -> 0 | E94: =COUNTIFS(closeDate,">"&CALENDAR!E92,closeDate,"<="&F92,SIZE,">0") -> 0 | F94: =COUNTIFS(closeDate,">"&CALENDAR!F92,closeDate,"<="&G92,SIZE,">0") -> 0 | G94: =COUNTIFS(closeDate,">"&CALENDAR!G92,closeDate,"<="&H92,SIZE,">0") -> 0 | H94: =COUNTIFS(closeDate,">"&CALENDAR!H92,closeDate,"<="&I92,SIZE,">0") -> 0 | I94: =COUNTIFS(closeDate,">"&CALENDAR!I92,closeDate,"<="&(I92+1),SIZE,">0") -> 0
C95: =I92+1 -> 2020-09-06 | D95: =C95+1 -> 2020-09-07 | E95: =D95+1 -> 2020-09-08 | F95: 2020-09-09 | G95: 2020-09-10 | H95: 2020-09-11 | I95: 2020-09-12
C96: =SUMIFS('TRADE LOG'!$T$15:$T$9733,closeDate,">"&CALENDAR!C95,closeDate,"<="&D95,SIZE,">0") -> 0 | D96: =SUMIFS('TRADE LOG'!$T$15:$T$9733,closeDate,">"&CALENDAR!D95,closeDate,"<="&E95,SIZE,">0") -> 0 | E96: =SUMIFS('TRADE LOG'!$T$15:$T$9733,closeDate,">"&CALENDAR!E95,closeDate,"<="&F95,SIZE,">0") -> 0 | F96: =SUMIFS('TRADE LOG'!$T$15:$T$9733,closeDate,">"&CALENDAR!F95,closeDate,"<="&G95,SIZE,">0") -> 0 | G96: =SUMIFS('TRADE LOG'!$T$15:$T$9733,closeDate,">"&CALENDAR!G95,closeDate,"<="&H95,SIZE,">0") -> 0 | H96: =SUMIFS('TRADE LOG'!$T$15:$T$9733,closeDate,">"&CALENDAR!H95,closeDate,"<="&I95,SIZE,">0") -> 0 | I96: =SUMIFS('TRADE LOG'!$T$15:$T$9733,closeDate,">"&CALENDAR!I95,closeDate,"<="&C98,SIZE,">0") -> 0
C97: =COUNTIFS(closeDate,">"&CALENDAR!C95,closeDate,"<="&D95,SIZE,">0") -> 0 | D97: =COUNTIFS(closeDate,">"&CALENDAR!D95,closeDate,"<="&E95,SIZE,">0") -> 0 | E97: =COUNTIFS(closeDate,">"&CALENDAR!E95,closeDate,"<="&F95,SIZE,">0") -> 0 | F97: =COUNTIFS(closeDate,">"&CALENDAR!F95,closeDate,"<="&G95,SIZE,">0") -> 0 | G97: =COUNTIFS(closeDate,">"&CALENDAR!G95,closeDate,"<="&H95,SIZE,">0") -> 0 | H97: =COUNTIFS(closeDate,">"&CALENDAR!H95,closeDate,"<="&I95,SIZE,">0") -> 0 | I97: =COUNTIFS(closeDate,">"&CALENDAR!I95,closeDate,"<="&(I95+1),SIZE,">0") -> 0
C98: =I95+1 -> 2020-09-13 | D98: =C98+1 -> 2020-09-14 | E98: =D98+1 -> 2020-09-15 | F98: 2020-09-16 | G98: 2020-09-17 | H98: 2020-09-18 | I98: 2020-09-19
C99: =SUMIFS('TRADE LOG'!$T$15:$T$9733,closeDate,">"&CALENDAR!C98,closeDate,"<="&D98,SIZE,">0") -> 0 | D99: =SUMIFS('TRADE LOG'!$T$15:$T$9733,closeDate,">"&CALENDAR!D98,closeDate,"<="&E98,SIZE,">0") -> 0 | E99: =SUMIFS('TRADE LOG'!$T$15:$T$9733,closeDate,">"&CALENDAR!E98,closeDate,"<="&F98,SIZE,">0") -> 0 | F99: =SUMIFS('TRADE LOG'!$T$15:$T$9733,closeDate,">"&CALENDAR!F98,closeDate,"<="&G98,SIZE,">0") -> 0 | G99: =SUMIFS('TRADE LOG'!$T$15:$T$9733,closeDate,">"&CALENDAR!G98,closeDate,"<="&H98,SIZE,">0") -> 0 | H99: =SUMIFS('TRADE LOG'!$T$15:$T$9733,closeDate,">"&CALENDAR!H98,closeDate,"<="&I98,SIZE,">0") -> 0 | I99: =SUMIFS('TRADE LOG'!$T$15:$T$9733,closeDate,">"&CALENDAR!I98,closeDate,"<="&C101,SIZE,">0") -> 0
C100: =COUNTIFS(closeDate,">"&CALENDAR!C98,closeDate,"<="&D98,SIZE,">0") -> 0 | D100: =COUNTIFS(closeDate,">"&CALENDAR!D98,closeDate,"<="&E98,SIZE,">0") -> 0 | E100: =COUNTIFS(closeDate,">"&CALENDAR!E98,closeDate,"<="&F98,SIZE,">0") -> 0 | F100: =COUNTIFS(closeDate,">"&CALENDAR!F98,closeDate,"<="&G98,SIZE,">0") -> 0 | G100: =COUNTIFS(closeDate,">"&CALENDAR!G98,closeDate,"<="&H98,SIZE,">0") -> 0 | H100: =COUNTIFS(closeDate,">"&CALENDAR!H98,closeDate,"<="&I98,SIZE,">0") -> 0 | I100: =COUNTIFS(closeDate,">"&CALENDAR!I98,closeDate,"<="&(I98+1),SIZE,">0") -> 0
C101: =I98+1 -> 2020-09-20 | D101: =C101+1 -> 2020-09-21 | E101: =D101+1 -> 2020-09-22 | F101: 2020-09-23 | G101: 2020-09-24 | H101: 2020-09-25 | I101: 2020-09-26
C102: =SUMIFS('TRADE LOG'!$T$15:$T$9733,closeDate,">"&CALENDAR!C101,closeDate,"<="&D101,SIZE,">0") -> 0 | D102: =SUMIFS('TRADE LOG'!$T$15:$T$9733,closeDate,">"&CALENDAR!D101,closeDate,"<="&E101,SIZE,">0") -> 0 | E102: =SUMIFS('TRADE LOG'!$T$15:$T$9733,closeDate,">"&CALENDAR!E101,closeDate,"<="&F101,SIZE,">0") -> 0 | F102: =SUMIFS('TRADE LOG'!$T$15:$T$9733,closeDate,">"&CALENDAR!F101,closeDate,"<="&G101,SIZE,">0") -> 0 | G102: =SUMIFS('TRADE LOG'!$T$15:$T$9733,closeDate,">"&CALENDAR!G101,closeDate,"<="&H101,SIZE,">0") -> 0 | H102: =SUMIFS('TRADE LOG'!$T$15:$T$9733,closeDate,">"&CALENDAR!H101,closeDate,"<="&I101,SIZE,">0") -> 0 | I102: =SUMIFS('TRADE LOG'!$T$15:$T$9733,closeDate,">"&CALENDAR!I101,closeDate,"<="&C104,SIZE,">0") -> 0
C103: =COUNTIFS(closeDate,">"&CALENDAR!C101,closeDate,"<="&D101,SIZE,">0") -> 0 | D103: =COUNTIFS(closeDate,">"&CALENDAR!D101,closeDate,"<="&E101,SIZE,">0") -> 0 | E103: =COUNTIFS(closeDate,">"&CALENDAR!E101,closeDate,"<="&F101,SIZE,">0") -> 0 | F103: =COUNTIFS(closeDate,">"&CALENDAR!F101,closeDate,"<="&G101,SIZE,">0") -> 0 | G103: =COUNTIFS(closeDate,">"&CALENDAR!G101,closeDate,"<="&H101,SIZE,">0") -> 0 | H103: =COUNTIFS(closeDate,">"&CALENDAR!H101,closeDate,"<="&I101,SIZE,">0") -> 0 | I103: =COUNTIFS(closeDate,">"&CALENDAR!I101,closeDate,"<="&(I101+1),SIZE,">0") -> 0
C104: =IFERROR(IF(MONTH(C90)<>MONTH(I101+1),"",(I101+1)),"") -> 2020-09-27 | D104: =IFERROR(IF(MONTH(C90)<>MONTH(C104+1),"",(C104+1)),"") -> 2020-09-28 | E104: =IFERROR(IF(MONTH(C90)<>MONTH(D104+1),"",(D104+1)),"") -> 2020-09-29 | F104: =IFERROR(IF(MONTH(C90)<>MONTH(E104+1),"",(E104+1)),"") -> 2020-09-30 | G104: =IFERROR(IF(MONTH(C90)<>MONTH(F104+1),"",(F104+1)),"") ->  | H104: =IFERROR(IF(MONTH(C90)<>MONTH(G104+1),"",(G104+1)),"") ->  | I104: =IFERROR(IF(MONTH(C90)<>MONTH(H104+1),"",(H104+1)),"") -> 
C105: =SUMIFS('TRADE LOG'!$T$15:$T$9733,closeDate,">"&CALENDAR!C104,closeDate,"<="&D104,SIZE,">0") -> 0 | D105: =SUMIFS('TRADE LOG'!$T$15:$T$9733,closeDate,">"&CALENDAR!D104,closeDate,"<="&E104,SIZE,">0") -> 0 | E105: =SUMIFS('TRADE LOG'!$T$15:$T$9733,closeDate,">"&CALENDAR!E104,closeDate,"<="&F104,SIZE,">0") -> 0 | F105: =SUMIFS('TRADE LOG'!$T$15:$T$9733,closeDate,">"&CALENDAR!F104,closeDate,"<="&G104,SIZE,">0") -> 0 | G105: =SUMIFS('TRADE LOG'!$T$15:$T$9733,closeDate,">"&CALENDAR!G104,closeDate,"<="&H104,SIZE,">0") -> 0 | H105: =SUMIFS('TRADE LOG'!$T$15:$T$9733,closeDate,">"&CALENDAR!H104,closeDate,"<="&I104,SIZE,">0") -> 0 | I105: =SUMIFS('TRADE LOG'!$T$15:$T$9733,closeDate,">"&CALENDAR!I104,closeDate,"<="&C107,SIZE,">0") -> 0
C106: =COUNTIFS(closeDate,">"&CALENDAR!C104,closeDate,"<="&D104,SIZE,">0") -> 0 | D106: =COUNTIFS(closeDate,">"&CALENDAR!D104,closeDate,"<="&E104,SIZE,">0") -> 0 | E106: =COUNTIFS(closeDate,">"&CALENDAR!E104,closeDate,"<="&F104,SIZE,">0") -> 0 | F106: =COUNTIFS(closeDate,">"&CALENDAR!F104,closeDate,"<="&G104,SIZE,">0") -> 0 | G106: =COUNTIFS(closeDate,">"&CALENDAR!G104,closeDate,"<="&H104,SIZE,">0") -> 0 | H106: =COUNTIFS(closeDate,">"&CALENDAR!H104,closeDate,"<="&I104,SIZE,">0") -> 0 | I106: =COUNTIFS(closeDate,">"&CALENDAR!I104,closeDate,"<="&(I104+1),SIZE,">0") -> 0
C107: =IFERROR(IF(MONTH(C90)<>MONTH(I104+1),"",(I104+1)),"") ->  | D107: =IFERROR(IF(MONTH(C90)<>MONTH(C107+1),"",(C107+1)),"") ->  | E107: =IFERROR(IF(MONTH(C90)<>MONTH(D107+1),"",(D107+1)),"") ->  | F107: =IFERROR(IF(MONTH(C90)<>MONTH(E107+1),"",(E107+1)),"") ->  | G107: =IFERROR(IF(MONTH(C90)<>MONTH(F107+1),"",(F107+1)),"") ->  | H107: =IFERROR(IF(MONTH(C90)<>MONTH(G107+1),"",(G107+1)),"") ->  | I107: =IFERROR(IF(MONTH(C90)<>MONTH(H107+1),"",(H107+1)),"") -> 
C108: =SUMIFS('TRADE LOG'!$T$15:$T$9733,closeDate,">"&CALENDAR!C107,closeDate,"<="&D107,SIZE,">0") -> 0 | D108: =SUMIFS('TRADE LOG'!$T$15:$T$9733,closeDate,">"&CALENDAR!D107,closeDate,"<="&E107,SIZE,">0") -> 0 | E108: =SUMIFS('TRADE LOG'!$T$15:$T$9733,closeDate,">"&CALENDAR!E107,closeDate,"<="&F107,SIZE,">0") -> 0 | F108: =SUMIFS('TRADE LOG'!$T$15:$T$9733,closeDate,">"&CALENDAR!F107,closeDate,"<="&G107,SIZE,">0") -> 0 | G108: =SUMIFS('TRADE LOG'!$T$15:$T$9733,closeDate,">"&CALENDAR!G107,closeDate,"<="&H107,SIZE,">0") -> 0 | H108: =SUMIFS('TRADE LOG'!$T$15:$T$9733,closeDate,">"&CALENDAR!H107,closeDate,"<="&I107,SIZE,">0") -> 0 | I108: =SUMIFS('TRADE LOG'!$T$15:$T$9733,closeDate,">"&CALENDAR!I107,closeDate,"<="&C110,SIZE,">0") -> 0
C109: =COUNTIFS(closeDate,">"&CALENDAR!C107,closeDate,"<="&D107,SIZE,">0") -> 0 | D109: =COUNTIFS(closeDate,">"&CALENDAR!D107,closeDate,"<="&E107,SIZE,">0") -> 0 | E109: =COUNTIFS(closeDate,">"&CALENDAR!E107,closeDate,"<="&F107,SIZE,">0") -> 0 | F109: =COUNTIFS(closeDate,">"&CALENDAR!F107,closeDate,"<="&G107,SIZE,">0") -> 0 | G109: =COUNTIFS(closeDate,">"&CALENDAR!G107,closeDate,"<="&H107,SIZE,">0") -> 0 | H109: =COUNTIFS(closeDate,">"&CALENDAR!H107,closeDate,"<="&I107,SIZE,">0") -> 0 | I109: =COUNTIFS(closeDate,">"&CALENDAR!I107,closeDate,"<="&(I107+1),SIZE,">0") -> 0
C111: =EOMONTH(C90,0)+1 -> 2020-10-01
C112: SUN | D112: MON | E112: TUE | F112: WED | G112: THU | H112: FRI | I112: SAT
C113: =IF(MONTH(C111)<>MONTH((C111-WEEKDAY(C111,1)+1)),"",(C111-WEEKDAY(C111,1)+1)) ->  | D113: =IF(MONTH(C111)<>MONTH((C111-WEEKDAY(C111,1)+2)),"",(C111-WEEKDAY(C111,1)+2)) ->  | E113: =IF(MONTH(C111)<>MONTH((C111-WEEKDAY(C111,1)+3)),"",(C111-WEEKDAY(C111,1)+3)) ->  | F113: =IF(MONTH(C111)<>MONTH((C111-WEEKDAY(C111,1)+4)),"",(C111-WEEKDAY(C111,1)+4)) ->  | G113: =IF(MONTH(C111)<>MONTH((C111-WEEKDAY(C111,1)+5)),"",(C111-WEEKDAY(C111,1)+5)) -> 2020-10-01 | H113: =IF(MONTH(C111)<>MONTH((C111-WEEKDAY(C111,1)+6)),"",(C111-WEEKDAY(C111,1)+6)) -> 2020-10-02 | I113: =IF(MONTH(C111)<>MONTH((C111-WEEKDAY(C111,1)+7)),"",(C111-WEEKDAY(C111,1)+7)) -> 2020-10-03
C114: =SUMIFS('TRADE LOG'!$T$15:$T$9733,closeDate,">"&CALENDAR!C113,closeDate,"<="&D113,SIZE,">0") -> 0 | D114: =SUMIFS('TRADE LOG'!$T$15:$T$9733,closeDate,">"&CALENDAR!D113,closeDate,"<="&E113,SIZE,">0") -> 0 | E114: =SUMIFS('TRADE LOG'!$T$15:$T$9733,closeDate,">"&CALENDAR!E113,closeDate,"<="&F113,SIZE,">0") -> 0 | F114: =SUMIFS('TRADE LOG'!$T$15:$T$9733,closeDate,">"&CALENDAR!F113,closeDate,"<="&G113,SIZE,">0") -> 0 | G114: =SUMIFS('TRADE LOG'!$T$15:$T$9733,closeDate,">"&CALENDAR!G113,closeDate,"<="&H113,SIZE,">0") -> 0 | H114: =SUMIFS('TRADE LOG'!$T$15:$T$9733,closeDate,">"&CALENDAR!H113,closeDate,"<="&I113,SIZE,">0") -> 0 | I114: =SUMIFS('TRADE LOG'!$T$15:$T$9733,closeDate,">"&CALENDAR!I113,closeDate,"<="&C116,SIZE,">0") -> 0
C115: =COUNTIFS(closeDate,">"&CALENDAR!C113,closeDate,"<="&D113,SIZE,">0") -> 0 | D115: =COUNTIFS(closeDate,">"&CALENDAR!D113,closeDate,"<="&E113,SIZE,">0") -> 0 | E115: =COUNTIFS(closeDate,">"&CALENDAR!E113,closeDate,"<="&F113,SIZE,">0") -> 0 | F115: =COUNTIFS(closeDate,">"&CALENDAR!F113,closeDate,"<="&G113,SIZE,">0") -> 0 | G115: =COUNTIFS(closeDate,">"&CALENDAR!G113,closeDate,"<="&H113,SIZE,">0") -> 0 | H115: =COUNTIFS(closeDate,">"&CALENDAR!H113,closeDate,"<="&I113,SIZE,">0") -> 0 | I115: =COUNTIFS(closeDate,">"&CALENDAR!I113,closeDate,"<="&(I113+1),SIZE,">0") -> 0
C116: =I113+1 -> 2020-10-04 | D116: =C116+1 -> 2020-10-05 | E116: =D116+1 -> 2020-10-06 | F116: 2020-10-07 | G116: 2020-10-08 | H116: 2020-10-09 | I116: 2020-10-10
C117: =SUMIFS('TRADE LOG'!$T$15:$T$9733,closeDate,">"&CALENDAR!C116,closeDate,"<="&D116,SIZE,">0") -> 0 | D117: =SUMIFS('TRADE LOG'!$T$15:$T$9733,closeDate,">"&CALENDAR!D116,closeDate,"<="&E116,SIZE,">0") -> 0 | E117: =SUMIFS('TRADE LOG'!$T$15:$T$9733,closeDate,">"&CALENDAR!E116,closeDate,"<="&F116,SIZE,">0") -> 0 | F117: =SUMIFS('TRADE LOG'!$T$15:$T$9733,closeDate,">"&CALENDAR!F116,closeDate,"<="&G116,SIZE,">0") -> 0 | G117: =SUMIFS('TRADE LOG'!$T$15:$T$9733,closeDate,">"&CALENDAR!G116,closeDate,"<="&H116,SIZE,">0") -> 0 | H117: =SUMIFS('TRADE LOG'!$T$15:$T$9733,closeDate,">"&CALENDAR!H116,closeDate,"<="&I116,SIZE,">0") -> 0 | I117: =SUMIFS('TRADE LOG'!$T$15:$T$9733,closeDate,">"&CALENDAR!I116,closeDate,"<="&C119,SIZE,">0") -> 0
C118: =COUNTIFS(closeDate,">"&CALENDAR!C116,closeDate,"<="&D116,SIZE,">0") -> 0 | D118: =COUNTIFS(closeDate,">"&CALENDAR!D116,closeDate,"<="&E116,SIZE,">0") -> 0 | E118: =COUNTIFS(closeDate,">"&CALENDAR!E116,closeDate,"<="&F116,SIZE,">0") -> 0 | F118: =COUNTIFS(closeDate,">"&CALENDAR!F116,closeDate,"<="&G116,SIZE,">0") -> 0 | G118: =COUNTIFS(closeDate,">"&CALENDAR!G116,closeDate,"<="&H116,SIZE,">0") -> 0 | H118: =COUNTIFS(closeDate,">"&CALENDAR!H116,closeDate,"<="&I116,SIZE,">0") -> 0 | I118: =COUNTIFS(closeDate,">"&CALENDAR!I116,closeDate,"<="&(I116+1),SIZE,">0") -> 0
C119: =I116+1 -> 2020-10-11 | D119: =C119+1 -> 2020-10-12 | E119: =D119+1 -> 2020-10-13 | F119: 2020-10-14 | G119: 2020-10-15 | H119: 2020-10-16 | I119: 2020-10-17
C120: =SUMIFS('TRADE LOG'!$T$15:$T$9733,closeDate,">"&CALENDAR!C119,closeDate,"<="&D119,SIZE,">0") -> 0 | D120: =SUMIFS('TRADE LOG'!$T$15:$T$9733,closeDate,">"&CALENDAR!D119,closeDate,"<="&E119,SIZE,">0") -> 0 | E120: =SUMIFS('TRADE LOG'!$T$15:$T$9733,closeDate,">"&CALENDAR!E119,closeDate,"<="&F119,SIZE,">0") -> 0 | F120: =SUMIFS('TRADE LOG'!$T$15:$T$9733,closeDate,">"&CALENDAR!F119,closeDate,"<="&G119,SIZE,">0") -> 0 | G120: =SUMIFS('TRADE LOG'!$T$15:$T$9733,closeDate,">"&CALENDAR!G119,closeDate,"<="&H119,SIZE,">0") -> 0 | H120: =SUMIFS('TRADE LOG'!$T$15:$T$9733,closeDate,">"&CALENDAR!H119,closeDate,"<="&I119,SIZE,">0") -> 0 | I120: =SUMIFS('TRADE LOG'!$T$15:$T$9733,closeDate,">"&CALENDAR!I119,closeDate,"<="&C122,SIZE,">0") -> 0
C121: =COUNTIFS(closeDate,">"&CALENDAR!C119,closeDate,"<="&D119,SIZE,">0") -> 0 | D121: =COUNTIFS(closeDate,">"&CALENDAR!D119,closeDate,"<="&E119,SIZE,">0") -> 0 | E121: =COUNTIFS(closeDate,">"&CALENDAR!E119,closeDate,"<="&F119,SIZE,">0") -> 0 | F121: =COUNTIFS(closeDate,">"&CALENDAR!F119,closeDate,"<="&G119,SIZE,">0") -> 0 | G121: =COUNTIFS(closeDate,">"&CALENDAR!G119,closeDate,"<="&H119,SIZE,">0") -> 0 | H121: =COUNTIFS(closeDate,">"&CALENDAR!H119,closeDate,"<="&I119,SIZE,">0") -> 0 | I121: =COUNTIFS(closeDate,">"&CALENDAR!I119,closeDate,"<="&(I119+1),SIZE,">0") -> 0
C122: =I119+1 -> 2020-10-18 | D122: =C122+1 -> 2020-10-19 | E122: =D122+1 -> 2020-10-20 | F122: 2020-10-21 | G122: 2020-10-22 | H122: 2020-10-23 | I122: 2020-10-24
C123: =SUMIFS('TRADE LOG'!$T$15:$T$9733,closeDate,">"&CALENDAR!C122,closeDate,"<="&D122,SIZE,">0") -> 0 | D123: =SUMIFS('TRADE LOG'!$T$15:$T$9733,closeDate,">"&CALENDAR!D122,closeDate,"<="&E122,SIZE,">0") -> 0 | E123: =SUMIFS('TRADE LOG'!$T$15:$T$9733,closeDate,">"&CALENDAR!E122,closeDate,"<="&F122,SIZE,">0") -> 0 | F123: =SUMIFS('TRADE LOG'!$T$15:$T$9733,closeDate,">"&CALENDAR!F122,closeDate,"<="&G122,SIZE,">0") -> 0 | G123: =SUMIFS('TRADE LOG'!$T$15:$T$9733,closeDate,">"&CALENDAR!G122,closeDate,"<="&H122,SIZE,">0") -> 0 | H123: =SUMIFS('TRADE LOG'!$T$15:$T$9733,closeDate,">"&CALENDAR!H122,closeDate,"<="&I122,SIZE,">0") -> 0 | I123: =SUMIFS('TRADE LOG'!$T$15:$T$9733,closeDate,">"&CALENDAR!I122,closeDate,"<="&C125,SIZE,">0") -> 0
C124: =COUNTIFS(closeDate,">"&CALENDAR!C122,closeDate,"<="&D122,SIZE,">0") -> 0 | D124: =COUNTIFS(closeDate,">"&CALENDAR!D122,closeDate,"<="&E122,SIZE,">0") -> 0 | E124: =COUNTIFS(closeDate,">"&CALENDAR!E122,closeDate,"<="&F122,SIZE,">0") -> 0 | F124: =COUNTIFS(closeDate,">"&CALENDAR!F122,closeDate,"<="&G122,SIZE,">0") -> 0 | G124: =COUNTIFS(closeDate,">"&CALENDAR!G122,closeDate,"<="&H122,SIZE,">0") -> 0 | H124: =COUNTIFS(closeDate,">"&CALENDAR!H122,closeDate,"<="&I122,SIZE,">0") -> 0 | I124: =COUNTIFS(closeDate,">"&CALENDAR!I122,closeDate,"<="&(I122+1),SIZE,">0") -> 0
C125: =IFERROR(IF(MONTH(C111)<>MONTH(I122+1),"",(I122+1)),"") -> 2020-10-25 | D125: =IFERROR(IF(MONTH(C111)<>MONTH(C125+1),"",(C125+1)),"") -> 2020-10-26 | E125: =IFERROR(IF(MONTH(C111)<>MONTH(D125+1),"",(D125+1)),"") -> 2020-10-27 | F125: =IFERROR(IF(MONTH(C111)<>MONTH(E125+1),"",(E125+1)),"") -> 2020-10-28 | G125: =IFERROR(IF(MONTH(C111)<>MONTH(F125+1),"",(F125+1)),"") -> 2020-10-29 | H125: =IFERROR(IF(MONTH(C111)<>MONTH(G125+1),"",(G125+1)),"") -> 2020-10-30 | I125: =IFERROR(IF(MONTH(C111)<>MONTH(H125+1),"",(H125+1)),"") -> 2020-10-31
C126: =SUMIFS('TRADE LOG'!$T$15:$T$9733,closeDate,">"&CALENDAR!C125,closeDate,"<="&D125,SIZE,">0") -> 0 | D126: =SUMIFS('TRADE LOG'!$T$15:$T$9733,closeDate,">"&CALENDAR!D125,closeDate,"<="&E125,SIZE,">0") -> 0 | E126: =SUMIFS('TRADE LOG'!$T$15:$T$9733,closeDate,">"&CALENDAR!E125,closeDate,"<="&F125,SIZE,">0") -> 0 | F126: =SUMIFS('TRADE LOG'!$T$15:$T$9733,closeDate,">"&CALENDAR!F125,closeDate,"<="&G125,SIZE,">0") -> 0 | G126: =SUMIFS('TRADE LOG'!$T$15:$T$9733,closeDate,">"&CALENDAR!G125,closeDate,"<="&H125,SIZE,">0") -> 0 | H126: =SUMIFS('TRADE LOG'!$T$15:$T$9733,closeDate,">"&CALENDAR!H125,closeDate,"<="&I125,SIZE,">0") -> 0 | I126: =SUMIFS('TRADE LOG'!$T$15:$T$9733,closeDate,">"&CALENDAR!I125,closeDate,"<="&C128,SIZE,">0") -> 0
C127: =COUNTIFS(closeDate,">"&CALENDAR!C125,closeDate,"<="&D125,SIZE,">0") -> 0 | D127: =COUNTIFS(closeDate,">"&CALENDAR!D125,closeDate,"<="&E125,SIZE,">0") -> 0 | E127: =COUNTIFS(closeDate,">"&CALENDAR!E125,closeDate,"<="&F125,SIZE,">0") -> 0 | F127: =COUNTIFS(closeDate,">"&CALENDAR!F125,closeDate,"<="&G125,SIZE,">0") -> 0 | G127: =COUNTIFS(closeDate,">"&CALENDAR!G125,closeDate,"<="&H125,SIZE,">0") -> 0 | H127: =COUNTIFS(closeDate,">"&CALENDAR!H125,closeDate,"<="&I125,SIZE,">0") -> 0 | I127: =COUNTIFS(closeDate,">"&CALENDAR!I125,closeDate,"<="&(I125+1),SIZE,">0") -> 0
C128: =IFERROR(IF(MONTH(C111)<>MONTH(I125+1),"",(I125+1)),"") ->  | D128: =IFERROR(IF(MONTH(C111)<>MONTH(C128+1),"",(C128+1)),"") ->  | E128: =IFERROR(IF(MONTH(C111)<>MONTH(D128+1),"",(D128+1)),"") ->  | F128: =IFERROR(IF(MONTH(C111)<>MONTH(E128+1),"",(E128+1)),"") ->  | G128: =IFERROR(IF(MONTH(C111)<>MONTH(F128+1),"",(F128+1)),"") ->  | H128: =IFERROR(IF(MONTH(C111)<>MONTH(G128+1),"",(G128+1)),"") ->  | I128: =IFERROR(IF(MONTH(C111)<>MONTH(H128+1),"",(H128+1)),"") -> 
C129: =SUMIFS('TRADE LOG'!$T$15:$T$9733,closeDate,">"&CALENDAR!C128,closeDate,"<="&D128,SIZE,">0") -> 0 | D129: =SUMIFS('TRADE LOG'!$T$15:$T$9733,closeDate,">"&CALENDAR!D128,closeDate,"<="&E128,SIZE,">0") -> 0 | E129: =SUMIFS('TRADE LOG'!$T$15:$T$9733,closeDate,">"&CALENDAR!E128,closeDate,"<="&F128,SIZE,">0") -> 0 | F129: =SUMIFS('TRADE LOG'!$T$15:$T$9733,closeDate,">"&CALENDAR!F128,closeDate,"<="&G128,SIZE,">0") -> 0 | G129: =SUMIFS('TRADE LOG'!$T$15:$T$9733,closeDate,">"&CALENDAR!G128,closeDate,"<="&H128,SIZE,">0") -> 0 | H129: =SUMIFS('TRADE LOG'!$T$15:$T$9733,closeDate,">"&CALENDAR!H128,closeDate,"<="&I128,SIZE,">0") -> 0 | I129: =SUMIFS('TRADE LOG'!$T$15:$T$9733,closeDate,">"&CALENDAR!I128,closeDate,"<="&C131,SIZE,">0") -> 0
C130: =COUNTIFS(closeDate,">"&CALENDAR!C128,closeDate,"<="&D128,SIZE,">0") -> 0 | D130: =COUNTIFS(closeDate,">"&CALENDAR!D128,closeDate,"<="&E128,SIZE,">0") -> 0 | E130: =COUNTIFS(closeDate,">"&CALENDAR!E128,closeDate,"<="&F128,SIZE,">0") -> 0 | F130: =COUNTIFS(closeDate,">"&CALENDAR!F128,closeDate,"<="&G128,SIZE,">0") -> 0 | G130: =COUNTIFS(closeDate,">"&CALENDAR!G128,closeDate,"<="&H128,SIZE,">0") -> 0 | H130: =COUNTIFS(closeDate,">"&CALENDAR!H128,closeDate,"<="&I128,SIZE,">0") -> 0 | I130: =COUNTIFS(closeDate,">"&CALENDAR!I128,closeDate,"<="&(I128+1),SIZE,">0") -> 0
C132: =EOMONTH(C111,0)+1 -> 2020-11-01
C133: SUN | D133: MON | E133: TUE | F133: WED | G133: THU | H133: FRI | I133: SAT
C134: =IF(MONTH(C132)<>MONTH((C132-WEEKDAY(C132,1)+1)),"",(C132-WEEKDAY(C132,1)+1)) -> 2020-11-01 | D134: =IF(MONTH(C132)<>MONTH((C132-WEEKDAY(C132,1)+2)),"",(C132-WEEKDAY(C132,1)+2)) -> 2020-11-02 | E134: =IF(MONTH(C132)<>MONTH((C132-WEEKDAY(C132,1)+3)),"",(C132-WEEKDAY(C132,1)+3)) -> 2020-11-03 | F134: =IF(MONTH(C132)<>MONTH((C132-WEEKDAY(C132,1)+4)),"",(C132-WEEKDAY(C132,1)+4)) -> 2020-11-04 | G134: =IF(MONTH(C132)<>MONTH((C132-WEEKDAY(C132,1)+5)),"",(C132-WEEKDAY(C132,1)+5)) -> 2020-11-05 | H134: =IF(MONTH(C132)<>MONTH((C132-WEEKDAY(C132,1)+6)),"",(C132-WEEKDAY(C132,1)+6)) -> 2020-11-06 | I134: =IF(MONTH(C132)<>MONTH((C132-WEEKDAY(C132,1)+7)),"",(C132-WEEKDAY(C132,1)+7)) -> 2020-11-07
C135: =SUMIFS('TRADE LOG'!$T$15:$T$9733,closeDate,">"&CALENDAR!C134,closeDate,"<="&D134,SIZE,">0") -> 0 | D135: =SUMIFS('TRADE LOG'!$T$15:$T$9733,closeDate,">"&CALENDAR!D134,closeDate,"<="&E134,SIZE,">0") -> 0 | E135: =SUMIFS('TRADE LOG'!$T$15:$T$9733,closeDate,">"&CALENDAR!E134,closeDate,"<="&F134,SIZE,">0") -> 0 | F135: =SUMIFS('TRADE LOG'!$T$15:$T$9733,closeDate,">"&CALENDAR!F134,closeDate,"<="&G134,SIZE,">0") -> 0 | G135: =SUMIFS('TRADE LOG'!$T$15:$T$9733,closeDate,">"&CALENDAR!G134,closeDate,"<="&H134,SIZE,">0") -> 0 | H135: =SUMIFS('TRADE LOG'!$T$15:$T$9733,closeDate,">"&CALENDAR!H134,closeDate,"<="&I134,SIZE,">0") -> 0 | I135: =SUMIFS('TRADE LOG'!$T$15:$T$9733,closeDate,">"&CALENDAR!I134,closeDate,"<="&C137,SIZE,">0") -> 0
C136: =COUNTIFS(closeDate,">"&CALENDAR!C134,closeDate,"<="&D134,SIZE,">0") -> 0 | D136: =COUNTIFS(closeDate,">"&CALENDAR!D134,closeDate,"<="&E134,SIZE,">0") -> 0 | E136: =COUNTIFS(closeDate,">"&CALENDAR!E134,closeDate,"<="&F134,SIZE,">0") -> 0 | F136: =COUNTIFS(closeDate,">"&CALENDAR!F134,closeDate,"<="&G134,SIZE,">0") -> 0 | G136: =COUNTIFS(closeDate,">"&CALENDAR!G134,closeDate,"<="&H134,SIZE,">0") -> 0 | H136: =COUNTIFS(closeDate,">"&CALENDAR!H134,closeDate,"<="&I134,SIZE,">0") -> 0 | I136: =COUNTIFS(closeDate,">"&CALENDAR!I134,closeDate,"<="&(I134+1),SIZE,">0") -> 0
C137: =I134+1 -> 2020-11-08 | D137: =C137+1 -> 2020-11-09 | E137: =D137+1 -> 2020-11-10 | F137: 2020-11-11 | G137: 2020-11-12 | H137: 2020-11-13 | I137: 2020-11-14
C138: =SUMIFS('TRADE LOG'!$T$15:$T$9733,closeDate,">"&CALENDAR!C137,closeDate,"<="&D137,SIZE,">0") -> 0 | D138: =SUMIFS('TRADE LOG'!$T$15:$T$9733,closeDate,">"&CALENDAR!D137,closeDate,"<="&E137,SIZE,">0") -> 0 | E138: =SUMIFS('TRADE LOG'!$T$15:$T$9733,closeDate,">"&CALENDAR!E137,closeDate,"<="&F137,SIZE,">0") -> 0 | F138: =SUMIFS('TRADE LOG'!$T$15:$T$9733,closeDate,">"&CALENDAR!F137,closeDate,"<="&G137,SIZE,">0") -> 0 | G138: =SUMIFS('TRADE LOG'!$T$15:$T$9733,closeDate,">"&CALENDAR!G137,closeDate,"<="&H137,SIZE,">0") -> 0 | H138: =SUMIFS('TRADE LOG'!$T$15:$T$9733,closeDate,">"&CALENDAR!H137,closeDate,"<="&I137,SIZE,">0") -> 0 | I138: =SUMIFS('TRADE LOG'!$T$15:$T$9733,closeDate,">"&CALENDAR!I137,closeDate,"<="&C140,SIZE,">0") -> 0
C139: =COUNTIFS(closeDate,">"&CALENDAR!C137,closeDate,"<="&D137,SIZE,">0") -> 0 | D139: =COUNTIFS(closeDate,">"&CALENDAR!D137,closeDate,"<="&E137,SIZE,">0") -> 0 | E139: =COUNTIFS(closeDate,">"&CALENDAR!E137,closeDate,"<="&F137,SIZE,">0") -> 0 | F139: =COUNTIFS(closeDate,">"&CALENDAR!F137,closeDate,"<="&G137,SIZE,">0") -> 0 | G139: =COUNTIFS(closeDate,">"&CALENDAR!G137,closeDate,"<="&H137,SIZE,">0") -> 0 | H139: =COUNTIFS(closeDate,">"&CALENDAR!H137,closeDate,"<="&I137,SIZE,">0") -> 0 | I139: =COUNTIFS(closeDate,">"&CALENDAR!I137,closeDate,"<="&(I137+1),SIZE,">0") -> 0
C140: =I137+1 -> 2020-11-15 | D140: =C140+1 -> 2020-11-16 | E140: =D140+1 -> 2020-11-17 | F140: 2020-11-18 | G140: 2020-11-19 | H140: 2020-11-20 | I140: 2020-11-21
C141: =SUMIFS('TRADE LOG'!$T$15:$T$9733,closeDate,">"&CALENDAR!C140,closeDate,"<="&D140,SIZE,">0") -> 0 | D141: =SUMIFS('TRADE LOG'!$T$15:$T$9733,closeDate,">"&CALENDAR!D140,closeDate,"<="&E140,SIZE,">0") -> 0 | E141: =SUMIFS('TRADE LOG'!$T$15:$T$9733,closeDate,">"&CALENDAR!E140,closeDate,"<="&F140,SIZE,">0") -> 0 | F141: =SUMIFS('TRADE LOG'!$T$15:$T$9733,closeDate,">"&CALENDAR!F140,closeDate,"<="&G140,SIZE,">0") -> 0 | G141: =SUMIFS('TRADE LOG'!$T$15:$T$9733,closeDate,">"&CALENDAR!G140,closeDate,"<="&H140,SIZE,">0") -> 0 | H141: =SUMIFS('TRADE LOG'!$T$15:$T$9733,closeDate,">"&CALENDAR!H140,closeDate,"<="&I140,SIZE,">0") -> 0 | I141: =SUMIFS('TRADE LOG'!$T$15:$T$9733,closeDate,">"&CALENDAR!I140,closeDate,"<="&C143,SIZE,">0") -> 0
C142: =COUNTIFS(closeDate,">"&CALENDAR!C140,closeDate,"<="&D140,SIZE,">0") -> 0 | D142: =COUNTIFS(closeDate,">"&CALENDAR!D140,closeDate,"<="&E140,SIZE,">0") -> 0 | E142: =COUNTIFS(closeDate,">"&CALENDAR!E140,closeDate,"<="&F140,SIZE,">0") -> 0 | F142: =COUNTIFS(closeDate,">"&CALENDAR!F140,closeDate,"<="&G140,SIZE,">0") -> 0 | G142: =COUNTIFS(closeDate,">"&CALENDAR!G140,closeDate,"<="&H140,SIZE,">0") -> 0 | H142: =COUNTIFS(closeDate,">"&CALENDAR!H140,closeDate,"<="&I140,SIZE,">0") -> 0 | I142: =COUNTIFS(closeDate,">"&CALENDAR!I140,closeDate,"<="&(I140+1),SIZE,">0") -> 0
C143: =I140+1 -> 2020-11-22 | D143: =C143+1 -> 2020-11-23 | E143: =D143+1 -> 2020-11-24 | F143: 2020-11-25 | G143: 2020-11-26 | H143: 2020-11-27 | I143: 2020-11-28
C144: =SUMIFS('TRADE LOG'!$T$15:$T$9733,closeDate,">"&CALENDAR!C143,closeDate,"<="&D143,SIZE,">0") -> 0 | D144: =SUMIFS('TRADE LOG'!$T$15:$T$9733,closeDate,">"&CALENDAR!D143,closeDate,"<="&E143,SIZE,">0") -> 0 | E144: =SUMIFS('TRADE LOG'!$T$15:$T$9733,closeDate,">"&CALENDAR!E143,closeDate,"<="&F143,SIZE,">0") -> 0 | F144: =SUMIFS('TRADE LOG'!$T$15:$T$9733,closeDate,">"&CALENDAR!F143,closeDate,"<="&G143,SIZE,">0") -> 0 | G144: =SUMIFS('TRADE LOG'!$T$15:$T$9733,closeDate,">"&CALENDAR!G143,closeDate,"<="&H143,SIZE,">0") -> 0 | H144: =SUMIFS('TRADE LOG'!$T$15:$T$9733,closeDate,">"&CALENDAR!H143,closeDate,"<="&I143,SIZE,">0") -> 0 | I144: =SUMIFS('TRADE LOG'!$T$15:$T$9733,closeDate,">"&CALENDAR!I143,closeDate,"<="&C146,SIZE,">0") -> 0
C145: =COUNTIFS(closeDate,">"&CALENDAR!C143,closeDate,"<="&D143,SIZE,">0") -> 0 | D145: =COUNTIFS(closeDate,">"&CALENDAR!D143,closeDate,"<="&E143,SIZE,">0") -> 0 | E145: =COUNTIFS(closeDate,">"&CALENDAR!E143,closeDate,"<="&F143,SIZE,">0") -> 0 | F145: =COUNTIFS(closeDate,">"&CALENDAR!F143,closeDate,"<="&G143,SIZE,">0") -> 0 | G145: =COUNTIFS(closeDate,">"&CALENDAR!G143,closeDate,"<="&H143,SIZE,">0") -> 0 | H145: =COUNTIFS(closeDate,">"&CALENDAR!H143,closeDate,"<="&I143,SIZE,">0") -> 0 | I145: =COUNTIFS(closeDate,">"&CALENDAR!I143,closeDate,"<="&(I143+1),SIZE,">0") -> 0
C146: =IFERROR(IF(MONTH(C132)<>MONTH(I143+1),"",(I143+1)),"") -> 2020-11-29 | D146: =IFERROR(IF(MONTH(C132)<>MONTH(C146+1),"",(C146+1)),"") -> 2020-11-30 | E146: =IFERROR(IF(MONTH(C132)<>MONTH(D146+1),"",(D146+1)),"") ->  | F146: =IFERROR(IF(MONTH(C132)<>MONTH(E146+1),"",(E146+1)),"") ->  | G146: =IFERROR(IF(MONTH(C132)<>MONTH(F146+1),"",(F146+1)),"") ->  | H146: =IFERROR(IF(MONTH(C132)<>MONTH(G146+1),"",(G146+1)),"") ->  | I146: =IFERROR(IF(MONTH(C132)<>MONTH(H146+1),"",(H146+1)),"") -> 
C147: =SUMIFS('TRADE LOG'!$T$15:$T$9733,closeDate,">"&CALENDAR!C146,closeDate,"<="&D146,SIZE,">0") -> 0 | D147: =SUMIFS('TRADE LOG'!$T$15:$T$9733,closeDate,">"&CALENDAR!D146,closeDate,"<="&E146,SIZE,">0") -> 0 | E147: =SUMIFS('TRADE LOG'!$T$15:$T$9733,closeDate,">"&CALENDAR!E146,closeDate,"<="&F146,SIZE,">0") -> 0 | F147: =SUMIFS('TRADE LOG'!$T$15:$T$9733,closeDate,">"&CALENDAR!F146,closeDate,"<="&G146,SIZE,">0") -> 0 | G147: =SUMIFS('TRADE LOG'!$T$15:$T$9733,closeDate,">"&CALENDAR!G146,closeDate,"<="&H146,SIZE,">0") -> 0 | H147: =SUMIFS('TRADE LOG'!$T$15:$T$9733,closeDate,">"&CALENDAR!H146,closeDate,"<="&I146,SIZE,">0") -> 0 | I147: =SUMIFS('TRADE LOG'!$T$15:$T$9733,closeDate,">"&CALENDAR!I146,closeDate,"<="&C149,SIZE,">0") -> 0
C148: =COUNTIFS(closeDate,">"&CALENDAR!C146,closeDate,"<="&D146,SIZE,">0") -> 0 | D148: =COUNTIFS(closeDate,">"&CALENDAR!D146,closeDate,"<="&E146,SIZE,">0") -> 0 | E148: =COUNTIFS(closeDate,">"&CALENDAR!E146,closeDate,"<="&F146,SIZE,">0") -> 0 | F148: =COUNTIFS(closeDate,">"&CALENDAR!F146,closeDate,"<="&G146,SIZE,">0") -> 0 | G148: =COUNTIFS(closeDate,">"&CALENDAR!G146,closeDate,"<="&H146,SIZE,">0") -> 0 | H148: =COUNTIFS(closeDate,">"&CALENDAR!H146,closeDate,"<="&I146,SIZE,">0") -> 0 | I148: =COUNTIFS(closeDate,">"&CALENDAR!I146,closeDate,"<="&(I146+1),SIZE,">0") -> 0
C149: =IFERROR(IF(MONTH(C132)<>MONTH(I146+1),"",(I146+1)),"") ->  | D149: =IFERROR(IF(MONTH(C132)<>MONTH(C149+1),"",(C149+1)),"") ->  | E149: =IFERROR(IF(MONTH(C132)<>MONTH(D149+1),"",(D149+1)),"") ->  | F149: =IFERROR(IF(MONTH(C132)<>MONTH(E149+1),"",(E149+1)),"") ->  | G149: =IFERROR(IF(MONTH(C132)<>MONTH(F149+1),"",(F149+1)),"") ->  | H149: =IFERROR(IF(MONTH(C132)<>MONTH(G149+1),"",(G149+1)),"") ->  | I149: =IFERROR(IF(MONTH(C132)<>MONTH(H149+1),"",(H149+1)),"") -> 
C150: =SUMIFS('TRADE LOG'!$T$15:$T$9733,closeDate,">"&CALENDAR!C149,closeDate,"<="&D149,SIZE,">0") -> 0 | D150: =SUMIFS('TRADE LOG'!$T$15:$T$9733,closeDate,">"&CALENDAR!D149,closeDate,"<="&E149,SIZE,">0") -> 0 | E150: =SUMIFS('TRADE LOG'!$T$15:$T$9733,closeDate,">"&CALENDAR!E149,closeDate,"<="&F149,SIZE,">0") -> 0 | F150: =SUMIFS('TRADE LOG'!$T$15:$T$9733,closeDate,">"&CALENDAR!F149,closeDate,"<="&G149,SIZE,">0") -> 0 | G150: =SUMIFS('TRADE LOG'!$T$15:$T$9733,closeDate,">"&CALENDAR!G149,closeDate,"<="&H149,SIZE,">0") -> 0 | H150: =SUMIFS('TRADE LOG'!$T$15:$T$9733,closeDate,">"&CALENDAR!H149,closeDate,"<="&I149,SIZE,">0") -> 0 | I150: =SUMIFS('TRADE LOG'!$T$15:$T$9733,closeDate,">"&CALENDAR!I149,closeDate,"<="&C152,SIZE,">0") -> 0
C151: =COUNTIFS(closeDate,">"&CALENDAR!C149,closeDate,"<="&D149,SIZE,">0") -> 0 | D151: =COUNTIFS(closeDate,">"&CALENDAR!D149,closeDate,"<="&E149,SIZE,">0") -> 0 | E151: =COUNTIFS(closeDate,">"&CALENDAR!E149,closeDate,"<="&F149,SIZE,">0") -> 0 | F151: =COUNTIFS(closeDate,">"&CALENDAR!F149,closeDate,"<="&G149,SIZE,">0") -> 0 | G151: =COUNTIFS(closeDate,">"&CALENDAR!G149,closeDate,"<="&H149,SIZE,">0") -> 0 | H151: =COUNTIFS(closeDate,">"&CALENDAR!H149,closeDate,"<="&I149,SIZE,">0") -> 0 | I151: =COUNTIFS(closeDate,">"&CALENDAR!I149,closeDate,"<="&(I149+1),SIZE,">0") -> 0
C153: =EOMONTH(C132,0)+1 -> 2020-12-01
C154: SUN | D154: MON | E154: TUE | F154: WED | G154: THU | H154: FRI | I154: SAT
C155: =IF(MONTH(C153)<>MONTH((C153-WEEKDAY(C153,1)+1)),"",(C153-WEEKDAY(C153,1)+1)) ->  | D155: =IF(MONTH(C153)<>MONTH((C153-WEEKDAY(C153,1)+2)),"",(C153-WEEKDAY(C153,1)+2)) ->  | E155: =IF(MONTH(C153)<>MONTH((C153-WEEKDAY(C153,1)+3)),"",(C153-WEEKDAY(C153,1)+3)) -> 2020-12-01 | F155: =IF(MONTH(C153)<>MONTH((C153-WEEKDAY(C153,1)+4)),"",(C153-WEEKDAY(C153,1)+4)) -> 2020-12-02 | G155: =IF(MONTH(C153)<>MONTH((C153-WEEKDAY(C153,1)+5)),"",(C153-WEEKDAY(C153,1)+5)) -> 2020-12-03 | H155: =IF(MONTH(C153)<>MONTH((C153-WEEKDAY(C153,1)+6)),"",(C153-WEEKDAY(C153,1)+6)) -> 2020-12-04 | I155: =IF(MONTH(C153)<>MONTH((C153-WEEKDAY(C153,1)+7)),"",(C153-WEEKDAY(C153,1)+7)) -> 2020-12-05
C156: =SUMIFS('TRADE LOG'!$T$15:$T$9733,closeDate,">"&CALENDAR!C155,closeDate,"<="&D155,SIZE,">0") -> 0 | D156: =SUMIFS('TRADE LOG'!$T$15:$T$9733,closeDate,">"&CALENDAR!D155,closeDate,"<="&E155,SIZE,">0") -> 0 | E156: =SUMIFS('TRADE LOG'!$T$15:$T$9733,closeDate,">"&CALENDAR!E155,closeDate,"<="&F155,SIZE,">0") -> 0 | F156: =SUMIFS('TRADE LOG'!$T$15:$T$9733,closeDate,">"&CALENDAR!F155,closeDate,"<="&G155,SIZE,">0") -> 0 | G156: =SUMIFS('TRADE LOG'!$T$15:$T$9733,closeDate,">"&CALENDAR!G155,closeDate,"<="&H155,SIZE,">0") -> 0 | H156: =SUMIFS('TRADE LOG'!$T$15:$T$9733,closeDate,">"&CALENDAR!H155,closeDate,"<="&I155,SIZE,">0") -> 0 | I156: =SUMIFS('TRADE LOG'!$T$15:$T$9733,closeDate,">"&CALENDAR!I155,closeDate,"<="&C158,SIZE,">0") -> 0
C157: =COUNTIFS(closeDate,">"&CALENDAR!C155,closeDate,"<="&D155,SIZE,">0") -> 0 | D157: =COUNTIFS(closeDate,">"&CALENDAR!D155,closeDate,"<="&E155,SIZE,">0") -> 0 | E157: =COUNTIFS(closeDate,">"&CALENDAR!E155,closeDate,"<="&F155,SIZE,">0") -> 0 | F157: =COUNTIFS(closeDate,">"&CALENDAR!F155,closeDate,"<="&G155,SIZE,">0") -> 0 | G157: =COUNTIFS(closeDate,">"&CALENDAR!G155,closeDate,"<="&H155,SIZE,">0") -> 0 | H157: =COUNTIFS(closeDate,">"&CALENDAR!H155,closeDate,"<="&I155,SIZE,">0") -> 0 | I157: =COUNTIFS(closeDate,">"&CALENDAR!I155,closeDate,"<="&(I155+1),SIZE,">0") -> 0
C158: =I155+1 -> 2020-12-06 | D158: =C158+1 -> 2020-12-07 | E158: =D158+1 -> 2020-12-08 | F158: 2020-12-09 | G158: 2020-12-10 | H158: 2020-12-11 | I158: 2020-12-12
C159: =SUMIFS('TRADE LOG'!$T$15:$T$9733,closeDate,">"&CALENDAR!C158,closeDate,"<="&D158,SIZE,">0") -> 0 | D159: =SUMIFS('TRADE LOG'!$T$15:$T$9733,closeDate,">"&CALENDAR!D158,closeDate,"<="&E158,SIZE,">0") -> 0 | E159: =SUMIFS('TRADE LOG'!$T$15:$T$9733,closeDate,">"&CALENDAR!E158,closeDate,"<="&F158,SIZE,">0") -> 0 | F159: =SUMIFS('TRADE LOG'!$T$15:$T$9733,closeDate,">"&CALENDAR!F158,closeDate,"<="&G158,SIZE,">0") -> 0 | G159: =SUMIFS('TRADE LOG'!$T$15:$T$9733,closeDate,">"&CALENDAR!G158,closeDate,"<="&H158,SIZE,">0") -> 0 | H159: =SUMIFS('TRADE LOG'!$T$15:$T$9733,closeDate,">"&CALENDAR!H158,closeDate,"<="&I158,SIZE,">0") -> 0 | I159: =SUMIFS('TRADE LOG'!$T$15:$T$9733,closeDate,">"&CALENDAR!I158,closeDate,"<="&C161,SIZE,">0") -> 0
C160: =COUNTIFS(closeDate,">"&CALENDAR!C158,closeDate,"<="&D158,SIZE,">0") -> 0 | D160: =COUNTIFS(closeDate,">"&CALENDAR!D158,closeDate,"<="&E158,SIZE,">0") -> 0 | E160: =COUNTIFS(closeDate,">"&CALENDAR!E158,closeDate,"<="&F158,SIZE,">0") -> 0 | F160: =COUNTIFS(closeDate,">"&CALENDAR!F158,closeDate,"<="&G158,SIZE,">0") -> 0 | G160: =COUNTIFS(closeDate,">"&CALENDAR!G158,closeDate,"<="&H158,SIZE,">0") -> 0 | H160: =COUNTIFS(closeDate,">"&CALENDAR!H158,closeDate,"<="&I158,SIZE,">0") -> 0 | I160: =COUNTIFS(closeDate,">"&CALENDAR!I158,closeDate,"<="&(I158+1),SIZE,">0") -> 0
C161: =I158+1 -> 2020-12-13 | D161: =C161+1 -> 2020-12-14 | E161: =D161+1 -> 2020-12-15 | F161: 2020-12-16 | G161: 2020-12-17 | H161: 2020-12-18 | I161: 2020-12-19
